Workbook

Sheet Info
C7: File name | D7: Front end Program Interreg V-A România-Bulgaria
C8: Author | D8: Cambridge Econometrics
C9: Client | D9: Ministerul Investițiilor și Proiectelor Europene
C10: Project | D10: Evaluarea progresului în îndeplinirea indicatorilor din cadrul de performanță – Tema E
C12: Version | D12: 1
C13: Authorised for release by
C14: Last revised | D14: 2021-07-27
C15: Status | D15: Completed
C16: Source | D16: SMIS
C18: Purpose | D18: To provide forecasts on indicators relating to the CBC programme
C22: Sheets in this file:
D24: Info | F24: This documentation sheet
D25: Projections | F25: Summary projection results
D26: Achievement_finalised | F26: Results for finalised projects in SMIS
D27: Achievement_to_date_ongoing | F27: Results for ongoing projects in SMIS
D28: Achievement_forecast_ongoing | F28: Forecasts for ongoing projects
D29: Project_characteristics | F29: Project characteristics and project pipline
D30: Achievement_forecast_future | F30: Forecasts for future projects

Sheet Projections
H2: As percentage of target (%) | L2: Total | P2: Finalised | T2: Ongoing | X2: New
C3: PA | D3: PI | E3: Indicator | F3: Region | G3: Target | H3: 2020 | I3: 2021 | J3: 2022 | K3: 2023 | L3: 2020 | M3: =+L3+1 -> 2021 | N3: =+M3+1 -> 2022 | O3: 2023 | P3: 2020 | Q3: =+P3+1 -> 2021 | R3: =+Q3+1 -> 2022 | S3: 2023 | T3: 2020 | U3: =+T3+1 -> 2021 | V3: =+U3+1 -> 2022 | W3: 2023 | X3: 2020 | Y3: =+X3+1 -> 2021 | Z3: =+Y3+1 -> 2022 | AA3: 2023
C4: 1 | D4: All | E4: CO14 | F4: All | G4: 150 | H4: =L4/$G4*100 -> 4.713333333 | I4: 29.21882165 | J4: =N4/$G4*100 -> 71.16046371 | K4: 111.0423705 | L4: =P4+T4+X4 -> 7.07 | M4: 43.82823248 | N4: 106.7406956 | O4: 166.5635558 | P4: =Achievement_finalised!G4 -> 7.07 | Q4: =P4 -> 7.07 | R4: =Q4 -> 7.07 | S4: =R4 -> 7.07 | T4: =SUMIFS(Achievement_forecast_ongoing!G$6:G$235,Achievement_forecast_ongoing!$D$6:$D$235,Projections!$D4,Achievement_forecast_ongoing!$E$6:$E$235,Projections!$E4,Achievement_forecast_ongoing!$C$6:$C$235,Projections!$C4,Achievement_forecast_ongoing!$F$6:$F$235,Projections!$F4) -> 0 | U4: =SUMIFS(Achievement_forecast_ongoing!H$6:H$235,Achievement_forecast_ongoing!$D$6:$D$235,Projections!$D4,Achievement_forecast_ongoing!$E$6:$E$235,Projections!$E4,Achievement_forecast_ongoing!$C$6:$C$235,Projections!$C4,Achievement_forecast_ongoing!$F$6:$F$235,Projections!$F4) -> 36.75823248 | V4: =SUMIFS(Achievement_forecast_ongoing!I$6:I$235,Achievement_forecast_ongoing!$D$6:$D$235,Projections!$D4,Achievement_forecast_ongoing!$E$6:$E$235,Projections!$E4,Achievement_forecast_ongoing!$C$6:$C$235,Projections!$C4,Achievement_forecast_ongoing!$F$6:$F$235,Projections!$F4) -> 99.67069556 | W4: =SUMIFS(Achievement_forecast_ongoing!J$6:J$235,Achievement_forecast_ongoing!$D$6:$D$235,Projections!$D4,Achievement_forecast_ongoing!$E$6:$E$235,Projections!$E4,Achievement_forecast_ongoing!$C$6:$C$235,Projections!$C4,Achievement_forecast_ongoing!$F$6:$F$235,Projections!$F4) -> 159.4935558 | X4: =Achievement_forecasts_future!G4 -> 0 | Y4: =Achievement_forecasts_future!H4 -> 0 | Z4: =Achievement_forecasts_future!I4 -> 0 | AA4: =Achievement_forecasts_future!J4 -> 0
C5: 1 | D5: All | E5: 1F1 | F5: All | G5: 116333743 | H5: 58.46099522 | I5: 83.90797391 | J5: 93.52677079 | K5: 95.1981948 | L5: 68009863.93 | M5: 97613286.72 | N5: 108803193.2 | O5: 110747623.3 | P5: =Achievement_finalised!G5 -> 11640370.94 | Q5: =P5 -> 11640370.94 | R5: 11640370.94 | S5: 11640370.94 | T5: =SUMIFS(Achievement_forecast_ongoing!G$6:G$235,Achievement_forecast_ongoing!$D$6:$D$235,Projections!$D5,Achievement_forecast_ongoing!$E$6:$E$235,Projections!$E5,Achievement_forecast_ongoing!$C$6:$C$235,Projections!$C5,Achievement_forecast_ongoing!$F$6:$F$235,Projections!$F5) -> 56369492.99 | U5: =SUMIFS(Achievement_forecast_ongoing!H$6:H$235,Achievement_forecast_ongoing!$D$6:$D$235,Projections!$D5,Achievement_forecast_ongoing!$E$6:$E$235,Projections!$E5,Achievement_forecast_ongoing!$C$6:$C$235,Projections!$C5,Achievement_forecast_ongoing!$F$6:$F$235,Projections!$F5) -> 85972915.78 | V5: =SUMIFS(Achievement_forecast_ongoing!I$6:I$235,Achievement_forecast_ongoing!$D$6:$D$235,Projections!$D5,Achievement_forecast_ongoing!$E$6:$E$235,Projections!$E5,Achievement_forecast_ongoing!$C$6:$C$235,Projections!$C5,Achievement_forecast_ongoing!$F$6:$F$235,Projections!$F5) -> 97162822.22 | W5: =SUMIFS(Achievement_forecast_ongoing!J$6:J$235,Achievement_forecast_ongoing!$D$6:$D$235,Projections!$D5,Achievement_forecast_ongoing!$E$6:$E$235,Projections!$E5,Achievement_forecast_ongoing!$C$6:$C$235,Projections!$C5,Achievement_forecast_ongoing!$F$6:$F$235,Projections!$F5) -> 99107252.34 | X5: =Achievement_forecasts_future!G5 -> 0 | Y5: =Achievement_forecasts_future!H5 -> 0 | Z5: =Achievement_forecasts_future!I5 -> 0 | AA5: =Achievement_forecasts_future!J5 -> 0
C6: 2 | D6: All | E6: CO09 | F6: All | G6: 100000 | H6: 27.139 | I6: 57.69936146 | J6: 93.60326308 | K6: 198.0046791 | L6: 27139 | M6: 57699.36146 | N6: 93603.26308 | O6: 198004.6791 | P6: =Achievement_finalised!G6 -> 27139 | Q6: 27139 | R6: 27139 | S6: 27139 | T6: =SUMIFS(Achievement_forecast_ongoing!G$6:G$235,Achievement_forecast_ongoing!$D$6:$D$235,Projections!$D6,Achievement_forecast_ongoing!$E$6:$E$235,Projections!$E6,Achievement_forecast_ongoing!$C$6:$C$235,Projections!$C6,Achievement_forecast_ongoing!$F$6:$F$235,Projections!$F6) -> 0 | U6: =SUMIFS(Achievement_forecast_ongoing!H$6:H$235,Achievement_forecast_ongoing!$D$6:$D$235,Projections!$D6,Achievement_forecast_ongoing!$E$6:$E$235,Projections!$E6,Achievement_forecast_ongoing!$C$6:$C$235,Projections!$C6,Achievement_forecast_ongoing!$F$6:$F$235,Projections!$F6) -> 30560.36146 | V6: =SUMIFS(Achievement_forecast_ongoing!I$6:I$235,Achievement_forecast_ongoing!$D$6:$D$235,Projections!$D6,Achievement_forecast_ongoing!$E$6:$E$235,Projections!$E6,Achievement_forecast_ongoing!$C$6:$C$235,Projections!$C6,Achievement_forecast_ongoing!$F$6:$F$235,Projections!$F6) -> 66464.26308 | W6: =SUMIFS(Achievement_forecast_ongoing!J$6:J$235,Achievement_forecast_ongoing!$D$6:$D$235,Projections!$D6,Achievement_forecast_ongoing!$E$6:$E$235,Projections!$E6,Achievement_forecast_ongoing!$C$6:$C$235,Projections!$C6,Achievement_forecast_ongoing!$F$6:$F$235,Projections!$F6) -> 170865.6791 | X6: =Achievement_forecasts_future!G6 -> 0 | Y6: =Achievement_forecasts_future!H6 -> 0 | Z6: =Achievement_forecasts_future!I6 -> 0 | AA6: =Achievement_forecasts_future!J6 -> 0
C7: 2 | D7: All | E7: 6c.1 | F7: All | G7: 100 | H7: 107 | I7: 152.54347 | J7: 169.51931 | K7: 181.402398 | L7: 107 | M7: 152.54347 | N7: 169.51931 | O7: 181.402398 | P7: =Achievement_finalised!G7 -> 107 | Q7: 107 | R7: 107 | S7: 107 | T7: =SUMIFS(Achievement_forecast_ongoing!G$6:G$235,Achievement_forecast_ongoing!$D$6:$D$235,Projections!$D7,Achievement_forecast_ongoing!$E$6:$E$235,Projections!$E7,Achievement_forecast_ongoing!$C$6:$C$235,Projections!$C7,Achievement_forecast_ongoing!$F$6:$F$235,Projections!$F7) -> 0 | U7: =SUMIFS(Achievement_forecast_ongoing!H$6:H$235,Achievement_forecast_ongoing!$D$6:$D$235,Projections!$D7,Achievement_forecast_ongoing!$E$6:$E$235,Projections!$E7,Achievement_forecast_ongoing!$C$6:$C$235,Projections!$C7,Achievement_forecast_ongoing!$F$6:$F$235,Projections!$F7) -> 45.54346999 | V7: =SUMIFS(Achievement_forecast_ongoing!I$6:I$235,Achievement_forecast_ongoing!$D$6:$D$235,Projections!$D7,Achievement_forecast_ongoing!$E$6:$E$235,Projections!$E7,Achievement_forecast_ongoing!$C$6:$C$235,Projections!$C7,Achievement_forecast_ongoing!$F$6:$F$235,Projections!$F7) -> 62.51931 | W7: =SUMIFS(Achievement_forecast_ongoing!J$6:J$235,Achievement_forecast_ongoing!$D$6:$D$235,Projections!$D7,Achievement_forecast_ongoing!$E$6:$E$235,Projections!$E7,Achievement_forecast_ongoing!$C$6:$C$235,Projections!$C7,Achievement_forecast_ongoing!$F$6:$F$235,Projections!$F7) -> 74.40239801 | X7: =Achievement_forecasts_future!G7 -> 0 | Y7: =Achievement_forecasts_future!H7 -> 0 | Z7: =Achievement_forecasts_future!I7 -> 0 | AA7: =Achievement_forecasts_future!J7 -> 0
C8: 2 | D8: All | E8: 2F1 | F8: All | G8: 54276757 | H8: 94.06037488 | I8: 95.38894319 | J8: 95.38894319 | K8: 95.38894319 | L8: 51052921.11 | M8: 51774024.9 | N8: 51774024.9 | O8: 51774024.9 | P8: =Achievement_finalised!G8 -> 20591434 | Q8: 20591434 | R8: 20591434 | S8: 20591434 | T8: =SUMIFS(Achievement_forecast_ongoing!G$6:G$235,Achievement_forecast_ongoing!$D$6:$D$235,Projections!$D8,Achievement_forecast_ongoing!$E$6:$E$235,Projections!$E8,Achievement_forecast_ongoing!$C$6:$C$235,Projections!$C8,Achievement_forecast_ongoing!$F$6:$F$235,Projections!$F8) -> 30461487.11 | U8: =SUMIFS(Achievement_forecast_ongoing!H$6:H$235,Achievement_forecast_ongoing!$D$6:$D$235,Projections!$D8,Achievement_forecast_ongoing!$E$6:$E$235,Projections!$E8,Achievement_forecast_ongoing!$C$6:$C$235,Projections!$C8,Achievement_forecast_ongoing!$F$6:$F$235,Projections!$F8) -> 31182590.9 | V8: =SUMIFS(Achievement_forecast_ongoing!I$6:I$235,Achievement_forecast_ongoing!$D$6:$D$235,Projections!$D8,Achievement_forecast_ongoing!$E$6:$E$235,Projections!$E8,Achievement_forecast_ongoing!$C$6:$C$235,Projections!$C8,Achievement_forecast_ongoing!$F$6:$F$235,Projections!$F8) -> 31182590.9 | W8: =SUMIFS(Achievement_forecast_ongoing!J$6:J$235,Achievement_forecast_ongoing!$D$6:$D$235,Projections!$D8,Achievement_forecast_ongoing!$E$6:$E$235,Projections!$E8,Achievement_forecast_ongoing!$C$6:$C$235,Projections!$C8,Achievement_forecast_ongoing!$F$6:$F$235,Projections!$F8) -> 31182590.9 | X8: =Achievement_forecasts_future!G8 -> 0 | Y8: =Achievement_forecasts_future!H8 -> 0 | Z8: =Achievement_forecasts_future!I8 -> 0 | AA8: =Achievement_forecasts_future!J8 -> 0
C9: 3 | D9: All | E9: 3F1 | F9: All | G9: 41571197 | H9: 90.05215833 | I9: 93.12462852 | J9: 95.95275153 | K9: 95.95275153 | L9: 37435760.14 | M9: 38713022.78 | N9: 39888707.36 | O9: 39888707.36 | P9: =Achievement_finalised!G9 -> 19523232.5 | Q9: 19523232.5 | R9: 19523232.5 | S9: 19523232.5 | T9: =SUMIFS(Achievement_forecast_ongoing!G$6:G$235,Achievement_forecast_ongoing!$D$6:$D$235,Projections!$D9,Achievement_forecast_ongoing!$E$6:$E$235,Projections!$E9,Achievement_forecast_ongoing!$C$6:$C$235,Projections!$C9,Achievement_forecast_ongoing!$F$6:$F$235,Projections!$F9) -> 17912527.64 | U9: =SUMIFS(Achievement_forecast_ongoing!H$6:H$235,Achievement_forecast_ongoing!$D$6:$D$235,Projections!$D9,Achievement_forecast_ongoing!$E$6:$E$235,Projections!$E9,Achievement_forecast_ongoing!$C$6:$C$235,Projections!$C9,Achievement_forecast_ongoing!$F$6:$F$235,Projections!$F9) -> 19189790.28 | V9: =SUMIFS(Achievement_forecast_ongoing!I$6:I$235,Achievement_forecast_ongoing!$D$6:$D$235,Projections!$D9,Achievement_forecast_ongoing!$E$6:$E$235,Projections!$E9,Achievement_forecast_ongoing!$C$6:$C$235,Projections!$C9,Achievement_forecast_ongoing!$F$6:$F$235,Projections!$F9) -> 20365474.86 | W9: =SUMIFS(Achievement_forecast_ongoing!J$6:J$235,Achievement_forecast_ongoing!$D$6:$D$235,Projections!$D9,Achievement_forecast_ongoing!$E$6:$E$235,Projections!$E9,Achievement_forecast_ongoing!$C$6:$C$235,Projections!$C9,Achievement_forecast_ongoing!$F$6:$F$235,Projections!$F9) -> 20365474.86 | X9: =Achievement_forecasts_future!G9 -> 0 | Y9: =Achievement_forecasts_future!H9 -> 0 | Z9: =Achievement_forecasts_future!I9 -> 0 | AA9: =Achievement_forecasts_future!J9 -> 0
C10: 3 | D10: All | E10: 5b.2 | F10: All | G10: 50 | H10: 28 | I10: 70.89575291 | J10: 92.96434492 | K10: 110.2426009 | L10: 14 | M10: 35.44787645 | N10: 46.48217246 | O10: 55.12130046 | P10: =Achievement_finalised!G10 -> 14 | Q10: 14 | R10: 14 | S10: 14 | T10: =SUMIFS(Achievement_forecast_ongoing!G$6:G$235,Achievement_forecast_ongoing!$D$6:$D$235,Projections!$D10,Achievement_forecast_ongoing!$E$6:$E$235,Projections!$E10,Achievement_forecast_ongoing!$C$6:$C$235,Projections!$C10,Achievement_forecast_ongoing!$F$6:$F$235,Projections!$F10) -> 0 | U10: =SUMIFS(Achievement_forecast_ongoing!H$6:H$235,Achievement_forecast_ongoing!$D$6:$D$235,Projections!$D10,Achievement_forecast_ongoing!$E$6:$E$235,Projections!$E10,Achievement_forecast_ongoing!$C$6:$C$235,Projections!$C10,Achievement_forecast_ongoing!$F$6:$F$235,Projections!$F10) -> 21.44787645 | V10: =SUMIFS(Achievement_forecast_ongoing!I$6:I$235,Achievement_forecast_ongoing!$D$6:$D$235,Projections!$D10,Achievement_forecast_ongoing!$E$6:$E$235,Projections!$E10,Achievement_forecast_ongoing!$C$6:$C$235,Projections!$C10,Achievement_forecast_ongoing!$F$6:$F$235,Projections!$F10) -> 32.48217246 | W10: =SUMIFS(Achievement_forecast_ongoing!J$6:J$235,Achievement_forecast_ongoing!$D$6:$D$235,Projections!$D10,Achievement_forecast_ongoing!$E$6:$E$235,Projections!$E10,Achievement_forecast_ongoing!$C$6:$C$235,Projections!$C10,Achievement_forecast_ongoing!$F$6:$F$235,Projections!$F10) -> 40.12130046 | X10: =Achievement_forecasts_future!G10 -> 0 | Y10: =Achievement_forecasts_future!H10 -> 0 | Z10: =Achievement_forecasts_future!I10 -> 0 | AA10: =Achievement_forecasts_future!J10 -> 1
C11: 4 | D11: All | E11: 8e.1 | F11: All | G11: 200 | H11: 168 | I11: 168 | J11: 183.0774527 | K11: 183.0774527 | L11: 336 | M11: 336 | N11: 366.1549053 | O11: 366.1549053 | P11: =Achievement_finalised!G11 -> 336 | Q11: 336 | R11: 336 | S11: 336 | T11: =SUMIFS(Achievement_forecast_ongoing!G$6:G$235,Achievement_forecast_ongoing!$D$6:$D$235,Projections!$D11,Achievement_forecast_ongoing!$E$6:$E$235,Projections!$E11,Achievement_forecast_ongoing!$C$6:$C$235,Projections!$C11,Achievement_forecast_ongoing!$F$6:$F$235,Projections!$F11) -> 0 | U11: =SUMIFS(Achievement_forecast_ongoing!H$6:H$235,Achievement_forecast_ongoing!$D$6:$D$235,Projections!$D11,Achievement_forecast_ongoing!$E$6:$E$235,Projections!$E11,Achievement_forecast_ongoing!$C$6:$C$235,Projections!$C11,Achievement_forecast_ongoing!$F$6:$F$235,Projections!$F11) -> 0 | V11: =SUMIFS(Achievement_forecast_ongoing!I$6:I$235,Achievement_forecast_ongoing!$D$6:$D$235,Projections!$D11,Achievement_forecast_ongoing!$E$6:$E$235,Projections!$E11,Achievement_forecast_ongoing!$C$6:$C$235,Projections!$C11,Achievement_forecast_ongoing!$F$6:$F$235,Projections!$F11) -> 30.15490534 | W11: =SUMIFS(Achievement_forecast_ongoing!J$6:J$235,Achievement_forecast_ongoing!$D$6:$D$235,Projections!$D11,Achievement_forecast_ongoing!$E$6:$E$235,Projections!$E11,Achievement_forecast_ongoing!$C$6:$C$235,Projections!$C11,Achievement_forecast_ongoing!$F$6:$F$235,Projections!$F11) -> 30.15490534 | X11: =Achievement_forecasts_future!G11 -> 0 | Y11: =Achievement_forecasts_future!H11 -> 0 | Z11: =Achievement_forecasts_future!I11 -> 0 | AA11: =Achievement_forecasts_future!J11 -> 0
C12: 4 | D12: All | E12: 4F1 | F12: All | G12: 13807295 | H12: 99.07579594 | I12: 99.07579594 | J12: 99.07579594 | K12: 99.07579594 | L12: 13679687.42 | M12: 13679687.42 | N12: 13679687.42 | O12: 13679687.42 | P12: =Achievement_finalised!G12 -> 13177520.62 | Q12: 13177520.62 | R12: 13177520.62 | S12: 13177520.62 | T12: =SUMIFS(Achievement_forecast_ongoing!G$6:G$235,Achievement_forecast_ongoing!$D$6:$D$235,Projections!$D12,Achievement_forecast_ongoing!$E$6:$E$235,Projections!$E12,Achievement_forecast_ongoing!$C$6:$C$235,Projections!$C12,Achievement_forecast_ongoing!$F$6:$F$235,Projections!$F12) -> 502166.799 | U12: =SUMIFS(Achievement_forecast_ongoing!H$6:H$235,Achievement_forecast_ongoing!$D$6:$D$235,Projections!$D12,Achievement_forecast_ongoing!$E$6:$E$235,Projections!$E12,Achievement_forecast_ongoing!$C$6:$C$235,Projections!$C12,Achievement_forecast_ongoing!$F$6:$F$235,Projections!$F12) -> 502166.799 | V12: =SUMIFS(Achievement_forecast_ongoing!I$6:I$235,Achievement_forecast_ongoing!$D$6:$D$235,Projections!$D12,Achievement_forecast_ongoing!$E$6:$E$235,Projections!$E12,Achievement_forecast_ongoing!$C$6:$C$235,Projections!$C12,Achievement_forecast_ongoing!$F$6:$F$235,Projections!$F12) -> 502166.799 | W12: =SUMIFS(Achievement_forecast_ongoing!J$6:J$235,Achievement_forecast_ongoing!$D$6:$D$235,Projections!$D12,Achievement_forecast_ongoing!$E$6:$E$235,Projections!$E12,Achievement_forecast_ongoing!$C$6:$C$235,Projections!$C12,Achievement_forecast_ongoing!$F$6:$F$235,Projections!$F12) -> 502166.799 | X12: =Achievement_forecasts_future!G12 -> 0 | Y12: =Achievement_forecasts_future!H12 -> 0 | Z12: =Achievement_forecasts_future!I12 -> 0 | AA12: =Achievement_forecasts_future!J12 -> 0
C13: 5 | D13: All | E13: 11b.1 | F13: All | G13: 100 | H13: 112 | I13: 113.0459242 | J13: 131.1731124 | K13: 138.6397791 | L13: 112 | M13: 113.0459242 | N13: 131.1731124 | O13: 138.6397791 | P13: =Achievement_finalised!G13 -> 112 | Q13: 112 | R13: 112 | S13: 112 | T13: =SUMIFS(Achievement_forecast_ongoing!G$6:G$235,Achievement_forecast_ongoing!$D$6:$D$235,Projections!$D13,Achievement_forecast_ongoing!$E$6:$E$235,Projections!$E13,Achievement_forecast_ongoing!$C$6:$C$235,Projections!$C13,Achievement_forecast_ongoing!$F$6:$F$235,Projections!$F13) -> 0 | U13: =SUMIFS(Achievement_forecast_ongoing!H$6:H$235,Achievement_forecast_ongoing!$D$6:$D$235,Projections!$D13,Achievement_forecast_ongoing!$E$6:$E$235,Projections!$E13,Achievement_forecast_ongoing!$C$6:$C$235,Projections!$C13,Achievement_forecast_ongoing!$F$6:$F$235,Projections!$F13) -> 1.045924225 | V13: =SUMIFS(Achievement_forecast_ongoing!I$6:I$235,Achievement_forecast_ongoing!$D$6:$D$235,Projections!$D13,Achievement_forecast_ongoing!$E$6:$E$235,Projections!$E13,Achievement_forecast_ongoing!$C$6:$C$235,Projections!$C13,Achievement_forecast_ongoing!$F$6:$F$235,Projections!$F13) -> 15.43977909 | W13: =SUMIFS(Achievement_forecast_ongoing!J$6:J$235,Achievement_forecast_ongoing!$D$6:$D$235,Projections!$D13,Achievement_forecast_ongoing!$E$6:$E$235,Projections!$E13,Achievement_forecast_ongoing!$C$6:$C$235,Projections!$C13,Achievement_forecast_ongoing!$F$6:$F$235,Projections!$F13) -> 15.43977909 | X13: =Achievement_forecasts_future!G13 -> 0 | Y13: =Achievement_forecasts_future!H13 -> 0 | Z13: =Achievement_forecasts_future!I13 -> 3.733333333 | AA13: =Achievement_forecasts_future!J13 -> 11.2
C14: 5 | D14: All | E14: 5F1 | F14: All | G14: 12600168 | H14: 90.07390614 | I14: 97.79792682 | J14: 99.17069418 | K14: 99.17069418 | L14: 11349463.5 | M14: 12322703.08 | N14: 12495674.07 | O14: 12495674.07 | P14: =Achievement_finalised!G14 -> 8635160.42 | Q14: 8635160.42 | R14: 8635160.42 | S14: 8635160.42 | T14: =SUMIFS(Achievement_forecast_ongoing!G$6:G$235,Achievement_forecast_ongoing!$D$6:$D$235,Projections!$D14,Achievement_forecast_ongoing!$E$6:$E$235,Projections!$E14,Achievement_forecast_ongoing!$C$6:$C$235,Projections!$C14,Achievement_forecast_ongoing!$F$6:$F$235,Projections!$F14) -> 2714303.077 | U14: =SUMIFS(Achievement_forecast_ongoing!H$6:H$235,Achievement_forecast_ongoing!$D$6:$D$235,Projections!$D14,Achievement_forecast_ongoing!$E$6:$E$235,Projections!$E14,Achievement_forecast_ongoing!$C$6:$C$235,Projections!$C14,Achievement_forecast_ongoing!$F$6:$F$235,Projections!$F14) -> 3687542.66 | V14: =SUMIFS(Achievement_forecast_ongoing!I$6:I$235,Achievement_forecast_ongoing!$D$6:$D$235,Projections!$D14,Achievement_forecast_ongoing!$E$6:$E$235,Projections!$E14,Achievement_forecast_ongoing!$C$6:$C$235,Projections!$C14,Achievement_forecast_ongoing!$F$6:$F$235,Projections!$F14) -> 3860513.654 | W14: =SUMIFS(Achievement_forecast_ongoing!J$6:J$235,Achievement_forecast_ongoing!$D$6:$D$235,Projections!$D14,Achievement_forecast_ongoing!$E$6:$E$235,Projections!$E14,Achievement_forecast_ongoing!$C$6:$C$235,Projections!$C14,Achievement_forecast_ongoing!$F$6:$F$235,Projections!$F14) -> 3860513.654 | X14: =Achievement_forecasts_future!G14 -> 0 | Y14: =Achievement_forecasts_future!H14 -> 0 | Z14: =Achievement_forecasts_future!I14 -> 0 | AA14: =Achievement_forecasts_future!J14 -> 0
H17: As percentage of target (%)
C18: PA | D18: PI | E18: Indicator | F18: Region | G18: Target | H18: 2020 | I18: 2021 | J18: 2022 | K18: 2023
C19: 1 | D19: All | E19: CO14 | F19: All | G19: 150 | I19: =(M4-L4)/M4 -> 0.8386884526 | J19: =(N4-M4)/N4 -> 0.5893952888 | K19: =(O4-N4)/O4 -> 0.3591593607
C20: 1 | D20: All | E20: 1F1 | F20: All | G20: 116333743 | H20: =L20/$G20*100 -> 0 | I20: =(M5-L5)/M5 -> 0.3032724723 | J20: 0.1028453864 | K20: 0.01755730784
C21: 2 | D21: All | E21: CO09 | F21: All | G21: 100000 | H21: 0 | I21: 0.5296481744 | J21: 0.3835753204 | K21: 0.5272674187
C22: 2 | D22: All | E22: 6c.1 | F22: All | G22: 100 | H22: 0 | I22: 0.2985606004 | J22: 0.10014104 | K22: 0.06550678568
C23: 2 | D23: All | E23: 2F1 | F23: All | G23: 54276757 | H23: 0 | I23: 0.01392790681 | J23: 0 | K23: 0
C24: 3 | D24: All | E24: 3F1 | F24: All | G24: 41571197 | H24: 0 | I24: 0.03299310011 | J24: =(N9-M9)/N9 -> 0.029474121 | K24: 0
C25: 3 | D25: All | E25: 5b.2 | F25: All | G25: 50 | H25: 0 | I25: 0.6050539158 | J25: 0.2373876999 | K25: 0.1567293938
C26: 4 | D26: All | E26: 8e.1 | F26: All | G26: 200 | H26: 0 | I26: 0 | J26: 0.08235559567 | K26: 0
C27: 4 | D27: All | E27: 4F1 | F27: All | G27: 13807295 | H27: 0 | I27: 0 | J27: 0 | K27: 0
C28: 5 | D28: All | E28: 11b.1 | F28: All | G28: 100 | H28: 0 | I28: 0.009252206413 | J28: 0.1381928648 | K28: 0.05385659668
C29: 5 | D29: All | E29: 5F1 | F29: All | G29: 12600168 | H29: 0 | I29: 0.07897939082 | J29: 0.01384247004 | K29: 0

Sheet Achievement_finalised
B1: Date of extraction | D1: 2020-06-24
B2: Characteristics
B3: PA | C3: PI | D3: Indicator | E3: Region | F3: Type | G3: Cumulative achievement
B4: 1 | C4: All | D4: CO14 | E4: All | F4: Physical | G4: 7.07
B5: 1 | C5: All | D5: 1F1 | E5: All | F5: Financial | G5: 11640370.94
B6: 2 | C6: All | D6: CO09 | E6: All | F6: Physical | G6: 27139
B7: 2 | C7: All | D7: 6c.1 | E7: All | F7: Physical | G7: 107
B8: 2 | C8: All | D8: 2F1 | E8: All | F8: Financial | G8: 20591434
B9: 3 | C9: All | D9: 3F1 | E9: All | F9: Financial | G9: 19523232.5
B10: 3 | C10: All | D10: 5b.2 | E10: All | F10: Physical | G10: 14
B11: 4 | C11: All | D11: 8e.1 | E11: All | F11: Physical | G11: 336
B12: 4 | C12: All | D12: 4F1 | E12: All | F12: Financial | G12: 13177520.62
B13: 5 | C13: All | D13: 11b.1 | E13: All | F13: Physical | G13: 112
B14: 5 | C14: All | D14: 5F1 | E14: All | F14: Financial | G14: 8635160.42

Sheet Achievement_to_date_ongoing
C2: Characteristics | K2: Expected achievement | M2: % complete by the end of year
B3: SMIS CODE | C3: PA | D3: PI | E3: Indicator | F3: Region | G3: Type | H3: Value | I3: Start date | J3: End date | K3: Expected | M3: 2020 | N3: 2021 | O3: 2022 | P3: 2023
B4: ROBG-306 | C4: 1 | D4: All | E4: CO14 | F4: All | G4: Physical | H4: 0 | I4: 2019-03-20 | J4: 2022-03-19 | K4: 10.60990001 | M4: =IF($J4<DATE(M$3,12,31),1,IF($G4="Physical",0,OFFSET(Project_characteristics!$C$1,10+(19*($C4-1)),MAX(0,M$3-YEAR($I4)))/100)) -> 0 | N4: =IF($J4<DATE(N$3,12,31),1,IF($G4="Physical",0,OFFSET(Project_characteristics!$C$1,10+(19*($C4-1)),MAX(0,N$3-YEAR($I4)))/100)) -> 0 | O4: =IF($J4<DATE(O$3,12,31),1,IF($G4="Physical",0,OFFSET(Project_characteristics!$C$1,10+(19*($C4-1)),MAX(0,O$3-YEAR($I4)))/100)) -> 1 | P4: =IF($J4<DATE(P$3,12,31),1,IF($G4="Physical",0,OFFSET(Project_characteristics!$C$1,10+(19*($C4-1)),MAX(0,P$3-YEAR($I4)))/100)) -> 1
B5: ROBG-442 | C5: 1 | D5: All | E5: CO14 | F5: All | G5: Physical | H5: 0 | I5: 2018-08-22 | J5: 2023-12-21 | K5: 14.70956537 | M5: =IF($J5<DATE(M$3,12,31),1,IF($G5="Physical",0,OFFSET(Project_characteristics!$C$1,10+(19*($C5-1)),MAX(0,M$3-YEAR($I5)))/100)) -> 0 | N5: =IF($J5<DATE(N$3,12,31),1,IF($G5="Physical",0,OFFSET(Project_characteristics!$C$1,10+(19*($C5-1)),MAX(0,N$3-YEAR($I5)))/100)) -> 0 | O5: =IF($J5<DATE(O$3,12,31),1,IF($G5="Physical",0,OFFSET(Project_characteristics!$C$1,10+(19*($C5-1)),MAX(0,O$3-YEAR($I5)))/100)) -> 0 | P5: =IF($J5<DATE(P$3,12,31),1,IF($G5="Physical",0,OFFSET(Project_characteristics!$C$1,10+(19*($C5-1)),MAX(0,P$3-YEAR($I5)))/100)) -> 1
B6: ROBG-510 | C6: 1 | D6: All | E6: CO14 | F6: All | G6: Physical | H6: 0 | I6: 2019-04-04 | J6: 2022-04-03 | K6: 13.96262841 | M6: =IF($J6<DATE(M$3,12,31),1,IF($G6="Physical",0,OFFSET(Project_characteristics!$C$1,10+(19*($C6-1)),MAX(0,M$3-YEAR($I6)))/100)) -> 0 | N6: =IF($J6<DATE(N$3,12,31),1,IF($G6="Physical",0,OFFSET(Project_characteristics!$C$1,10+(19*($C6-1)),MAX(0,N$3-YEAR($I6)))/100)) -> 0 | O6: =IF($J6<DATE(O$3,12,31),1,IF($G6="Physical",0,OFFSET(Project_characteristics!$C$1,10+(19*($C6-1)),MAX(0,O$3-YEAR($I6)))/100)) -> 1 | P6: =IF($J6<DATE(P$3,12,31),1,IF($G6="Physical",0,OFFSET(Project_characteristics!$C$1,10+(19*($C6-1)),MAX(0,P$3-YEAR($I6)))/100)) -> 1
B7: ROBG-418 | C7: 1 | D7: All | E7: CO14 | F7: All | G7: Physical | H7: 0 | I7: 2018-08-15 | J7: 2021-08-14 | K7: 2.631255202 | M7: =IF($J7<DATE(M$3,12,31),1,IF($G7="Physical",0,OFFSET(Project_characteristics!$C$1,10+(19*($C7-1)),MAX(0,M$3-YEAR($I7)))/100)) -> 0 | N7: =IF($J7<DATE(N$3,12,31),1,IF($G7="Physical",0,OFFSET(Project_characteristics!$C$1,10+(19*($C7-1)),MAX(0,N$3-YEAR($I7)))/100)) -> 1 | O7: =IF($J7<DATE(O$3,12,31),1,IF($G7="Physical",0,OFFSET(Project_characteristics!$C$1,10+(19*($C7-1)),MAX(0,O$3-YEAR($I7)))/100)) -> 1 | P7: =IF($J7<DATE(P$3,12,31),1,IF($G7="Physical",0,OFFSET(Project_characteristics!$C$1,10+(19*($C7-1)),MAX(0,P$3-YEAR($I7)))/100)) -> 1
B8: ROBG-432 | C8: 1 | D8: All | E8: CO14 | F8: All | G8: Physical | H8: 0.47 | I8: 2018-04-24 | J8: 2021-12-23 | K8: 0.5448744589 | M8: =IF($J8<DATE(M$3,12,31),1,IF($G8="Physical",0,OFFSET(Project_characteristics!$C$1,10+(19*($C8-1)),MAX(0,M$3-YEAR($I8)))/100)) -> 0 | N8: =IF($J8<DATE(N$3,12,31),1,IF($G8="Physical",0,OFFSET(Project_characteristics!$C$1,10+(19*($C8-1)),MAX(0,N$3-YEAR($I8)))/100)) -> 1 | O8: =IF($J8<DATE(O$3,12,31),1,IF($G8="Physical",0,OFFSET(Project_characteristics!$C$1,10+(19*($C8-1)),MAX(0,O$3-YEAR($I8)))/100)) -> 1 | P8: =IF($J8<DATE(P$3,12,31),1,IF($G8="Physical",0,OFFSET(Project_characteristics!$C$1,10+(19*($C8-1)),MAX(0,P$3-YEAR($I8)))/100)) -> 1
B9: ROBG-383 | C9: 1 | D9: All | E9: CO14 | F9: All | G9: Physical | H9: 0 | I9: 2019-12-10 | J9: 2022-12-09 | K9: 5.610515124 | M9: =IF($J9<DATE(M$3,12,31),1,IF($G9="Physical",0,OFFSET(Project_characteristics!$C$1,10+(19*($C9-1)),MAX(0,M$3-YEAR($I9)))/100)) -> 0 | N9: =IF($J9<DATE(N$3,12,31),1,IF($G9="Physical",0,OFFSET(Project_characteristics!$C$1,10+(19*($C9-1)),MAX(0,N$3-YEAR($I9)))/100)) -> 0 | O9: =IF($J9<DATE(O$3,12,31),1,IF($G9="Physical",0,OFFSET(Project_characteristics!$C$1,10+(19*($C9-1)),MAX(0,O$3-YEAR($I9)))/100)) -> 1 | P9: =IF($J9<DATE(P$3,12,31),1,IF($G9="Physical",0,OFFSET(Project_characteristics!$C$1,10+(19*($C9-1)),MAX(0,P$3-YEAR($I9)))/100)) -> 1
B10: ROBG-408 | C10: 1 | D10: All | E10: CO14 | F10: All | G10: Physical | H10: 0 | I10: 2018-04-25 | J10: 2022-04-24 | K10: 13.20720353 | M10: =IF($J10<DATE(M$3,12,31),1,IF($G10="Physical",0,OFFSET(Project_characteristics!$C$1,10+(19*($C10-1)),MAX(0,M$3-YEAR($I10)))/100)) -> 0 | N10: =IF($J10<DATE(N$3,12,31),1,IF($G10="Physical",0,OFFSET(Project_characteristics!$C$1,10+(19*($C10-1)),MAX(0,N$3-YEAR($I10)))/100)) -> 0 | O10: =IF($J10<DATE(O$3,12,31),1,IF($G10="Physical",0,OFFSET(Project_characteristics!$C$1,10+(19*($C10-1)),MAX(0,O$3-YEAR($I10)))/100)) -> 1 | P10: =IF($J10<DATE(P$3,12,31),1,IF($G10="Physical",0,OFFSET(Project_characteristics!$C$1,10+(19*($C10-1)),MAX(0,P$3-YEAR($I10)))/100)) -> 1
B11: ROBG-375 | C11: 1 | D11: All | E11: CO14 | F11: All | G11: Physical | H11: 0 | I11: 2018-07-11 | J11: 2021-07-10 | K11: 16.84003329 | M11: =IF($J11<DATE(M$3,12,31),1,IF($G11="Physical",0,OFFSET(Project_characteristics!$C$1,10+(19*($C11-1)),MAX(0,M$3-YEAR($I11)))/100)) -> 0 | N11: =IF($J11<DATE(N$3,12,31),1,IF($G11="Physical",0,OFFSET(Project_characteristics!$C$1,10+(19*($C11-1)),MAX(0,N$3-YEAR($I11)))/100)) -> 1 | O11: =IF($J11<DATE(O$3,12,31),1,IF($G11="Physical",0,OFFSET(Project_characteristics!$C$1,10+(19*($C11-1)),MAX(0,O$3-YEAR($I11)))/100)) -> 1 | P11: =IF($J11<DATE(P$3,12,31),1,IF($G11="Physical",0,OFFSET(Project_characteristics!$C$1,10+(19*($C11-1)),MAX(0,P$3-YEAR($I11)))/100)) -> 1
B12: ROBG-425 | C12: 1 | D12: All | E12: CO14 | F12: All | G12: Physical | H12: 0 | I12: 2018-09-07 | J12: 2022-09-07 | K12: 9.531934166 | M12: =IF($J12<DATE(M$3,12,31),1,IF($G12="Physical",0,OFFSET(Project_characteristics!$C$1,10+(19*($C12-1)),MAX(0,M$3-YEAR($I12)))/100)) -> 0 | N12: =IF($J12<DATE(N$3,12,31),1,IF($G12="Physical",0,OFFSET(Project_characteristics!$C$1,10+(19*($C12-1)),MAX(0,N$3-YEAR($I12)))/100)) -> 0 | O12: =IF($J12<DATE(O$3,12,31),1,IF($G12="Physical",0,OFFSET(Project_characteristics!$C$1,10+(19*($C12-1)),MAX(0,O$3-YEAR($I12)))/100)) -> 1 | P12: =IF($J12<DATE(P$3,12,31),1,IF($G12="Physical",0,OFFSET(Project_characteristics!$C$1,10+(19*($C12-1)),MAX(0,P$3-YEAR($I12)))/100)) -> 1
B13: ROBG-440 | C13: 1 | D13: All | E13: CO14 | F13: All | G13: Physical | H13: 0 | I13: 2019-08-01 | J13: 2022-07-31 | K13: 9.990281846 | M13: =IF($J13<DATE(M$3,12,31),1,IF($G13="Physical",0,OFFSET(Project_characteristics!$C$1,10+(19*($C13-1)),MAX(0,M$3-YEAR($I13)))/100)) -> 0 | N13: =IF($J13<DATE(N$3,12,31),1,IF($G13="Physical",0,OFFSET(Project_characteristics!$C$1,10+(19*($C13-1)),MAX(0,N$3-YEAR($I13)))/100)) -> 0 | O13: =IF($J13<DATE(O$3,12,31),1,IF($G13="Physical",0,OFFSET(Project_characteristics!$C$1,10+(19*($C13-1)),MAX(0,O$3-YEAR($I13)))/100)) -> 1 | P13: =IF($J13<DATE(P$3,12,31),1,IF($G13="Physical",0,OFFSET(Project_characteristics!$C$1,10+(19*($C13-1)),MAX(0,P$3-YEAR($I13)))/100)) -> 1
B14: ROBG-390 | C14: 1 | D14: All | E14: CO14 | F14: All | G14: Physical | H14: 0 | I14: 2020-04-02 | J14: 2023-03-29 | K14: 16.39866145 | M14: =IF($J14<DATE(M$3,12,31),1,IF($G14="Physical",0,OFFSET(Project_characteristics!$C$1,10+(19*($C14-1)),MAX(0,M$3-YEAR($I14)))/100)) -> 0 | N14: =IF($J14<DATE(N$3,12,31),1,IF($G14="Physical",0,OFFSET(Project_characteristics!$C$1,10+(19*($C14-1)),MAX(0,N$3-YEAR($I14)))/100)) -> 0 | O14: =IF($J14<DATE(O$3,12,31),1,IF($G14="Physical",0,OFFSET(Project_characteristics!$C$1,10+(19*($C14-1)),MAX(0,O$3-YEAR($I14)))/100)) -> 0 | P14: =IF($J14<DATE(P$3,12,31),1,IF($G14="Physical",0,OFFSET(Project_characteristics!$C$1,10+(19*($C14-1)),MAX(0,P$3-YEAR($I14)))/100)) -> 1
B15: ROBG-439 | C15: 1 | D15: All | E15: CO14 | F15: All | G15: Physical | H15: 0 | I15: 2018-04-24 | J15: 2021-12-23 | K15: 11.65391417 | M15: =IF($J15<DATE(M$3,12,31),1,IF($G15="Physical",0,OFFSET(Project_characteristics!$C$1,10+(19*($C15-1)),MAX(0,M$3-YEAR($I15)))/100)) -> 0 | N15: =IF($J15<DATE(N$3,12,31),1,IF($G15="Physical",0,OFFSET(Project_characteristics!$C$1,10+(19*($C15-1)),MAX(0,N$3-YEAR($I15)))/100)) -> 1 | O15: =IF($J15<DATE(O$3,12,31),1,IF($G15="Physical",0,OFFSET(Project_characteristics!$C$1,10+(19*($C15-1)),MAX(0,O$3-YEAR($I15)))/100)) -> 1 | P15: =IF($J15<DATE(P$3,12,31),1,IF($G15="Physical",0,OFFSET(Project_characteristics!$C$1,10+(19*($C15-1)),MAX(0,P$3-YEAR($I15)))/100)) -> 1
B16: ROBG-138 | C16: 1 | D16: All | E16: CO14 | F16: All | G16: Physical | H16: 0 | I16: 2017-12-12 | J16: 2023-12-11 | K16: 28.71463338 | M16: =IF($J16<DATE(M$3,12,31),1,IF($G16="Physical",0,OFFSET(Project_characteristics!$C$1,10+(19*($C16-1)),MAX(0,M$3-YEAR($I16)))/100)) -> 0 | N16: =IF($J16<DATE(N$3,12,31),1,IF($G16="Physical",0,OFFSET(Project_characteristics!$C$1,10+(19*($C16-1)),MAX(0,N$3-YEAR($I16)))/100)) -> 0 | O16: =IF($J16<DATE(O$3,12,31),1,IF($G16="Physical",0,OFFSET(Project_characteristics!$C$1,10+(19*($C16-1)),MAX(0,O$3-YEAR($I16)))/100)) -> 0 | P16: =IF($J16<DATE(P$3,12,31),1,IF($G16="Physical",0,OFFSET(Project_characteristics!$C$1,10+(19*($C16-1)),MAX(0,P$3-YEAR($I16)))/100)) -> 1
B17: ROBG-132 | C17: 1 | D17: All | E17: CO14 | F17: All | G17: Physical | H17: 4957 | I17: 2017-06-09 | J17: 2021-07-31 | K17: 5088.15536 | M17: =IF($J17<DATE(M$3,12,31),1,IF($G17="Physical",0,OFFSET(Project_characteristics!$C$1,10+(19*($C17-1)),MAX(0,M$3-YEAR($I17)))/100)) -> 0 | N17: =IF($J17<DATE(N$3,12,31),1,IF($G17="Physical",0,OFFSET(Project_characteristics!$C$1,10+(19*($C17-1)),MAX(0,N$3-YEAR($I17)))/100)) -> 1 | O17: =IF($J17<DATE(O$3,12,31),1,IF($G17="Physical",0,OFFSET(Project_characteristics!$C$1,10+(19*($C17-1)),MAX(0,O$3-YEAR($I17)))/100)) -> 1 | P17: =IF($J17<DATE(P$3,12,31),1,IF($G17="Physical",0,OFFSET(Project_characteristics!$C$1,10+(19*($C17-1)),MAX(0,P$3-YEAR($I17)))/100)) -> 1
B18: ROBG-306 | C18: 1 | D18: All | E18: 1F1 | F18: All | G18: Financial | H18: 215858.81 | I18: 2019-03-20 | J18: 2022-03-19 | K18: 6336501.688 | M18: =IF($J18<DATE(M$3,12,31),1,IF($G18="Financial",0,OFFSET(Project_characteristics!$C$1,10+(19*($C18-1)),MAX(0,M$3-YEAR($I18)))/100)) -> 0 | N18: =IF($J18<DATE(N$3,12,31),1,IF($G18="Financial",0,OFFSET(Project_characteristics!$C$1,10+(19*($C18-1)),MAX(0,N$3-YEAR($I18)))/100)) -> 0 | O18: =IF($J18<DATE(O$3,12,31),1,IF($G18="Financial",0,OFFSET(Project_characteristics!$C$1,10+(19*($C18-1)),MAX(0,O$3-YEAR($I18)))/100)) -> 1 | P18: =IF($J18<DATE(P$3,12,31),1,IF($G18="Financial",0,OFFSET(Project_characteristics!$C$1,10+(19*($C18-1)),MAX(0,P$3-YEAR($I18)))/100)) -> 1
B19: ROBG-442 | C19: 1 | D19: All | E19: 1F1 | F19: All | G19: Financial | H19: 1502756.04 | I19: 2018-08-22 | J19: 2023-12-21 | K19: 6589261.738 | M19: =IF($J19<DATE(M$3,12,31),1,IF($G19="Financial",0,OFFSET(Project_characteristics!$C$1,10+(19*($C19-1)),MAX(0,M$3-YEAR($I19)))/100)) -> 0 | N19: =IF($J19<DATE(N$3,12,31),1,IF($G19="Financial",0,OFFSET(Project_characteristics!$C$1,10+(19*($C19-1)),MAX(0,N$3-YEAR($I19)))/100)) -> 0 | O19: =IF($J19<DATE(O$3,12,31),1,IF($G19="Financial",0,OFFSET(Project_characteristics!$C$1,10+(19*($C19-1)),MAX(0,O$3-YEAR($I19)))/100)) -> 0 | P19: =IF($J19<DATE(P$3,12,31),1,IF($G19="Financial",0,OFFSET(Project_characteristics!$C$1,10+(19*($C19-1)),MAX(0,P$3-YEAR($I19)))/100)) -> 1
B20: ROBG-510 | C20: 1 | D20: All | E20: 1F1 | F20: All | G20: Financial | H20: 4221873.54 | I20: 2019-04-04 | J20: 2022-04-03 | K20: 5824281.65 | M20: =IF($J20<DATE(M$3,12,31),1,IF($G20="Financial",0,OFFSET(Project_characteristics!$C$1,10+(19*($C20-1)),MAX(0,M$3-YEAR($I20)))/100)) -> 0 | N20: =IF($J20<DATE(N$3,12,31),1,IF($G20="Financial",0,OFFSET(Project_characteristics!$C$1,10+(19*($C20-1)),MAX(0,N$3-YEAR($I20)))/100)) -> 0 | O20: =IF($J20<DATE(O$3,12,31),1,IF($G20="Financial",0,OFFSET(Project_characteristics!$C$1,10+(19*($C20-1)),MAX(0,O$3-YEAR($I20)))/100)) -> 1 | P20: =IF($J20<DATE(P$3,12,31),1,IF($G20="Financial",0,OFFSET(Project_characteristics!$C$1,10+(19*($C20-1)),MAX(0,P$3-YEAR($I20)))/100)) -> 1
B21: ROBG-130 | C21: 1 | D21: All | E21: 1F1 | F21: All | G21: Financial | H21: 4820045.4 | I21: 2017-05-12 | J21: 2021-11-11 | K21: 6069035.193 | M21: =IF($J21<DATE(M$3,12,31),1,IF($G21="Financial",0,OFFSET(Project_characteristics!$C$1,10+(19*($C21-1)),MAX(0,M$3-YEAR($I21)))/100)) -> 0 | N21: =IF($J21<DATE(N$3,12,31),1,IF($G21="Financial",0,OFFSET(Project_characteristics!$C$1,10+(19*($C21-1)),MAX(0,N$3-YEAR($I21)))/100)) -> 1 | O21: =IF($J21<DATE(O$3,12,31),1,IF($G21="Financial",0,OFFSET(Project_characteristics!$C$1,10+(19*($C21-1)),MAX(0,O$3-YEAR($I21)))/100)) -> 1 | P21: =IF($J21<DATE(P$3,12,31),1,IF($G21="Financial",0,OFFSET(Project_characteristics!$C$1,10+(19*($C21-1)),MAX(0,P$3-YEAR($I21)))/100)) -> 1
B22: ROBG-418 | C22: 1 | D22: All | E22: 1F1 | F22: All | G22: Financial | H22: 3820434.76 | I22: 2018-08-15 | J22: 2021-08-14 | K22: 5227196.652 | M22: =IF($J22<DATE(M$3,12,31),1,IF($G22="Financial",0,OFFSET(Project_characteristics!$C$1,10+(19*($C22-1)),MAX(0,M$3-YEAR($I22)))/100)) -> 0 | N22: =IF($J22<DATE(N$3,12,31),1,IF($G22="Financial",0,OFFSET(Project_characteristics!$C$1,10+(19*($C22-1)),MAX(0,N$3-YEAR($I22)))/100)) -> 1 | O22: =IF($J22<DATE(O$3,12,31),1,IF($G22="Financial",0,OFFSET(Project_characteristics!$C$1,10+(19*($C22-1)),MAX(0,O$3-YEAR($I22)))/100)) -> 1 | P22: =IF($J22<DATE(P$3,12,31),1,IF($G22="Financial",0,OFFSET(Project_characteristics!$C$1,10+(19*($C22-1)),MAX(0,P$3-YEAR($I22)))/100)) -> 1
B23: ROBG-432 | C23: 1 | D23: All | E23: 1F1 | F23: All | G23: Financial | H23: 3735131.98 | I23: 2018-04-24 | J23: 2021-12-23 | K23: 6524633.458 | M23: =IF($J23<DATE(M$3,12,31),1,IF($G23="Financial",0,OFFSET(Project_characteristics!$C$1,10+(19*($C23-1)),MAX(0,M$3-YEAR($I23)))/100)) -> 0 | N23: =IF($J23<DATE(N$3,12,31),1,IF($G23="Financial",0,OFFSET(Project_characteristics!$C$1,10+(19*($C23-1)),MAX(0,N$3-YEAR($I23)))/100)) -> 1 | O23: =IF($J23<DATE(O$3,12,31),1,IF($G23="Financial",0,OFFSET(Project_characteristics!$C$1,10+(19*($C23-1)),MAX(0,O$3-YEAR($I23)))/100)) -> 1 | P23: =IF($J23<DATE(P$3,12,31),1,IF($G23="Financial",0,OFFSET(Project_characteristics!$C$1,10+(19*($C23-1)),MAX(0,P$3-YEAR($I23)))/100)) -> 1
B24: ROBG-383 | C24: 1 | D24: All | E24: 1F1 | F24: All | G24: Financial | H24: 37994.95 | I24: 2019-12-10 | J24: 2022-12-09 | K24: 3940931.211 | M24: =IF($J24<DATE(M$3,12,31),1,IF($G24="Financial",0,OFFSET(Project_characteristics!$C$1,10+(19*($C24-1)),MAX(0,M$3-YEAR($I24)))/100)) -> 0 | N24: =IF($J24<DATE(N$3,12,31),1,IF($G24="Financial",0,OFFSET(Project_characteristics!$C$1,10+(19*($C24-1)),MAX(0,N$3-YEAR($I24)))/100)) -> 0 | O24: =IF($J24<DATE(O$3,12,31),1,IF($G24="Financial",0,OFFSET(Project_characteristics!$C$1,10+(19*($C24-1)),MAX(0,O$3-YEAR($I24)))/100)) -> 1 | P24: =IF($J24<DATE(P$3,12,31),1,IF($G24="Financial",0,OFFSET(Project_characteristics!$C$1,10+(19*($C24-1)),MAX(0,P$3-YEAR($I24)))/100)) -> 1
B25: ROBG-408 | C25: 1 | D25: All | E25: 1F1 | F25: All | G25: Financial | H25: 1084656 | I25: 2018-04-25 | J25: 2022-04-24 | K25: 6608265.857 | M25: =IF($J25<DATE(M$3,12,31),1,IF($G25="Financial",0,OFFSET(Project_characteristics!$C$1,10+(19*($C25-1)),MAX(0,M$3-YEAR($I25)))/100)) -> 0 | N25: =IF($J25<DATE(N$3,12,31),1,IF($G25="Financial",0,OFFSET(Project_characteristics!$C$1,10+(19*($C25-1)),MAX(0,N$3-YEAR($I25)))/100)) -> 0 | O25: =IF($J25<DATE(O$3,12,31),1,IF($G25="Financial",0,OFFSET(Project_characteristics!$C$1,10+(19*($C25-1)),MAX(0,O$3-YEAR($I25)))/100)) -> 1 | P25: =IF($J25<DATE(P$3,12,31),1,IF($G25="Financial",0,OFFSET(Project_characteristics!$C$1,10+(19*($C25-1)),MAX(0,P$3-YEAR($I25)))/100)) -> 1
B26: ROBG-522 | C26: 1 | D26: All | E26: 1F1 | F26: All | G26: Financial | H26: 2134048.14 | I26: 2018-09-15 | J26: 2021-12-14 | K26: 4709277.794 | M26: =IF($J26<DATE(M$3,12,31),1,IF($G26="Financial",0,OFFSET(Project_characteristics!$C$1,10+(19*($C26-1)),MAX(0,M$3-YEAR($I26)))/100)) -> 0 | N26: =IF($J26<DATE(N$3,12,31),1,IF($G26="Financial",0,OFFSET(Project_characteristics!$C$1,10+(19*($C26-1)),MAX(0,N$3-YEAR($I26)))/100)) -> 1 | O26: =IF($J26<DATE(O$3,12,31),1,IF($G26="Financial",0,OFFSET(Project_characteristics!$C$1,10+(19*($C26-1)),MAX(0,O$3-YEAR($I26)))/100)) -> 1 | P26: =IF($J26<DATE(P$3,12,31),1,IF($G26="Financial",0,OFFSET(Project_characteristics!$C$1,10+(19*($C26-1)),MAX(0,P$3-YEAR($I26)))/100)) -> 1
B27: ROBG-375 | C27: 1 | D27: All | E27: 1F1 | F27: All | G27: Financial | H27: 1361340.21 | I27: 2018-07-11 | J27: 2021-07-10 | K27: 6353221.314 | M27: =IF($J27<DATE(M$3,12,31),1,IF($G27="Financial",0,OFFSET(Project_characteristics!$C$1,10+(19*($C27-1)),MAX(0,M$3-YEAR($I27)))/100)) -> 0 | N27: =IF($J27<DATE(N$3,12,31),1,IF($G27="Financial",0,OFFSET(Project_characteristics!$C$1,10+(19*($C27-1)),MAX(0,N$3-YEAR($I27)))/100)) -> 1 | O27: =IF($J27<DATE(O$3,12,31),1,IF($G27="Financial",0,OFFSET(Project_characteristics!$C$1,10+(19*($C27-1)),MAX(0,O$3-YEAR($I27)))/100)) -> 1 | P27: =IF($J27<DATE(P$3,12,31),1,IF($G27="Financial",0,OFFSET(Project_characteristics!$C$1,10+(19*($C27-1)),MAX(0,P$3-YEAR($I27)))/100)) -> 1
B28: ROBG-425 | C28: 1 | D28: All | E28: 1F1 | F28: All | G28: Financial | H28: 4805040.73 | I28: 2018-09-07 | J28: 2022-09-07 | K28: 6474061.046 | M28: =IF($J28<DATE(M$3,12,31),1,IF($G28="Financial",0,OFFSET(Project_characteristics!$C$1,10+(19*($C28-1)),MAX(0,M$3-YEAR($I28)))/100)) -> 0 | N28: =IF($J28<DATE(N$3,12,31),1,IF($G28="Financial",0,OFFSET(Project_characteristics!$C$1,10+(19*($C28-1)),MAX(0,N$3-YEAR($I28)))/100)) -> 0 | O28: =IF($J28<DATE(O$3,12,31),1,IF($G28="Financial",0,OFFSET(Project_characteristics!$C$1,10+(19*($C28-1)),MAX(0,O$3-YEAR($I28)))/100)) -> 1 | P28: =IF($J28<DATE(P$3,12,31),1,IF($G28="Financial",0,OFFSET(Project_characteristics!$C$1,10+(19*($C28-1)),MAX(0,P$3-YEAR($I28)))/100)) -> 1
B29: ROBG-440 | C29: 1 | D29: All | E29: 1F1 | F29: All | G29: Financial | H29: 235724.85 | I29: 2019-08-01 | J29: 2022-07-31 | K29: 4086227.256 | M29: =IF($J29<DATE(M$3,12,31),1,IF($G29="Financial",0,OFFSET(Project_characteristics!$C$1,10+(19*($C29-1)),MAX(0,M$3-YEAR($I29)))/100)) -> 0 | N29: =IF($J29<DATE(N$3,12,31),1,IF($G29="Financial",0,OFFSET(Project_characteristics!$C$1,10+(19*($C29-1)),MAX(0,N$3-YEAR($I29)))/100)) -> 0 | O29: =IF($J29<DATE(O$3,12,31),1,IF($G29="Financial",0,OFFSET(Project_characteristics!$C$1,10+(19*($C29-1)),MAX(0,O$3-YEAR($I29)))/100)) -> 1 | P29: =IF($J29<DATE(P$3,12,31),1,IF($G29="Financial",0,OFFSET(Project_characteristics!$C$1,10+(19*($C29-1)),MAX(0,P$3-YEAR($I29)))/100)) -> 1
B30: ROBG-478 | C30: 1 | D30: All | E30: 1F1 | F30: All | G30: Financial | H30: 66064.92 | I30: 2019-03-30 | J30: 2023-12-31 | K30: 4912888.466 | M30: =IF($J30<DATE(M$3,12,31),1,IF($G30="Financial",0,OFFSET(Project_characteristics!$C$1,10+(19*($C30-1)),MAX(0,M$3-YEAR($I30)))/100)) -> 0 | N30: =IF($J30<DATE(N$3,12,31),1,IF($G30="Financial",0,OFFSET(Project_characteristics!$C$1,10+(19*($C30-1)),MAX(0,N$3-YEAR($I30)))/100)) -> 0 | O30: =IF($J30<DATE(O$3,12,31),1,IF($G30="Financial",0,OFFSET(Project_characteristics!$C$1,10+(19*($C30-1)),MAX(0,O$3-YEAR($I30)))/100)) -> 0 | P30: =IF($J30<DATE(P$3,12,31),1,IF($G30="Financial",0,OFFSET(Project_characteristics!$C$1,10+(19*($C30-1)),MAX(0,P$3-YEAR($I30)))/100)) -> 0
B31: ROBG-390 | C31: 1 | D31: All | E31: 1F1 | F31: All | G31: Financial | H31: 336358.96 | I31: 2020-04-02 | J31: 2023-03-29 | K31: 6393306.748 | M31: =IF($J31<DATE(M$3,12,31),1,IF($G31="Financial",0,OFFSET(Project_characteristics!$C$1,10+(19*($C31-1)),MAX(0,M$3-YEAR($I31)))/100)) -> 0 | N31: =IF($J31<DATE(N$3,12,31),1,IF($G31="Financial",0,OFFSET(Project_characteristics!$C$1,10+(19*($C31-1)),MAX(0,N$3-YEAR($I31)))/100)) -> 0 | O31: =IF($J31<DATE(O$3,12,31),1,IF($G31="Financial",0,OFFSET(Project_characteristics!$C$1,10+(19*($C31-1)),MAX(0,O$3-YEAR($I31)))/100)) -> 0 | P31: =IF($J31<DATE(P$3,12,31),1,IF($G31="Financial",0,OFFSET(Project_characteristics!$C$1,10+(19*($C31-1)),MAX(0,P$3-YEAR($I31)))/100)) -> 1
B32: ROBG-439 | C32: 1 | D32: All | E32: 1F1 | F32: All | G32: Financial | H32: 6555623.74 | I32: 2018-04-24 | J32: 2021-12-23 | K32: 6600676.753 | M32: =IF($J32<DATE(M$3,12,31),1,IF($G32="Financial",0,OFFSET(Project_characteristics!$C$1,10+(19*($C32-1)),MAX(0,M$3-YEAR($I32)))/100)) -> 0 | N32: =IF($J32<DATE(N$3,12,31),1,IF($G32="Financial",0,OFFSET(Project_characteristics!$C$1,10+(19*($C32-1)),MAX(0,N$3-YEAR($I32)))/100)) -> 1 | O32: =IF($J32<DATE(O$3,12,31),1,IF($G32="Financial",0,OFFSET(Project_characteristics!$C$1,10+(19*($C32-1)),MAX(0,O$3-YEAR($I32)))/100)) -> 1 | P32: =IF($J32<DATE(P$3,12,31),1,IF($G32="Financial",0,OFFSET(Project_characteristics!$C$1,10+(19*($C32-1)),MAX(0,P$3-YEAR($I32)))/100)) -> 1
B33: ROBG-138 | C33: 1 | D33: All | E33: 1F1 | F33: All | G33: Financial | H33: 2863448.05 | I33: 2017-12-12 | J33: 2023-12-11 | K33: 6563445.615 | M33: =IF($J33<DATE(M$3,12,31),1,IF($G33="Financial",0,OFFSET(Project_characteristics!$C$1,10+(19*($C33-1)),MAX(0,M$3-YEAR($I33)))/100)) -> 0 | N33: =IF($J33<DATE(N$3,12,31),1,IF($G33="Financial",0,OFFSET(Project_characteristics!$C$1,10+(19*($C33-1)),MAX(0,N$3-YEAR($I33)))/100)) -> 0 | O33: =IF($J33<DATE(O$3,12,31),1,IF($G33="Financial",0,OFFSET(Project_characteristics!$C$1,10+(19*($C33-1)),MAX(0,O$3-YEAR($I33)))/100)) -> 0 | P33: =IF($J33<DATE(P$3,12,31),1,IF($G33="Financial",0,OFFSET(Project_characteristics!$C$1,10+(19*($C33-1)),MAX(0,P$3-YEAR($I33)))/100)) -> 1
B34: ROBG-132 | C34: 1 | D34: All | E34: 1F1 | F34: All | G34: Financial | H34: 3831863.19 | I34: 2017-06-09 | J34: 2021-07-31 | K34: 5894039.896 | M34: =IF($J34<DATE(M$3,12,31),1,IF($G34="Financial",0,OFFSET(Project_characteristics!$C$1,10+(19*($C34-1)),MAX(0,M$3-YEAR($I34)))/100)) -> 0 | N34: =IF($J34<DATE(N$3,12,31),1,IF($G34="Financial",0,OFFSET(Project_characteristics!$C$1,10+(19*($C34-1)),MAX(0,N$3-YEAR($I34)))/100)) -> 1 | O34: =IF($J34<DATE(O$3,12,31),1,IF($G34="Financial",0,OFFSET(Project_characteristics!$C$1,10+(19*($C34-1)),MAX(0,O$3-YEAR($I34)))/100)) -> 1 | P34: =IF($J34<DATE(P$3,12,31),1,IF($G34="Financial",0,OFFSET(Project_characteristics!$C$1,10+(19*($C34-1)),MAX(0,P$3-YEAR($I34)))/100)) -> 1
B35: ROBG-419 | C35: 2 | D35: All | E35: CO09 | F35: All | G35: Physical | H35: 5339 | I35: 2018-09-11 | J35: 2021-07-10 | K35: 5433.681773 | M35: =IF($J35<DATE(M$3,12,31),1,IF($G35="Physical",0,OFFSET(Project_characteristics!$C$1,10+(19*($C35-1)),MAX(0,M$3-YEAR($I35)))/100)) -> 0 | N35: =IF($J35<DATE(N$3,12,31),1,IF($G35="Physical",0,OFFSET(Project_characteristics!$C$1,10+(19*($C35-1)),MAX(0,N$3-YEAR($I35)))/100)) -> 1 | O35: =IF($J35<DATE(O$3,12,31),1,IF($G35="Physical",0,OFFSET(Project_characteristics!$C$1,10+(19*($C35-1)),MAX(0,O$3-YEAR($I35)))/100)) -> 1 | P35: =IF($J35<DATE(P$3,12,31),1,IF($G35="Physical",0,OFFSET(Project_characteristics!$C$1,10+(19*($C35-1)),MAX(0,P$3-YEAR($I35)))/100)) -> 1
B36: ROBG-511 | C36: 2 | D36: All | E36: CO09 | F36: All | G36: Physical | H36: 0 | I36: 2018-08-24 | J36: 2022-04-30 | K36: 1527.825601 | M36: =IF($J36<DATE(M$3,12,31),1,IF($G36="Physical",0,OFFSET(Project_characteristics!$C$1,10+(19*($C36-1)),MAX(0,M$3-YEAR($I36)))/100)) -> 0 | N36: =IF($J36<DATE(N$3,12,31),1,IF($G36="Physical",0,OFFSET(Project_characteristics!$C$1,10+(19*($C36-1)),MAX(0,N$3-YEAR($I36)))/100)) -> 0 | O36: =IF($J36<DATE(O$3,12,31),1,IF($G36="Physical",0,OFFSET(Project_characteristics!$C$1,10+(19*($C36-1)),MAX(0,O$3-YEAR($I36)))/100)) -> 1 | P36: =IF($J36<DATE(P$3,12,31),1,IF($G36="Physical",0,OFFSET(Project_characteristics!$C$1,10+(19*($C36-1)),MAX(0,P$3-YEAR($I36)))/100)) -> 1
B37: ROBG-378 | C37: 2 | D37: All | E37: CO09 | F37: All | G37: Physical | H37: 0 | I37: 2019-05-21 | J37: 2022-11-19 | K37: 12731.88001 | M37: =IF($J37<DATE(M$3,12,31),1,IF($G37="Physical",0,OFFSET(Project_characteristics!$C$1,10+(19*($C37-1)),MAX(0,M$3-YEAR($I37)))/100)) -> 0 | N37: =IF($J37<DATE(N$3,12,31),1,IF($G37="Physical",0,OFFSET(Project_characteristics!$C$1,10+(19*($C37-1)),MAX(0,N$3-YEAR($I37)))/100)) -> 0 | O37: =IF($J37<DATE(O$3,12,31),1,IF($G37="Physical",0,OFFSET(Project_characteristics!$C$1,10+(19*($C37-1)),MAX(0,O$3-YEAR($I37)))/100)) -> 1 | P37: =IF($J37<DATE(P$3,12,31),1,IF($G37="Physical",0,OFFSET(Project_characteristics!$C$1,10+(19*($C37-1)),MAX(0,P$3-YEAR($I37)))/100)) -> 1
B38: ROBG-576 | C38: 2 | D38: All | E38: CO09 | F38: All | G38: Physical | H38: 0 | I38: 2018-09-14 | J38: 2021-09-13 | K38: 0 | M38: =IF($J38<DATE(M$3,12,31),1,IF($G38="Physical",0,OFFSET(Project_characteristics!$C$1,10+(19*($C38-1)),MAX(0,M$3-YEAR($I38)))/100)) -> 0 | N38: =IF($J38<DATE(N$3,12,31),1,IF($G38="Physical",0,OFFSET(Project_characteristics!$C$1,10+(19*($C38-1)),MAX(0,N$3-YEAR($I38)))/100)) -> 1 | O38: =IF($J38<DATE(O$3,12,31),1,IF($G38="Physical",0,OFFSET(Project_characteristics!$C$1,10+(19*($C38-1)),MAX(0,O$3-YEAR($I38)))/100)) -> 1 | P38: =IF($J38<DATE(P$3,12,31),1,IF($G38="Physical",0,OFFSET(Project_characteristics!$C$1,10+(19*($C38-1)),MAX(0,P$3-YEAR($I38)))/100)) -> 1
B39: ROBG-407 | C39: 2 | D39: All | E39: CO09 | F39: All | G39: Physical | H39: 0 | I39: 2018-07-27 | J39: 2023-01-26 | K39: 67903.36004 | M39: =IF($J39<DATE(M$3,12,31),1,IF($G39="Physical",0,OFFSET(Project_characteristics!$C$1,10+(19*($C39-1)),MAX(0,M$3-YEAR($I39)))/100)) -> 0 | N39: =IF($J39<DATE(N$3,12,31),1,IF($G39="Physical",0,OFFSET(Project_characteristics!$C$1,10+(19*($C39-1)),MAX(0,N$3-YEAR($I39)))/100)) -> 0 | O39: =IF($J39<DATE(O$3,12,31),1,IF($G39="Physical",0,OFFSET(Project_characteristics!$C$1,10+(19*($C39-1)),MAX(0,O$3-YEAR($I39)))/100)) -> 0 | P39: =IF($J39<DATE(P$3,12,31),1,IF($G39="Physical",0,OFFSET(Project_characteristics!$C$1,10+(19*($C39-1)),MAX(0,P$3-YEAR($I39)))/100)) -> 1
B40: ROBG-413 | C40: 2 | D40: All | E40: CO09 | F40: All | G40: Physical | H40: 0 | I40: 2018-09-12 | J40: 2021-09-11 | K40: 848.7920005 | M40: =IF($J40<DATE(M$3,12,31),1,IF($G40="Physical",0,OFFSET(Project_characteristics!$C$1,10+(19*($C40-1)),MAX(0,M$3-YEAR($I40)))/100)) -> 0 | N40: =IF($J40<DATE(N$3,12,31),1,IF($G40="Physical",0,OFFSET(Project_characteristics!$C$1,10+(19*($C40-1)),MAX(0,N$3-YEAR($I40)))/100)) -> 1 | O40: =IF($J40<DATE(O$3,12,31),1,IF($G40="Physical",0,OFFSET(Project_characteristics!$C$1,10+(19*($C40-1)),MAX(0,O$3-YEAR($I40)))/100)) -> 1 | P40: =IF($J40<DATE(P$3,12,31),1,IF($G40="Physical",0,OFFSET(Project_characteristics!$C$1,10+(19*($C40-1)),MAX(0,P$3-YEAR($I40)))/100)) -> 1
B41: ROBG-128 | C41: 2 | D41: All | E41: CO09 | F41: All | G41: Physical | H41: 0 | I41: 2017-03-31 | J41: 2022-01-30 | K41: 8487.920005 | M41: =IF($J41<DATE(M$3,12,31),1,IF($G41="Physical",0,OFFSET(Project_characteristics!$C$1,10+(19*($C41-1)),MAX(0,M$3-YEAR($I41)))/100)) -> 0 | N41: =IF($J41<DATE(N$3,12,31),1,IF($G41="Physical",0,OFFSET(Project_characteristics!$C$1,10+(19*($C41-1)),MAX(0,N$3-YEAR($I41)))/100)) -> 0 | O41: =IF($J41<DATE(O$3,12,31),1,IF($G41="Physical",0,OFFSET(Project_characteristics!$C$1,10+(19*($C41-1)),MAX(0,O$3-YEAR($I41)))/100)) -> 1 | P41: =IF($J41<DATE(P$3,12,31),1,IF($G41="Physical",0,OFFSET(Project_characteristics!$C$1,10+(19*($C41-1)),MAX(0,P$3-YEAR($I41)))/100)) -> 1
B42: ROBG-337 | C42: 2 | D42: All | E42: CO09 | F42: All | G42: Physical | H42: 2 | I42: 2018-08-07 | J42: 2021-08-06 | K42: 2.085714286 | M42: =IF($J42<DATE(M$3,12,31),1,IF($G42="Physical",0,OFFSET(Project_characteristics!$C$1,10+(19*($C42-1)),MAX(0,M$3-YEAR($I42)))/100)) -> 0 | N42: =IF($J42<DATE(N$3,12,31),1,IF($G42="Physical",0,OFFSET(Project_characteristics!$C$1,10+(19*($C42-1)),MAX(0,N$3-YEAR($I42)))/100)) -> 1 | O42: =IF($J42<DATE(O$3,12,31),1,IF($G42="Physical",0,OFFSET(Project_characteristics!$C$1,10+(19*($C42-1)),MAX(0,O$3-YEAR($I42)))/100)) -> 1 | P42: =IF($J42<DATE(P$3,12,31),1,IF($G42="Physical",0,OFFSET(Project_characteristics!$C$1,10+(19*($C42-1)),MAX(0,P$3-YEAR($I42)))/100)) -> 1
B43: ROBG-507 | C43: 2 | D43: All | E43: CO09 | F43: All | G43: Physical | H43: 100 | I43: 2018-06-29 | J43: 2021-06-28 | K43: 100.5509642 | M43: =IF($J43<DATE(M$3,12,31),1,IF($G43="Physical",0,OFFSET(Project_characteristics!$C$1,10+(19*($C43-1)),MAX(0,M$3-YEAR($I43)))/100)) -> 0 | N43: =IF($J43<DATE(N$3,12,31),1,IF($G43="Physical",0,OFFSET(Project_characteristics!$C$1,10+(19*($C43-1)),MAX(0,N$3-YEAR($I43)))/100)) -> 1 | O43: =IF($J43<DATE(O$3,12,31),1,IF($G43="Physical",0,OFFSET(Project_characteristics!$C$1,10+(19*($C43-1)),MAX(0,O$3-YEAR($I43)))/100)) -> 1 | P43: =IF($J43<DATE(P$3,12,31),1,IF($G43="Physical",0,OFFSET(Project_characteristics!$C$1,10+(19*($C43-1)),MAX(0,P$3-YEAR($I43)))/100)) -> 1
B44: ROBG-453 | C44: 2 | D44: All | E44: CO09 | F44: All | G44: Physical | H44: 258 | I44: 2018-09-12 | J44: 2021-08-11 | K44: 270.7218935 | M44: =IF($J44<DATE(M$3,12,31),1,IF($G44="Physical",0,OFFSET(Project_characteristics!$C$1,10+(19*($C44-1)),MAX(0,M$3-YEAR($I44)))/100)) -> 0 | N44: =IF($J44<DATE(N$3,12,31),1,IF($G44="Physical",0,OFFSET(Project_characteristics!$C$1,10+(19*($C44-1)),MAX(0,N$3-YEAR($I44)))/100)) -> 1 | O44: =IF($J44<DATE(O$3,12,31),1,IF($G44="Physical",0,OFFSET(Project_characteristics!$C$1,10+(19*($C44-1)),MAX(0,O$3-YEAR($I44)))/100)) -> 1 | P44: =IF($J44<DATE(P$3,12,31),1,IF($G44="Physical",0,OFFSET(Project_characteristics!$C$1,10+(19*($C44-1)),MAX(0,P$3-YEAR($I44)))/100)) -> 1
B45: ROBG-499 | C45: 2 | D45: All | E45: CO09 | F45: All | G45: Physical | H45: 0 | I45: 2018-12-08 | J45: 2021-10-07 | K45: 2121.980001 | M45: =IF($J45<DATE(M$3,12,31),1,IF($G45="Physical",0,OFFSET(Project_characteristics!$C$1,10+(19*($C45-1)),MAX(0,M$3-YEAR($I45)))/100)) -> 0 | N45: =IF($J45<DATE(N$3,12,31),1,IF($G45="Physical",0,OFFSET(Project_characteristics!$C$1,10+(19*($C45-1)),MAX(0,N$3-YEAR($I45)))/100)) -> 1 | O45: =IF($J45<DATE(O$3,12,31),1,IF($G45="Physical",0,OFFSET(Project_characteristics!$C$1,10+(19*($C45-1)),MAX(0,O$3-YEAR($I45)))/100)) -> 1 | P45: =IF($J45<DATE(P$3,12,31),1,IF($G45="Physical",0,OFFSET(Project_characteristics!$C$1,10+(19*($C45-1)),MAX(0,P$3-YEAR($I45)))/100)) -> 1
B46: ROBG-271 | C46: 2 | D46: All | E46: CO09 | F46: All | G46: Physical | H46: 0 | I46: 2018-11-28 | J46: 2022-01-27 | K46: 12731.88001 | M46: =IF($J46<DATE(M$3,12,31),1,IF($G46="Physical",0,OFFSET(Project_characteristics!$C$1,10+(19*($C46-1)),MAX(0,M$3-YEAR($I46)))/100)) -> 0 | N46: =IF($J46<DATE(N$3,12,31),1,IF($G46="Physical",0,OFFSET(Project_characteristics!$C$1,10+(19*($C46-1)),MAX(0,N$3-YEAR($I46)))/100)) -> 0 | O46: =IF($J46<DATE(O$3,12,31),1,IF($G46="Physical",0,OFFSET(Project_characteristics!$C$1,10+(19*($C46-1)),MAX(0,O$3-YEAR($I46)))/100)) -> 1 | P46: =IF($J46<DATE(P$3,12,31),1,IF($G46="Physical",0,OFFSET(Project_characteristics!$C$1,10+(19*($C46-1)),MAX(0,P$3-YEAR($I46)))/100)) -> 1
B47: ROBG-366 | C47: 2 | D47: All | E47: CO09 | F47: All | G47: Physical | H47: 0 | I47: 2018-09-01 | J47: 2021-08-31 | K47: 8487.920005 | M47: =IF($J47<DATE(M$3,12,31),1,IF($G47="Physical",0,OFFSET(Project_characteristics!$C$1,10+(19*($C47-1)),MAX(0,M$3-YEAR($I47)))/100)) -> 0 | N47: =IF($J47<DATE(N$3,12,31),1,IF($G47="Physical",0,OFFSET(Project_characteristics!$C$1,10+(19*($C47-1)),MAX(0,N$3-YEAR($I47)))/100)) -> 1 | O47: =IF($J47<DATE(O$3,12,31),1,IF($G47="Physical",0,OFFSET(Project_characteristics!$C$1,10+(19*($C47-1)),MAX(0,O$3-YEAR($I47)))/100)) -> 1 | P47: =IF($J47<DATE(P$3,12,31),1,IF($G47="Physical",0,OFFSET(Project_characteristics!$C$1,10+(19*($C47-1)),MAX(0,P$3-YEAR($I47)))/100)) -> 1
B48: ROBG-397 | C48: 2 | D48: All | E48: CO09 | F48: All | G48: Physical | H48: 0 | I48: 2018-09-06 | J48: 2023-10-31 | K48: 6790.336004 | M48: =IF($J48<DATE(M$3,12,31),1,IF($G48="Physical",0,OFFSET(Project_characteristics!$C$1,10+(19*($C48-1)),MAX(0,M$3-YEAR($I48)))/100)) -> 0 | N48: =IF($J48<DATE(N$3,12,31),1,IF($G48="Physical",0,OFFSET(Project_characteristics!$C$1,10+(19*($C48-1)),MAX(0,N$3-YEAR($I48)))/100)) -> 0 | O48: =IF($J48<DATE(O$3,12,31),1,IF($G48="Physical",0,OFFSET(Project_characteristics!$C$1,10+(19*($C48-1)),MAX(0,O$3-YEAR($I48)))/100)) -> 0 | P48: =IF($J48<DATE(P$3,12,31),1,IF($G48="Physical",0,OFFSET(Project_characteristics!$C$1,10+(19*($C48-1)),MAX(0,P$3-YEAR($I48)))/100)) -> 1
B49: ROBG-471 | C49: 2 | D49: All | E49: CO09 | F49: All | G49: Physical | H49: 0 | I49: 2018-08-30 | J49: 2021-11-29 | K49: 9899.461102 | M49: =IF($J49<DATE(M$3,12,31),1,IF($G49="Physical",0,OFFSET(Project_characteristics!$C$1,10+(19*($C49-1)),MAX(0,M$3-YEAR($I49)))/100)) -> 0 | N49: =IF($J49<DATE(N$3,12,31),1,IF($G49="Physical",0,OFFSET(Project_characteristics!$C$1,10+(19*($C49-1)),MAX(0,N$3-YEAR($I49)))/100)) -> 1 | O49: =IF($J49<DATE(O$3,12,31),1,IF($G49="Physical",0,OFFSET(Project_characteristics!$C$1,10+(19*($C49-1)),MAX(0,O$3-YEAR($I49)))/100)) -> 1 | P49: =IF($J49<DATE(P$3,12,31),1,IF($G49="Physical",0,OFFSET(Project_characteristics!$C$1,10+(19*($C49-1)),MAX(0,P$3-YEAR($I49)))/100)) -> 1
B50: ROBG-134 | C50: 2 | D50: All | E50: CO09 | F50: All | G50: Physical | H50: 0 | I50: 2017-05-20 | J50: 2021-12-19 | K50: 3395.168002 | M50: =IF($J50<DATE(M$3,12,31),1,IF($G50="Physical",0,OFFSET(Project_characteristics!$C$1,10+(19*($C50-1)),MAX(0,M$3-YEAR($I50)))/100)) -> 0 | N50: =IF($J50<DATE(N$3,12,31),1,IF($G50="Physical",0,OFFSET(Project_characteristics!$C$1,10+(19*($C50-1)),MAX(0,N$3-YEAR($I50)))/100)) -> 1 | O50: =IF($J50<DATE(O$3,12,31),1,IF($G50="Physical",0,OFFSET(Project_characteristics!$C$1,10+(19*($C50-1)),MAX(0,O$3-YEAR($I50)))/100)) -> 1 | P50: =IF($J50<DATE(P$3,12,31),1,IF($G50="Physical",0,OFFSET(Project_characteristics!$C$1,10+(19*($C50-1)),MAX(0,P$3-YEAR($I50)))/100)) -> 1
B51: ROBG-568 | C51: 2 | D51: All | E51: CO09 | F51: All | G51: Physical | H51: 0 | I51: 2018-09-13 | J51: 2022-09-08 | K51: 424.3960003 | M51: =IF($J51<DATE(M$3,12,31),1,IF($G51="Physical",0,OFFSET(Project_characteristics!$C$1,10+(19*($C51-1)),MAX(0,M$3-YEAR($I51)))/100)) -> 0 | N51: =IF($J51<DATE(N$3,12,31),1,IF($G51="Physical",0,OFFSET(Project_characteristics!$C$1,10+(19*($C51-1)),MAX(0,N$3-YEAR($I51)))/100)) -> 0 | O51: =IF($J51<DATE(O$3,12,31),1,IF($G51="Physical",0,OFFSET(Project_characteristics!$C$1,10+(19*($C51-1)),MAX(0,O$3-YEAR($I51)))/100)) -> 1 | P51: =IF($J51<DATE(P$3,12,31),1,IF($G51="Physical",0,OFFSET(Project_characteristics!$C$1,10+(19*($C51-1)),MAX(0,P$3-YEAR($I51)))/100)) -> 1
B52: ROBG-302 | C52: 2 | D52: All | E52: CO09 | F52: All | G52: Physical | H52: 0 | I52: 2019-01-12 | J52: 2023-01-11 | K52: 29707.72002 | M52: =IF($J52<DATE(M$3,12,31),1,IF($G52="Physical",0,OFFSET(Project_characteristics!$C$1,10+(19*($C52-1)),MAX(0,M$3-YEAR($I52)))/100)) -> 0 | N52: =IF($J52<DATE(N$3,12,31),1,IF($G52="Physical",0,OFFSET(Project_characteristics!$C$1,10+(19*($C52-1)),MAX(0,N$3-YEAR($I52)))/100)) -> 0 | O52: =IF($J52<DATE(O$3,12,31),1,IF($G52="Physical",0,OFFSET(Project_characteristics!$C$1,10+(19*($C52-1)),MAX(0,O$3-YEAR($I52)))/100)) -> 0 | P52: =IF($J52<DATE(P$3,12,31),1,IF($G52="Physical",0,OFFSET(Project_characteristics!$C$1,10+(19*($C52-1)),MAX(0,P$3-YEAR($I52)))/100)) -> 1
B53: ROBG-290 | C53: 2 | D53: All | E53: CO09 | F53: All | G53: Physical | H53: 0 | I53: 2018-10-10 | J53: 2021-10-09 | K53: 0 | M53: =IF($J53<DATE(M$3,12,31),1,IF($G53="Physical",0,OFFSET(Project_characteristics!$C$1,10+(19*($C53-1)),MAX(0,M$3-YEAR($I53)))/100)) -> 0 | N53: =IF($J53<DATE(N$3,12,31),1,IF($G53="Physical",0,OFFSET(Project_characteristics!$C$1,10+(19*($C53-1)),MAX(0,N$3-YEAR($I53)))/100)) -> 1 | O53: =IF($J53<DATE(O$3,12,31),1,IF($G53="Physical",0,OFFSET(Project_characteristics!$C$1,10+(19*($C53-1)),MAX(0,O$3-YEAR($I53)))/100)) -> 1 | P53: =IF($J53<DATE(P$3,12,31),1,IF($G53="Physical",0,OFFSET(Project_characteristics!$C$1,10+(19*($C53-1)),MAX(0,P$3-YEAR($I53)))/100)) -> 1
B54: ROBG-419 | C54: 2 | D54: All | E54: 6c.1 | F54: All | G54: Physical | H54: 1 | I54: 2018-09-11 | J54: 2021-07-10 | K54: 1.01773399 | M54: =IF($J54<DATE(M$3,12,31),1,IF($G54="Physical",0,OFFSET(Project_characteristics!$C$1,10+(19*($C54-1)),MAX(0,M$3-YEAR($I54)))/100)) -> 0 | N54: =IF($J54<DATE(N$3,12,31),1,IF($G54="Physical",0,OFFSET(Project_characteristics!$C$1,10+(19*($C54-1)),MAX(0,N$3-YEAR($I54)))/100)) -> 1 | O54: =IF($J54<DATE(O$3,12,31),1,IF($G54="Physical",0,OFFSET(Project_characteristics!$C$1,10+(19*($C54-1)),MAX(0,O$3-YEAR($I54)))/100)) -> 1 | P54: =IF($J54<DATE(P$3,12,31),1,IF($G54="Physical",0,OFFSET(Project_characteristics!$C$1,10+(19*($C54-1)),MAX(0,P$3-YEAR($I54)))/100)) -> 1
B55: ROBG-456 | C55: 2 | D55: All | E55: 6c.1 | F55: All | G55: Physical | H55: 0 | I55: 2018-09-12 | J55: 2021-09-11 | K55: 0.8487920005 | M55: =IF($J55<DATE(M$3,12,31),1,IF($G55="Physical",0,OFFSET(Project_characteristics!$C$1,10+(19*($C55-1)),MAX(0,M$3-YEAR($I55)))/100)) -> 0 | N55: =IF($J55<DATE(N$3,12,31),1,IF($G55="Physical",0,OFFSET(Project_characteristics!$C$1,10+(19*($C55-1)),MAX(0,N$3-YEAR($I55)))/100)) -> 1 | O55: =IF($J55<DATE(O$3,12,31),1,IF($G55="Physical",0,OFFSET(Project_characteristics!$C$1,10+(19*($C55-1)),MAX(0,O$3-YEAR($I55)))/100)) -> 1 | P55: =IF($J55<DATE(P$3,12,31),1,IF($G55="Physical",0,OFFSET(Project_characteristics!$C$1,10+(19*($C55-1)),MAX(0,P$3-YEAR($I55)))/100)) -> 1
B56: ROBG-511 | C56: 2 | D56: All | E56: 6c.1 | F56: All | G56: Physical | H56: 0 | I56: 2018-08-24 | J56: 2022-04-30 | K56: 3.395168002 | M56: =IF($J56<DATE(M$3,12,31),1,IF($G56="Physical",0,OFFSET(Project_characteristics!$C$1,10+(19*($C56-1)),MAX(0,M$3-YEAR($I56)))/100)) -> 0 | N56: =IF($J56<DATE(N$3,12,31),1,IF($G56="Physical",0,OFFSET(Project_characteristics!$C$1,10+(19*($C56-1)),MAX(0,N$3-YEAR($I56)))/100)) -> 0 | O56: =IF($J56<DATE(O$3,12,31),1,IF($G56="Physical",0,OFFSET(Project_characteristics!$C$1,10+(19*($C56-1)),MAX(0,O$3-YEAR($I56)))/100)) -> 1 | P56: =IF($J56<DATE(P$3,12,31),1,IF($G56="Physical",0,OFFSET(Project_characteristics!$C$1,10+(19*($C56-1)),MAX(0,P$3-YEAR($I56)))/100)) -> 1
B57: ROBG-422 | C57: 2 | D57: All | E57: 6c.1 | F57: All | G57: Physical | H57: 0 | I57: 2018-12-29 | J57: 2021-12-28 | K57: 1.697584001 | M57: =IF($J57<DATE(M$3,12,31),1,IF($G57="Physical",0,OFFSET(Project_characteristics!$C$1,10+(19*($C57-1)),MAX(0,M$3-YEAR($I57)))/100)) -> 0 | N57: =IF($J57<DATE(N$3,12,31),1,IF($G57="Physical",0,OFFSET(Project_characteristics!$C$1,10+(19*($C57-1)),MAX(0,N$3-YEAR($I57)))/100)) -> 1 | O57: =IF($J57<DATE(O$3,12,31),1,IF($G57="Physical",0,OFFSET(Project_characteristics!$C$1,10+(19*($C57-1)),MAX(0,O$3-YEAR($I57)))/100)) -> 1 | P57: =IF($J57<DATE(P$3,12,31),1,IF($G57="Physical",0,OFFSET(Project_characteristics!$C$1,10+(19*($C57-1)),MAX(0,P$3-YEAR($I57)))/100)) -> 1
B58: ROBG-378 | C58: 2 | D58: All | E58: 6c.1 | F58: All | G58: Physical | H58: 0 | I58: 2019-05-21 | J58: 2022-11-19 | K58: 0.8487920005 | M58: =IF($J58<DATE(M$3,12,31),1,IF($G58="Physical",0,OFFSET(Project_characteristics!$C$1,10+(19*($C58-1)),MAX(0,M$3-YEAR($I58)))/100)) -> 0 | N58: =IF($J58<DATE(N$3,12,31),1,IF($G58="Physical",0,OFFSET(Project_characteristics!$C$1,10+(19*($C58-1)),MAX(0,N$3-YEAR($I58)))/100)) -> 0 | O58: =IF($J58<DATE(O$3,12,31),1,IF($G58="Physical",0,OFFSET(Project_characteristics!$C$1,10+(19*($C58-1)),MAX(0,O$3-YEAR($I58)))/100)) -> 1 | P58: =IF($J58<DATE(P$3,12,31),1,IF($G58="Physical",0,OFFSET(Project_characteristics!$C$1,10+(19*($C58-1)),MAX(0,P$3-YEAR($I58)))/100)) -> 1
B59: ROBG-576 | C59: 2 | D59: All | E59: 6c.1 | F59: All | G59: Physical | H59: 1 | I59: 2018-09-14 | J59: 2021-09-13 | K59: 1.08201581 | M59: =IF($J59<DATE(M$3,12,31),1,IF($G59="Physical",0,OFFSET(Project_characteristics!$C$1,10+(19*($C59-1)),MAX(0,M$3-YEAR($I59)))/100)) -> 0 | N59: =IF($J59<DATE(N$3,12,31),1,IF($G59="Physical",0,OFFSET(Project_characteristics!$C$1,10+(19*($C59-1)),MAX(0,N$3-YEAR($I59)))/100)) -> 1 | O59: =IF($J59<DATE(O$3,12,31),1,IF($G59="Physical",0,OFFSET(Project_characteristics!$C$1,10+(19*($C59-1)),MAX(0,O$3-YEAR($I59)))/100)) -> 1 | P59: =IF($J59<DATE(P$3,12,31),1,IF($G59="Physical",0,OFFSET(Project_characteristics!$C$1,10+(19*($C59-1)),MAX(0,P$3-YEAR($I59)))/100)) -> 1
B60: ROBG-407 | C60: 2 | D60: All | E60: 6c.1 | F60: All | G60: Physical | H60: 0 | I60: 2018-07-27 | J60: 2023-01-26 | K60: 0.8487920005 | M60: =IF($J60<DATE(M$3,12,31),1,IF($G60="Physical",0,OFFSET(Project_characteristics!$C$1,10+(19*($C60-1)),MAX(0,M$3-YEAR($I60)))/100)) -> 0 | N60: =IF($J60<DATE(N$3,12,31),1,IF($G60="Physical",0,OFFSET(Project_characteristics!$C$1,10+(19*($C60-1)),MAX(0,N$3-YEAR($I60)))/100)) -> 0 | O60: =IF($J60<DATE(O$3,12,31),1,IF($G60="Physical",0,OFFSET(Project_characteristics!$C$1,10+(19*($C60-1)),MAX(0,O$3-YEAR($I60)))/100)) -> 0 | P60: =IF($J60<DATE(P$3,12,31),1,IF($G60="Physical",0,OFFSET(Project_characteristics!$C$1,10+(19*($C60-1)),MAX(0,P$3-YEAR($I60)))/100)) -> 1
B61: ROBG-413 | C61: 2 | D61: All | E61: 6c.1 | F61: All | G61: Physical | H61: 0 | I61: 2018-09-12 | J61: 2021-09-11 | K61: 0.8487920005 | M61: =IF($J61<DATE(M$3,12,31),1,IF($G61="Physical",0,OFFSET(Project_characteristics!$C$1,10+(19*($C61-1)),MAX(0,M$3-YEAR($I61)))/100)) -> 0 | N61: =IF($J61<DATE(N$3,12,31),1,IF($G61="Physical",0,OFFSET(Project_characteristics!$C$1,10+(19*($C61-1)),MAX(0,N$3-YEAR($I61)))/100)) -> 1 | O61: =IF($J61<DATE(O$3,12,31),1,IF($G61="Physical",0,OFFSET(Project_characteristics!$C$1,10+(19*($C61-1)),MAX(0,O$3-YEAR($I61)))/100)) -> 1 | P61: =IF($J61<DATE(P$3,12,31),1,IF($G61="Physical",0,OFFSET(Project_characteristics!$C$1,10+(19*($C61-1)),MAX(0,P$3-YEAR($I61)))/100)) -> 1
B62: ROBG-128 | C62: 2 | D62: All | E62: 6c.1 | F62: All | G62: Physical | H62: 0 | I62: 2017-03-31 | J62: 2022-01-30 | K62: 7.639128005 | M62: =IF($J62<DATE(M$3,12,31),1,IF($G62="Physical",0,OFFSET(Project_characteristics!$C$1,10+(19*($C62-1)),MAX(0,M$3-YEAR($I62)))/100)) -> 0 | N62: =IF($J62<DATE(N$3,12,31),1,IF($G62="Physical",0,OFFSET(Project_characteristics!$C$1,10+(19*($C62-1)),MAX(0,N$3-YEAR($I62)))/100)) -> 0 | O62: =IF($J62<DATE(O$3,12,31),1,IF($G62="Physical",0,OFFSET(Project_characteristics!$C$1,10+(19*($C62-1)),MAX(0,O$3-YEAR($I62)))/100)) -> 1 | P62: =IF($J62<DATE(P$3,12,31),1,IF($G62="Physical",0,OFFSET(Project_characteristics!$C$1,10+(19*($C62-1)),MAX(0,P$3-YEAR($I62)))/100)) -> 1
B63: ROBG-337 | C63: 2 | D63: All | E63: 6c.1 | F63: All | G63: Physical | H63: 15 | I63: 2018-08-07 | J63: 2021-08-06 | K63: 15.64285714 | M63: =IF($J63<DATE(M$3,12,31),1,IF($G63="Physical",0,OFFSET(Project_characteristics!$C$1,10+(19*($C63-1)),MAX(0,M$3-YEAR($I63)))/100)) -> 0 | N63: =IF($J63<DATE(N$3,12,31),1,IF($G63="Physical",0,OFFSET(Project_characteristics!$C$1,10+(19*($C63-1)),MAX(0,N$3-YEAR($I63)))/100)) -> 1 | O63: =IF($J63<DATE(O$3,12,31),1,IF($G63="Physical",0,OFFSET(Project_characteristics!$C$1,10+(19*($C63-1)),MAX(0,O$3-YEAR($I63)))/100)) -> 1 | P63: =IF($J63<DATE(P$3,12,31),1,IF($G63="Physical",0,OFFSET(Project_characteristics!$C$1,10+(19*($C63-1)),MAX(0,P$3-YEAR($I63)))/100)) -> 1
B64: ROBG-424 | C64: 2 | D64: All | E64: 6c.1 | F64: All | G64: Physical | H64: 0 | I64: 2018-07-31 | J64: 2023-01-30 | K64: 0.8487920005 | M64: =IF($J64<DATE(M$3,12,31),1,IF($G64="Physical",0,OFFSET(Project_characteristics!$C$1,10+(19*($C64-1)),MAX(0,M$3-YEAR($I64)))/100)) -> 0 | N64: =IF($J64<DATE(N$3,12,31),1,IF($G64="Physical",0,OFFSET(Project_characteristics!$C$1,10+(19*($C64-1)),MAX(0,N$3-YEAR($I64)))/100)) -> 0 | O64: =IF($J64<DATE(O$3,12,31),1,IF($G64="Physical",0,OFFSET(Project_characteristics!$C$1,10+(19*($C64-1)),MAX(0,O$3-YEAR($I64)))/100)) -> 0 | P64: =IF($J64<DATE(P$3,12,31),1,IF($G64="Physical",0,OFFSET(Project_characteristics!$C$1,10+(19*($C64-1)),MAX(0,P$3-YEAR($I64)))/100)) -> 1
B65: ROBG-507 | C65: 2 | D65: All | E65: 6c.1 | F65: All | G65: Physical | H65: 0 | I65: 2018-06-29 | J65: 2021-06-28 | K65: 3.395168002 | M65: =IF($J65<DATE(M$3,12,31),1,IF($G65="Physical",0,OFFSET(Project_characteristics!$C$1,10+(19*($C65-1)),MAX(0,M$3-YEAR($I65)))/100)) -> 0 | N65: =IF($J65<DATE(N$3,12,31),1,IF($G65="Physical",0,OFFSET(Project_characteristics!$C$1,10+(19*($C65-1)),MAX(0,N$3-YEAR($I65)))/100)) -> 1 | O65: =IF($J65<DATE(O$3,12,31),1,IF($G65="Physical",0,OFFSET(Project_characteristics!$C$1,10+(19*($C65-1)),MAX(0,O$3-YEAR($I65)))/100)) -> 1 | P65: =IF($J65<DATE(P$3,12,31),1,IF($G65="Physical",0,OFFSET(Project_characteristics!$C$1,10+(19*($C65-1)),MAX(0,P$3-YEAR($I65)))/100)) -> 1
B66: ROBG-453 | C66: 2 | D66: All | E66: 6c.1 | F66: All | G66: Physical | H66: 1 | I66: 2018-09-12 | J66: 2021-08-11 | K66: 1.049309665 | M66: =IF($J66<DATE(M$3,12,31),1,IF($G66="Physical",0,OFFSET(Project_characteristics!$C$1,10+(19*($C66-1)),MAX(0,M$3-YEAR($I66)))/100)) -> 0 | N66: =IF($J66<DATE(N$3,12,31),1,IF($G66="Physical",0,OFFSET(Project_characteristics!$C$1,10+(19*($C66-1)),MAX(0,N$3-YEAR($I66)))/100)) -> 1 | O66: =IF($J66<DATE(O$3,12,31),1,IF($G66="Physical",0,OFFSET(Project_characteristics!$C$1,10+(19*($C66-1)),MAX(0,O$3-YEAR($I66)))/100)) -> 1 | P66: =IF($J66<DATE(P$3,12,31),1,IF($G66="Physical",0,OFFSET(Project_characteristics!$C$1,10+(19*($C66-1)),MAX(0,P$3-YEAR($I66)))/100)) -> 1
B67: ROBG-423 | C67: 2 | D67: All | E67: 6c.1 | F67: All | G67: Physical | H67: 0 | I67: 2018-09-13 | J67: 2021-09-12 | K67: 4.243960003 | M67: =IF($J67<DATE(M$3,12,31),1,IF($G67="Physical",0,OFFSET(Project_characteristics!$C$1,10+(19*($C67-1)),MAX(0,M$3-YEAR($I67)))/100)) -> 0 | N67: =IF($J67<DATE(N$3,12,31),1,IF($G67="Physical",0,OFFSET(Project_characteristics!$C$1,10+(19*($C67-1)),MAX(0,N$3-YEAR($I67)))/100)) -> 1 | O67: =IF($J67<DATE(O$3,12,31),1,IF($G67="Physical",0,OFFSET(Project_characteristics!$C$1,10+(19*($C67-1)),MAX(0,O$3-YEAR($I67)))/100)) -> 1 | P67: =IF($J67<DATE(P$3,12,31),1,IF($G67="Physical",0,OFFSET(Project_characteristics!$C$1,10+(19*($C67-1)),MAX(0,P$3-YEAR($I67)))/100)) -> 1
B68: ROBG-499 | C68: 2 | D68: All | E68: 6c.1 | F68: All | G68: Physical | H68: 0 | I68: 2018-12-08 | J68: 2021-10-07 | K68: 5.092752003 | M68: =IF($J68<DATE(M$3,12,31),1,IF($G68="Physical",0,OFFSET(Project_characteristics!$C$1,10+(19*($C68-1)),MAX(0,M$3-YEAR($I68)))/100)) -> 0 | N68: =IF($J68<DATE(N$3,12,31),1,IF($G68="Physical",0,OFFSET(Project_characteristics!$C$1,10+(19*($C68-1)),MAX(0,N$3-YEAR($I68)))/100)) -> 1 | O68: =IF($J68<DATE(O$3,12,31),1,IF($G68="Physical",0,OFFSET(Project_characteristics!$C$1,10+(19*($C68-1)),MAX(0,O$3-YEAR($I68)))/100)) -> 1 | P68: =IF($J68<DATE(P$3,12,31),1,IF($G68="Physical",0,OFFSET(Project_characteristics!$C$1,10+(19*($C68-1)),MAX(0,P$3-YEAR($I68)))/100)) -> 1
B69: ROBG-271 | C69: 2 | D69: All | E69: 6c.1 | F69: All | G69: Physical | H69: 0 | I69: 2018-11-28 | J69: 2022-01-27 | K69: 1.697584001 | M69: =IF($J69<DATE(M$3,12,31),1,IF($G69="Physical",0,OFFSET(Project_characteristics!$C$1,10+(19*($C69-1)),MAX(0,M$3-YEAR($I69)))/100)) -> 0 | N69: =IF($J69<DATE(N$3,12,31),1,IF($G69="Physical",0,OFFSET(Project_characteristics!$C$1,10+(19*($C69-1)),MAX(0,N$3-YEAR($I69)))/100)) -> 0 | O69: =IF($J69<DATE(O$3,12,31),1,IF($G69="Physical",0,OFFSET(Project_characteristics!$C$1,10+(19*($C69-1)),MAX(0,O$3-YEAR($I69)))/100)) -> 1 | P69: =IF($J69<DATE(P$3,12,31),1,IF($G69="Physical",0,OFFSET(Project_characteristics!$C$1,10+(19*($C69-1)),MAX(0,P$3-YEAR($I69)))/100)) -> 1
B70: ROBG-366 | C70: 2 | D70: All | E70: 6c.1 | F70: All | G70: Physical | H70: 2 | I70: 2018-09-01 | J70: 2021-08-31 | K70: 2.136585366 | M70: =IF($J70<DATE(M$3,12,31),1,IF($G70="Physical",0,OFFSET(Project_characteristics!$C$1,10+(19*($C70-1)),MAX(0,M$3-YEAR($I70)))/100)) -> 0 | N70: =IF($J70<DATE(N$3,12,31),1,IF($G70="Physical",0,OFFSET(Project_characteristics!$C$1,10+(19*($C70-1)),MAX(0,N$3-YEAR($I70)))/100)) -> 1 | O70: =IF($J70<DATE(O$3,12,31),1,IF($G70="Physical",0,OFFSET(Project_characteristics!$C$1,10+(19*($C70-1)),MAX(0,O$3-YEAR($I70)))/100)) -> 1 | P70: =IF($J70<DATE(P$3,12,31),1,IF($G70="Physical",0,OFFSET(Project_characteristics!$C$1,10+(19*($C70-1)),MAX(0,P$3-YEAR($I70)))/100)) -> 1
B71: ROBG-397 | C71: 2 | D71: All | E71: 6c.1 | F71: All | G71: Physical | H71: 0 | I71: 2018-09-06 | J71: 2023-10-31 | K71: 7.639128005 | M71: =IF($J71<DATE(M$3,12,31),1,IF($G71="Physical",0,OFFSET(Project_characteristics!$C$1,10+(19*($C71-1)),MAX(0,M$3-YEAR($I71)))/100)) -> 0 | N71: =IF($J71<DATE(N$3,12,31),1,IF($G71="Physical",0,OFFSET(Project_characteristics!$C$1,10+(19*($C71-1)),MAX(0,N$3-YEAR($I71)))/100)) -> 0 | O71: =IF($J71<DATE(O$3,12,31),1,IF($G71="Physical",0,OFFSET(Project_characteristics!$C$1,10+(19*($C71-1)),MAX(0,O$3-YEAR($I71)))/100)) -> 0 | P71: =IF($J71<DATE(P$3,12,31),1,IF($G71="Physical",0,OFFSET(Project_characteristics!$C$1,10+(19*($C71-1)),MAX(0,P$3-YEAR($I71)))/100)) -> 1
B72: ROBG-471 | C72: 2 | D72: All | E72: 6c.1 | F72: All | G72: Physical | H72: 0 | I72: 2018-08-30 | J72: 2021-11-29 | K72: 3.395168002 | M72: =IF($J72<DATE(M$3,12,31),1,IF($G72="Physical",0,OFFSET(Project_characteristics!$C$1,10+(19*($C72-1)),MAX(0,M$3-YEAR($I72)))/100)) -> 0 | N72: =IF($J72<DATE(N$3,12,31),1,IF($G72="Physical",0,OFFSET(Project_characteristics!$C$1,10+(19*($C72-1)),MAX(0,N$3-YEAR($I72)))/100)) -> 1 | O72: =IF($J72<DATE(O$3,12,31),1,IF($G72="Physical",0,OFFSET(Project_characteristics!$C$1,10+(19*($C72-1)),MAX(0,O$3-YEAR($I72)))/100)) -> 1 | P72: =IF($J72<DATE(P$3,12,31),1,IF($G72="Physical",0,OFFSET(Project_characteristics!$C$1,10+(19*($C72-1)),MAX(0,P$3-YEAR($I72)))/100)) -> 1
B73: ROBG-528 | C73: 2 | D73: All | E73: 6c.1 | F73: All | G73: Physical | H73: 0 | I73: 2018-10-04 | J73: 2021-10-03 | K73: 2.546376002 | M73: =IF($J73<DATE(M$3,12,31),1,IF($G73="Physical",0,OFFSET(Project_characteristics!$C$1,10+(19*($C73-1)),MAX(0,M$3-YEAR($I73)))/100)) -> 0 | N73: =IF($J73<DATE(N$3,12,31),1,IF($G73="Physical",0,OFFSET(Project_characteristics!$C$1,10+(19*($C73-1)),MAX(0,N$3-YEAR($I73)))/100)) -> 1 | O73: =IF($J73<DATE(O$3,12,31),1,IF($G73="Physical",0,OFFSET(Project_characteristics!$C$1,10+(19*($C73-1)),MAX(0,O$3-YEAR($I73)))/100)) -> 1 | P73: =IF($J73<DATE(P$3,12,31),1,IF($G73="Physical",0,OFFSET(Project_characteristics!$C$1,10+(19*($C73-1)),MAX(0,P$3-YEAR($I73)))/100)) -> 1
B74: ROBG-491 | C74: 2 | D74: All | E74: 6c.1 | F74: All | G74: Physical | H74: 0 | I74: 2018-08-08 | J74: 2021-12-31 | K74: 2.546376002 | M74: =IF($J74<DATE(M$3,12,31),1,IF($G74="Physical",0,OFFSET(Project_characteristics!$C$1,10+(19*($C74-1)),MAX(0,M$3-YEAR($I74)))/100)) -> 0 | N74: =IF($J74<DATE(N$3,12,31),1,IF($G74="Physical",0,OFFSET(Project_characteristics!$C$1,10+(19*($C74-1)),MAX(0,N$3-YEAR($I74)))/100)) -> 0 | O74: =IF($J74<DATE(O$3,12,31),1,IF($G74="Physical",0,OFFSET(Project_characteristics!$C$1,10+(19*($C74-1)),MAX(0,O$3-YEAR($I74)))/100)) -> 1 | P74: =IF($J74<DATE(P$3,12,31),1,IF($G74="Physical",0,OFFSET(Project_characteristics!$C$1,10+(19*($C74-1)),MAX(0,P$3-YEAR($I74)))/100)) -> 1
B75: ROBG-134 | C75: 2 | D75: All | E75: 6c.1 | F75: All | G75: Physical | H75: 0 | I75: 2017-05-20 | J75: 2021-12-19 | K75: 0.8487920005 | M75: =IF($J75<DATE(M$3,12,31),1,IF($G75="Physical",0,OFFSET(Project_characteristics!$C$1,10+(19*($C75-1)),MAX(0,M$3-YEAR($I75)))/100)) -> 0 | N75: =IF($J75<DATE(N$3,12,31),1,IF($G75="Physical",0,OFFSET(Project_characteristics!$C$1,10+(19*($C75-1)),MAX(0,N$3-YEAR($I75)))/100)) -> 1 | O75: =IF($J75<DATE(O$3,12,31),1,IF($G75="Physical",0,OFFSET(Project_characteristics!$C$1,10+(19*($C75-1)),MAX(0,O$3-YEAR($I75)))/100)) -> 1 | P75: =IF($J75<DATE(P$3,12,31),1,IF($G75="Physical",0,OFFSET(Project_characteristics!$C$1,10+(19*($C75-1)),MAX(0,P$3-YEAR($I75)))/100)) -> 1
B76: ROBG-568 | C76: 2 | D76: All | E76: 6c.1 | F76: All | G76: Physical | H76: 0 | I76: 2018-09-13 | J76: 2022-09-08 | K76: 0.8487920005 | M76: =IF($J76<DATE(M$3,12,31),1,IF($G76="Physical",0,OFFSET(Project_characteristics!$C$1,10+(19*($C76-1)),MAX(0,M$3-YEAR($I76)))/100)) -> 0 | N76: =IF($J76<DATE(N$3,12,31),1,IF($G76="Physical",0,OFFSET(Project_characteristics!$C$1,10+(19*($C76-1)),MAX(0,N$3-YEAR($I76)))/100)) -> 0 | O76: =IF($J76<DATE(O$3,12,31),1,IF($G76="Physical",0,OFFSET(Project_characteristics!$C$1,10+(19*($C76-1)),MAX(0,O$3-YEAR($I76)))/100)) -> 1 | P76: =IF($J76<DATE(P$3,12,31),1,IF($G76="Physical",0,OFFSET(Project_characteristics!$C$1,10+(19*($C76-1)),MAX(0,P$3-YEAR($I76)))/100)) -> 1
B77: ROBG-302 | C77: 2 | D77: All | E77: 6c.1 | F77: All | G77: Physical | H77: 0 | I77: 2019-01-12 | J77: 2023-01-11 | K77: 2.546376002 | M77: =IF($J77<DATE(M$3,12,31),1,IF($G77="Physical",0,OFFSET(Project_characteristics!$C$1,10+(19*($C77-1)),MAX(0,M$3-YEAR($I77)))/100)) -> 0 | N77: =IF($J77<DATE(N$3,12,31),1,IF($G77="Physical",0,OFFSET(Project_characteristics!$C$1,10+(19*($C77-1)),MAX(0,N$3-YEAR($I77)))/100)) -> 0 | O77: =IF($J77<DATE(O$3,12,31),1,IF($G77="Physical",0,OFFSET(Project_characteristics!$C$1,10+(19*($C77-1)),MAX(0,O$3-YEAR($I77)))/100)) -> 0 | P77: =IF($J77<DATE(P$3,12,31),1,IF($G77="Physical",0,OFFSET(Project_characteristics!$C$1,10+(19*($C77-1)),MAX(0,P$3-YEAR($I77)))/100)) -> 1
B78: ROBG-290 | C78: 2 | D78: All | E78: 6c.1 | F78: All | G78: Physical | H78: 0 | I78: 2018-10-10 | J78: 2021-10-09 | K78: 1.697584001 | M78: =IF($J78<DATE(M$3,12,31),1,IF($G78="Physical",0,OFFSET(Project_characteristics!$C$1,10+(19*($C78-1)),MAX(0,M$3-YEAR($I78)))/100)) -> 0 | N78: =IF($J78<DATE(N$3,12,31),1,IF($G78="Physical",0,OFFSET(Project_characteristics!$C$1,10+(19*($C78-1)),MAX(0,N$3-YEAR($I78)))/100)) -> 1 | O78: =IF($J78<DATE(O$3,12,31),1,IF($G78="Physical",0,OFFSET(Project_characteristics!$C$1,10+(19*($C78-1)),MAX(0,O$3-YEAR($I78)))/100)) -> 1 | P78: =IF($J78<DATE(P$3,12,31),1,IF($G78="Physical",0,OFFSET(Project_characteristics!$C$1,10+(19*($C78-1)),MAX(0,P$3-YEAR($I78)))/100)) -> 1
B79: ROBG-419 | C79: 2 | D79: All | E79: 2F1 | F79: All | G79: Financial | H79: 1049858.49 | I79: 2018-09-11 | J79: 2021-07-10 | K79: 1235847.948 | M79: =IF($J79<DATE(M$3,12,31),1,IF($G79="Physical",0,OFFSET(Project_characteristics!$C$1,10+(19*($C79-1)),MAX(0,M$3-YEAR($I79)))/100)) -> 0 | N79: =IF($J79<DATE(N$3,12,31),1,IF($G79="Physical",0,OFFSET(Project_characteristics!$C$1,10+(19*($C79-1)),MAX(0,N$3-YEAR($I79)))/100)) -> 1 | O79: =IF($J79<DATE(O$3,12,31),1,IF($G79="Physical",0,OFFSET(Project_characteristics!$C$1,10+(19*($C79-1)),MAX(0,O$3-YEAR($I79)))/100)) -> 1 | P79: =IF($J79<DATE(P$3,12,31),1,IF($G79="Physical",0,OFFSET(Project_characteristics!$C$1,10+(19*($C79-1)),MAX(0,P$3-YEAR($I79)))/100)) -> 1
B80: ROBG-456 | C80: 2 | D80: All | E80: 2F1 | F80: All | G80: Financial | H80: 566451.79 | I80: 2018-09-12 | J80: 2021-09-11 | K80: 1221005.885 | M80: =IF($J80<DATE(M$3,12,31),1,IF($G80="Physical",0,OFFSET(Project_characteristics!$C$1,10+(19*($C80-1)),MAX(0,M$3-YEAR($I80)))/100)) -> 0 | N80: =IF($J80<DATE(N$3,12,31),1,IF($G80="Physical",0,OFFSET(Project_characteristics!$C$1,10+(19*($C80-1)),MAX(0,N$3-YEAR($I80)))/100)) -> 1 | O80: =IF($J80<DATE(O$3,12,31),1,IF($G80="Physical",0,OFFSET(Project_characteristics!$C$1,10+(19*($C80-1)),MAX(0,O$3-YEAR($I80)))/100)) -> 1 | P80: =IF($J80<DATE(P$3,12,31),1,IF($G80="Physical",0,OFFSET(Project_characteristics!$C$1,10+(19*($C80-1)),MAX(0,P$3-YEAR($I80)))/100)) -> 1
B81: ROBG-511 | C81: 2 | D81: All | E81: 2F1 | F81: All | G81: Financial | H81: 761790.51 | I81: 2018-08-24 | J81: 2022-04-30 | K81: 1297849.968 | M81: =IF($J81<DATE(M$3,12,31),1,IF($G81="Physical",0,OFFSET(Project_characteristics!$C$1,10+(19*($C81-1)),MAX(0,M$3-YEAR($I81)))/100)) -> 0 | N81: =IF($J81<DATE(N$3,12,31),1,IF($G81="Physical",0,OFFSET(Project_characteristics!$C$1,10+(19*($C81-1)),MAX(0,N$3-YEAR($I81)))/100)) -> 0 | O81: =IF($J81<DATE(O$3,12,31),1,IF($G81="Physical",0,OFFSET(Project_characteristics!$C$1,10+(19*($C81-1)),MAX(0,O$3-YEAR($I81)))/100)) -> 1 | P81: =IF($J81<DATE(P$3,12,31),1,IF($G81="Physical",0,OFFSET(Project_characteristics!$C$1,10+(19*($C81-1)),MAX(0,P$3-YEAR($I81)))/100)) -> 1
B82: ROBG-422 | C82: 2 | D82: All | E82: 2F1 | F82: All | G82: Financial | H82: 1065024.56 | I82: 2018-12-29 | J82: 2021-12-28 | K82: 1298149.254 | M82: =IF($J82<DATE(M$3,12,31),1,IF($G82="Physical",0,OFFSET(Project_characteristics!$C$1,10+(19*($C82-1)),MAX(0,M$3-YEAR($I82)))/100)) -> 0 | N82: =IF($J82<DATE(N$3,12,31),1,IF($G82="Physical",0,OFFSET(Project_characteristics!$C$1,10+(19*($C82-1)),MAX(0,N$3-YEAR($I82)))/100)) -> 1 | O82: =IF($J82<DATE(O$3,12,31),1,IF($G82="Physical",0,OFFSET(Project_characteristics!$C$1,10+(19*($C82-1)),MAX(0,O$3-YEAR($I82)))/100)) -> 1 | P82: =IF($J82<DATE(P$3,12,31),1,IF($G82="Physical",0,OFFSET(Project_characteristics!$C$1,10+(19*($C82-1)),MAX(0,P$3-YEAR($I82)))/100)) -> 1
B83: ROBG-378 | C83: 2 | D83: All | E83: 2F1 | F83: All | G83: Financial | H83: 220864.71 | I83: 2019-05-21 | J83: 2022-11-19 | K83: 362968.2828 | M83: =IF($J83<DATE(M$3,12,31),1,IF($G83="Physical",0,OFFSET(Project_characteristics!$C$1,10+(19*($C83-1)),MAX(0,M$3-YEAR($I83)))/100)) -> 0 | N83: =IF($J83<DATE(N$3,12,31),1,IF($G83="Physical",0,OFFSET(Project_characteristics!$C$1,10+(19*($C83-1)),MAX(0,N$3-YEAR($I83)))/100)) -> 0 | O83: =IF($J83<DATE(O$3,12,31),1,IF($G83="Physical",0,OFFSET(Project_characteristics!$C$1,10+(19*($C83-1)),MAX(0,O$3-YEAR($I83)))/100)) -> 1 | P83: =IF($J83<DATE(P$3,12,31),1,IF($G83="Physical",0,OFFSET(Project_characteristics!$C$1,10+(19*($C83-1)),MAX(0,P$3-YEAR($I83)))/100)) -> 1
B84: ROBG-576 | C84: 2 | D84: All | E84: 2F1 | F84: All | G84: Financial | H84: 559447.37 | I84: 2018-09-14 | J84: 2021-09-13 | K84: 1287217.012 | M84: =IF($J84<DATE(M$3,12,31),1,IF($G84="Physical",0,OFFSET(Project_characteristics!$C$1,10+(19*($C84-1)),MAX(0,M$3-YEAR($I84)))/100)) -> 0 | N84: =IF($J84<DATE(N$3,12,31),1,IF($G84="Physical",0,OFFSET(Project_characteristics!$C$1,10+(19*($C84-1)),MAX(0,N$3-YEAR($I84)))/100)) -> 1 | O84: =IF($J84<DATE(O$3,12,31),1,IF($G84="Physical",0,OFFSET(Project_characteristics!$C$1,10+(19*($C84-1)),MAX(0,O$3-YEAR($I84)))/100)) -> 1 | P84: =IF($J84<DATE(P$3,12,31),1,IF($G84="Physical",0,OFFSET(Project_characteristics!$C$1,10+(19*($C84-1)),MAX(0,P$3-YEAR($I84)))/100)) -> 1
B85: ROBG-407 | C85: 2 | D85: All | E85: 2F1 | F85: All | G85: Financial | H85: 164132.82 | I85: 2018-07-27 | J85: 2023-01-26 | K85: 1293073.144 | M85: =IF($J85<DATE(M$3,12,31),1,IF($G85="Physical",0,OFFSET(Project_characteristics!$C$1,10+(19*($C85-1)),MAX(0,M$3-YEAR($I85)))/100)) -> 0 | N85: =IF($J85<DATE(N$3,12,31),1,IF($G85="Physical",0,OFFSET(Project_characteristics!$C$1,10+(19*($C85-1)),MAX(0,N$3-YEAR($I85)))/100)) -> 0 | O85: =IF($J85<DATE(O$3,12,31),1,IF($G85="Physical",0,OFFSET(Project_characteristics!$C$1,10+(19*($C85-1)),MAX(0,O$3-YEAR($I85)))/100)) -> 0 | P85: =IF($J85<DATE(P$3,12,31),1,IF($G85="Physical",0,OFFSET(Project_characteristics!$C$1,10+(19*($C85-1)),MAX(0,P$3-YEAR($I85)))/100)) -> 1
B86: ROBG-413 | C86: 2 | D86: All | E86: 2F1 | F86: All | G86: Financial | H86: 616755.24 | I86: 2018-09-12 | J86: 2021-09-11 | K86: 950274.0954 | M86: =IF($J86<DATE(M$3,12,31),1,IF($G86="Physical",0,OFFSET(Project_characteristics!$C$1,10+(19*($C86-1)),MAX(0,M$3-YEAR($I86)))/100)) -> 0 | N86: =IF($J86<DATE(N$3,12,31),1,IF($G86="Physical",0,OFFSET(Project_characteristics!$C$1,10+(19*($C86-1)),MAX(0,N$3-YEAR($I86)))/100)) -> 1 | O86: =IF($J86<DATE(O$3,12,31),1,IF($G86="Physical",0,OFFSET(Project_characteristics!$C$1,10+(19*($C86-1)),MAX(0,O$3-YEAR($I86)))/100)) -> 1 | P86: =IF($J86<DATE(P$3,12,31),1,IF($G86="Physical",0,OFFSET(Project_characteristics!$C$1,10+(19*($C86-1)),MAX(0,P$3-YEAR($I86)))/100)) -> 1
B87: ROBG-128 | C87: 2 | D87: All | E87: 2F1 | F87: All | G87: Financial | H87: 2496296.47 | I87: 2017-03-31 | J87: 2022-01-30 | K87: 5051189.118 | M87: =IF($J87<DATE(M$3,12,31),1,IF($G87="Physical",0,OFFSET(Project_characteristics!$C$1,10+(19*($C87-1)),MAX(0,M$3-YEAR($I87)))/100)) -> 0 | N87: =IF($J87<DATE(N$3,12,31),1,IF($G87="Physical",0,OFFSET(Project_characteristics!$C$1,10+(19*($C87-1)),MAX(0,N$3-YEAR($I87)))/100)) -> 0 | O87: =IF($J87<DATE(O$3,12,31),1,IF($G87="Physical",0,OFFSET(Project_characteristics!$C$1,10+(19*($C87-1)),MAX(0,O$3-YEAR($I87)))/100)) -> 1 | P87: =IF($J87<DATE(P$3,12,31),1,IF($G87="Physical",0,OFFSET(Project_characteristics!$C$1,10+(19*($C87-1)),MAX(0,P$3-YEAR($I87)))/100)) -> 1
B88: ROBG-337 | C88: 2 | D88: All | E88: 2F1 | F88: All | G88: Financial | H88: 791235.28 | I88: 2018-08-07 | J88: 2021-08-06 | K88: 1279472.149 | M88: =IF($J88<DATE(M$3,12,31),1,IF($G88="Physical",0,OFFSET(Project_characteristics!$C$1,10+(19*($C88-1)),MAX(0,M$3-YEAR($I88)))/100)) -> 0 | N88: =IF($J88<DATE(N$3,12,31),1,IF($G88="Physical",0,OFFSET(Project_characteristics!$C$1,10+(19*($C88-1)),MAX(0,N$3-YEAR($I88)))/100)) -> 1 | O88: =IF($J88<DATE(O$3,12,31),1,IF($G88="Physical",0,OFFSET(Project_characteristics!$C$1,10+(19*($C88-1)),MAX(0,O$3-YEAR($I88)))/100)) -> 1 | P88: =IF($J88<DATE(P$3,12,31),1,IF($G88="Physical",0,OFFSET(Project_characteristics!$C$1,10+(19*($C88-1)),MAX(0,P$3-YEAR($I88)))/100)) -> 1
B89: ROBG-424 | C89: 2 | D89: All | E89: 2F1 | F89: All | G89: Financial | H89: 816187.7 | I89: 2018-07-31 | J89: 2023-01-30 | K89: 1234845.158 | M89: =IF($J89<DATE(M$3,12,31),1,IF($G89="Physical",0,OFFSET(Project_characteristics!$C$1,10+(19*($C89-1)),MAX(0,M$3-YEAR($I89)))/100)) -> 0 | N89: =IF($J89<DATE(N$3,12,31),1,IF($G89="Physical",0,OFFSET(Project_characteristics!$C$1,10+(19*($C89-1)),MAX(0,N$3-YEAR($I89)))/100)) -> 0 | O89: =IF($J89<DATE(O$3,12,31),1,IF($G89="Physical",0,OFFSET(Project_characteristics!$C$1,10+(19*($C89-1)),MAX(0,O$3-YEAR($I89)))/100)) -> 0 | P89: =IF($J89<DATE(P$3,12,31),1,IF($G89="Physical",0,OFFSET(Project_characteristics!$C$1,10+(19*($C89-1)),MAX(0,P$3-YEAR($I89)))/100)) -> 1
B90: ROBG-507 | C90: 2 | D90: All | E90: 2F1 | F90: All | G90: Financial | H90: 167935.46 | I90: 2018-06-29 | J90: 2021-06-28 | K90: 343523.0303 | M90: =IF($J90<DATE(M$3,12,31),1,IF($G90="Physical",0,OFFSET(Project_characteristics!$C$1,10+(19*($C90-1)),MAX(0,M$3-YEAR($I90)))/100)) -> 0 | N90: =IF($J90<DATE(N$3,12,31),1,IF($G90="Physical",0,OFFSET(Project_characteristics!$C$1,10+(19*($C90-1)),MAX(0,N$3-YEAR($I90)))/100)) -> 1 | O90: =IF($J90<DATE(O$3,12,31),1,IF($G90="Physical",0,OFFSET(Project_characteristics!$C$1,10+(19*($C90-1)),MAX(0,O$3-YEAR($I90)))/100)) -> 1 | P90: =IF($J90<DATE(P$3,12,31),1,IF($G90="Physical",0,OFFSET(Project_characteristics!$C$1,10+(19*($C90-1)),MAX(0,P$3-YEAR($I90)))/100)) -> 1
B91: ROBG-453 | C91: 2 | D91: All | E91: 2F1 | F91: All | G91: Financial | H91: 662760.92 | I91: 2018-09-12 | J91: 2021-08-11 | K91: 1055854.369 | M91: =IF($J91<DATE(M$3,12,31),1,IF($G91="Physical",0,OFFSET(Project_characteristics!$C$1,10+(19*($C91-1)),MAX(0,M$3-YEAR($I91)))/100)) -> 0 | N91: =IF($J91<DATE(N$3,12,31),1,IF($G91="Physical",0,OFFSET(Project_characteristics!$C$1,10+(19*($C91-1)),MAX(0,N$3-YEAR($I91)))/100)) -> 1 | O91: =IF($J91<DATE(O$3,12,31),1,IF($G91="Physical",0,OFFSET(Project_characteristics!$C$1,10+(19*($C91-1)),MAX(0,O$3-YEAR($I91)))/100)) -> 1 | P91: =IF($J91<DATE(P$3,12,31),1,IF($G91="Physical",0,OFFSET(Project_characteristics!$C$1,10+(19*($C91-1)),MAX(0,P$3-YEAR($I91)))/100)) -> 1
B92: ROBG-423 | C92: 2 | D92: All | E92: 2F1 | F92: All | G92: Financial | H92: 805466.43 | I92: 2018-09-13 | J92: 2021-09-12 | K92: 1221527.905 | M92: =IF($J92<DATE(M$3,12,31),1,IF($G92="Physical",0,OFFSET(Project_characteristics!$C$1,10+(19*($C92-1)),MAX(0,M$3-YEAR($I92)))/100)) -> 0 | N92: =IF($J92<DATE(N$3,12,31),1,IF($G92="Physical",0,OFFSET(Project_characteristics!$C$1,10+(19*($C92-1)),MAX(0,N$3-YEAR($I92)))/100)) -> 1 | O92: =IF($J92<DATE(O$3,12,31),1,IF($G92="Physical",0,OFFSET(Project_characteristics!$C$1,10+(19*($C92-1)),MAX(0,O$3-YEAR($I92)))/100)) -> 1 | P92: =IF($J92<DATE(P$3,12,31),1,IF($G92="Physical",0,OFFSET(Project_characteristics!$C$1,10+(19*($C92-1)),MAX(0,P$3-YEAR($I92)))/100)) -> 1
B93: ROBG-499 | C93: 2 | D93: All | E93: 2F1 | F93: All | G93: Financial | H93: 261897.05 | I93: 2018-12-08 | J93: 2021-10-07 | K93: 415136.1588 | M93: =IF($J93<DATE(M$3,12,31),1,IF($G93="Physical",0,OFFSET(Project_characteristics!$C$1,10+(19*($C93-1)),MAX(0,M$3-YEAR($I93)))/100)) -> 0 | N93: =IF($J93<DATE(N$3,12,31),1,IF($G93="Physical",0,OFFSET(Project_characteristics!$C$1,10+(19*($C93-1)),MAX(0,N$3-YEAR($I93)))/100)) -> 1 | O93: =IF($J93<DATE(O$3,12,31),1,IF($G93="Physical",0,OFFSET(Project_characteristics!$C$1,10+(19*($C93-1)),MAX(0,O$3-YEAR($I93)))/100)) -> 1 | P93: =IF($J93<DATE(P$3,12,31),1,IF($G93="Physical",0,OFFSET(Project_characteristics!$C$1,10+(19*($C93-1)),MAX(0,P$3-YEAR($I93)))/100)) -> 1
B94: ROBG-271 | C94: 2 | D94: All | E94: 2F1 | F94: All | G94: Financial | H94: 135401.38 | I94: 2018-11-28 | J94: 2022-01-27 | K94: 410970.0844 | M94: =IF($J94<DATE(M$3,12,31),1,IF($G94="Physical",0,OFFSET(Project_characteristics!$C$1,10+(19*($C94-1)),MAX(0,M$3-YEAR($I94)))/100)) -> 0 | N94: =IF($J94<DATE(N$3,12,31),1,IF($G94="Physical",0,OFFSET(Project_characteristics!$C$1,10+(19*($C94-1)),MAX(0,N$3-YEAR($I94)))/100)) -> 0 | O94: =IF($J94<DATE(O$3,12,31),1,IF($G94="Physical",0,OFFSET(Project_characteristics!$C$1,10+(19*($C94-1)),MAX(0,O$3-YEAR($I94)))/100)) -> 1 | P94: =IF($J94<DATE(P$3,12,31),1,IF($G94="Physical",0,OFFSET(Project_characteristics!$C$1,10+(19*($C94-1)),MAX(0,P$3-YEAR($I94)))/100)) -> 1
B95: ROBG-366 | C95: 2 | D95: All | E95: 2F1 | F95: All | G95: Financial | H95: 371375.28 | I95: 2018-09-01 | J95: 2021-08-31 | K95: 409941.3728 | M95: =IF($J95<DATE(M$3,12,31),1,IF($G95="Physical",0,OFFSET(Project_characteristics!$C$1,10+(19*($C95-1)),MAX(0,M$3-YEAR($I95)))/100)) -> 0 | N95: =IF($J95<DATE(N$3,12,31),1,IF($G95="Physical",0,OFFSET(Project_characteristics!$C$1,10+(19*($C95-1)),MAX(0,N$3-YEAR($I95)))/100)) -> 1 | O95: =IF($J95<DATE(O$3,12,31),1,IF($G95="Physical",0,OFFSET(Project_characteristics!$C$1,10+(19*($C95-1)),MAX(0,O$3-YEAR($I95)))/100)) -> 1 | P95: =IF($J95<DATE(P$3,12,31),1,IF($G95="Physical",0,OFFSET(Project_characteristics!$C$1,10+(19*($C95-1)),MAX(0,P$3-YEAR($I95)))/100)) -> 1
B96: ROBG-397 | C96: 2 | D96: All | E96: 2F1 | F96: All | G96: Financial | H96: 82953.15 | I96: 2018-09-06 | J96: 2023-10-31 | K96: 1284304.105 | M96: =IF($J96<DATE(M$3,12,31),1,IF($G96="Physical",0,OFFSET(Project_characteristics!$C$1,10+(19*($C96-1)),MAX(0,M$3-YEAR($I96)))/100)) -> 0 | N96: =IF($J96<DATE(N$3,12,31),1,IF($G96="Physical",0,OFFSET(Project_characteristics!$C$1,10+(19*($C96-1)),MAX(0,N$3-YEAR($I96)))/100)) -> 0 | O96: =IF($J96<DATE(O$3,12,31),1,IF($G96="Physical",0,OFFSET(Project_characteristics!$C$1,10+(19*($C96-1)),MAX(0,O$3-YEAR($I96)))/100)) -> 0 | P96: =IF($J96<DATE(P$3,12,31),1,IF($G96="Physical",0,OFFSET(Project_characteristics!$C$1,10+(19*($C96-1)),MAX(0,P$3-YEAR($I96)))/100)) -> 1
B97: ROBG-471 | C97: 2 | D97: All | E97: 2F1 | F97: All | G97: Financial | H97: 386973.88 | I97: 2018-08-30 | J97: 2021-11-29 | K97: 1180906.318 | M97: =IF($J97<DATE(M$3,12,31),1,IF($G97="Physical",0,OFFSET(Project_characteristics!$C$1,10+(19*($C97-1)),MAX(0,M$3-YEAR($I97)))/100)) -> 0 | N97: =IF($J97<DATE(N$3,12,31),1,IF($G97="Physical",0,OFFSET(Project_characteristics!$C$1,10+(19*($C97-1)),MAX(0,N$3-YEAR($I97)))/100)) -> 1 | O97: =IF($J97<DATE(O$3,12,31),1,IF($G97="Physical",0,OFFSET(Project_characteristics!$C$1,10+(19*($C97-1)),MAX(0,O$3-YEAR($I97)))/100)) -> 1 | P97: =IF($J97<DATE(P$3,12,31),1,IF($G97="Physical",0,OFFSET(Project_characteristics!$C$1,10+(19*($C97-1)),MAX(0,P$3-YEAR($I97)))/100)) -> 1
B98: ROBG-528 | C98: 2 | D98: All | E98: 2F1 | F98: All | G98: Financial | H98: 244110.46 | I98: 2018-10-04 | J98: 2021-10-03 | K98: 1275085.09 | M98: =IF($J98<DATE(M$3,12,31),1,IF($G98="Physical",0,OFFSET(Project_characteristics!$C$1,10+(19*($C98-1)),MAX(0,M$3-YEAR($I98)))/100)) -> 0 | N98: =IF($J98<DATE(N$3,12,31),1,IF($G98="Physical",0,OFFSET(Project_characteristics!$C$1,10+(19*($C98-1)),MAX(0,N$3-YEAR($I98)))/100)) -> 1 | O98: =IF($J98<DATE(O$3,12,31),1,IF($G98="Physical",0,OFFSET(Project_characteristics!$C$1,10+(19*($C98-1)),MAX(0,O$3-YEAR($I98)))/100)) -> 1 | P98: =IF($J98<DATE(P$3,12,31),1,IF($G98="Physical",0,OFFSET(Project_characteristics!$C$1,10+(19*($C98-1)),MAX(0,P$3-YEAR($I98)))/100)) -> 1
B99: ROBG-491 | C99: 2 | D99: All | E99: 2F1 | F99: All | G99: Financial | H99: 337399.36 | I99: 2018-08-08 | J99: 2021-12-31 | K99: 1298227.01 | M99: =IF($J99<DATE(M$3,12,31),1,IF($G99="Physical",0,OFFSET(Project_characteristics!$C$1,10+(19*($C99-1)),MAX(0,M$3-YEAR($I99)))/100)) -> 0 | N99: =IF($J99<DATE(N$3,12,31),1,IF($G99="Physical",0,OFFSET(Project_characteristics!$C$1,10+(19*($C99-1)),MAX(0,N$3-YEAR($I99)))/100)) -> 0 | O99: =IF($J99<DATE(O$3,12,31),1,IF($G99="Physical",0,OFFSET(Project_characteristics!$C$1,10+(19*($C99-1)),MAX(0,O$3-YEAR($I99)))/100)) -> 1 | P99: =IF($J99<DATE(P$3,12,31),1,IF($G99="Physical",0,OFFSET(Project_characteristics!$C$1,10+(19*($C99-1)),MAX(0,P$3-YEAR($I99)))/100)) -> 1
B100: ROBG-134 | C100: 2 | D100: All | E100: 2F1 | F100: All | G100: Financial | H100: 1166715.5 | I100: 2017-05-20 | J100: 2021-12-19 | K100: 2771960.826 | M100: =IF($J100<DATE(M$3,12,31),1,IF($G100="Physical",0,OFFSET(Project_characteristics!$C$1,10+(19*($C100-1)),MAX(0,M$3-YEAR($I100)))/100)) -> 0 | N100: =IF($J100<DATE(N$3,12,31),1,IF($G100="Physical",0,OFFSET(Project_characteristics!$C$1,10+(19*($C100-1)),MAX(0,N$3-YEAR($I100)))/100)) -> 1 | O100: =IF($J100<DATE(O$3,12,31),1,IF($G100="Physical",0,OFFSET(Project_characteristics!$C$1,10+(19*($C100-1)),MAX(0,O$3-YEAR($I100)))/100)) -> 1 | P100: =IF($J100<DATE(P$3,12,31),1,IF($G100="Physical",0,OFFSET(Project_characteristics!$C$1,10+(19*($C100-1)),MAX(0,P$3-YEAR($I100)))/100)) -> 1
B101: ROBG-568 | C101: 2 | D101: All | E101: 2F1 | F101: All | G101: Financial | H101: 139622.47 | I101: 2018-09-13 | J101: 2022-09-08 | K101: 1284384.232 | M101: =IF($J101<DATE(M$3,12,31),1,IF($G101="Physical",0,OFFSET(Project_characteristics!$C$1,10+(19*($C101-1)),MAX(0,M$3-YEAR($I101)))/100)) -> 0 | N101: =IF($J101<DATE(N$3,12,31),1,IF($G101="Physical",0,OFFSET(Project_characteristics!$C$1,10+(19*($C101-1)),MAX(0,N$3-YEAR($I101)))/100)) -> 0 | O101: =IF($J101<DATE(O$3,12,31),1,IF($G101="Physical",0,OFFSET(Project_characteristics!$C$1,10+(19*($C101-1)),MAX(0,O$3-YEAR($I101)))/100)) -> 1 | P101: =IF($J101<DATE(P$3,12,31),1,IF($G101="Physical",0,OFFSET(Project_characteristics!$C$1,10+(19*($C101-1)),MAX(0,P$3-YEAR($I101)))/100)) -> 1
B102: ROBG-302 | C102: 2 | D102: All | E102: 2F1 | F102: All | G102: Financial | H102: 380565.29 | I102: 2019-01-12 | J102: 2023-01-11 | K102: 1298225.859 | M102: =IF($J102<DATE(M$3,12,31),1,IF($G102="Physical",0,OFFSET(Project_characteristics!$C$1,10+(19*($C102-1)),MAX(0,M$3-YEAR($I102)))/100)) -> 0 | N102: =IF($J102<DATE(N$3,12,31),1,IF($G102="Physical",0,OFFSET(Project_characteristics!$C$1,10+(19*($C102-1)),MAX(0,N$3-YEAR($I102)))/100)) -> 0 | O102: =IF($J102<DATE(O$3,12,31),1,IF($G102="Physical",0,OFFSET(Project_characteristics!$C$1,10+(19*($C102-1)),MAX(0,O$3-YEAR($I102)))/100)) -> 0 | P102: =IF($J102<DATE(P$3,12,31),1,IF($G102="Physical",0,OFFSET(Project_characteristics!$C$1,10+(19*($C102-1)),MAX(0,P$3-YEAR($I102)))/100)) -> 1
B103: ROBG-290 | C103: 2 | D103: All | E103: 2F1 | F103: All | G103: Financial | H103: 214306.56 | I103: 2018-10-10 | J103: 2021-10-09 | K103: 420652.5259 | M103: =IF($J103<DATE(M$3,12,31),1,IF($G103="Physical",0,OFFSET(Project_characteristics!$C$1,10+(19*($C103-1)),MAX(0,M$3-YEAR($I103)))/100)) -> 0 | N103: =IF($J103<DATE(N$3,12,31),1,IF($G103="Physical",0,OFFSET(Project_characteristics!$C$1,10+(19*($C103-1)),MAX(0,N$3-YEAR($I103)))/100)) -> 1 | O103: =IF($J103<DATE(O$3,12,31),1,IF($G103="Physical",0,OFFSET(Project_characteristics!$C$1,10+(19*($C103-1)),MAX(0,O$3-YEAR($I103)))/100)) -> 1 | P103: =IF($J103<DATE(P$3,12,31),1,IF($G103="Physical",0,OFFSET(Project_characteristics!$C$1,10+(19*($C103-1)),MAX(0,P$3-YEAR($I103)))/100)) -> 1
B104: ROBG-481 | C104: 3 | D104: All | E104: 3F1 | F104: All | G104: Financial | H104: 444228.25 | I104: 2018-09-06 | J104: 2021-09-05 | K104: 810926.8233 | M104: =IF($J104<DATE(M$3,12,31),1,IF($G104="Physical",0,OFFSET(Project_characteristics!$C$1,10+(19*($C104-1)),MAX(0,M$3-YEAR($I104)))/100)) -> 0 | N104: =IF($J104<DATE(N$3,12,31),1,IF($G104="Physical",0,OFFSET(Project_characteristics!$C$1,10+(19*($C104-1)),MAX(0,N$3-YEAR($I104)))/100)) -> 1 | O104: =IF($J104<DATE(O$3,12,31),1,IF($G104="Physical",0,OFFSET(Project_characteristics!$C$1,10+(19*($C104-1)),MAX(0,O$3-YEAR($I104)))/100)) -> 1 | P104: =IF($J104<DATE(P$3,12,31),1,IF($G104="Physical",0,OFFSET(Project_characteristics!$C$1,10+(19*($C104-1)),MAX(0,P$3-YEAR($I104)))/100)) -> 1
B105: ROBG-416 | C105: 3 | D105: All | E105: 3F1 | F105: All | G105: Financial | H105: 758167.52 | I105: 2018-09-13 | J105: 2021-09-12 | K105: 800128.3591 | M105: =IF($J105<DATE(M$3,12,31),1,IF($G105="Physical",0,OFFSET(Project_characteristics!$C$1,10+(19*($C105-1)),MAX(0,M$3-YEAR($I105)))/100)) -> 0 | N105: =IF($J105<DATE(N$3,12,31),1,IF($G105="Physical",0,OFFSET(Project_characteristics!$C$1,10+(19*($C105-1)),MAX(0,N$3-YEAR($I105)))/100)) -> 1 | O105: =IF($J105<DATE(O$3,12,31),1,IF($G105="Physical",0,OFFSET(Project_characteristics!$C$1,10+(19*($C105-1)),MAX(0,O$3-YEAR($I105)))/100)) -> 1 | P105: =IF($J105<DATE(P$3,12,31),1,IF($G105="Physical",0,OFFSET(Project_characteristics!$C$1,10+(19*($C105-1)),MAX(0,P$3-YEAR($I105)))/100)) -> 1
B106: ROBG-137 | C106: 3 | D106: All | E106: 3F1 | F106: All | G106: Financial | H106: 3104047.84 | I106: 2017-03-17 | J106: 2022-03-16 | K106: 3290083.173 | M106: =IF($J106<DATE(M$3,12,31),1,IF($G106="Physical",0,OFFSET(Project_characteristics!$C$1,10+(19*($C106-1)),MAX(0,M$3-YEAR($I106)))/100)) -> 0 | N106: =IF($J106<DATE(N$3,12,31),1,IF($G106="Physical",0,OFFSET(Project_characteristics!$C$1,10+(19*($C106-1)),MAX(0,N$3-YEAR($I106)))/100)) -> 0 | O106: =IF($J106<DATE(O$3,12,31),1,IF($G106="Physical",0,OFFSET(Project_characteristics!$C$1,10+(19*($C106-1)),MAX(0,O$3-YEAR($I106)))/100)) -> 1 | P106: =IF($J106<DATE(P$3,12,31),1,IF($G106="Physical",0,OFFSET(Project_characteristics!$C$1,10+(19*($C106-1)),MAX(0,P$3-YEAR($I106)))/100)) -> 1
B107: ROBG-135 | C107: 3 | D107: All | E107: 3F1 | F107: All | G107: Financial | H107: 267479.85 | I107: 2017-03-30 | J107: 2022-03-29 | K107: 4319994.304 | M107: =IF($J107<DATE(M$3,12,31),1,IF($G107="Physical",0,OFFSET(Project_characteristics!$C$1,10+(19*($C107-1)),MAX(0,M$3-YEAR($I107)))/100)) -> 0 | N107: =IF($J107<DATE(N$3,12,31),1,IF($G107="Physical",0,OFFSET(Project_characteristics!$C$1,10+(19*($C107-1)),MAX(0,N$3-YEAR($I107)))/100)) -> 0 | O107: =IF($J107<DATE(O$3,12,31),1,IF($G107="Physical",0,OFFSET(Project_characteristics!$C$1,10+(19*($C107-1)),MAX(0,O$3-YEAR($I107)))/100)) -> 1 | P107: =IF($J107<DATE(P$3,12,31),1,IF($G107="Physical",0,OFFSET(Project_characteristics!$C$1,10+(19*($C107-1)),MAX(0,P$3-YEAR($I107)))/100)) -> 1
B108: ROBG-417 | C108: 3 | D108: All | E108: 3F1 | F108: All | G108: Financial | H108: 694920.24 | I108: 2018-07-31 | J108: 2021-07-30 | K108: 708630.0529 | M108: =IF($J108<DATE(M$3,12,31),1,IF($G108="Physical",0,OFFSET(Project_characteristics!$C$1,10+(19*($C108-1)),MAX(0,M$3-YEAR($I108)))/100)) -> 0 | N108: =IF($J108<DATE(N$3,12,31),1,IF($G108="Physical",0,OFFSET(Project_characteristics!$C$1,10+(19*($C108-1)),MAX(0,N$3-YEAR($I108)))/100)) -> 1 | O108: =IF($J108<DATE(O$3,12,31),1,IF($G108="Physical",0,OFFSET(Project_characteristics!$C$1,10+(19*($C108-1)),MAX(0,O$3-YEAR($I108)))/100)) -> 1 | P108: =IF($J108<DATE(P$3,12,31),1,IF($G108="Physical",0,OFFSET(Project_characteristics!$C$1,10+(19*($C108-1)),MAX(0,P$3-YEAR($I108)))/100)) -> 1
B109: ROBG-461 | C109: 3 | D109: All | E109: 3F1 | F109: All | G109: Financial | H109: 265554.68 | I109: 2019-09-17 | J109: 2021-07-31 | K109: 297704.4722 | M109: =IF($J109<DATE(M$3,12,31),1,IF($G109="Physical",0,OFFSET(Project_characteristics!$C$1,10+(19*($C109-1)),MAX(0,M$3-YEAR($I109)))/100)) -> 0 | N109: =IF($J109<DATE(N$3,12,31),1,IF($G109="Physical",0,OFFSET(Project_characteristics!$C$1,10+(19*($C109-1)),MAX(0,N$3-YEAR($I109)))/100)) -> 1 | O109: =IF($J109<DATE(O$3,12,31),1,IF($G109="Physical",0,OFFSET(Project_characteristics!$C$1,10+(19*($C109-1)),MAX(0,O$3-YEAR($I109)))/100)) -> 1 | P109: =IF($J109<DATE(P$3,12,31),1,IF($G109="Physical",0,OFFSET(Project_characteristics!$C$1,10+(19*($C109-1)),MAX(0,P$3-YEAR($I109)))/100)) -> 1
B110: ROBG-448 | C110: 3 | D110: All | E110: 3F1 | F110: All | G110: Financial | H110: 230538.35 | I110: 2019-12-10 | J110: 2021-07-09 | K110: 237686.4694 | M110: =IF($J110<DATE(M$3,12,31),1,IF($G110="Physical",0,OFFSET(Project_characteristics!$C$1,10+(19*($C110-1)),MAX(0,M$3-YEAR($I110)))/100)) -> 0 | N110: =IF($J110<DATE(N$3,12,31),1,IF($G110="Physical",0,OFFSET(Project_characteristics!$C$1,10+(19*($C110-1)),MAX(0,N$3-YEAR($I110)))/100)) -> 1 | O110: =IF($J110<DATE(O$3,12,31),1,IF($G110="Physical",0,OFFSET(Project_characteristics!$C$1,10+(19*($C110-1)),MAX(0,O$3-YEAR($I110)))/100)) -> 1 | P110: =IF($J110<DATE(P$3,12,31),1,IF($G110="Physical",0,OFFSET(Project_characteristics!$C$1,10+(19*($C110-1)),MAX(0,P$3-YEAR($I110)))/100)) -> 1
B111: ROBG-244 | C111: 3 | D111: All | E111: 3F1 | F111: All | G111: Financial | H111: 83743.09 | I111: 2018-08-25 | J111: 2021-10-24 | K111: 782109.85 | M111: =IF($J111<DATE(M$3,12,31),1,IF($G111="Physical",0,OFFSET(Project_characteristics!$C$1,10+(19*($C111-1)),MAX(0,M$3-YEAR($I111)))/100)) -> 0 | N111: =IF($J111<DATE(N$3,12,31),1,IF($G111="Physical",0,OFFSET(Project_characteristics!$C$1,10+(19*($C111-1)),MAX(0,N$3-YEAR($I111)))/100)) -> 1 | O111: =IF($J111<DATE(O$3,12,31),1,IF($G111="Physical",0,OFFSET(Project_characteristics!$C$1,10+(19*($C111-1)),MAX(0,O$3-YEAR($I111)))/100)) -> 1 | P111: =IF($J111<DATE(P$3,12,31),1,IF($G111="Physical",0,OFFSET(Project_characteristics!$C$1,10+(19*($C111-1)),MAX(0,P$3-YEAR($I111)))/100)) -> 1
B112: ROBG-351 | C112: 3 | D112: All | E112: 3F1 | F112: All | G112: Financial | H112: 228755.93 | I112: 2018-05-16 | J112: 2021-11-15 | K112: 861425.6769 | M112: =IF($J112<DATE(M$3,12,31),1,IF($G112="Physical",0,OFFSET(Project_characteristics!$C$1,10+(19*($C112-1)),MAX(0,M$3-YEAR($I112)))/100)) -> 0 | N112: =IF($J112<DATE(N$3,12,31),1,IF($G112="Physical",0,OFFSET(Project_characteristics!$C$1,10+(19*($C112-1)),MAX(0,N$3-YEAR($I112)))/100)) -> 1 | O112: =IF($J112<DATE(O$3,12,31),1,IF($G112="Physical",0,OFFSET(Project_characteristics!$C$1,10+(19*($C112-1)),MAX(0,O$3-YEAR($I112)))/100)) -> 1 | P112: =IF($J112<DATE(P$3,12,31),1,IF($G112="Physical",0,OFFSET(Project_characteristics!$C$1,10+(19*($C112-1)),MAX(0,P$3-YEAR($I112)))/100)) -> 1
B113: ROBG-409 | C113: 3 | D113: All | E113: 3F1 | F113: All | G113: Financial | H113: 6442.8 | I113: 2020-07-21 | J113: 2023-07-20 | K113: 804237.1257 | M113: =IF($J113<DATE(M$3,12,31),1,IF($G113="Physical",0,OFFSET(Project_characteristics!$C$1,10+(19*($C113-1)),MAX(0,M$3-YEAR($I113)))/100)) -> 0 | N113: =IF($J113<DATE(N$3,12,31),1,IF($G113="Physical",0,OFFSET(Project_characteristics!$C$1,10+(19*($C113-1)),MAX(0,N$3-YEAR($I113)))/100)) -> 0 | O113: =IF($J113<DATE(O$3,12,31),1,IF($G113="Physical",0,OFFSET(Project_characteristics!$C$1,10+(19*($C113-1)),MAX(0,O$3-YEAR($I113)))/100)) -> 0 | P113: =IF($J113<DATE(P$3,12,31),1,IF($G113="Physical",0,OFFSET(Project_characteristics!$C$1,10+(19*($C113-1)),MAX(0,P$3-YEAR($I113)))/100)) -> 1
B114: ROBG-195 | C114: 3 | D114: All | E114: 3F1 | F114: All | G114: Financial | H114: 428123.25 | I114: 2017-12-22 | J114: 2023-12-21 | K114: 5067777.69 | M114: =IF($J114<DATE(M$3,12,31),1,IF($G114="Physical",0,OFFSET(Project_characteristics!$C$1,10+(19*($C114-1)),MAX(0,M$3-YEAR($I114)))/100)) -> 0 | N114: =IF($J114<DATE(N$3,12,31),1,IF($G114="Physical",0,OFFSET(Project_characteristics!$C$1,10+(19*($C114-1)),MAX(0,N$3-YEAR($I114)))/100)) -> 0 | O114: =IF($J114<DATE(O$3,12,31),1,IF($G114="Physical",0,OFFSET(Project_characteristics!$C$1,10+(19*($C114-1)),MAX(0,O$3-YEAR($I114)))/100)) -> 0 | P114: =IF($J114<DATE(P$3,12,31),1,IF($G114="Physical",0,OFFSET(Project_characteristics!$C$1,10+(19*($C114-1)),MAX(0,P$3-YEAR($I114)))/100)) -> 1
B115: ROBG-415 | C115: 3 | D115: All | E115: 3F1 | F115: All | G115: Financial | H115: 141861.64 | I115: 2019-03-13 | J115: 2022-03-12 | K115: 683214.5004 | M115: =IF($J115<DATE(M$3,12,31),1,IF($G115="Physical",0,OFFSET(Project_characteristics!$C$1,10+(19*($C115-1)),MAX(0,M$3-YEAR($I115)))/100)) -> 0 | N115: =IF($J115<DATE(N$3,12,31),1,IF($G115="Physical",0,OFFSET(Project_characteristics!$C$1,10+(19*($C115-1)),MAX(0,N$3-YEAR($I115)))/100)) -> 0 | O115: =IF($J115<DATE(O$3,12,31),1,IF($G115="Physical",0,OFFSET(Project_characteristics!$C$1,10+(19*($C115-1)),MAX(0,O$3-YEAR($I115)))/100)) -> 1 | P115: =IF($J115<DATE(P$3,12,31),1,IF($G115="Physical",0,OFFSET(Project_characteristics!$C$1,10+(19*($C115-1)),MAX(0,P$3-YEAR($I115)))/100)) -> 1
B116: ROBG-427 | C116: 3 | D116: All | E116: 3F1 | F116: All | G116: Financial | H116: 28168.13 | I116: 2020-05-26 | J116: 2023-05-25 | K116: 848780.0436 | M116: =IF($J116<DATE(M$3,12,31),1,IF($G116="Physical",0,OFFSET(Project_characteristics!$C$1,10+(19*($C116-1)),MAX(0,M$3-YEAR($I116)))/100)) -> 0 | N116: =IF($J116<DATE(N$3,12,31),1,IF($G116="Physical",0,OFFSET(Project_characteristics!$C$1,10+(19*($C116-1)),MAX(0,N$3-YEAR($I116)))/100)) -> 0 | O116: =IF($J116<DATE(O$3,12,31),1,IF($G116="Physical",0,OFFSET(Project_characteristics!$C$1,10+(19*($C116-1)),MAX(0,O$3-YEAR($I116)))/100)) -> 0 | P116: =IF($J116<DATE(P$3,12,31),1,IF($G116="Physical",0,OFFSET(Project_characteristics!$C$1,10+(19*($C116-1)),MAX(0,P$3-YEAR($I116)))/100)) -> 1
B117: ROBG-332 | C117: 3 | D117: All | E117: 3F1 | F117: All | G117: Financial | H117: 324505.83 | I117: 2018-09-12 | J117: 2021-09-11 | K117: 852776.3237 | M117: =IF($J117<DATE(M$3,12,31),1,IF($G117="Physical",0,OFFSET(Project_characteristics!$C$1,10+(19*($C117-1)),MAX(0,M$3-YEAR($I117)))/100)) -> 0 | N117: =IF($J117<DATE(N$3,12,31),1,IF($G117="Physical",0,OFFSET(Project_characteristics!$C$1,10+(19*($C117-1)),MAX(0,N$3-YEAR($I117)))/100)) -> 1 | O117: =IF($J117<DATE(O$3,12,31),1,IF($G117="Physical",0,OFFSET(Project_characteristics!$C$1,10+(19*($C117-1)),MAX(0,O$3-YEAR($I117)))/100)) -> 1 | P117: =IF($J117<DATE(P$3,12,31),1,IF($G117="Physical",0,OFFSET(Project_characteristics!$C$1,10+(19*($C117-1)),MAX(0,P$3-YEAR($I117)))/100)) -> 1
B118: ROBG-481 | C118: 3 | D118: All | E118: 5b.2 | F118: All | G118: Physical | H118: 0 | I118: 2018-09-06 | J118: 2021-09-05 | K118: 7.639128005 | M118: =IF($J118<DATE(M$3,12,31),1,IF($G118="Physical",0,OFFSET(Project_characteristics!$C$1,10+(19*($C118-1)),MAX(0,M$3-YEAR($I118)))/100)) -> 0 | N118: =IF($J118<DATE(N$3,12,31),1,IF($G118="Physical",0,OFFSET(Project_characteristics!$C$1,10+(19*($C118-1)),MAX(0,N$3-YEAR($I118)))/100)) -> 1 | O118: =IF($J118<DATE(O$3,12,31),1,IF($G118="Physical",0,OFFSET(Project_characteristics!$C$1,10+(19*($C118-1)),MAX(0,O$3-YEAR($I118)))/100)) -> 1 | P118: =IF($J118<DATE(P$3,12,31),1,IF($G118="Physical",0,OFFSET(Project_characteristics!$C$1,10+(19*($C118-1)),MAX(0,P$3-YEAR($I118)))/100)) -> 1
B119: ROBG-416 | C119: 3 | D119: All | E119: 5b.2 | F119: All | G119: Physical | H119: 0 | I119: 2018-09-13 | J119: 2021-09-12 | K119: 0.8487920005 | M119: =IF($J119<DATE(M$3,12,31),1,IF($G119="Physical",0,OFFSET(Project_characteristics!$C$1,10+(19*($C119-1)),MAX(0,M$3-YEAR($I119)))/100)) -> 0 | N119: =IF($J119<DATE(N$3,12,31),1,IF($G119="Physical",0,OFFSET(Project_characteristics!$C$1,10+(19*($C119-1)),MAX(0,N$3-YEAR($I119)))/100)) -> 1 | O119: =IF($J119<DATE(O$3,12,31),1,IF($G119="Physical",0,OFFSET(Project_characteristics!$C$1,10+(19*($C119-1)),MAX(0,O$3-YEAR($I119)))/100)) -> 1 | P119: =IF($J119<DATE(P$3,12,31),1,IF($G119="Physical",0,OFFSET(Project_characteristics!$C$1,10+(19*($C119-1)),MAX(0,P$3-YEAR($I119)))/100)) -> 1
B120: ROBG-137 | C120: 3 | D120: All | E120: 5b.2 | F120: All | G120: Physical | H120: 0 | I120: 2017-03-17 | J120: 2022-03-16 | K120: 0.8487920005 | M120: =IF($J120<DATE(M$3,12,31),1,IF($G120="Physical",0,OFFSET(Project_characteristics!$C$1,10+(19*($C120-1)),MAX(0,M$3-YEAR($I120)))/100)) -> 0 | N120: =IF($J120<DATE(N$3,12,31),1,IF($G120="Physical",0,OFFSET(Project_characteristics!$C$1,10+(19*($C120-1)),MAX(0,N$3-YEAR($I120)))/100)) -> 0 | O120: =IF($J120<DATE(O$3,12,31),1,IF($G120="Physical",0,OFFSET(Project_characteristics!$C$1,10+(19*($C120-1)),MAX(0,O$3-YEAR($I120)))/100)) -> 1 | P120: =IF($J120<DATE(P$3,12,31),1,IF($G120="Physical",0,OFFSET(Project_characteristics!$C$1,10+(19*($C120-1)),MAX(0,P$3-YEAR($I120)))/100)) -> 1
B121: ROBG-135 | C121: 3 | D121: All | E121: 5b.2 | F121: All | G121: Physical | H121: 0 | I121: 2017-03-30 | J121: 2022-03-29 | K121: 0.8487920005 | M121: =IF($J121<DATE(M$3,12,31),1,IF($G121="Physical",0,OFFSET(Project_characteristics!$C$1,10+(19*($C121-1)),MAX(0,M$3-YEAR($I121)))/100)) -> 0 | N121: =IF($J121<DATE(N$3,12,31),1,IF($G121="Physical",0,OFFSET(Project_characteristics!$C$1,10+(19*($C121-1)),MAX(0,N$3-YEAR($I121)))/100)) -> 0 | O121: =IF($J121<DATE(O$3,12,31),1,IF($G121="Physical",0,OFFSET(Project_characteristics!$C$1,10+(19*($C121-1)),MAX(0,O$3-YEAR($I121)))/100)) -> 1 | P121: =IF($J121<DATE(P$3,12,31),1,IF($G121="Physical",0,OFFSET(Project_characteristics!$C$1,10+(19*($C121-1)),MAX(0,P$3-YEAR($I121)))/100)) -> 1
B122: ROBG-417 | C122: 3 | D122: All | E122: 5b.2 | F122: All | G122: Physical | H122: 0 | I122: 2018-07-31 | J122: 2021-07-30 | K122: 0.8487920005 | M122: =IF($J122<DATE(M$3,12,31),1,IF($G122="Physical",0,OFFSET(Project_characteristics!$C$1,10+(19*($C122-1)),MAX(0,M$3-YEAR($I122)))/100)) -> 0 | N122: =IF($J122<DATE(N$3,12,31),1,IF($G122="Physical",0,OFFSET(Project_characteristics!$C$1,10+(19*($C122-1)),MAX(0,N$3-YEAR($I122)))/100)) -> 1 | O122: =IF($J122<DATE(O$3,12,31),1,IF($G122="Physical",0,OFFSET(Project_characteristics!$C$1,10+(19*($C122-1)),MAX(0,O$3-YEAR($I122)))/100)) -> 1 | P122: =IF($J122<DATE(P$3,12,31),1,IF($G122="Physical",0,OFFSET(Project_characteristics!$C$1,10+(19*($C122-1)),MAX(0,P$3-YEAR($I122)))/100)) -> 1
B123: ROBG-244 | C123: 3 | D123: All | E123: 5b.2 | F123: All | G123: Physical | H123: 4 | I123: 2018-08-25 | J123: 2021-10-24 | K123: 4.480620155 | M123: =IF($J123<DATE(M$3,12,31),1,IF($G123="Physical",0,OFFSET(Project_characteristics!$C$1,10+(19*($C123-1)),MAX(0,M$3-YEAR($I123)))/100)) -> 0 | N123: =IF($J123<DATE(N$3,12,31),1,IF($G123="Physical",0,OFFSET(Project_characteristics!$C$1,10+(19*($C123-1)),MAX(0,N$3-YEAR($I123)))/100)) -> 1 | O123: =IF($J123<DATE(O$3,12,31),1,IF($G123="Physical",0,OFFSET(Project_characteristics!$C$1,10+(19*($C123-1)),MAX(0,O$3-YEAR($I123)))/100)) -> 1 | P123: =IF($J123<DATE(P$3,12,31),1,IF($G123="Physical",0,OFFSET(Project_characteristics!$C$1,10+(19*($C123-1)),MAX(0,P$3-YEAR($I123)))/100)) -> 1
B124: ROBG-351 | C124: 3 | D124: All | E124: 5b.2 | F124: All | G124: Physical | H124: 3 | I124: 2018-05-16 | J124: 2021-11-15 | K124: 3.386584289 | M124: =IF($J124<DATE(M$3,12,31),1,IF($G124="Physical",0,OFFSET(Project_characteristics!$C$1,10+(19*($C124-1)),MAX(0,M$3-YEAR($I124)))/100)) -> 0 | N124: =IF($J124<DATE(N$3,12,31),1,IF($G124="Physical",0,OFFSET(Project_characteristics!$C$1,10+(19*($C124-1)),MAX(0,N$3-YEAR($I124)))/100)) -> 1 | O124: =IF($J124<DATE(O$3,12,31),1,IF($G124="Physical",0,OFFSET(Project_characteristics!$C$1,10+(19*($C124-1)),MAX(0,O$3-YEAR($I124)))/100)) -> 1 | P124: =IF($J124<DATE(P$3,12,31),1,IF($G124="Physical",0,OFFSET(Project_characteristics!$C$1,10+(19*($C124-1)),MAX(0,P$3-YEAR($I124)))/100)) -> 1
B125: ROBG-409 | C125: 3 | D125: All | E125: 5b.2 | F125: All | G125: Physical | H125: 0 | I125: 2020-07-21 | J125: 2023-07-20 | K125: 3.395168002 | M125: =IF($J125<DATE(M$3,12,31),1,IF($G125="Physical",0,OFFSET(Project_characteristics!$C$1,10+(19*($C125-1)),MAX(0,M$3-YEAR($I125)))/100)) -> 0 | N125: =IF($J125<DATE(N$3,12,31),1,IF($G125="Physical",0,OFFSET(Project_characteristics!$C$1,10+(19*($C125-1)),MAX(0,N$3-YEAR($I125)))/100)) -> 0 | O125: =IF($J125<DATE(O$3,12,31),1,IF($G125="Physical",0,OFFSET(Project_characteristics!$C$1,10+(19*($C125-1)),MAX(0,O$3-YEAR($I125)))/100)) -> 0 | P125: =IF($J125<DATE(P$3,12,31),1,IF($G125="Physical",0,OFFSET(Project_characteristics!$C$1,10+(19*($C125-1)),MAX(0,P$3-YEAR($I125)))/100)) -> 1
B126: ROBG-195 | C126: 3 | D126: All | E126: 5b.2 | F126: All | G126: Physical | H126: 0 | I126: 2017-12-22 | J126: 2023-12-21 | K126: 0.8487920005 | M126: =IF($J126<DATE(M$3,12,31),1,IF($G126="Physical",0,OFFSET(Project_characteristics!$C$1,10+(19*($C126-1)),MAX(0,M$3-YEAR($I126)))/100)) -> 0 | N126: =IF($J126<DATE(N$3,12,31),1,IF($G126="Physical",0,OFFSET(Project_characteristics!$C$1,10+(19*($C126-1)),MAX(0,N$3-YEAR($I126)))/100)) -> 0 | O126: =IF($J126<DATE(O$3,12,31),1,IF($G126="Physical",0,OFFSET(Project_characteristics!$C$1,10+(19*($C126-1)),MAX(0,O$3-YEAR($I126)))/100)) -> 0 | P126: =IF($J126<DATE(P$3,12,31),1,IF($G126="Physical",0,OFFSET(Project_characteristics!$C$1,10+(19*($C126-1)),MAX(0,P$3-YEAR($I126)))/100)) -> 1
B127: ROBG-415 | C127: 3 | D127: All | E127: 5b.2 | F127: All | G127: Physical | H127: 0 | I127: 2019-03-13 | J127: 2022-03-12 | K127: 9.336712006 | M127: =IF($J127<DATE(M$3,12,31),1,IF($G127="Physical",0,OFFSET(Project_characteristics!$C$1,10+(19*($C127-1)),MAX(0,M$3-YEAR($I127)))/100)) -> 0 | N127: =IF($J127<DATE(N$3,12,31),1,IF($G127="Physical",0,OFFSET(Project_characteristics!$C$1,10+(19*($C127-1)),MAX(0,N$3-YEAR($I127)))/100)) -> 0 | O127: =IF($J127<DATE(O$3,12,31),1,IF($G127="Physical",0,OFFSET(Project_characteristics!$C$1,10+(19*($C127-1)),MAX(0,O$3-YEAR($I127)))/100)) -> 1 | P127: =IF($J127<DATE(P$3,12,31),1,IF($G127="Physical",0,OFFSET(Project_characteristics!$C$1,10+(19*($C127-1)),MAX(0,P$3-YEAR($I127)))/100)) -> 1
B128: ROBG-427 | C128: 3 | D128: All | E128: 5b.2 | F128: All | G128: Physical | H128: 0 | I128: 2020-05-26 | J128: 2023-05-25 | K128: 3.395168002 | M128: =IF($J128<DATE(M$3,12,31),1,IF($G128="Physical",0,OFFSET(Project_characteristics!$C$1,10+(19*($C128-1)),MAX(0,M$3-YEAR($I128)))/100)) -> 0 | N128: =IF($J128<DATE(N$3,12,31),1,IF($G128="Physical",0,OFFSET(Project_characteristics!$C$1,10+(19*($C128-1)),MAX(0,N$3-YEAR($I128)))/100)) -> 0 | O128: =IF($J128<DATE(O$3,12,31),1,IF($G128="Physical",0,OFFSET(Project_characteristics!$C$1,10+(19*($C128-1)),MAX(0,O$3-YEAR($I128)))/100)) -> 0 | P128: =IF($J128<DATE(P$3,12,31),1,IF($G128="Physical",0,OFFSET(Project_characteristics!$C$1,10+(19*($C128-1)),MAX(0,P$3-YEAR($I128)))/100)) -> 1
B129: ROBG-332 | C129: 3 | D129: All | E129: 5b.2 | F129: All | G129: Physical | H129: 0 | I129: 2018-09-12 | J129: 2021-09-11 | K129: 4.243960003 | M129: =IF($J129<DATE(M$3,12,31),1,IF($G129="Physical",0,OFFSET(Project_characteristics!$C$1,10+(19*($C129-1)),MAX(0,M$3-YEAR($I129)))/100)) -> 0 | N129: =IF($J129<DATE(N$3,12,31),1,IF($G129="Physical",0,OFFSET(Project_characteristics!$C$1,10+(19*($C129-1)),MAX(0,N$3-YEAR($I129)))/100)) -> 1 | O129: =IF($J129<DATE(O$3,12,31),1,IF($G129="Physical",0,OFFSET(Project_characteristics!$C$1,10+(19*($C129-1)),MAX(0,O$3-YEAR($I129)))/100)) -> 1 | P129: =IF($J129<DATE(P$3,12,31),1,IF($G129="Physical",0,OFFSET(Project_characteristics!$C$1,10+(19*($C129-1)),MAX(0,P$3-YEAR($I129)))/100)) -> 1
B130: ROBG-175 | C130: 4 | D130: All | E130: 8e.1 | F130: All | G130: Physical | H130: 24 | I130: 2018-04-17 | J130: 2022-04-16 | K130: 30.15490534 | M130: =IF($J130<DATE(M$3,12,31),1,IF($G130="Physical",0,OFFSET(Project_characteristics!$C$1,10+(19*($C130-1)),MAX(0,M$3-YEAR($I130)))/100)) -> 0 | N130: =IF($J130<DATE(N$3,12,31),1,IF($G130="Physical",0,OFFSET(Project_characteristics!$C$1,10+(19*($C130-1)),MAX(0,N$3-YEAR($I130)))/100)) -> 0 | O130: =IF($J130<DATE(O$3,12,31),1,IF($G130="Physical",0,OFFSET(Project_characteristics!$C$1,10+(19*($C130-1)),MAX(0,O$3-YEAR($I130)))/100)) -> 1 | P130: =IF($J130<DATE(P$3,12,31),1,IF($G130="Physical",0,OFFSET(Project_characteristics!$C$1,10+(19*($C130-1)),MAX(0,P$3-YEAR($I130)))/100)) -> 1
B131: ROBG-175 | C131: 4 | D131: All | E131: 4F1 | F131: All | G131: Financial | H131: 429012.47 | I131: 2018-04-17 | J131: 2022-04-16 | K131: 502166.799 | M131: =IF($J131<DATE(M$3,12,31),1,IF($G131="Physical",0,OFFSET(Project_characteristics!$C$1,10+(19*($C131-1)),MAX(0,M$3-YEAR($I131)))/100)) -> 0 | N131: =IF($J131<DATE(N$3,12,31),1,IF($G131="Physical",0,OFFSET(Project_characteristics!$C$1,10+(19*($C131-1)),MAX(0,N$3-YEAR($I131)))/100)) -> 0 | O131: =IF($J131<DATE(O$3,12,31),1,IF($G131="Physical",0,OFFSET(Project_characteristics!$C$1,10+(19*($C131-1)),MAX(0,O$3-YEAR($I131)))/100)) -> 1 | P131: =IF($J131<DATE(P$3,12,31),1,IF($G131="Physical",0,OFFSET(Project_characteristics!$C$1,10+(19*($C131-1)),MAX(0,P$3-YEAR($I131)))/100)) -> 1
B132: ROBG-278 | C132: 5 | D132: All | E132: 11b.1 | F132: All | G132: Physical | H132: 1 | I132: 2019-02-02 | J132: 2021-08-01 | K132: 1.045924225 | M132: =IF($J132<DATE(M$3,12,31),1,IF($G132="Physical",0,OFFSET(Project_characteristics!$C$1,10+(19*($C132-1)),MAX(0,M$3-YEAR($I132)))/100)) -> 0 | N132: =IF($J132<DATE(N$3,12,31),1,IF($G132="Physical",0,OFFSET(Project_characteristics!$C$1,10+(19*($C132-1)),MAX(0,N$3-YEAR($I132)))/100)) -> 1 | O132: =IF($J132<DATE(O$3,12,31),1,IF($G132="Physical",0,OFFSET(Project_characteristics!$C$1,10+(19*($C132-1)),MAX(0,O$3-YEAR($I132)))/100)) -> 1 | P132: =IF($J132<DATE(P$3,12,31),1,IF($G132="Physical",0,OFFSET(Project_characteristics!$C$1,10+(19*($C132-1)),MAX(0,P$3-YEAR($I132)))/100)) -> 1
B133: ROBG-259 | C133: 5 | D133: All | E133: 11b.1 | F133: All | G133: Physical | H133: 0 | I133: 2019-05-17 | J133: 2022-05-16 | K133: 8.487920005 | M133: =IF($J133<DATE(M$3,12,31),1,IF($G133="Physical",0,OFFSET(Project_characteristics!$C$1,10+(19*($C133-1)),MAX(0,M$3-YEAR($I133)))/100)) -> 0 | N133: =IF($J133<DATE(N$3,12,31),1,IF($G133="Physical",0,OFFSET(Project_characteristics!$C$1,10+(19*($C133-1)),MAX(0,N$3-YEAR($I133)))/100)) -> 0 | O133: =IF($J133<DATE(O$3,12,31),1,IF($G133="Physical",0,OFFSET(Project_characteristics!$C$1,10+(19*($C133-1)),MAX(0,O$3-YEAR($I133)))/100)) -> 1 | P133: =IF($J133<DATE(P$3,12,31),1,IF($G133="Physical",0,OFFSET(Project_characteristics!$C$1,10+(19*($C133-1)),MAX(0,P$3-YEAR($I133)))/100)) -> 1
B134: ROBG-139 | C134: 5 | D134: All | E134: 11b.1 | F134: All | G134: Physical | H134: 4 | I134: 2017-04-04 | J134: 2022-08-03 | K134: 5.057142857 | M134: =IF($J134<DATE(M$3,12,31),1,IF($G134="Physical",0,OFFSET(Project_characteristics!$C$1,10+(19*($C134-1)),MAX(0,M$3-YEAR($I134)))/100)) -> 0 | N134: =IF($J134<DATE(N$3,12,31),1,IF($G134="Physical",0,OFFSET(Project_characteristics!$C$1,10+(19*($C134-1)),MAX(0,N$3-YEAR($I134)))/100)) -> 0 | O134: =IF($J134<DATE(O$3,12,31),1,IF($G134="Physical",0,OFFSET(Project_characteristics!$C$1,10+(19*($C134-1)),MAX(0,O$3-YEAR($I134)))/100)) -> 1 | P134: =IF($J134<DATE(P$3,12,31),1,IF($G134="Physical",0,OFFSET(Project_characteristics!$C$1,10+(19*($C134-1)),MAX(0,P$3-YEAR($I134)))/100)) -> 1
B135: ROBG-256 | C135: 5 | D135: All | E135: 11b.1 | F135: All | G135: Physical | H135: 0 | I135: 2020-10-27 | J135: 2022-10-26 | K135: 0.8487920005 | M135: =IF($J135<DATE(M$3,12,31),1,IF($G135="Physical",0,OFFSET(Project_characteristics!$C$1,10+(19*($C135-1)),MAX(0,M$3-YEAR($I135)))/100)) -> 0 | N135: =IF($J135<DATE(N$3,12,31),1,IF($G135="Physical",0,OFFSET(Project_characteristics!$C$1,10+(19*($C135-1)),MAX(0,N$3-YEAR($I135)))/100)) -> 0 | O135: =IF($J135<DATE(O$3,12,31),1,IF($G135="Physical",0,OFFSET(Project_characteristics!$C$1,10+(19*($C135-1)),MAX(0,O$3-YEAR($I135)))/100)) -> 1 | P135: =IF($J135<DATE(P$3,12,31),1,IF($G135="Physical",0,OFFSET(Project_characteristics!$C$1,10+(19*($C135-1)),MAX(0,P$3-YEAR($I135)))/100)) -> 1
B136: ROBG-278 | C136: 5 | D136: All | E136: 5F1 | F136: All | G136: Financial | H136: 458613.27 | I136: 2019-02-02 | J136: 2021-08-01 | K136: 864163.6386 | M136: =IF($J136<DATE(M$3,12,31),1,IF($G136="Physical",0,OFFSET(Project_characteristics!$C$1,10+(19*($C136-1)),MAX(0,M$3-YEAR($I136)))/100)) -> 0 | N136: =IF($J136<DATE(N$3,12,31),1,IF($G136="Physical",0,OFFSET(Project_characteristics!$C$1,10+(19*($C136-1)),MAX(0,N$3-YEAR($I136)))/100)) -> 1 | O136: =IF($J136<DATE(O$3,12,31),1,IF($G136="Physical",0,OFFSET(Project_characteristics!$C$1,10+(19*($C136-1)),MAX(0,O$3-YEAR($I136)))/100)) -> 1 | P136: =IF($J136<DATE(P$3,12,31),1,IF($G136="Physical",0,OFFSET(Project_characteristics!$C$1,10+(19*($C136-1)),MAX(0,P$3-YEAR($I136)))/100)) -> 1
B137: ROBG-259 | C137: 5 | D137: All | E137: 5F1 | F137: All | G137: Financial | H137: 296785.36 | I137: 2019-05-17 | J137: 2022-05-16 | K137: 1158564.19 | M137: =IF($J137<DATE(M$3,12,31),1,IF($G137="Physical",0,OFFSET(Project_characteristics!$C$1,10+(19*($C137-1)),MAX(0,M$3-YEAR($I137)))/100)) -> 0 | N137: =IF($J137<DATE(N$3,12,31),1,IF($G137="Physical",0,OFFSET(Project_characteristics!$C$1,10+(19*($C137-1)),MAX(0,N$3-YEAR($I137)))/100)) -> 0 | O137: =IF($J137<DATE(O$3,12,31),1,IF($G137="Physical",0,OFFSET(Project_characteristics!$C$1,10+(19*($C137-1)),MAX(0,O$3-YEAR($I137)))/100)) -> 1 | P137: =IF($J137<DATE(P$3,12,31),1,IF($G137="Physical",0,OFFSET(Project_characteristics!$C$1,10+(19*($C137-1)),MAX(0,P$3-YEAR($I137)))/100)) -> 1
B138: ROBG-139 | C138: 5 | D138: All | E138: 5F1 | F138: All | G138: Financial | H138: 926804.08 | I138: 2017-04-04 | J138: 2022-08-03 | K138: 1189823.499 | M138: =IF($J138<DATE(M$3,12,31),1,IF($G138="Physical",0,OFFSET(Project_characteristics!$C$1,10+(19*($C138-1)),MAX(0,M$3-YEAR($I138)))/100)) -> 0 | N138: =IF($J138<DATE(N$3,12,31),1,IF($G138="Physical",0,OFFSET(Project_characteristics!$C$1,10+(19*($C138-1)),MAX(0,N$3-YEAR($I138)))/100)) -> 0 | O138: =IF($J138<DATE(O$3,12,31),1,IF($G138="Physical",0,OFFSET(Project_characteristics!$C$1,10+(19*($C138-1)),MAX(0,O$3-YEAR($I138)))/100)) -> 1 | P138: =IF($J138<DATE(P$3,12,31),1,IF($G138="Physical",0,OFFSET(Project_characteristics!$C$1,10+(19*($C138-1)),MAX(0,P$3-YEAR($I138)))/100)) -> 1
B139: ROBG-256 | C139: 5 | D139: All | E139: 5F1 | F139: All | G139: Financial | H139: 1097.34 | I139: 2020-10-27 | J139: 2022-10-26 | K139: 647962.3264 | M139: =IF($J139<DATE(M$3,12,31),1,IF($G139="Physical",0,OFFSET(Project_characteristics!$C$1,10+(19*($C139-1)),MAX(0,M$3-YEAR($I139)))/100)) -> 0 | N139: =IF($J139<DATE(N$3,12,31),1,IF($G139="Physical",0,OFFSET(Project_characteristics!$C$1,10+(19*($C139-1)),MAX(0,N$3-YEAR($I139)))/100)) -> 0 | O139: =IF($J139<DATE(O$3,12,31),1,IF($G139="Physical",0,OFFSET(Project_characteristics!$C$1,10+(19*($C139-1)),MAX(0,O$3-YEAR($I139)))/100)) -> 1 | P139: =IF($J139<DATE(P$3,12,31),1,IF($G139="Physical",0,OFFSET(Project_characteristics!$C$1,10+(19*($C139-1)),MAX(0,P$3-YEAR($I139)))/100)) -> 1

Sheet Achievement_forecast_ongoing
G2: User calibrations | L2: Statistical projections
C4: Characteristics | G4: Year | L4: Year
B5: SMIS_CODE | C5: PA | D5: PI | E5: Indicator | F5: Region | G5: 2020 | H5: 2021 | I5: 2022 | J5: 2024 | L5: 2020 | M5: 2021 | N5: 2022 | O5: 2024
B6: =Achievement_to_date_ongoing!B4 -> ROBG-306 | C6: =IF($B6>0, Achievement_to_date_ongoing!C4, "") -> 1 | D6: =IF($B6>0, Achievement_to_date_ongoing!D4, "") -> All | E6: =IF($B6>0, Achievement_to_date_ongoing!E4, "") -> CO14 | F6: =IF($B6>0, Achievement_to_date_ongoing!F4, "") -> All | G6: 0 | H6: 0 | I6: 10.60990001 | J6: 10.60990001 | L6: =IF($B6>0,Achievement_to_date_ongoing!$K4*Achievement_to_date_ongoing!M4,"") -> 0 | M6: =IF($B6>0,Achievement_to_date_ongoing!$K4*Achievement_to_date_ongoing!N4,"") -> 0 | N6: =IF($B6>0,Achievement_to_date_ongoing!$K4*Achievement_to_date_ongoing!O4,"") -> 10.60990001 | O6: =IF($B6>0,Achievement_to_date_ongoing!$K4*Achievement_to_date_ongoing!P4,"") -> 10.60990001
B7: =Achievement_to_date_ongoing!B5 -> ROBG-442 | C7: =IF($B7>0, Achievement_to_date_ongoing!C5, "") -> 1 | D7: =IF($B7>0, Achievement_to_date_ongoing!D5, "") -> All | E7: =IF($B7>0, Achievement_to_date_ongoing!E5, "") -> CO14 | F7: =IF($B7>0, Achievement_to_date_ongoing!F5, "") -> All | G7: 0 | H7: 0 | I7: 0 | J7: 14.70956537 | L7: =IF($B7>0,Achievement_to_date_ongoing!$K5*Achievement_to_date_ongoing!M5,"") -> 0 | M7: =IF($B7>0,Achievement_to_date_ongoing!$K5*Achievement_to_date_ongoing!N5,"") -> 0 | N7: =IF($B7>0,Achievement_to_date_ongoing!$K5*Achievement_to_date_ongoing!O5,"") -> 0 | O7: =IF($B7>0,Achievement_to_date_ongoing!$K5*Achievement_to_date_ongoing!P5,"") -> 14.70956537
B8: =Achievement_to_date_ongoing!B6 -> ROBG-510 | C8: =IF($B8>0, Achievement_to_date_ongoing!C6, "") -> 1 | D8: =IF($B8>0, Achievement_to_date_ongoing!D6, "") -> All | E8: =IF($B8>0, Achievement_to_date_ongoing!E6, "") -> CO14 | F8: =IF($B8>0, Achievement_to_date_ongoing!F6, "") -> All | G8: 0 | H8: 0 | I8: 13.96262841 | J8: 13.96262841 | L8: =IF($B8>0,Achievement_to_date_ongoing!$K6*Achievement_to_date_ongoing!M6,"") -> 0 | M8: =IF($B8>0,Achievement_to_date_ongoing!$K6*Achievement_to_date_ongoing!N6,"") -> 0 | N8: =IF($B8>0,Achievement_to_date_ongoing!$K6*Achievement_to_date_ongoing!O6,"") -> 13.96262841 | O8: =IF($B8>0,Achievement_to_date_ongoing!$K6*Achievement_to_date_ongoing!P6,"") -> 13.96262841
B9: =Achievement_to_date_ongoing!B7 -> ROBG-418 | C9: =IF($B9>0, Achievement_to_date_ongoing!C7, "") -> 1 | D9: =IF($B9>0, Achievement_to_date_ongoing!D7, "") -> All | E9: =IF($B9>0, Achievement_to_date_ongoing!E7, "") -> CO14 | F9: =IF($B9>0, Achievement_to_date_ongoing!F7, "") -> All | G9: 0 | H9: 2.631255202 | I9: 2.631255202 | J9: 2.631255202 | L9: =IF($B9>0,Achievement_to_date_ongoing!$K7*Achievement_to_date_ongoing!M7,"") -> 0 | M9: =IF($B9>0,Achievement_to_date_ongoing!$K7*Achievement_to_date_ongoing!N7,"") -> 2.631255202 | N9: =IF($B9>0,Achievement_to_date_ongoing!$K7*Achievement_to_date_ongoing!O7,"") -> 2.631255202 | O9: =IF($B9>0,Achievement_to_date_ongoing!$K7*Achievement_to_date_ongoing!P7,"") -> 2.631255202
B10: =Achievement_to_date_ongoing!B8 -> ROBG-432 | C10: =IF($B10>0, Achievement_to_date_ongoing!C8, "") -> 1 | D10: =IF($B10>0, Achievement_to_date_ongoing!D8, "") -> All | E10: =IF($B10>0, Achievement_to_date_ongoing!E8, "") -> CO14 | F10: =IF($B10>0, Achievement_to_date_ongoing!F8, "") -> All | G10: 0 | H10: 0.5448744589 | I10: 0.5448744589 | J10: 0.5448744589 | L10: =IF($B10>0,Achievement_to_date_ongoing!$K8*Achievement_to_date_ongoing!M8,"") -> 0 | M10: =IF($B10>0,Achievement_to_date_ongoing!$K8*Achievement_to_date_ongoing!N8,"") -> 0.5448744589 | N10: =IF($B10>0,Achievement_to_date_ongoing!$K8*Achievement_to_date_ongoing!O8,"") -> 0.5448744589 | O10: =IF($B10>0,Achievement_to_date_ongoing!$K8*Achievement_to_date_ongoing!P8,"") -> 0.5448744589
B11: =Achievement_to_date_ongoing!B9 -> ROBG-383 | C11: =IF($B11>0, Achievement_to_date_ongoing!C9, "") -> 1 | D11: =IF($B11>0, Achievement_to_date_ongoing!D9, "") -> All | E11: =IF($B11>0, Achievement_to_date_ongoing!E9, "") -> CO14 | F11: =IF($B11>0, Achievement_to_date_ongoing!F9, "") -> All | G11: 0 | H11: 0 | I11: 5.610515124 | J11: 5.610515124 | L11: =IF($B11>0,Achievement_to_date_ongoing!$K9*Achievement_to_date_ongoing!M9,"") -> 0 | M11: =IF($B11>0,Achievement_to_date_ongoing!$K9*Achievement_to_date_ongoing!N9,"") -> 0 | N11: =IF($B11>0,Achievement_to_date_ongoing!$K9*Achievement_to_date_ongoing!O9,"") -> 5.610515124 | O11: =IF($B11>0,Achievement_to_date_ongoing!$K9*Achievement_to_date_ongoing!P9,"") -> 5.610515124
B12: =Achievement_to_date_ongoing!B10 -> ROBG-408 | C12: =IF($B12>0, Achievement_to_date_ongoing!C10, "") -> 1 | D12: =IF($B12>0, Achievement_to_date_ongoing!D10, "") -> All | E12: =IF($B12>0, Achievement_to_date_ongoing!E10, "") -> CO14 | F12: =IF($B12>0, Achievement_to_date_ongoing!F10, "") -> All | G12: 0 | H12: 0 | I12: 13.20720353 | J12: 13.20720353 | L12: =IF($B12>0,Achievement_to_date_ongoing!$K10*Achievement_to_date_ongoing!M10,"") -> 0 | M12: =IF($B12>0,Achievement_to_date_ongoing!$K10*Achievement_to_date_ongoing!N10,"") -> 0 | N12: =IF($B12>0,Achievement_to_date_ongoing!$K10*Achievement_to_date_ongoing!O10,"") -> 13.20720353 | O12: =IF($B12>0,Achievement_to_date_ongoing!$K10*Achievement_to_date_ongoing!P10,"") -> 13.20720353
B13: =Achievement_to_date_ongoing!B11 -> ROBG-375 | C13: =IF($B13>0, Achievement_to_date_ongoing!C11, "") -> 1 | D13: =IF($B13>0, Achievement_to_date_ongoing!D11, "") -> All | E13: =IF($B13>0, Achievement_to_date_ongoing!E11, "") -> CO14 | F13: =IF($B13>0, Achievement_to_date_ongoing!F11, "") -> All | G13: 0 | H13: 16.84003329 | I13: 16.84003329 | J13: 16.84003329 | L13: =IF($B13>0,Achievement_to_date_ongoing!$K11*Achievement_to_date_ongoing!M11,"") -> 0 | M13: =IF($B13>0,Achievement_to_date_ongoing!$K11*Achievement_to_date_ongoing!N11,"") -> 16.84003329 | N13: =IF($B13>0,Achievement_to_date_ongoing!$K11*Achievement_to_date_ongoing!O11,"") -> 16.84003329 | O13: =IF($B13>0,Achievement_to_date_ongoing!$K11*Achievement_to_date_ongoing!P11,"") -> 16.84003329
B14: =Achievement_to_date_ongoing!B12 -> ROBG-425 | C14: =IF($B14>0, Achievement_to_date_ongoing!C12, "") -> 1 | D14: =IF($B14>0, Achievement_to_date_ongoing!D12, "") -> All | E14: =IF($B14>0, Achievement_to_date_ongoing!E12, "") -> CO14 | F14: =IF($B14>0, Achievement_to_date_ongoing!F12, "") -> All | G14: 0 | H14: 0 | I14: 9.531934166 | J14: 9.531934166 | L14: =IF($B14>0,Achievement_to_date_ongoing!$K12*Achievement_to_date_ongoing!M12,"") -> 0 | M14: =IF($B14>0,Achievement_to_date_ongoing!$K12*Achievement_to_date_ongoing!N12,"") -> 0 | N14: =IF($B14>0,Achievement_to_date_ongoing!$K12*Achievement_to_date_ongoing!O12,"") -> 9.531934166 | O14: =IF($B14>0,Achievement_to_date_ongoing!$K12*Achievement_to_date_ongoing!P12,"") -> 9.531934166
B15: =Achievement_to_date_ongoing!B13 -> ROBG-440 | C15: =IF($B15>0, Achievement_to_date_ongoing!C13, "") -> 1 | D15: =IF($B15>0, Achievement_to_date_ongoing!D13, "") -> All | E15: =IF($B15>0, Achievement_to_date_ongoing!E13, "") -> CO14 | F15: =IF($B15>0, Achievement_to_date_ongoing!F13, "") -> All | G15: 0 | H15: 0 | I15: 9.990281846 | J15: 9.990281846 | L15: =IF($B15>0,Achievement_to_date_ongoing!$K13*Achievement_to_date_ongoing!M13,"") -> 0 | M15: =IF($B15>0,Achievement_to_date_ongoing!$K13*Achievement_to_date_ongoing!N13,"") -> 0 | N15: =IF($B15>0,Achievement_to_date_ongoing!$K13*Achievement_to_date_ongoing!O13,"") -> 9.990281846 | O15: =IF($B15>0,Achievement_to_date_ongoing!$K13*Achievement_to_date_ongoing!P13,"") -> 9.990281846
B16: =Achievement_to_date_ongoing!B14 -> ROBG-390 | C16: =IF($B16>0, Achievement_to_date_ongoing!C14, "") -> 1 | D16: =IF($B16>0, Achievement_to_date_ongoing!D14, "") -> All | E16: =IF($B16>0, Achievement_to_date_ongoing!E14, "") -> CO14 | F16: =IF($B16>0, Achievement_to_date_ongoing!F14, "") -> All | G16: 0 | H16: 0 | I16: 0 | J16: 16.39866145 | L16: =IF($B16>0,Achievement_to_date_ongoing!$K14*Achievement_to_date_ongoing!M14,"") -> 0 | M16: =IF($B16>0,Achievement_to_date_ongoing!$K14*Achievement_to_date_ongoing!N14,"") -> 0 | N16: =IF($B16>0,Achievement_to_date_ongoing!$K14*Achievement_to_date_ongoing!O14,"") -> 0 | O16: =IF($B16>0,Achievement_to_date_ongoing!$K14*Achievement_to_date_ongoing!P14,"") -> 16.39866145
B17: =Achievement_to_date_ongoing!B15 -> ROBG-439 | C17: =IF($B17>0, Achievement_to_date_ongoing!C15, "") -> 1 | D17: =IF($B17>0, Achievement_to_date_ongoing!D15, "") -> All | E17: =IF($B17>0, Achievement_to_date_ongoing!E15, "") -> CO14 | F17: =IF($B17>0, Achievement_to_date_ongoing!F15, "") -> All | G17: 0 | H17: 11.65391417 | I17: 11.65391417 | J17: 11.65391417 | L17: =IF($B17>0,Achievement_to_date_ongoing!$K15*Achievement_to_date_ongoing!M15,"") -> 0 | M17: =IF($B17>0,Achievement_to_date_ongoing!$K15*Achievement_to_date_ongoing!N15,"") -> 11.65391417 | N17: =IF($B17>0,Achievement_to_date_ongoing!$K15*Achievement_to_date_ongoing!O15,"") -> 11.65391417 | O17: =IF($B17>0,Achievement_to_date_ongoing!$K15*Achievement_to_date_ongoing!P15,"") -> 11.65391417
B18: =Achievement_to_date_ongoing!B16 -> ROBG-138 | C18: =IF($B18>0, Achievement_to_date_ongoing!C16, "") -> 1 | D18: =IF($B18>0, Achievement_to_date_ongoing!D16, "") -> All | E18: =IF($B18>0, Achievement_to_date_ongoing!E16, "") -> CO14 | F18: =IF($B18>0, Achievement_to_date_ongoing!F16, "") -> All | G18: 0 | H18: 0 | I18: 0 | J18: 28.71463338 | L18: =IF($B18>0,Achievement_to_date_ongoing!$K16*Achievement_to_date_ongoing!M16,"") -> 0 | M18: =IF($B18>0,Achievement_to_date_ongoing!$K16*Achievement_to_date_ongoing!N16,"") -> 0 | N18: =IF($B18>0,Achievement_to_date_ongoing!$K16*Achievement_to_date_ongoing!O16,"") -> 0 | O18: =IF($B18>0,Achievement_to_date_ongoing!$K16*Achievement_to_date_ongoing!P16,"") -> 28.71463338
B19: =Achievement_to_date_ongoing!B17 -> ROBG-132 | C19: =IF($B19>0, Achievement_to_date_ongoing!C17, "") -> 1 | D19: =IF($B19>0, Achievement_to_date_ongoing!D17, "") -> All | E19: =IF($B19>0, Achievement_to_date_ongoing!E17, "") -> CO14 | F19: =IF($B19>0, Achievement_to_date_ongoing!F17, "") -> All | G19: 0 | H19: 5.08815536 | I19: 5.08815536 | J19: 5.08815536 | L19: =IF($B19>0,Achievement_to_date_ongoing!$K17*Achievement_to_date_ongoing!M17,"") -> 0 | M19: =IF($B19>0,Achievement_to_date_ongoing!$K17*Achievement_to_date_ongoing!N17,"") -> 5088.15536 | N19: =IF($B19>0,Achievement_to_date_ongoing!$K17*Achievement_to_date_ongoing!O17,"") -> 5088.15536 | O19: =IF($B19>0,Achievement_to_date_ongoing!$K17*Achievement_to_date_ongoing!P17,"") -> 5088.15536
B20: =Achievement_to_date_ongoing!B18 -> ROBG-306 | C20: =IF($B20>0, Achievement_to_date_ongoing!C18, "") -> 1 | D20: =IF($B20>0, Achievement_to_date_ongoing!D18, "") -> All | E20: =IF($B20>0, Achievement_to_date_ongoing!E18, "") -> 1F1 | F20: =IF($B20>0, Achievement_to_date_ongoing!F18, "") -> All | G20: 885083.6063 | H20: 4409347.997 | I20: 6336501.688 | J20: 6336501.688 | L20: =IF($B20>0,Achievement_to_date_ongoing!$K18*Achievement_to_date_ongoing!M18,"") -> 0 | M20: =IF($B20>0,Achievement_to_date_ongoing!$K18*Achievement_to_date_ongoing!N18,"") -> 0 | N20: =IF($B20>0,Achievement_to_date_ongoing!$K18*Achievement_to_date_ongoing!O18,"") -> 6336501.688 | O20: =IF($B20>0,Achievement_to_date_ongoing!$K18*Achievement_to_date_ongoing!P18,"") -> 6336501.688
B21: =Achievement_to_date_ongoing!B19 -> ROBG-442 | C21: =IF($B21>0, Achievement_to_date_ongoing!C19, "") -> 1 | D21: =IF($B21>0, Achievement_to_date_ongoing!D19, "") -> All | E21: =IF($B21>0, Achievement_to_date_ongoing!E19, "") -> 1F1 | F21: =IF($B21>0, Achievement_to_date_ongoing!F19, "") -> All | G21: 4585234.799 | H21: 6589261.738 | I21: 6589261.738 | J21: 6589261.738 | L21: =IF($B21>0,Achievement_to_date_ongoing!$K19*Achievement_to_date_ongoing!M19,"") -> 0 | M21: =IF($B21>0,Achievement_to_date_ongoing!$K19*Achievement_to_date_ongoing!N19,"") -> 0 | N21: =IF($B21>0,Achievement_to_date_ongoing!$K19*Achievement_to_date_ongoing!O19,"") -> 0 | O21: =IF($B21>0,Achievement_to_date_ongoing!$K19*Achievement_to_date_ongoing!P19,"") -> 6589261.738
B22: =Achievement_to_date_ongoing!B20 -> ROBG-510 | C22: =IF($B22>0, Achievement_to_date_ongoing!C20, "") -> 1 | D22: =IF($B22>0, Achievement_to_date_ongoing!D20, "") -> All | E22: =IF($B22>0, Achievement_to_date_ongoing!E20, "") -> 1F1 | F22: =IF($B22>0, Achievement_to_date_ongoing!F20, "") -> All | G22: 813536.6264 | H22: 4052912.141 | I22: 5824281.65 | J22: 5824281.65 | L22: =IF($B22>0,Achievement_to_date_ongoing!$K20*Achievement_to_date_ongoing!M20,"") -> 0 | M22: =IF($B22>0,Achievement_to_date_ongoing!$K20*Achievement_to_date_ongoing!N20,"") -> 0 | N22: =IF($B22>0,Achievement_to_date_ongoing!$K20*Achievement_to_date_ongoing!O20,"") -> 5824281.65 | O22: =IF($B22>0,Achievement_to_date_ongoing!$K20*Achievement_to_date_ongoing!P20,"") -> 5824281.65
B23: =Achievement_to_date_ongoing!B21 -> ROBG-130 | C23: =IF($B23>0, Achievement_to_date_ongoing!C21, "") -> 1 | D23: =IF($B23>0, Achievement_to_date_ongoing!D21, "") -> All | E23: =IF($B23>0, Achievement_to_date_ongoing!E21, "") -> 1F1 | F23: =IF($B23>0, Achievement_to_date_ongoing!F21, "") -> All | G23: 6069035.193 | H23: 6069035.193 | I23: 6069035.193 | J23: 6069035.193 | L23: =IF($B23>0,Achievement_to_date_ongoing!$K21*Achievement_to_date_ongoing!M21,"") -> 0 | M23: =IF($B23>0,Achievement_to_date_ongoing!$K21*Achievement_to_date_ongoing!N21,"") -> 6069035.193 | N23: =IF($B23>0,Achievement_to_date_ongoing!$K21*Achievement_to_date_ongoing!O21,"") -> 6069035.193 | O23: =IF($B23>0,Achievement_to_date_ongoing!$K21*Achievement_to_date_ongoing!P21,"") -> 6069035.193
B24: =Achievement_to_date_ongoing!B22 -> ROBG-418 | C24: =IF($B24>0, Achievement_to_date_ongoing!C22, "") -> 1 | D24: =IF($B24>0, Achievement_to_date_ongoing!D22, "") -> All | E24: =IF($B24>0, Achievement_to_date_ongoing!E22, "") -> 1F1 | F24: =IF($B24>0, Achievement_to_date_ongoing!F22, "") -> All | G24: 3637421.754 | H24: 5227196.652 | I24: 5227196.652 | J24: 5227196.652 | L24: =IF($B24>0,Achievement_to_date_ongoing!$K22*Achievement_to_date_ongoing!M22,"") -> 0 | M24: =IF($B24>0,Achievement_to_date_ongoing!$K22*Achievement_to_date_ongoing!N22,"") -> 5227196.652 | N24: =IF($B24>0,Achievement_to_date_ongoing!$K22*Achievement_to_date_ongoing!O22,"") -> 5227196.652 | O24: =IF($B24>0,Achievement_to_date_ongoing!$K22*Achievement_to_date_ongoing!P22,"") -> 5227196.652
B25: =Achievement_to_date_ongoing!B23 -> ROBG-432 | C25: =IF($B25>0, Achievement_to_date_ongoing!C23, "") -> 1 | D25: =IF($B25>0, Achievement_to_date_ongoing!D23, "") -> All | E25: =IF($B25>0, Achievement_to_date_ongoing!E23, "") -> 1F1 | F25: =IF($B25>0, Achievement_to_date_ongoing!F23, "") -> All | G25: 4540262.258 | H25: 6524633.458 | I25: 6524633.458 | J25: 6524633.458 | L25: =IF($B25>0,Achievement_to_date_ongoing!$K23*Achievement_to_date_ongoing!M23,"") -> 0 | M25: =IF($B25>0,Achievement_to_date_ongoing!$K23*Achievement_to_date_ongoing!N23,"") -> 6524633.458 | N25: =IF($B25>0,Achievement_to_date_ongoing!$K23*Achievement_to_date_ongoing!O23,"") -> 6524633.458 | O25: =IF($B25>0,Achievement_to_date_ongoing!$K23*Achievement_to_date_ongoing!P23,"") -> 6524633.458
B26: =Achievement_to_date_ongoing!B24 -> ROBG-383 | C26: =IF($B26>0, Achievement_to_date_ongoing!C24, "") -> 1 | D26: =IF($B26>0, Achievement_to_date_ongoing!D24, "") -> All | E26: =IF($B26>0, Achievement_to_date_ongoing!E24, "") -> 1F1 | F26: =IF($B26>0, Achievement_to_date_ongoing!F24, "") -> All | G26: 550469.9249 | H26: 2742355.008 | I26: 3940931.211 | J26: 3940931.211 | L26: =IF($B26>0,Achievement_to_date_ongoing!$K24*Achievement_to_date_ongoing!M24,"") -> 0 | M26: =IF($B26>0,Achievement_to_date_ongoing!$K24*Achievement_to_date_ongoing!N24,"") -> 0 | N26: =IF($B26>0,Achievement_to_date_ongoing!$K24*Achievement_to_date_ongoing!O24,"") -> 3940931.211 | O26: =IF($B26>0,Achievement_to_date_ongoing!$K24*Achievement_to_date_ongoing!P24,"") -> 3940931.211
B27: =Achievement_to_date_ongoing!B25 -> ROBG-408 | C27: =IF($B27>0, Achievement_to_date_ongoing!C25, "") -> 1 | D27: =IF($B27>0, Achievement_to_date_ongoing!D25, "") -> All | E27: =IF($B27>0, Achievement_to_date_ongoing!E25, "") -> 1F1 | F27: =IF($B27>0, Achievement_to_date_ongoing!F25, "") -> All | G27: 4598459.095 | H27: 6608265.857 | I27: 6608265.857 | J27: 6608265.857 | L27: =IF($B27>0,Achievement_to_date_ongoing!$K25*Achievement_to_date_ongoing!M25,"") -> 0 | M27: =IF($B27>0,Achievement_to_date_ongoing!$K25*Achievement_to_date_ongoing!N25,"") -> 0 | N27: =IF($B27>0,Achievement_to_date_ongoing!$K25*Achievement_to_date_ongoing!O25,"") -> 6608265.857 | O27: =IF($B27>0,Achievement_to_date_ongoing!$K25*Achievement_to_date_ongoing!P25,"") -> 6608265.857
B28: =Achievement_to_date_ongoing!B26 -> ROBG-522 | C28: =IF($B28>0, Achievement_to_date_ongoing!C26, "") -> 1 | D28: =IF($B28>0, Achievement_to_date_ongoing!D26, "") -> All | E28: =IF($B28>0, Achievement_to_date_ongoing!E26, "") -> 1F1 | F28: =IF($B28>0, Achievement_to_date_ongoing!F26, "") -> All | G28: 3277020.291 | H28: 4709277.794 | I28: 4709277.794 | J28: 4709277.794 | L28: =IF($B28>0,Achievement_to_date_ongoing!$K26*Achievement_to_date_ongoing!M26,"") -> 0 | M28: =IF($B28>0,Achievement_to_date_ongoing!$K26*Achievement_to_date_ongoing!N26,"") -> 4709277.794 | N28: =IF($B28>0,Achievement_to_date_ongoing!$K26*Achievement_to_date_ongoing!O26,"") -> 4709277.794 | O28: =IF($B28>0,Achievement_to_date_ongoing!$K26*Achievement_to_date_ongoing!P26,"") -> 4709277.794
B29: =Achievement_to_date_ongoing!B27 -> ROBG-375 | C29: =IF($B29>0, Achievement_to_date_ongoing!C27, "") -> 1 | D29: =IF($B29>0, Achievement_to_date_ongoing!D27, "") -> All | E29: =IF($B29>0, Achievement_to_date_ongoing!E27, "") -> 1F1 | F29: =IF($B29>0, Achievement_to_date_ongoing!F27, "") -> All | G29: 4420982.594 | H29: 6353221.314 | I29: 6353221.314 | J29: 6353221.314 | L29: =IF($B29>0,Achievement_to_date_ongoing!$K27*Achievement_to_date_ongoing!M27,"") -> 0 | M29: =IF($B29>0,Achievement_to_date_ongoing!$K27*Achievement_to_date_ongoing!N27,"") -> 6353221.314 | N29: =IF($B29>0,Achievement_to_date_ongoing!$K27*Achievement_to_date_ongoing!O27,"") -> 6353221.314 | O29: =IF($B29>0,Achievement_to_date_ongoing!$K27*Achievement_to_date_ongoing!P27,"") -> 6353221.314
B30: =Achievement_to_date_ongoing!B28 -> ROBG-425 | C30: =IF($B30>0, Achievement_to_date_ongoing!C28, "") -> 1 | D30: =IF($B30>0, Achievement_to_date_ongoing!D28, "") -> All | E30: =IF($B30>0, Achievement_to_date_ongoing!E28, "") -> 1F1 | F30: =IF($B30>0, Achievement_to_date_ongoing!F28, "") -> All | G30: 4505070.701 | H30: 6474061.046 | I30: 6474061.046 | J30: 6474061.046 | L30: =IF($B30>0,Achievement_to_date_ongoing!$K28*Achievement_to_date_ongoing!M28,"") -> 0 | M30: =IF($B30>0,Achievement_to_date_ongoing!$K28*Achievement_to_date_ongoing!N28,"") -> 0 | N30: =IF($B30>0,Achievement_to_date_ongoing!$K28*Achievement_to_date_ongoing!O28,"") -> 6474061.046 | O30: =IF($B30>0,Achievement_to_date_ongoing!$K28*Achievement_to_date_ongoing!P28,"") -> 6474061.046
B31: =Achievement_to_date_ongoing!B29 -> ROBG-440 | C31: =IF($B31>0, Achievement_to_date_ongoing!C29, "") -> 1 | D31: =IF($B31>0, Achievement_to_date_ongoing!D29, "") -> All | E31: =IF($B31>0, Achievement_to_date_ongoing!E29, "") -> 1F1 | F31: =IF($B31>0, Achievement_to_date_ongoing!F29, "") -> All | G31: 570764.9006 | H31: 2843461.401 | I31: 4086227.256 | J31: 4086227.256 | L31: =IF($B31>0,Achievement_to_date_ongoing!$K29*Achievement_to_date_ongoing!M29,"") -> 0 | M31: =IF($B31>0,Achievement_to_date_ongoing!$K29*Achievement_to_date_ongoing!N29,"") -> 0 | N31: =IF($B31>0,Achievement_to_date_ongoing!$K29*Achievement_to_date_ongoing!O29,"") -> 4086227.256 | O31: =IF($B31>0,Achievement_to_date_ongoing!$K29*Achievement_to_date_ongoing!P29,"") -> 4086227.256
B32: =Achievement_to_date_ongoing!B30 -> ROBG-478 | C32: =IF($B32>0, Achievement_to_date_ongoing!C30, "") -> 1 | D32: =IF($B32>0, Achievement_to_date_ongoing!D30, "") -> All | E32: =IF($B32>0, Achievement_to_date_ongoing!E30, "") -> 1F1 | F32: =IF($B32>0, Achievement_to_date_ongoing!F30, "") -> All | G32: 686233.0754 | H32: 3418705.775 | I32: 4912888.466 | J32: 4912888.466 | L32: =IF($B32>0,Achievement_to_date_ongoing!$K30*Achievement_to_date_ongoing!M30,"") -> 0 | M32: =IF($B32>0,Achievement_to_date_ongoing!$K30*Achievement_to_date_ongoing!N30,"") -> 0 | N32: =IF($B32>0,Achievement_to_date_ongoing!$K30*Achievement_to_date_ongoing!O30,"") -> 0 | O32: =IF($B32>0,Achievement_to_date_ongoing!$K30*Achievement_to_date_ongoing!P30,"") -> 0
B33: =Achievement_to_date_ongoing!B31 -> ROBG-390 | C33: =IF($B33>0, Achievement_to_date_ongoing!C31, "") -> 1 | D33: =IF($B33>0, Achievement_to_date_ongoing!D31, "") -> All | E33: =IF($B33>0, Achievement_to_date_ongoing!E31, "") -> 1F1 | F33: =IF($B33>0, Achievement_to_date_ongoing!F31, "") -> All | G33: 179254.557 | H33: 893018.1465 | I33: 4448876.634 | J33: 6393306.748 | L33: =IF($B33>0,Achievement_to_date_ongoing!$K31*Achievement_to_date_ongoing!M31,"") -> 0 | M33: =IF($B33>0,Achievement_to_date_ongoing!$K31*Achievement_to_date_ongoing!N31,"") -> 0 | N33: =IF($B33>0,Achievement_to_date_ongoing!$K31*Achievement_to_date_ongoing!O31,"") -> 0 | O33: =IF($B33>0,Achievement_to_date_ongoing!$K31*Achievement_to_date_ongoing!P31,"") -> 6393306.748
B34: =Achievement_to_date_ongoing!B32 -> ROBG-439 | C34: =IF($B34>0, Achievement_to_date_ongoing!C32, "") -> 1 | D34: =IF($B34>0, Achievement_to_date_ongoing!D32, "") -> All | E34: =IF($B34>0, Achievement_to_date_ongoing!E32, "") -> 1F1 | F34: =IF($B34>0, Achievement_to_date_ongoing!F32, "") -> All | G34: 4593178.105 | H34: 6600676.753 | I34: 6600676.753 | J34: 6600676.753 | L34: =IF($B34>0,Achievement_to_date_ongoing!$K32*Achievement_to_date_ongoing!M32,"") -> 0 | M34: =IF($B34>0,Achievement_to_date_ongoing!$K32*Achievement_to_date_ongoing!N32,"") -> 6600676.753 | N34: =IF($B34>0,Achievement_to_date_ongoing!$K32*Achievement_to_date_ongoing!O32,"") -> 6600676.753 | O34: =IF($B34>0,Achievement_to_date_ongoing!$K32*Achievement_to_date_ongoing!P32,"") -> 6600676.753
B35: =Achievement_to_date_ongoing!B33 -> ROBG-138 | C35: =IF($B35>0, Achievement_to_date_ongoing!C33, "") -> 1 | D35: =IF($B35>0, Achievement_to_date_ongoing!D33, "") -> All | E35: =IF($B35>0, Achievement_to_date_ongoing!E33, "") -> 1F1 | F35: =IF($B35>0, Achievement_to_date_ongoing!F33, "") -> All | G35: 6563445.615 | H35: 6563445.615 | I35: 6563445.615 | J35: 6563445.615 | L35: =IF($B35>0,Achievement_to_date_ongoing!$K33*Achievement_to_date_ongoing!M33,"") -> 0 | M35: =IF($B35>0,Achievement_to_date_ongoing!$K33*Achievement_to_date_ongoing!N33,"") -> 0 | N35: =IF($B35>0,Achievement_to_date_ongoing!$K33*Achievement_to_date_ongoing!O33,"") -> 0 | O35: =IF($B35>0,Achievement_to_date_ongoing!$K33*Achievement_to_date_ongoing!P33,"") -> 6563445.615
B36: =Achievement_to_date_ongoing!B34 -> ROBG-132 | C36: =IF($B36>0, Achievement_to_date_ongoing!C34, "") -> 1 | D36: =IF($B36>0, Achievement_to_date_ongoing!D34, "") -> All | E36: =IF($B36>0, Achievement_to_date_ongoing!E34, "") -> 1F1 | F36: =IF($B36>0, Achievement_to_date_ongoing!F34, "") -> All | G36: 5894039.896 | H36: 5894039.896 | I36: 5894039.896 | J36: 5894039.896 | L36: =IF($B36>0,Achievement_to_date_ongoing!$K34*Achievement_to_date_ongoing!M34,"") -> 0 | M36: =IF($B36>0,Achievement_to_date_ongoing!$K34*Achievement_to_date_ongoing!N34,"") -> 5894039.896 | N36: =IF($B36>0,Achievement_to_date_ongoing!$K34*Achievement_to_date_ongoing!O34,"") -> 5894039.896 | O36: =IF($B36>0,Achievement_to_date_ongoing!$K34*Achievement_to_date_ongoing!P34,"") -> 5894039.896
B37: =Achievement_to_date_ongoing!B35 -> ROBG-419 | C37: =IF($B37>0, Achievement_to_date_ongoing!C35, "") -> 2 | D37: =IF($B37>0, Achievement_to_date_ongoing!D35, "") -> All | E37: =IF($B37>0, Achievement_to_date_ongoing!E35, "") -> CO09 | F37: =IF($B37>0, Achievement_to_date_ongoing!F35, "") -> All | G37: 0 | H37: 5433.681773 | I37: 5433.681773 | J37: 5433.681773 | L37: =IF($B37>0,Achievement_to_date_ongoing!$K35*Achievement_to_date_ongoing!M35,"") -> 0 | M37: =IF($B37>0,Achievement_to_date_ongoing!$K35*Achievement_to_date_ongoing!N35,"") -> 5433.681773 | N37: =IF($B37>0,Achievement_to_date_ongoing!$K35*Achievement_to_date_ongoing!O35,"") -> 5433.681773 | O37: =IF($B37>0,Achievement_to_date_ongoing!$K35*Achievement_to_date_ongoing!P35,"") -> 5433.681773
B38: =Achievement_to_date_ongoing!B36 -> ROBG-511 | C38: =IF($B38>0, Achievement_to_date_ongoing!C36, "") -> 2 | D38: =IF($B38>0, Achievement_to_date_ongoing!D36, "") -> All | E38: =IF($B38>0, Achievement_to_date_ongoing!E36, "") -> CO09 | F38: =IF($B38>0, Achievement_to_date_ongoing!F36, "") -> All | G38: 0 | H38: 0 | I38: 1527.825601 | J38: 1527.825601 | L38: =IF($B38>0,Achievement_to_date_ongoing!$K36*Achievement_to_date_ongoing!M36,"") -> 0 | M38: =IF($B38>0,Achievement_to_date_ongoing!$K36*Achievement_to_date_ongoing!N36,"") -> 0 | N38: =IF($B38>0,Achievement_to_date_ongoing!$K36*Achievement_to_date_ongoing!O36,"") -> 1527.825601 | O38: =IF($B38>0,Achievement_to_date_ongoing!$K36*Achievement_to_date_ongoing!P36,"") -> 1527.825601
B39: =Achievement_to_date_ongoing!B37 -> ROBG-378 | C39: =IF($B39>0, Achievement_to_date_ongoing!C37, "") -> 2 | D39: =IF($B39>0, Achievement_to_date_ongoing!D37, "") -> All | E39: =IF($B39>0, Achievement_to_date_ongoing!E37, "") -> CO09 | F39: =IF($B39>0, Achievement_to_date_ongoing!F37, "") -> All | G39: 0 | H39: 0 | I39: 12731.88001 | J39: 12731.88001 | L39: =IF($B39>0,Achievement_to_date_ongoing!$K37*Achievement_to_date_ongoing!M37,"") -> 0 | M39: =IF($B39>0,Achievement_to_date_ongoing!$K37*Achievement_to_date_ongoing!N37,"") -> 0 | N39: =IF($B39>0,Achievement_to_date_ongoing!$K37*Achievement_to_date_ongoing!O37,"") -> 12731.88001 | O39: =IF($B39>0,Achievement_to_date_ongoing!$K37*Achievement_to_date_ongoing!P37,"") -> 12731.88001
B40: =Achievement_to_date_ongoing!B38 -> ROBG-576 | C40: =IF($B40>0, Achievement_to_date_ongoing!C38, "") -> 2 | D40: =IF($B40>0, Achievement_to_date_ongoing!D38, "") -> All | E40: =IF($B40>0, Achievement_to_date_ongoing!E38, "") -> CO09 | F40: =IF($B40>0, Achievement_to_date_ongoing!F38, "") -> All | G40: 0 | H40: 0 | I40: 0 | J40: 0 | L40: =IF($B40>0,Achievement_to_date_ongoing!$K38*Achievement_to_date_ongoing!M38,"") -> 0 | M40: =IF($B40>0,Achievement_to_date_ongoing!$K38*Achievement_to_date_ongoing!N38,"") -> 0 | N40: =IF($B40>0,Achievement_to_date_ongoing!$K38*Achievement_to_date_ongoing!O38,"") -> 0 | O40: =IF($B40>0,Achievement_to_date_ongoing!$K38*Achievement_to_date_ongoing!P38,"") -> 0
B41: =Achievement_to_date_ongoing!B39 -> ROBG-407 | C41: =IF($B41>0, Achievement_to_date_ongoing!C39, "") -> 2 | D41: =IF($B41>0, Achievement_to_date_ongoing!D39, "") -> All | E41: =IF($B41>0, Achievement_to_date_ongoing!E39, "") -> CO09 | F41: =IF($B41>0, Achievement_to_date_ongoing!F39, "") -> All | G41: 0 | H41: 0 | I41: 0 | J41: 67903.36004 | L41: =IF($B41>0,Achievement_to_date_ongoing!$K39*Achievement_to_date_ongoing!M39,"") -> 0 | M41: =IF($B41>0,Achievement_to_date_ongoing!$K39*Achievement_to_date_ongoing!N39,"") -> 0 | N41: =IF($B41>0,Achievement_to_date_ongoing!$K39*Achievement_to_date_ongoing!O39,"") -> 0 | O41: =IF($B41>0,Achievement_to_date_ongoing!$K39*Achievement_to_date_ongoing!P39,"") -> 67903.36004
B42: =Achievement_to_date_ongoing!B40 -> ROBG-413 | C42: =IF($B42>0, Achievement_to_date_ongoing!C40, "") -> 2 | D42: =IF($B42>0, Achievement_to_date_ongoing!D40, "") -> All | E42: =IF($B42>0, Achievement_to_date_ongoing!E40, "") -> CO09 | F42: =IF($B42>0, Achievement_to_date_ongoing!F40, "") -> All | G42: 0 | H42: 848.7920005 | I42: 848.7920005 | J42: 848.7920005 | L42: =IF($B42>0,Achievement_to_date_ongoing!$K40*Achievement_to_date_ongoing!M40,"") -> 0 | M42: =IF($B42>0,Achievement_to_date_ongoing!$K40*Achievement_to_date_ongoing!N40,"") -> 848.7920005 | N42: =IF($B42>0,Achievement_to_date_ongoing!$K40*Achievement_to_date_ongoing!O40,"") -> 848.7920005 | O42: =IF($B42>0,Achievement_to_date_ongoing!$K40*Achievement_to_date_ongoing!P40,"") -> 848.7920005
B43: =Achievement_to_date_ongoing!B41 -> ROBG-128 | C43: =IF($B43>0, Achievement_to_date_ongoing!C41, "") -> 2 | D43: =IF($B43>0, Achievement_to_date_ongoing!D41, "") -> All | E43: =IF($B43>0, Achievement_to_date_ongoing!E41, "") -> CO09 | F43: =IF($B43>0, Achievement_to_date_ongoing!F41, "") -> All | G43: 0 | H43: 0 | I43: 8487.920005 | J43: 8487.920005 | L43: =IF($B43>0,Achievement_to_date_ongoing!$K41*Achievement_to_date_ongoing!M41,"") -> 0 | M43: =IF($B43>0,Achievement_to_date_ongoing!$K41*Achievement_to_date_ongoing!N41,"") -> 0 | N43: =IF($B43>0,Achievement_to_date_ongoing!$K41*Achievement_to_date_ongoing!O41,"") -> 8487.920005 | O43: =IF($B43>0,Achievement_to_date_ongoing!$K41*Achievement_to_date_ongoing!P41,"") -> 8487.920005
B44: =Achievement_to_date_ongoing!B42 -> ROBG-337 | C44: =IF($B44>0, Achievement_to_date_ongoing!C42, "") -> 2 | D44: =IF($B44>0, Achievement_to_date_ongoing!D42, "") -> All | E44: =IF($B44>0, Achievement_to_date_ongoing!E42, "") -> CO09 | F44: =IF($B44>0, Achievement_to_date_ongoing!F42, "") -> All | G44: 0 | H44: 2.085714286 | I44: 2.085714286 | J44: 2.085714286 | L44: =IF($B44>0,Achievement_to_date_ongoing!$K42*Achievement_to_date_ongoing!M42,"") -> 0 | M44: =IF($B44>0,Achievement_to_date_ongoing!$K42*Achievement_to_date_ongoing!N42,"") -> 2.085714286 | N44: =IF($B44>0,Achievement_to_date_ongoing!$K42*Achievement_to_date_ongoing!O42,"") -> 2.085714286 | O44: =IF($B44>0,Achievement_to_date_ongoing!$K42*Achievement_to_date_ongoing!P42,"") -> 2.085714286
B45: =Achievement_to_date_ongoing!B43 -> ROBG-507 | C45: =IF($B45>0, Achievement_to_date_ongoing!C43, "") -> 2 | D45: =IF($B45>0, Achievement_to_date_ongoing!D43, "") -> All | E45: =IF($B45>0, Achievement_to_date_ongoing!E43, "") -> CO09 | F45: =IF($B45>0, Achievement_to_date_ongoing!F43, "") -> All | G45: 0 | H45: 100.5509642 | I45: 100.5509642 | J45: 100.5509642 | L45: =IF($B45>0,Achievement_to_date_ongoing!$K43*Achievement_to_date_ongoing!M43,"") -> 0 | M45: =IF($B45>0,Achievement_to_date_ongoing!$K43*Achievement_to_date_ongoing!N43,"") -> 100.5509642 | N45: =IF($B45>0,Achievement_to_date_ongoing!$K43*Achievement_to_date_ongoing!O43,"") -> 100.5509642 | O45: =IF($B45>0,Achievement_to_date_ongoing!$K43*Achievement_to_date_ongoing!P43,"") -> 100.5509642
B46: =Achievement_to_date_ongoing!B44 -> ROBG-453 | C46: =IF($B46>0, Achievement_to_date_ongoing!C44, "") -> 2 | D46: =IF($B46>0, Achievement_to_date_ongoing!D44, "") -> All | E46: =IF($B46>0, Achievement_to_date_ongoing!E44, "") -> CO09 | F46: =IF($B46>0, Achievement_to_date_ongoing!F44, "") -> All | G46: 0 | H46: 270.7218935 | I46: 270.7218935 | J46: 270.7218935 | L46: =IF($B46>0,Achievement_to_date_ongoing!$K44*Achievement_to_date_ongoing!M44,"") -> 0 | M46: =IF($B46>0,Achievement_to_date_ongoing!$K44*Achievement_to_date_ongoing!N44,"") -> 270.7218935 | N46: =IF($B46>0,Achievement_to_date_ongoing!$K44*Achievement_to_date_ongoing!O44,"") -> 270.7218935 | O46: =IF($B46>0,Achievement_to_date_ongoing!$K44*Achievement_to_date_ongoing!P44,"") -> 270.7218935
B47: =Achievement_to_date_ongoing!B45 -> ROBG-499 | C47: =IF($B47>0, Achievement_to_date_ongoing!C45, "") -> 2 | D47: =IF($B47>0, Achievement_to_date_ongoing!D45, "") -> All | E47: =IF($B47>0, Achievement_to_date_ongoing!E45, "") -> CO09 | F47: =IF($B47>0, Achievement_to_date_ongoing!F45, "") -> All | G47: 0 | H47: 2121.980001 | I47: 2121.980001 | J47: 2121.980001 | L47: =IF($B47>0,Achievement_to_date_ongoing!$K45*Achievement_to_date_ongoing!M45,"") -> 0 | M47: =IF($B47>0,Achievement_to_date_ongoing!$K45*Achievement_to_date_ongoing!N45,"") -> 2121.980001 | N47: =IF($B47>0,Achievement_to_date_ongoing!$K45*Achievement_to_date_ongoing!O45,"") -> 2121.980001 | O47: =IF($B47>0,Achievement_to_date_ongoing!$K45*Achievement_to_date_ongoing!P45,"") -> 2121.980001
B48: =Achievement_to_date_ongoing!B46 -> ROBG-271 | C48: =IF($B48>0, Achievement_to_date_ongoing!C46, "") -> 2 | D48: =IF($B48>0, Achievement_to_date_ongoing!D46, "") -> All | E48: =IF($B48>0, Achievement_to_date_ongoing!E46, "") -> CO09 | F48: =IF($B48>0, Achievement_to_date_ongoing!F46, "") -> All | G48: 0 | H48: 0 | I48: 12731.88001 | J48: 12731.88001 | L48: =IF($B48>0,Achievement_to_date_ongoing!$K46*Achievement_to_date_ongoing!M46,"") -> 0 | M48: =IF($B48>0,Achievement_to_date_ongoing!$K46*Achievement_to_date_ongoing!N46,"") -> 0 | N48: =IF($B48>0,Achievement_to_date_ongoing!$K46*Achievement_to_date_ongoing!O46,"") -> 12731.88001 | O48: =IF($B48>0,Achievement_to_date_ongoing!$K46*Achievement_to_date_ongoing!P46,"") -> 12731.88001
B49: =Achievement_to_date_ongoing!B47 -> ROBG-366 | C49: =IF($B49>0, Achievement_to_date_ongoing!C47, "") -> 2 | D49: =IF($B49>0, Achievement_to_date_ongoing!D47, "") -> All | E49: =IF($B49>0, Achievement_to_date_ongoing!E47, "") -> CO09 | F49: =IF($B49>0, Achievement_to_date_ongoing!F47, "") -> All | G49: 0 | H49: 8487.920005 | I49: 8487.920005 | J49: 8487.920005 | L49: =IF($B49>0,Achievement_to_date_ongoing!$K47*Achievement_to_date_ongoing!M47,"") -> 0 | M49: =IF($B49>0,Achievement_to_date_ongoing!$K47*Achievement_to_date_ongoing!N47,"") -> 8487.920005 | N49: =IF($B49>0,Achievement_to_date_ongoing!$K47*Achievement_to_date_ongoing!O47,"") -> 8487.920005 | O49: =IF($B49>0,Achievement_to_date_ongoing!$K47*Achievement_to_date_ongoing!P47,"") -> 8487.920005
B50: =Achievement_to_date_ongoing!B48 -> ROBG-397 | C50: =IF($B50>0, Achievement_to_date_ongoing!C48, "") -> 2 | D50: =IF($B50>0, Achievement_to_date_ongoing!D48, "") -> All | E50: =IF($B50>0, Achievement_to_date_ongoing!E48, "") -> CO09 | F50: =IF($B50>0, Achievement_to_date_ongoing!F48, "") -> All | G50: 0 | H50: 0 | I50: 0 | J50: 6790.336004 | L50: =IF($B50>0,Achievement_to_date_ongoing!$K48*Achievement_to_date_ongoing!M48,"") -> 0 | M50: =IF($B50>0,Achievement_to_date_ongoing!$K48*Achievement_to_date_ongoing!N48,"") -> 0 | N50: =IF($B50>0,Achievement_to_date_ongoing!$K48*Achievement_to_date_ongoing!O48,"") -> 0 | O50: =IF($B50>0,Achievement_to_date_ongoing!$K48*Achievement_to_date_ongoing!P48,"") -> 6790.336004
B51: =Achievement_to_date_ongoing!B49 -> ROBG-471 | C51: =IF($B51>0, Achievement_to_date_ongoing!C49, "") -> 2 | D51: =IF($B51>0, Achievement_to_date_ongoing!D49, "") -> All | E51: =IF($B51>0, Achievement_to_date_ongoing!E49, "") -> CO09 | F51: =IF($B51>0, Achievement_to_date_ongoing!F49, "") -> All | G51: 0 | H51: 9899.461102 | I51: 9899.461102 | J51: 9899.461102 | L51: =IF($B51>0,Achievement_to_date_ongoing!$K49*Achievement_to_date_ongoing!M49,"") -> 0 | M51: =IF($B51>0,Achievement_to_date_ongoing!$K49*Achievement_to_date_ongoing!N49,"") -> 9899.461102 | N51: =IF($B51>0,Achievement_to_date_ongoing!$K49*Achievement_to_date_ongoing!O49,"") -> 9899.461102 | O51: =IF($B51>0,Achievement_to_date_ongoing!$K49*Achievement_to_date_ongoing!P49,"") -> 9899.461102
B52: =Achievement_to_date_ongoing!B50 -> ROBG-134 | C52: =IF($B52>0, Achievement_to_date_ongoing!C50, "") -> 2 | D52: =IF($B52>0, Achievement_to_date_ongoing!D50, "") -> All | E52: =IF($B52>0, Achievement_to_date_ongoing!E50, "") -> CO09 | F52: =IF($B52>0, Achievement_to_date_ongoing!F50, "") -> All | G52: 0 | H52: 3395.168002 | I52: 3395.168002 | J52: 3395.168002 | L52: =IF($B52>0,Achievement_to_date_ongoing!$K50*Achievement_to_date_ongoing!M50,"") -> 0 | M52: =IF($B52>0,Achievement_to_date_ongoing!$K50*Achievement_to_date_ongoing!N50,"") -> 3395.168002 | N52: =IF($B52>0,Achievement_to_date_ongoing!$K50*Achievement_to_date_ongoing!O50,"") -> 3395.168002 | O52: =IF($B52>0,Achievement_to_date_ongoing!$K50*Achievement_to_date_ongoing!P50,"") -> 3395.168002
B53: =Achievement_to_date_ongoing!B51 -> ROBG-568 | C53: =IF($B53>0, Achievement_to_date_ongoing!C51, "") -> 2 | D53: =IF($B53>0, Achievement_to_date_ongoing!D51, "") -> All | E53: =IF($B53>0, Achievement_to_date_ongoing!E51, "") -> CO09 | F53: =IF($B53>0, Achievement_to_date_ongoing!F51, "") -> All | G53: 0 | H53: 0 | I53: 424.3960003 | J53: 424.3960003 | L53: =IF($B53>0,Achievement_to_date_ongoing!$K51*Achievement_to_date_ongoing!M51,"") -> 0 | M53: =IF($B53>0,Achievement_to_date_ongoing!$K51*Achievement_to_date_ongoing!N51,"") -> 0 | N53: =IF($B53>0,Achievement_to_date_ongoing!$K51*Achievement_to_date_ongoing!O51,"") -> 424.3960003 | O53: =IF($B53>0,Achievement_to_date_ongoing!$K51*Achievement_to_date_ongoing!P51,"") -> 424.3960003
B54: =Achievement_to_date_ongoing!B52 -> ROBG-302 | C54: =IF($B54>0, Achievement_to_date_ongoing!C52, "") -> 2 | D54: =IF($B54>0, Achievement_to_date_ongoing!D52, "") -> All | E54: =IF($B54>0, Achievement_to_date_ongoing!E52, "") -> CO09 | F54: =IF($B54>0, Achievement_to_date_ongoing!F52, "") -> All | G54: 0 | H54: 0 | I54: 0 | J54: 29707.72002 | L54: =IF($B54>0,Achievement_to_date_ongoing!$K52*Achievement_to_date_ongoing!M52,"") -> 0 | M54: =IF($B54>0,Achievement_to_date_ongoing!$K52*Achievement_to_date_ongoing!N52,"") -> 0 | N54: =IF($B54>0,Achievement_to_date_ongoing!$K52*Achievement_to_date_ongoing!O52,"") -> 0 | O54: =IF($B54>0,Achievement_to_date_ongoing!$K52*Achievement_to_date_ongoing!P52,"") -> 29707.72002
B55: =Achievement_to_date_ongoing!B53 -> ROBG-290 | C55: =IF($B55>0, Achievement_to_date_ongoing!C53, "") -> 2 | D55: =IF($B55>0, Achievement_to_date_ongoing!D53, "") -> All | E55: =IF($B55>0, Achievement_to_date_ongoing!E53, "") -> CO09 | F55: =IF($B55>0, Achievement_to_date_ongoing!F53, "") -> All | G55: 0 | H55: 0 | I55: 0 | J55: 0 | L55: =IF($B55>0,Achievement_to_date_ongoing!$K53*Achievement_to_date_ongoing!M53,"") -> 0 | M55: =IF($B55>0,Achievement_to_date_ongoing!$K53*Achievement_to_date_ongoing!N53,"") -> 0 | N55: =IF($B55>0,Achievement_to_date_ongoing!$K53*Achievement_to_date_ongoing!O53,"") -> 0 | O55: =IF($B55>0,Achievement_to_date_ongoing!$K53*Achievement_to_date_ongoing!P53,"") -> 0
B56: =Achievement_to_date_ongoing!B54 -> ROBG-419 | C56: =IF($B56>0, Achievement_to_date_ongoing!C54, "") -> 2 | D56: =IF($B56>0, Achievement_to_date_ongoing!D54, "") -> All | E56: =IF($B56>0, Achievement_to_date_ongoing!E54, "") -> 6c.1 | F56: =IF($B56>0, Achievement_to_date_ongoing!F54, "") -> All | G56: 0 | H56: 1.01773399 | I56: 1.01773399 | J56: 1.01773399 | L56: =IF($B56>0,Achievement_to_date_ongoing!$K54*Achievement_to_date_ongoing!M54,"") -> 0 | M56: =IF($B56>0,Achievement_to_date_ongoing!$K54*Achievement_to_date_ongoing!N54,"") -> 1.01773399 | N56: =IF($B56>0,Achievement_to_date_ongoing!$K54*Achievement_to_date_ongoing!O54,"") -> 1.01773399 | O56: =IF($B56>0,Achievement_to_date_ongoing!$K54*Achievement_to_date_ongoing!P54,"") -> 1.01773399
B57: =Achievement_to_date_ongoing!B55 -> ROBG-456 | C57: =IF($B57>0, Achievement_to_date_ongoing!C55, "") -> 2 | D57: =IF($B57>0, Achievement_to_date_ongoing!D55, "") -> All | E57: =IF($B57>0, Achievement_to_date_ongoing!E55, "") -> 6c.1 | F57: =IF($B57>0, Achievement_to_date_ongoing!F55, "") -> All | G57: 0 | H57: 0.8487920005 | I57: 0.8487920005 | J57: 0.8487920005 | L57: =IF($B57>0,Achievement_to_date_ongoing!$K55*Achievement_to_date_ongoing!M55,"") -> 0 | M57: =IF($B57>0,Achievement_to_date_ongoing!$K55*Achievement_to_date_ongoing!N55,"") -> 0.8487920005 | N57: =IF($B57>0,Achievement_to_date_ongoing!$K55*Achievement_to_date_ongoing!O55,"") -> 0.8487920005 | O57: =IF($B57>0,Achievement_to_date_ongoing!$K55*Achievement_to_date_ongoing!P55,"") -> 0.8487920005
B58: =Achievement_to_date_ongoing!B56 -> ROBG-511 | C58: =IF($B58>0, Achievement_to_date_ongoing!C56, "") -> 2 | D58: =IF($B58>0, Achievement_to_date_ongoing!D56, "") -> All | E58: =IF($B58>0, Achievement_to_date_ongoing!E56, "") -> 6c.1 | F58: =IF($B58>0, Achievement_to_date_ongoing!F56, "") -> All | G58: 0 | H58: 0 | I58: 3.395168002 | J58: 3.395168002 | L58: =IF($B58>0,Achievement_to_date_ongoing!$K56*Achievement_to_date_ongoing!M56,"") -> 0 | M58: =IF($B58>0,Achievement_to_date_ongoing!$K56*Achievement_to_date_ongoing!N56,"") -> 0 | N58: =IF($B58>0,Achievement_to_date_ongoing!$K56*Achievement_to_date_ongoing!O56,"") -> 3.395168002 | O58: =IF($B58>0,Achievement_to_date_ongoing!$K56*Achievement_to_date_ongoing!P56,"") -> 3.395168002
B59: =Achievement_to_date_ongoing!B57 -> ROBG-422 | C59: =IF($B59>0, Achievement_to_date_ongoing!C57, "") -> 2 | D59: =IF($B59>0, Achievement_to_date_ongoing!D57, "") -> All | E59: =IF($B59>0, Achievement_to_date_ongoing!E57, "") -> 6c.1 | F59: =IF($B59>0, Achievement_to_date_ongoing!F57, "") -> All | G59: 0 | H59: 1.697584001 | I59: 1.697584001 | J59: 1.697584001 | L59: =IF($B59>0,Achievement_to_date_ongoing!$K57*Achievement_to_date_ongoing!M57,"") -> 0 | M59: =IF($B59>0,Achievement_to_date_ongoing!$K57*Achievement_to_date_ongoing!N57,"") -> 1.697584001 | N59: =IF($B59>0,Achievement_to_date_ongoing!$K57*Achievement_to_date_ongoing!O57,"") -> 1.697584001 | O59: =IF($B59>0,Achievement_to_date_ongoing!$K57*Achievement_to_date_ongoing!P57,"") -> 1.697584001
B60: =Achievement_to_date_ongoing!B58 -> ROBG-378 | C60: =IF($B60>0, Achievement_to_date_ongoing!C58, "") -> 2 | D60: =IF($B60>0, Achievement_to_date_ongoing!D58, "") -> All | E60: =IF($B60>0, Achievement_to_date_ongoing!E58, "") -> 6c.1 | F60: =IF($B60>0, Achievement_to_date_ongoing!F58, "") -> All | G60: 0 | H60: 0 | I60: 0.8487920005 | J60: 0.8487920005 | L60: =IF($B60>0,Achievement_to_date_ongoing!$K58*Achievement_to_date_ongoing!M58,"") -> 0 | M60: =IF($B60>0,Achievement_to_date_ongoing!$K58*Achievement_to_date_ongoing!N58,"") -> 0 | N60: =IF($B60>0,Achievement_to_date_ongoing!$K58*Achievement_to_date_ongoing!O58,"") -> 0.8487920005 | O60: =IF($B60>0,Achievement_to_date_ongoing!$K58*Achievement_to_date_ongoing!P58,"") -> 0.8487920005
B61: =Achievement_to_date_ongoing!B59 -> ROBG-576 | C61: =IF($B61>0, Achievement_to_date_ongoing!C59, "") -> 2 | D61: =IF($B61>0, Achievement_to_date_ongoing!D59, "") -> All | E61: =IF($B61>0, Achievement_to_date_ongoing!E59, "") -> 6c.1 | F61: =IF($B61>0, Achievement_to_date_ongoing!F59, "") -> All | G61: 0 | H61: 1.08201581 | I61: 1.08201581 | J61: 1.08201581 | L61: =IF($B61>0,Achievement_to_date_ongoing!$K59*Achievement_to_date_ongoing!M59,"") -> 0 | M61: =IF($B61>0,Achievement_to_date_ongoing!$K59*Achievement_to_date_ongoing!N59,"") -> 1.08201581 | N61: =IF($B61>0,Achievement_to_date_ongoing!$K59*Achievement_to_date_ongoing!O59,"") -> 1.08201581 | O61: =IF($B61>0,Achievement_to_date_ongoing!$K59*Achievement_to_date_ongoing!P59,"") -> 1.08201581
B62: =Achievement_to_date_ongoing!B60 -> ROBG-407 | C62: =IF($B62>0, Achievement_to_date_ongoing!C60, "") -> 2 | D62: =IF($B62>0, Achievement_to_date_ongoing!D60, "") -> All | E62: =IF($B62>0, Achievement_to_date_ongoing!E60, "") -> 6c.1 | F62: =IF($B62>0, Achievement_to_date_ongoing!F60, "") -> All | G62: 0 | H62: 0 | I62: 0 | J62: 0.8487920005 | L62: =IF($B62>0,Achievement_to_date_ongoing!$K60*Achievement_to_date_ongoing!M60,"") -> 0 | M62: =IF($B62>0,Achievement_to_date_ongoing!$K60*Achievement_to_date_ongoing!N60,"") -> 0 | N62: =IF($B62>0,Achievement_to_date_ongoing!$K60*Achievement_to_date_ongoing!O60,"") -> 0 | O62: =IF($B62>0,Achievement_to_date_ongoing!$K60*Achievement_to_date_ongoing!P60,"") -> 0.8487920005
B63: =Achievement_to_date_ongoing!B61 -> ROBG-413 | C63: =IF($B63>0, Achievement_to_date_ongoing!C61, "") -> 2 | D63: =IF($B63>0, Achievement_to_date_ongoing!D61, "") -> All | E63: =IF($B63>0, Achievement_to_date_ongoing!E61, "") -> 6c.1 | F63: =IF($B63>0, Achievement_to_date_ongoing!F61, "") -> All | G63: 0 | H63: 0.8487920005 | I63: 0.8487920005 | J63: 0.8487920005 | L63: =IF($B63>0,Achievement_to_date_ongoing!$K61*Achievement_to_date_ongoing!M61,"") -> 0 | M63: =IF($B63>0,Achievement_to_date_ongoing!$K61*Achievement_to_date_ongoing!N61,"") -> 0.8487920005 | N63: =IF($B63>0,Achievement_to_date_ongoing!$K61*Achievement_to_date_ongoing!O61,"") -> 0.8487920005 | O63: =IF($B63>0,Achievement_to_date_ongoing!$K61*Achievement_to_date_ongoing!P61,"") -> 0.8487920005
B64: =Achievement_to_date_ongoing!B62 -> ROBG-128 | C64: =IF($B64>0, Achievement_to_date_ongoing!C62, "") -> 2 | D64: =IF($B64>0, Achievement_to_date_ongoing!D62, "") -> All | E64: =IF($B64>0, Achievement_to_date_ongoing!E62, "") -> 6c.1 | F64: =IF($B64>0, Achievement_to_date_ongoing!F62, "") -> All | G64: 0 | H64: 0 | I64: 7.639128005 | J64: 7.639128005 | L64: =IF($B64>0,Achievement_to_date_ongoing!$K62*Achievement_to_date_ongoing!M62,"") -> 0 | M64: =IF($B64>0,Achievement_to_date_ongoing!$K62*Achievement_to_date_ongoing!N62,"") -> 0 | N64: =IF($B64>0,Achievement_to_date_ongoing!$K62*Achievement_to_date_ongoing!O62,"") -> 7.639128005 | O64: =IF($B64>0,Achievement_to_date_ongoing!$K62*Achievement_to_date_ongoing!P62,"") -> 7.639128005
B65: =Achievement_to_date_ongoing!B63 -> ROBG-337 | C65: =IF($B65>0, Achievement_to_date_ongoing!C63, "") -> 2 | D65: =IF($B65>0, Achievement_to_date_ongoing!D63, "") -> All | E65: =IF($B65>0, Achievement_to_date_ongoing!E63, "") -> 6c.1 | F65: =IF($B65>0, Achievement_to_date_ongoing!F63, "") -> All | G65: 0 | H65: 15.64285714 | I65: 15.64285714 | J65: 15.64285714 | L65: =IF($B65>0,Achievement_to_date_ongoing!$K63*Achievement_to_date_ongoing!M63,"") -> 0 | M65: =IF($B65>0,Achievement_to_date_ongoing!$K63*Achievement_to_date_ongoing!N63,"") -> 15.64285714 | N65: =IF($B65>0,Achievement_to_date_ongoing!$K63*Achievement_to_date_ongoing!O63,"") -> 15.64285714 | O65: =IF($B65>0,Achievement_to_date_ongoing!$K63*Achievement_to_date_ongoing!P63,"") -> 15.64285714
B66: =Achievement_to_date_ongoing!B64 -> ROBG-424 | C66: =IF($B66>0, Achievement_to_date_ongoing!C64, "") -> 2 | D66: =IF($B66>0, Achievement_to_date_ongoing!D64, "") -> All | E66: =IF($B66>0, Achievement_to_date_ongoing!E64, "") -> 6c.1 | F66: =IF($B66>0, Achievement_to_date_ongoing!F64, "") -> All | G66: 0 | H66: 0 | I66: 0 | J66: 0.8487920005 | L66: =IF($B66>0,Achievement_to_date_ongoing!$K64*Achievement_to_date_ongoing!M64,"") -> 0 | M66: =IF($B66>0,Achievement_to_date_ongoing!$K64*Achievement_to_date_ongoing!N64,"") -> 0 | N66: =IF($B66>0,Achievement_to_date_ongoing!$K64*Achievement_to_date_ongoing!O64,"") -> 0 | O66: =IF($B66>0,Achievement_to_date_ongoing!$K64*Achievement_to_date_ongoing!P64,"") -> 0.8487920005
B67: =Achievement_to_date_ongoing!B65 -> ROBG-507 | C67: =IF($B67>0, Achievement_to_date_ongoing!C65, "") -> 2 | D67: =IF($B67>0, Achievement_to_date_ongoing!D65, "") -> All | E67: =IF($B67>0, Achievement_to_date_ongoing!E65, "") -> 6c.1 | F67: =IF($B67>0, Achievement_to_date_ongoing!F65, "") -> All | G67: 0 | H67: 3.395168002 | I67: 3.395168002 | J67: 3.395168002 | L67: =IF($B67>0,Achievement_to_date_ongoing!$K65*Achievement_to_date_ongoing!M65,"") -> 0 | M67: =IF($B67>0,Achievement_to_date_ongoing!$K65*Achievement_to_date_ongoing!N65,"") -> 3.395168002 | N67: =IF($B67>0,Achievement_to_date_ongoing!$K65*Achievement_to_date_ongoing!O65,"") -> 3.395168002 | O67: =IF($B67>0,Achievement_to_date_ongoing!$K65*Achievement_to_date_ongoing!P65,"") -> 3.395168002
B68: =Achievement_to_date_ongoing!B66 -> ROBG-453 | C68: =IF($B68>0, Achievement_to_date_ongoing!C66, "") -> 2 | D68: =IF($B68>0, Achievement_to_date_ongoing!D66, "") -> All | E68: =IF($B68>0, Achievement_to_date_ongoing!E66, "") -> 6c.1 | F68: =IF($B68>0, Achievement_to_date_ongoing!F66, "") -> All | G68: 0 | H68: 1.049309665 | I68: 1.049309665 | J68: 1.049309665 | L68: =IF($B68>0,Achievement_to_date_ongoing!$K66*Achievement_to_date_ongoing!M66,"") -> 0 | M68: =IF($B68>0,Achievement_to_date_ongoing!$K66*Achievement_to_date_ongoing!N66,"") -> 1.049309665 | N68: =IF($B68>0,Achievement_to_date_ongoing!$K66*Achievement_to_date_ongoing!O66,"") -> 1.049309665 | O68: =IF($B68>0,Achievement_to_date_ongoing!$K66*Achievement_to_date_ongoing!P66,"") -> 1.049309665
B69: =Achievement_to_date_ongoing!B67 -> ROBG-423 | C69: =IF($B69>0, Achievement_to_date_ongoing!C67, "") -> 2 | D69: =IF($B69>0, Achievement_to_date_ongoing!D67, "") -> All | E69: =IF($B69>0, Achievement_to_date_ongoing!E67, "") -> 6c.1 | F69: =IF($B69>0, Achievement_to_date_ongoing!F67, "") -> All | G69: 0 | H69: 4.243960003 | I69: 4.243960003 | J69: 4.243960003 | L69: =IF($B69>0,Achievement_to_date_ongoing!$K67*Achievement_to_date_ongoing!M67,"") -> 0 | M69: =IF($B69>0,Achievement_to_date_ongoing!$K67*Achievement_to_date_ongoing!N67,"") -> 4.243960003 | N69: =IF($B69>0,Achievement_to_date_ongoing!$K67*Achievement_to_date_ongoing!O67,"") -> 4.243960003 | O69: =IF($B69>0,Achievement_to_date_ongoing!$K67*Achievement_to_date_ongoing!P67,"") -> 4.243960003
B70: =Achievement_to_date_ongoing!B68 -> ROBG-499 | C70: =IF($B70>0, Achievement_to_date_ongoing!C68, "") -> 2 | D70: =IF($B70>0, Achievement_to_date_ongoing!D68, "") -> All | E70: =IF($B70>0, Achievement_to_date_ongoing!E68, "") -> 6c.1 | F70: =IF($B70>0, Achievement_to_date_ongoing!F68, "") -> All | G70: 0 | H70: 5.092752003 | I70: 5.092752003 | J70: 5.092752003 | L70: =IF($B70>0,Achievement_to_date_ongoing!$K68*Achievement_to_date_ongoing!M68,"") -> 0 | M70: =IF($B70>0,Achievement_to_date_ongoing!$K68*Achievement_to_date_ongoing!N68,"") -> 5.092752003 | N70: =IF($B70>0,Achievement_to_date_ongoing!$K68*Achievement_to_date_ongoing!O68,"") -> 5.092752003 | O70: =IF($B70>0,Achievement_to_date_ongoing!$K68*Achievement_to_date_ongoing!P68,"") -> 5.092752003
B71: =Achievement_to_date_ongoing!B69 -> ROBG-271 | C71: =IF($B71>0, Achievement_to_date_ongoing!C69, "") -> 2 | D71: =IF($B71>0, Achievement_to_date_ongoing!D69, "") -> All | E71: =IF($B71>0, Achievement_to_date_ongoing!E69, "") -> 6c.1 | F71: =IF($B71>0, Achievement_to_date_ongoing!F69, "") -> All | G71: 0 | H71: 0 | I71: 1.697584001 | J71: 1.697584001 | L71: =IF($B71>0,Achievement_to_date_ongoing!$K69*Achievement_to_date_ongoing!M69,"") -> 0 | M71: =IF($B71>0,Achievement_to_date_ongoing!$K69*Achievement_to_date_ongoing!N69,"") -> 0 | N71: =IF($B71>0,Achievement_to_date_ongoing!$K69*Achievement_to_date_ongoing!O69,"") -> 1.697584001 | O71: =IF($B71>0,Achievement_to_date_ongoing!$K69*Achievement_to_date_ongoing!P69,"") -> 1.697584001
B72: =Achievement_to_date_ongoing!B70 -> ROBG-366 | C72: =IF($B72>0, Achievement_to_date_ongoing!C70, "") -> 2 | D72: =IF($B72>0, Achievement_to_date_ongoing!D70, "") -> All | E72: =IF($B72>0, Achievement_to_date_ongoing!E70, "") -> 6c.1 | F72: =IF($B72>0, Achievement_to_date_ongoing!F70, "") -> All | G72: 0 | H72: 2.136585366 | I72: 2.136585366 | J72: 2.136585366 | L72: =IF($B72>0,Achievement_to_date_ongoing!$K70*Achievement_to_date_ongoing!M70,"") -> 0 | M72: =IF($B72>0,Achievement_to_date_ongoing!$K70*Achievement_to_date_ongoing!N70,"") -> 2.136585366 | N72: =IF($B72>0,Achievement_to_date_ongoing!$K70*Achievement_to_date_ongoing!O70,"") -> 2.136585366 | O72: =IF($B72>0,Achievement_to_date_ongoing!$K70*Achievement_to_date_ongoing!P70,"") -> 2.136585366
B73: =Achievement_to_date_ongoing!B71 -> ROBG-397 | C73: =IF($B73>0, Achievement_to_date_ongoing!C71, "") -> 2 | D73: =IF($B73>0, Achievement_to_date_ongoing!D71, "") -> All | E73: =IF($B73>0, Achievement_to_date_ongoing!E71, "") -> 6c.1 | F73: =IF($B73>0, Achievement_to_date_ongoing!F71, "") -> All | G73: 0 | H73: 0 | I73: 0 | J73: 7.639128005 | L73: =IF($B73>0,Achievement_to_date_ongoing!$K71*Achievement_to_date_ongoing!M71,"") -> 0 | M73: =IF($B73>0,Achievement_to_date_ongoing!$K71*Achievement_to_date_ongoing!N71,"") -> 0 | N73: =IF($B73>0,Achievement_to_date_ongoing!$K71*Achievement_to_date_ongoing!O71,"") -> 0 | O73: =IF($B73>0,Achievement_to_date_ongoing!$K71*Achievement_to_date_ongoing!P71,"") -> 7.639128005
B74: =Achievement_to_date_ongoing!B72 -> ROBG-471 | C74: =IF($B74>0, Achievement_to_date_ongoing!C72, "") -> 2 | D74: =IF($B74>0, Achievement_to_date_ongoing!D72, "") -> All | E74: =IF($B74>0, Achievement_to_date_ongoing!E72, "") -> 6c.1 | F74: =IF($B74>0, Achievement_to_date_ongoing!F72, "") -> All | G74: 0 | H74: 3.395168002 | I74: 3.395168002 | J74: 3.395168002 | L74: =IF($B74>0,Achievement_to_date_ongoing!$K72*Achievement_to_date_ongoing!M72,"") -> 0 | M74: =IF($B74>0,Achievement_to_date_ongoing!$K72*Achievement_to_date_ongoing!N72,"") -> 3.395168002 | N74: =IF($B74>0,Achievement_to_date_ongoing!$K72*Achievement_to_date_ongoing!O72,"") -> 3.395168002 | O74: =IF($B74>0,Achievement_to_date_ongoing!$K72*Achievement_to_date_ongoing!P72,"") -> 3.395168002
B75: =Achievement_to_date_ongoing!B73 -> ROBG-528 | C75: =IF($B75>0, Achievement_to_date_ongoing!C73, "") -> 2 | D75: =IF($B75>0, Achievement_to_date_ongoing!D73, "") -> All | E75: =IF($B75>0, Achievement_to_date_ongoing!E73, "") -> 6c.1 | F75: =IF($B75>0, Achievement_to_date_ongoing!F73, "") -> All | G75: 0 | H75: 2.546376002 | I75: 2.546376002 | J75: 2.546376002 | L75: =IF($B75>0,Achievement_to_date_ongoing!$K73*Achievement_to_date_ongoing!M73,"") -> 0 | M75: =IF($B75>0,Achievement_to_date_ongoing!$K73*Achievement_to_date_ongoing!N73,"") -> 2.546376002 | N75: =IF($B75>0,Achievement_to_date_ongoing!$K73*Achievement_to_date_ongoing!O73,"") -> 2.546376002 | O75: =IF($B75>0,Achievement_to_date_ongoing!$K73*Achievement_to_date_ongoing!P73,"") -> 2.546376002
B76: =Achievement_to_date_ongoing!B74 -> ROBG-491 | C76: =IF($B76>0, Achievement_to_date_ongoing!C74, "") -> 2 | D76: =IF($B76>0, Achievement_to_date_ongoing!D74, "") -> All | E76: =IF($B76>0, Achievement_to_date_ongoing!E74, "") -> 6c.1 | F76: =IF($B76>0, Achievement_to_date_ongoing!F74, "") -> All | G76: 0 | H76: 0 | I76: 2.546376002 | J76: 2.546376002 | L76: =IF($B76>0,Achievement_to_date_ongoing!$K74*Achievement_to_date_ongoing!M74,"") -> 0 | M76: =IF($B76>0,Achievement_to_date_ongoing!$K74*Achievement_to_date_ongoing!N74,"") -> 0 | N76: =IF($B76>0,Achievement_to_date_ongoing!$K74*Achievement_to_date_ongoing!O74,"") -> 2.546376002 | O76: =IF($B76>0,Achievement_to_date_ongoing!$K74*Achievement_to_date_ongoing!P74,"") -> 2.546376002
B77: =Achievement_to_date_ongoing!B75 -> ROBG-134 | C77: =IF($B77>0, Achievement_to_date_ongoing!C75, "") -> 2 | D77: =IF($B77>0, Achievement_to_date_ongoing!D75, "") -> All | E77: =IF($B77>0, Achievement_to_date_ongoing!E75, "") -> 6c.1 | F77: =IF($B77>0, Achievement_to_date_ongoing!F75, "") -> All | G77: 0 | H77: 0.8487920005 | I77: 0.8487920005 | J77: 0.8487920005 | L77: =IF($B77>0,Achievement_to_date_ongoing!$K75*Achievement_to_date_ongoing!M75,"") -> 0 | M77: =IF($B77>0,Achievement_to_date_ongoing!$K75*Achievement_to_date_ongoing!N75,"") -> 0.8487920005 | N77: =IF($B77>0,Achievement_to_date_ongoing!$K75*Achievement_to_date_ongoing!O75,"") -> 0.8487920005 | O77: =IF($B77>0,Achievement_to_date_ongoing!$K75*Achievement_to_date_ongoing!P75,"") -> 0.8487920005
B78: =Achievement_to_date_ongoing!B76 -> ROBG-568 | C78: =IF($B78>0, Achievement_to_date_ongoing!C76, "") -> 2 | D78: =IF($B78>0, Achievement_to_date_ongoing!D76, "") -> All | E78: =IF($B78>0, Achievement_to_date_ongoing!E76, "") -> 6c.1 | F78: =IF($B78>0, Achievement_to_date_ongoing!F76, "") -> All | G78: 0 | H78: 0 | I78: 0.8487920005 | J78: 0.8487920005 | L78: =IF($B78>0,Achievement_to_date_ongoing!$K76*Achievement_to_date_ongoing!M76,"") -> 0 | M78: =IF($B78>0,Achievement_to_date_ongoing!$K76*Achievement_to_date_ongoing!N76,"") -> 0 | N78: =IF($B78>0,Achievement_to_date_ongoing!$K76*Achievement_to_date_ongoing!O76,"") -> 0.8487920005 | O78: =IF($B78>0,Achievement_to_date_ongoing!$K76*Achievement_to_date_ongoing!P76,"") -> 0.8487920005
B79: =Achievement_to_date_ongoing!B77 -> ROBG-302 | C79: =IF($B79>0, Achievement_to_date_ongoing!C77, "") -> 2 | D79: =IF($B79>0, Achievement_to_date_ongoing!D77, "") -> All | E79: =IF($B79>0, Achievement_to_date_ongoing!E77, "") -> 6c.1 | F79: =IF($B79>0, Achievement_to_date_ongoing!F77, "") -> All | G79: 0 | H79: 0 | I79: 0 | J79: 2.546376002 | L79: =IF($B79>0,Achievement_to_date_ongoing!$K77*Achievement_to_date_ongoing!M77,"") -> 0 | M79: =IF($B79>0,Achievement_to_date_ongoing!$K77*Achievement_to_date_ongoing!N77,"") -> 0 | N79: =IF($B79>0,Achievement_to_date_ongoing!$K77*Achievement_to_date_ongoing!O77,"") -> 0 | O79: =IF($B79>0,Achievement_to_date_ongoing!$K77*Achievement_to_date_ongoing!P77,"") -> 2.546376002
B80: =Achievement_to_date_ongoing!B78 -> ROBG-290 | C80: =IF($B80>0, Achievement_to_date_ongoing!C78, "") -> 2 | D80: =IF($B80>0, Achievement_to_date_ongoing!D78, "") -> All | E80: =IF($B80>0, Achievement_to_date_ongoing!E78, "") -> 6c.1 | F80: =IF($B80>0, Achievement_to_date_ongoing!F78, "") -> All | G80: 0 | H80: 1.697584001 | I80: 1.697584001 | J80: 1.697584001 | L80: =IF($B80>0,Achievement_to_date_ongoing!$K78*Achievement_to_date_ongoing!M78,"") -> 0 | M80: =IF($B80>0,Achievement_to_date_ongoing!$K78*Achievement_to_date_ongoing!N78,"") -> 1.697584001 | N80: =IF($B80>0,Achievement_to_date_ongoing!$K78*Achievement_to_date_ongoing!O78,"") -> 1.697584001 | O80: =IF($B80>0,Achievement_to_date_ongoing!$K78*Achievement_to_date_ongoing!P78,"") -> 1.697584001
B81: =Achievement_to_date_ongoing!B79 -> ROBG-419 | C81: =IF($B81>0, Achievement_to_date_ongoing!C79, "") -> 2 | D81: =IF($B81>0, Achievement_to_date_ongoing!D79, "") -> All | E81: =IF($B81>0, Achievement_to_date_ongoing!E79, "") -> 2F1 | F81: =IF($B81>0, Achievement_to_date_ongoing!F79, "") -> All | G81: 1235847.948 | H81: 1235847.948 | I81: 1235847.948 | J81: 1235847.948 | L81: =IF($B81>0,Achievement_to_date_ongoing!$K79*Achievement_to_date_ongoing!M79,"") -> 0 | M81: =IF($B81>0,Achievement_to_date_ongoing!$K79*Achievement_to_date_ongoing!N79,"") -> 1235847.948 | N81: =IF($B81>0,Achievement_to_date_ongoing!$K79*Achievement_to_date_ongoing!O79,"") -> 1235847.948 | O81: =IF($B81>0,Achievement_to_date_ongoing!$K79*Achievement_to_date_ongoing!P79,"") -> 1235847.948
B82: =Achievement_to_date_ongoing!B80 -> ROBG-456 | C82: =IF($B82>0, Achievement_to_date_ongoing!C80, "") -> 2 | D82: =IF($B82>0, Achievement_to_date_ongoing!D80, "") -> All | E82: =IF($B82>0, Achievement_to_date_ongoing!E80, "") -> 2F1 | F82: =IF($B82>0, Achievement_to_date_ongoing!F80, "") -> All | G82: 1221005.885 | H82: 1221005.885 | I82: 1221005.885 | J82: 1221005.885 | L82: =IF($B82>0,Achievement_to_date_ongoing!$K80*Achievement_to_date_ongoing!M80,"") -> 0 | M82: =IF($B82>0,Achievement_to_date_ongoing!$K80*Achievement_to_date_ongoing!N80,"") -> 1221005.885 | N82: =IF($B82>0,Achievement_to_date_ongoing!$K80*Achievement_to_date_ongoing!O80,"") -> 1221005.885 | O82: =IF($B82>0,Achievement_to_date_ongoing!$K80*Achievement_to_date_ongoing!P80,"") -> 1221005.885
B83: =Achievement_to_date_ongoing!B81 -> ROBG-511 | C83: =IF($B83>0, Achievement_to_date_ongoing!C81, "") -> 2 | D83: =IF($B83>0, Achievement_to_date_ongoing!D81, "") -> All | E83: =IF($B83>0, Achievement_to_date_ongoing!E81, "") -> 2F1 | F83: =IF($B83>0, Achievement_to_date_ongoing!F81, "") -> All | G83: 1297849.968 | H83: 1297849.968 | I83: 1297849.968 | J83: 1297849.968 | L83: =IF($B83>0,Achievement_to_date_ongoing!$K81*Achievement_to_date_ongoing!M81,"") -> 0 | M83: =IF($B83>0,Achievement_to_date_ongoing!$K81*Achievement_to_date_ongoing!N81,"") -> 0 | N83: =IF($B83>0,Achievement_to_date_ongoing!$K81*Achievement_to_date_ongoing!O81,"") -> 1297849.968 | O83: =IF($B83>0,Achievement_to_date_ongoing!$K81*Achievement_to_date_ongoing!P81,"") -> 1297849.968
B84: =Achievement_to_date_ongoing!B82 -> ROBG-422 | C84: =IF($B84>0, Achievement_to_date_ongoing!C82, "") -> 2 | D84: =IF($B84>0, Achievement_to_date_ongoing!D82, "") -> All | E84: =IF($B84>0, Achievement_to_date_ongoing!E82, "") -> 2F1 | F84: =IF($B84>0, Achievement_to_date_ongoing!F82, "") -> All | G84: 1298149.254 | H84: 1298149.254 | I84: 1298149.254 | J84: 1298149.254 | L84: =IF($B84>0,Achievement_to_date_ongoing!$K82*Achievement_to_date_ongoing!M82,"") -> 0 | M84: =IF($B84>0,Achievement_to_date_ongoing!$K82*Achievement_to_date_ongoing!N82,"") -> 1298149.254 | N84: =IF($B84>0,Achievement_to_date_ongoing!$K82*Achievement_to_date_ongoing!O82,"") -> 1298149.254 | O84: =IF($B84>0,Achievement_to_date_ongoing!$K82*Achievement_to_date_ongoing!P82,"") -> 1298149.254
B85: =Achievement_to_date_ongoing!B83 -> ROBG-378 | C85: =IF($B85>0, Achievement_to_date_ongoing!C83, "") -> 2 | D85: =IF($B85>0, Achievement_to_date_ongoing!D83, "") -> All | E85: =IF($B85>0, Achievement_to_date_ongoing!E83, "") -> 2F1 | F85: =IF($B85>0, Achievement_to_date_ongoing!F83, "") -> All | G85: 205408.2485 | H85: 362968.2828 | I85: 362968.2828 | J85: 362968.2828 | L85: =IF($B85>0,Achievement_to_date_ongoing!$K83*Achievement_to_date_ongoing!M83,"") -> 0 | M85: =IF($B85>0,Achievement_to_date_ongoing!$K83*Achievement_to_date_ongoing!N83,"") -> 0 | N85: =IF($B85>0,Achievement_to_date_ongoing!$K83*Achievement_to_date_ongoing!O83,"") -> 362968.2828 | O85: =IF($B85>0,Achievement_to_date_ongoing!$K83*Achievement_to_date_ongoing!P83,"") -> 362968.2828
B86: =Achievement_to_date_ongoing!B84 -> ROBG-576 | C86: =IF($B86>0, Achievement_to_date_ongoing!C84, "") -> 2 | D86: =IF($B86>0, Achievement_to_date_ongoing!D84, "") -> All | E86: =IF($B86>0, Achievement_to_date_ongoing!E84, "") -> 2F1 | F86: =IF($B86>0, Achievement_to_date_ongoing!F84, "") -> All | G86: 1287217.012 | H86: 1287217.012 | I86: 1287217.012 | J86: 1287217.012 | L86: =IF($B86>0,Achievement_to_date_ongoing!$K84*Achievement_to_date_ongoing!M84,"") -> 0 | M86: =IF($B86>0,Achievement_to_date_ongoing!$K84*Achievement_to_date_ongoing!N84,"") -> 1287217.012 | N86: =IF($B86>0,Achievement_to_date_ongoing!$K84*Achievement_to_date_ongoing!O84,"") -> 1287217.012 | O86: =IF($B86>0,Achievement_to_date_ongoing!$K84*Achievement_to_date_ongoing!P84,"") -> 1287217.012
B87: =Achievement_to_date_ongoing!B85 -> ROBG-407 | C87: =IF($B87>0, Achievement_to_date_ongoing!C85, "") -> 2 | D87: =IF($B87>0, Achievement_to_date_ongoing!D85, "") -> All | E87: =IF($B87>0, Achievement_to_date_ongoing!E85, "") -> 2F1 | F87: =IF($B87>0, Achievement_to_date_ongoing!F85, "") -> All | G87: 1293073.144 | H87: 1293073.144 | I87: 1293073.144 | J87: 1293073.144 | L87: =IF($B87>0,Achievement_to_date_ongoing!$K85*Achievement_to_date_ongoing!M85,"") -> 0 | M87: =IF($B87>0,Achievement_to_date_ongoing!$K85*Achievement_to_date_ongoing!N85,"") -> 0 | N87: =IF($B87>0,Achievement_to_date_ongoing!$K85*Achievement_to_date_ongoing!O85,"") -> 0 | O87: =IF($B87>0,Achievement_to_date_ongoing!$K85*Achievement_to_date_ongoing!P85,"") -> 1293073.144
B88: =Achievement_to_date_ongoing!B86 -> ROBG-413 | C88: =IF($B88>0, Achievement_to_date_ongoing!C86, "") -> 2 | D88: =IF($B88>0, Achievement_to_date_ongoing!D86, "") -> All | E88: =IF($B88>0, Achievement_to_date_ongoing!E86, "") -> 2F1 | F88: =IF($B88>0, Achievement_to_date_ongoing!F86, "") -> All | G88: 950274.0954 | H88: 950274.0954 | I88: 950274.0954 | J88: 950274.0954 | L88: =IF($B88>0,Achievement_to_date_ongoing!$K86*Achievement_to_date_ongoing!M86,"") -> 0 | M88: =IF($B88>0,Achievement_to_date_ongoing!$K86*Achievement_to_date_ongoing!N86,"") -> 950274.0954 | N88: =IF($B88>0,Achievement_to_date_ongoing!$K86*Achievement_to_date_ongoing!O86,"") -> 950274.0954 | O88: =IF($B88>0,Achievement_to_date_ongoing!$K86*Achievement_to_date_ongoing!P86,"") -> 950274.0954
B89: =Achievement_to_date_ongoing!B87 -> ROBG-128 | C89: =IF($B89>0, Achievement_to_date_ongoing!C87, "") -> 2 | D89: =IF($B89>0, Achievement_to_date_ongoing!D87, "") -> All | E89: =IF($B89>0, Achievement_to_date_ongoing!E87, "") -> 2F1 | F89: =IF($B89>0, Achievement_to_date_ongoing!F87, "") -> All | G89: 5051189.118 | H89: 5051189.118 | I89: 5051189.118 | J89: 5051189.118 | L89: =IF($B89>0,Achievement_to_date_ongoing!$K87*Achievement_to_date_ongoing!M87,"") -> 0 | M89: =IF($B89>0,Achievement_to_date_ongoing!$K87*Achievement_to_date_ongoing!N87,"") -> 0 | N89: =IF($B89>0,Achievement_to_date_ongoing!$K87*Achievement_to_date_ongoing!O87,"") -> 5051189.118 | O89: =IF($B89>0,Achievement_to_date_ongoing!$K87*Achievement_to_date_ongoing!P87,"") -> 5051189.118
B90: =Achievement_to_date_ongoing!B88 -> ROBG-337 | C90: =IF($B90>0, Achievement_to_date_ongoing!C88, "") -> 2 | D90: =IF($B90>0, Achievement_to_date_ongoing!D88, "") -> All | E90: =IF($B90>0, Achievement_to_date_ongoing!E88, "") -> 2F1 | F90: =IF($B90>0, Achievement_to_date_ongoing!F88, "") -> All | G90: 1279472.149 | H90: 1279472.149 | I90: 1279472.149 | J90: 1279472.149 | L90: =IF($B90>0,Achievement_to_date_ongoing!$K88*Achievement_to_date_ongoing!M88,"") -> 0 | M90: =IF($B90>0,Achievement_to_date_ongoing!$K88*Achievement_to_date_ongoing!N88,"") -> 1279472.149 | N90: =IF($B90>0,Achievement_to_date_ongoing!$K88*Achievement_to_date_ongoing!O88,"") -> 1279472.149 | O90: =IF($B90>0,Achievement_to_date_ongoing!$K88*Achievement_to_date_ongoing!P88,"") -> 1279472.149
B91: =Achievement_to_date_ongoing!B89 -> ROBG-424 | C91: =IF($B91>0, Achievement_to_date_ongoing!C89, "") -> 2 | D91: =IF($B91>0, Achievement_to_date_ongoing!D89, "") -> All | E91: =IF($B91>0, Achievement_to_date_ongoing!E89, "") -> 2F1 | F91: =IF($B91>0, Achievement_to_date_ongoing!F89, "") -> All | G91: 1234845.158 | H91: 1234845.158 | I91: 1234845.158 | J91: 1234845.158 | L91: =IF($B91>0,Achievement_to_date_ongoing!$K89*Achievement_to_date_ongoing!M89,"") -> 0 | M91: =IF($B91>0,Achievement_to_date_ongoing!$K89*Achievement_to_date_ongoing!N89,"") -> 0 | N91: =IF($B91>0,Achievement_to_date_ongoing!$K89*Achievement_to_date_ongoing!O89,"") -> 0 | O91: =IF($B91>0,Achievement_to_date_ongoing!$K89*Achievement_to_date_ongoing!P89,"") -> 1234845.158
B92: =Achievement_to_date_ongoing!B90 -> ROBG-507 | C92: =IF($B92>0, Achievement_to_date_ongoing!C90, "") -> 2 | D92: =IF($B92>0, Achievement_to_date_ongoing!D90, "") -> All | E92: =IF($B92>0, Achievement_to_date_ongoing!E90, "") -> 2F1 | F92: =IF($B92>0, Achievement_to_date_ongoing!F90, "") -> All | G92: 343523.0303 | H92: 343523.0303 | I92: 343523.0303 | J92: 343523.0303 | L92: =IF($B92>0,Achievement_to_date_ongoing!$K90*Achievement_to_date_ongoing!M90,"") -> 0 | M92: =IF($B92>0,Achievement_to_date_ongoing!$K90*Achievement_to_date_ongoing!N90,"") -> 343523.0303 | N92: =IF($B92>0,Achievement_to_date_ongoing!$K90*Achievement_to_date_ongoing!O90,"") -> 343523.0303 | O92: =IF($B92>0,Achievement_to_date_ongoing!$K90*Achievement_to_date_ongoing!P90,"") -> 343523.0303
B93: =Achievement_to_date_ongoing!B91 -> ROBG-453 | C93: =IF($B93>0, Achievement_to_date_ongoing!C91, "") -> 2 | D93: =IF($B93>0, Achievement_to_date_ongoing!D91, "") -> All | E93: =IF($B93>0, Achievement_to_date_ongoing!E91, "") -> 2F1 | F93: =IF($B93>0, Achievement_to_date_ongoing!F91, "") -> All | G93: 1055854.369 | H93: 1055854.369 | I93: 1055854.369 | J93: 1055854.369 | L93: =IF($B93>0,Achievement_to_date_ongoing!$K91*Achievement_to_date_ongoing!M91,"") -> 0 | M93: =IF($B93>0,Achievement_to_date_ongoing!$K91*Achievement_to_date_ongoing!N91,"") -> 1055854.369 | N93: =IF($B93>0,Achievement_to_date_ongoing!$K91*Achievement_to_date_ongoing!O91,"") -> 1055854.369 | O93: =IF($B93>0,Achievement_to_date_ongoing!$K91*Achievement_to_date_ongoing!P91,"") -> 1055854.369
B94: =Achievement_to_date_ongoing!B92 -> ROBG-423 | C94: =IF($B94>0, Achievement_to_date_ongoing!C92, "") -> 2 | D94: =IF($B94>0, Achievement_to_date_ongoing!D92, "") -> All | E94: =IF($B94>0, Achievement_to_date_ongoing!E92, "") -> 2F1 | F94: =IF($B94>0, Achievement_to_date_ongoing!F92, "") -> All | G94: 1221527.905 | H94: 1221527.905 | I94: 1221527.905 | J94: 1221527.905 | L94: =IF($B94>0,Achievement_to_date_ongoing!$K92*Achievement_to_date_ongoing!M92,"") -> 0 | M94: =IF($B94>0,Achievement_to_date_ongoing!$K92*Achievement_to_date_ongoing!N92,"") -> 1221527.905 | N94: =IF($B94>0,Achievement_to_date_ongoing!$K92*Achievement_to_date_ongoing!O92,"") -> 1221527.905 | O94: =IF($B94>0,Achievement_to_date_ongoing!$K92*Achievement_to_date_ongoing!P92,"") -> 1221527.905
B95: =Achievement_to_date_ongoing!B93 -> ROBG-499 | C95: =IF($B95>0, Achievement_to_date_ongoing!C93, "") -> 2 | D95: =IF($B95>0, Achievement_to_date_ongoing!D93, "") -> All | E95: =IF($B95>0, Achievement_to_date_ongoing!E93, "") -> 2F1 | F95: =IF($B95>0, Achievement_to_date_ongoing!F93, "") -> All | G95: 415136.1588 | H95: 415136.1588 | I95: 415136.1588 | J95: 415136.1588 | L95: =IF($B95>0,Achievement_to_date_ongoing!$K93*Achievement_to_date_ongoing!M93,"") -> 0 | M95: =IF($B95>0,Achievement_to_date_ongoing!$K93*Achievement_to_date_ongoing!N93,"") -> 415136.1588 | N95: =IF($B95>0,Achievement_to_date_ongoing!$K93*Achievement_to_date_ongoing!O93,"") -> 415136.1588 | O95: =IF($B95>0,Achievement_to_date_ongoing!$K93*Achievement_to_date_ongoing!P93,"") -> 415136.1588
B96: =Achievement_to_date_ongoing!B94 -> ROBG-271 | C96: =IF($B96>0, Achievement_to_date_ongoing!C94, "") -> 2 | D96: =IF($B96>0, Achievement_to_date_ongoing!D94, "") -> All | E96: =IF($B96>0, Achievement_to_date_ongoing!E94, "") -> 2F1 | F96: =IF($B96>0, Achievement_to_date_ongoing!F94, "") -> All | G96: 410970.0844 | H96: 410970.0844 | I96: 410970.0844 | J96: 410970.0844 | L96: =IF($B96>0,Achievement_to_date_ongoing!$K94*Achievement_to_date_ongoing!M94,"") -> 0 | M96: =IF($B96>0,Achievement_to_date_ongoing!$K94*Achievement_to_date_ongoing!N94,"") -> 0 | N96: =IF($B96>0,Achievement_to_date_ongoing!$K94*Achievement_to_date_ongoing!O94,"") -> 410970.0844 | O96: =IF($B96>0,Achievement_to_date_ongoing!$K94*Achievement_to_date_ongoing!P94,"") -> 410970.0844
B97: =Achievement_to_date_ongoing!B95 -> ROBG-366 | C97: =IF($B97>0, Achievement_to_date_ongoing!C95, "") -> 2 | D97: =IF($B97>0, Achievement_to_date_ongoing!D95, "") -> All | E97: =IF($B97>0, Achievement_to_date_ongoing!E95, "") -> 2F1 | F97: =IF($B97>0, Achievement_to_date_ongoing!F95, "") -> All | G97: 409941.3728 | H97: 409941.3728 | I97: 409941.3728 | J97: 409941.3728 | L97: =IF($B97>0,Achievement_to_date_ongoing!$K95*Achievement_to_date_ongoing!M95,"") -> 0 | M97: =IF($B97>0,Achievement_to_date_ongoing!$K95*Achievement_to_date_ongoing!N95,"") -> 409941.3728 | N97: =IF($B97>0,Achievement_to_date_ongoing!$K95*Achievement_to_date_ongoing!O95,"") -> 409941.3728 | O97: =IF($B97>0,Achievement_to_date_ongoing!$K95*Achievement_to_date_ongoing!P95,"") -> 409941.3728
B98: =Achievement_to_date_ongoing!B96 -> ROBG-397 | C98: =IF($B98>0, Achievement_to_date_ongoing!C96, "") -> 2 | D98: =IF($B98>0, Achievement_to_date_ongoing!D96, "") -> All | E98: =IF($B98>0, Achievement_to_date_ongoing!E96, "") -> 2F1 | F98: =IF($B98>0, Achievement_to_date_ongoing!F96, "") -> All | G98: 1284304.105 | H98: 1284304.105 | I98: 1284304.105 | J98: 1284304.105 | L98: =IF($B98>0,Achievement_to_date_ongoing!$K96*Achievement_to_date_ongoing!M96,"") -> 0 | M98: =IF($B98>0,Achievement_to_date_ongoing!$K96*Achievement_to_date_ongoing!N96,"") -> 0 | N98: =IF($B98>0,Achievement_to_date_ongoing!$K96*Achievement_to_date_ongoing!O96,"") -> 0 | O98: =IF($B98>0,Achievement_to_date_ongoing!$K96*Achievement_to_date_ongoing!P96,"") -> 1284304.105
B99: =Achievement_to_date_ongoing!B97 -> ROBG-471 | C99: =IF($B99>0, Achievement_to_date_ongoing!C97, "") -> 2 | D99: =IF($B99>0, Achievement_to_date_ongoing!D97, "") -> All | E99: =IF($B99>0, Achievement_to_date_ongoing!E97, "") -> 2F1 | F99: =IF($B99>0, Achievement_to_date_ongoing!F97, "") -> All | G99: 1180906.318 | H99: 1180906.318 | I99: 1180906.318 | J99: 1180906.318 | L99: =IF($B99>0,Achievement_to_date_ongoing!$K97*Achievement_to_date_ongoing!M97,"") -> 0 | M99: =IF($B99>0,Achievement_to_date_ongoing!$K97*Achievement_to_date_ongoing!N97,"") -> 1180906.318 | N99: =IF($B99>0,Achievement_to_date_ongoing!$K97*Achievement_to_date_ongoing!O97,"") -> 1180906.318 | O99: =IF($B99>0,Achievement_to_date_ongoing!$K97*Achievement_to_date_ongoing!P97,"") -> 1180906.318
B100: =Achievement_to_date_ongoing!B98 -> ROBG-528 | C100: =IF($B100>0, Achievement_to_date_ongoing!C98, "") -> 2 | D100: =IF($B100>0, Achievement_to_date_ongoing!D98, "") -> All | E100: =IF($B100>0, Achievement_to_date_ongoing!E98, "") -> 2F1 | F100: =IF($B100>0, Achievement_to_date_ongoing!F98, "") -> All | G100: 1275085.09 | H100: 1275085.09 | I100: 1275085.09 | J100: 1275085.09 | L100: =IF($B100>0,Achievement_to_date_ongoing!$K98*Achievement_to_date_ongoing!M98,"") -> 0 | M100: =IF($B100>0,Achievement_to_date_ongoing!$K98*Achievement_to_date_ongoing!N98,"") -> 1275085.09 | N100: =IF($B100>0,Achievement_to_date_ongoing!$K98*Achievement_to_date_ongoing!O98,"") -> 1275085.09 | O100: =IF($B100>0,Achievement_to_date_ongoing!$K98*Achievement_to_date_ongoing!P98,"") -> 1275085.09
B101: =Achievement_to_date_ongoing!B99 -> ROBG-491 | C101: =IF($B101>0, Achievement_to_date_ongoing!C99, "") -> 2 | D101: =IF($B101>0, Achievement_to_date_ongoing!D99, "") -> All | E101: =IF($B101>0, Achievement_to_date_ongoing!E99, "") -> 2F1 | F101: =IF($B101>0, Achievement_to_date_ongoing!F99, "") -> All | G101: 1298227.01 | H101: 1298227.01 | I101: 1298227.01 | J101: 1298227.01 | L101: =IF($B101>0,Achievement_to_date_ongoing!$K99*Achievement_to_date_ongoing!M99,"") -> 0 | M101: =IF($B101>0,Achievement_to_date_ongoing!$K99*Achievement_to_date_ongoing!N99,"") -> 0 | N101: =IF($B101>0,Achievement_to_date_ongoing!$K99*Achievement_to_date_ongoing!O99,"") -> 1298227.01 | O101: =IF($B101>0,Achievement_to_date_ongoing!$K99*Achievement_to_date_ongoing!P99,"") -> 1298227.01
B102: =Achievement_to_date_ongoing!B100 -> ROBG-134 | C102: =IF($B102>0, Achievement_to_date_ongoing!C100, "") -> 2 | D102: =IF($B102>0, Achievement_to_date_ongoing!D100, "") -> All | E102: =IF($B102>0, Achievement_to_date_ongoing!E100, "") -> 2F1 | F102: =IF($B102>0, Achievement_to_date_ongoing!F100, "") -> All | G102: 2771960.826 | H102: 2771960.826 | I102: 2771960.826 | J102: 2771960.826 | L102: =IF($B102>0,Achievement_to_date_ongoing!$K100*Achievement_to_date_ongoing!M100,"") -> 0 | M102: =IF($B102>0,Achievement_to_date_ongoing!$K100*Achievement_to_date_ongoing!N100,"") -> 2771960.826 | N102: =IF($B102>0,Achievement_to_date_ongoing!$K100*Achievement_to_date_ongoing!O100,"") -> 2771960.826 | O102: =IF($B102>0,Achievement_to_date_ongoing!$K100*Achievement_to_date_ongoing!P100,"") -> 2771960.826
B103: =Achievement_to_date_ongoing!B101 -> ROBG-568 | C103: =IF($B103>0, Achievement_to_date_ongoing!C101, "") -> 2 | D103: =IF($B103>0, Achievement_to_date_ongoing!D101, "") -> All | E103: =IF($B103>0, Achievement_to_date_ongoing!E101, "") -> 2F1 | F103: =IF($B103>0, Achievement_to_date_ongoing!F101, "") -> All | G103: 1284384.232 | H103: 1284384.232 | I103: 1284384.232 | J103: 1284384.232 | L103: =IF($B103>0,Achievement_to_date_ongoing!$K101*Achievement_to_date_ongoing!M101,"") -> 0 | M103: =IF($B103>0,Achievement_to_date_ongoing!$K101*Achievement_to_date_ongoing!N101,"") -> 0 | N103: =IF($B103>0,Achievement_to_date_ongoing!$K101*Achievement_to_date_ongoing!O101,"") -> 1284384.232 | O103: =IF($B103>0,Achievement_to_date_ongoing!$K101*Achievement_to_date_ongoing!P101,"") -> 1284384.232
B104: =Achievement_to_date_ongoing!B102 -> ROBG-302 | C104: =IF($B104>0, Achievement_to_date_ongoing!C102, "") -> 2 | D104: =IF($B104>0, Achievement_to_date_ongoing!D102, "") -> All | E104: =IF($B104>0, Achievement_to_date_ongoing!E102, "") -> 2F1 | F104: =IF($B104>0, Achievement_to_date_ongoing!F102, "") -> All | G104: 734682.099 | H104: 1298225.859 | I104: 1298225.859 | J104: 1298225.859 | L104: =IF($B104>0,Achievement_to_date_ongoing!$K102*Achievement_to_date_ongoing!M102,"") -> 0 | M104: =IF($B104>0,Achievement_to_date_ongoing!$K102*Achievement_to_date_ongoing!N102,"") -> 0 | N104: =IF($B104>0,Achievement_to_date_ongoing!$K102*Achievement_to_date_ongoing!O102,"") -> 0 | O104: =IF($B104>0,Achievement_to_date_ongoing!$K102*Achievement_to_date_ongoing!P102,"") -> 1298225.859
B105: =Achievement_to_date_ongoing!B103 -> ROBG-290 | C105: =IF($B105>0, Achievement_to_date_ongoing!C103, "") -> 2 | D105: =IF($B105>0, Achievement_to_date_ongoing!D103, "") -> All | E105: =IF($B105>0, Achievement_to_date_ongoing!E103, "") -> 2F1 | F105: =IF($B105>0, Achievement_to_date_ongoing!F103, "") -> All | G105: 420652.5259 | H105: 420652.5259 | I105: 420652.5259 | J105: 420652.5259 | L105: =IF($B105>0,Achievement_to_date_ongoing!$K103*Achievement_to_date_ongoing!M103,"") -> 0 | M105: =IF($B105>0,Achievement_to_date_ongoing!$K103*Achievement_to_date_ongoing!N103,"") -> 420652.5259 | N105: =IF($B105>0,Achievement_to_date_ongoing!$K103*Achievement_to_date_ongoing!O103,"") -> 420652.5259 | O105: =IF($B105>0,Achievement_to_date_ongoing!$K103*Achievement_to_date_ongoing!P103,"") -> 420652.5259
B106: =Achievement_to_date_ongoing!B104 -> ROBG-481 | C106: =IF($B106>0, Achievement_to_date_ongoing!C104, "") -> 3 | D106: =IF($B106>0, Achievement_to_date_ongoing!D104, "") -> All | E106: =IF($B106>0, Achievement_to_date_ongoing!E104, "") -> 3F1 | F106: =IF($B106>0, Achievement_to_date_ongoing!F104, "") -> All | G106: 810926.8233 | H106: 810926.8233 | I106: 810926.8233 | J106: 810926.8233 | L106: =IF($B106>0,Achievement_to_date_ongoing!$K104*Achievement_to_date_ongoing!M104,"") -> 0 | M106: =IF($B106>0,Achievement_to_date_ongoing!$K104*Achievement_to_date_ongoing!N104,"") -> 810926.8233 | N106: =IF($B106>0,Achievement_to_date_ongoing!$K104*Achievement_to_date_ongoing!O104,"") -> 810926.8233 | O106: =IF($B106>0,Achievement_to_date_ongoing!$K104*Achievement_to_date_ongoing!P104,"") -> 810926.8233
B107: =Achievement_to_date_ongoing!B105 -> ROBG-416 | C107: =IF($B107>0, Achievement_to_date_ongoing!C105, "") -> 3 | D107: =IF($B107>0, Achievement_to_date_ongoing!D105, "") -> All | E107: =IF($B107>0, Achievement_to_date_ongoing!E105, "") -> 3F1 | F107: =IF($B107>0, Achievement_to_date_ongoing!F105, "") -> All | G107: 800128.3591 | H107: 800128.3591 | I107: 800128.3591 | J107: 800128.3591 | L107: =IF($B107>0,Achievement_to_date_ongoing!$K105*Achievement_to_date_ongoing!M105,"") -> 0 | M107: =IF($B107>0,Achievement_to_date_ongoing!$K105*Achievement_to_date_ongoing!N105,"") -> 800128.3591 | N107: =IF($B107>0,Achievement_to_date_ongoing!$K105*Achievement_to_date_ongoing!O105,"") -> 800128.3591 | O107: =IF($B107>0,Achievement_to_date_ongoing!$K105*Achievement_to_date_ongoing!P105,"") -> 800128.3591
B108: =Achievement_to_date_ongoing!B106 -> ROBG-137 | C108: =IF($B108>0, Achievement_to_date_ongoing!C106, "") -> 3 | D108: =IF($B108>0, Achievement_to_date_ongoing!D106, "") -> All | E108: =IF($B108>0, Achievement_to_date_ongoing!E106, "") -> 3F1 | F108: =IF($B108>0, Achievement_to_date_ongoing!F106, "") -> All | G108: 3290083.173 | H108: 3290083.173 | I108: 3290083.173 | J108: 3290083.173 | L108: =IF($B108>0,Achievement_to_date_ongoing!$K106*Achievement_to_date_ongoing!M106,"") -> 0 | M108: =IF($B108>0,Achievement_to_date_ongoing!$K106*Achievement_to_date_ongoing!N106,"") -> 0 | N108: =IF($B108>0,Achievement_to_date_ongoing!$K106*Achievement_to_date_ongoing!O106,"") -> 3290083.173 | O108: =IF($B108>0,Achievement_to_date_ongoing!$K106*Achievement_to_date_ongoing!P106,"") -> 3290083.173
B109: =Achievement_to_date_ongoing!B107 -> ROBG-135 | C109: =IF($B109>0, Achievement_to_date_ongoing!C107, "") -> 3 | D109: =IF($B109>0, Achievement_to_date_ongoing!D107, "") -> All | E109: =IF($B109>0, Achievement_to_date_ongoing!E107, "") -> 3F1 | F109: =IF($B109>0, Achievement_to_date_ongoing!F107, "") -> All | G109: 4319994.304 | H109: 4319994.304 | I109: 4319994.304 | J109: 4319994.304 | L109: =IF($B109>0,Achievement_to_date_ongoing!$K107*Achievement_to_date_ongoing!M107,"") -> 0 | M109: =IF($B109>0,Achievement_to_date_ongoing!$K107*Achievement_to_date_ongoing!N107,"") -> 0 | N109: =IF($B109>0,Achievement_to_date_ongoing!$K107*Achievement_to_date_ongoing!O107,"") -> 4319994.304 | O109: =IF($B109>0,Achievement_to_date_ongoing!$K107*Achievement_to_date_ongoing!P107,"") -> 4319994.304
B110: =Achievement_to_date_ongoing!B108 -> ROBG-417 | C110: =IF($B110>0, Achievement_to_date_ongoing!C108, "") -> 3 | D110: =IF($B110>0, Achievement_to_date_ongoing!D108, "") -> All | E110: =IF($B110>0, Achievement_to_date_ongoing!E108, "") -> 3F1 | F110: =IF($B110>0, Achievement_to_date_ongoing!F108, "") -> All | G110: 708630.0529 | H110: 708630.0529 | I110: 708630.0529 | J110: 708630.0529 | L110: =IF($B110>0,Achievement_to_date_ongoing!$K108*Achievement_to_date_ongoing!M108,"") -> 0 | M110: =IF($B110>0,Achievement_to_date_ongoing!$K108*Achievement_to_date_ongoing!N108,"") -> 708630.0529 | N110: =IF($B110>0,Achievement_to_date_ongoing!$K108*Achievement_to_date_ongoing!O108,"") -> 708630.0529 | O110: =IF($B110>0,Achievement_to_date_ongoing!$K108*Achievement_to_date_ongoing!P108,"") -> 708630.0529
B111: =Achievement_to_date_ongoing!B109 -> ROBG-461 | C111: =IF($B111>0, Achievement_to_date_ongoing!C109, "") -> 3 | D111: =IF($B111>0, Achievement_to_date_ongoing!D109, "") -> All | E111: =IF($B111>0, Achievement_to_date_ongoing!E109, "") -> 3F1 | F111: =IF($B111>0, Achievement_to_date_ongoing!F109, "") -> All | G111: 85966.46603 | H111: 297704.4722 | I111: 297704.4722 | J111: 297704.4722 | L111: =IF($B111>0,Achievement_to_date_ongoing!$K109*Achievement_to_date_ongoing!M109,"") -> 0 | M111: =IF($B111>0,Achievement_to_date_ongoing!$K109*Achievement_to_date_ongoing!N109,"") -> 297704.4722 | N111: =IF($B111>0,Achievement_to_date_ongoing!$K109*Achievement_to_date_ongoing!O109,"") -> 297704.4722 | O111: =IF($B111>0,Achievement_to_date_ongoing!$K109*Achievement_to_date_ongoing!P109,"") -> 297704.4722
B112: =Achievement_to_date_ongoing!B110 -> ROBG-448 | C112: =IF($B112>0, Achievement_to_date_ongoing!C110, "") -> 3 | D112: =IF($B112>0, Achievement_to_date_ongoing!D110, "") -> All | E112: =IF($B112>0, Achievement_to_date_ongoing!E110, "") -> 3F1 | F112: =IF($B112>0, Achievement_to_date_ongoing!F110, "") -> All | G112: 68635.40089 | H112: 237686.4694 | I112: 237686.4694 | J112: 237686.4694 | L112: =IF($B112>0,Achievement_to_date_ongoing!$K110*Achievement_to_date_ongoing!M110,"") -> 0 | M112: =IF($B112>0,Achievement_to_date_ongoing!$K110*Achievement_to_date_ongoing!N110,"") -> 237686.4694 | N112: =IF($B112>0,Achievement_to_date_ongoing!$K110*Achievement_to_date_ongoing!O110,"") -> 237686.4694 | O112: =IF($B112>0,Achievement_to_date_ongoing!$K110*Achievement_to_date_ongoing!P110,"") -> 237686.4694
B113: =Achievement_to_date_ongoing!B111 -> ROBG-244 | C113: =IF($B113>0, Achievement_to_date_ongoing!C111, "") -> 3 | D113: =IF($B113>0, Achievement_to_date_ongoing!D111, "") -> All | E113: =IF($B113>0, Achievement_to_date_ongoing!E111, "") -> 3F1 | F113: =IF($B113>0, Achievement_to_date_ongoing!F111, "") -> All | G113: 782109.85 | H113: 782109.85 | I113: 782109.85 | J113: 782109.85 | L113: =IF($B113>0,Achievement_to_date_ongoing!$K111*Achievement_to_date_ongoing!M111,"") -> 0 | M113: =IF($B113>0,Achievement_to_date_ongoing!$K111*Achievement_to_date_ongoing!N111,"") -> 782109.85 | N113: =IF($B113>0,Achievement_to_date_ongoing!$K111*Achievement_to_date_ongoing!O111,"") -> 782109.85 | O113: =IF($B113>0,Achievement_to_date_ongoing!$K111*Achievement_to_date_ongoing!P111,"") -> 782109.85
B114: =Achievement_to_date_ongoing!B112 -> ROBG-351 | C114: =IF($B114>0, Achievement_to_date_ongoing!C112, "") -> 3 | D114: =IF($B114>0, Achievement_to_date_ongoing!D112, "") -> All | E114: =IF($B114>0, Achievement_to_date_ongoing!E112, "") -> 3F1 | F114: =IF($B114>0, Achievement_to_date_ongoing!F112, "") -> All | G114: 861425.6769 | H114: 861425.6769 | I114: 861425.6769 | J114: 861425.6769 | L114: =IF($B114>0,Achievement_to_date_ongoing!$K112*Achievement_to_date_ongoing!M112,"") -> 0 | M114: =IF($B114>0,Achievement_to_date_ongoing!$K112*Achievement_to_date_ongoing!N112,"") -> 861425.6769 | N114: =IF($B114>0,Achievement_to_date_ongoing!$K112*Achievement_to_date_ongoing!O112,"") -> 861425.6769 | O114: =IF($B114>0,Achievement_to_date_ongoing!$K112*Achievement_to_date_ongoing!P112,"") -> 861425.6769
B115: =Achievement_to_date_ongoing!B113 -> ROBG-409 | C115: =IF($B115>0, Achievement_to_date_ongoing!C113, "") -> 3 | D115: =IF($B115>0, Achievement_to_date_ongoing!D113, "") -> All | E115: =IF($B115>0, Achievement_to_date_ongoing!E113, "") -> 3F1 | F115: =IF($B115>0, Achievement_to_date_ongoing!F113, "") -> All | G115: 32492.91801 | H115: 232235.0855 | I115: 804237.1257 | J115: 804237.1257 | L115: =IF($B115>0,Achievement_to_date_ongoing!$K113*Achievement_to_date_ongoing!M113,"") -> 0 | M115: =IF($B115>0,Achievement_to_date_ongoing!$K113*Achievement_to_date_ongoing!N113,"") -> 0 | N115: =IF($B115>0,Achievement_to_date_ongoing!$K113*Achievement_to_date_ongoing!O113,"") -> 0 | O115: =IF($B115>0,Achievement_to_date_ongoing!$K113*Achievement_to_date_ongoing!P113,"") -> 804237.1257
B116: =Achievement_to_date_ongoing!B114 -> ROBG-195 | C116: =IF($B116>0, Achievement_to_date_ongoing!C114, "") -> 3 | D116: =IF($B116>0, Achievement_to_date_ongoing!D114, "") -> All | E116: =IF($B116>0, Achievement_to_date_ongoing!E114, "") -> 3F1 | F116: =IF($B116>0, Achievement_to_date_ongoing!F114, "") -> All | G116: 5067777.69 | H116: 5067777.69 | I116: 5067777.69 | J116: 5067777.69 | L116: =IF($B116>0,Achievement_to_date_ongoing!$K114*Achievement_to_date_ongoing!M114,"") -> 0 | M116: =IF($B116>0,Achievement_to_date_ongoing!$K114*Achievement_to_date_ongoing!N114,"") -> 0 | N116: =IF($B116>0,Achievement_to_date_ongoing!$K114*Achievement_to_date_ongoing!O114,"") -> 0 | O116: =IF($B116>0,Achievement_to_date_ongoing!$K114*Achievement_to_date_ongoing!P114,"") -> 5067777.69
B117: =Achievement_to_date_ongoing!B115 -> ROBG-415 | C117: =IF($B117>0, Achievement_to_date_ongoing!C115, "") -> 3 | D117: =IF($B117>0, Achievement_to_date_ongoing!D115, "") -> All | E117: =IF($B117>0, Achievement_to_date_ongoing!E115, "") -> 3F1 | F117: =IF($B117>0, Achievement_to_date_ongoing!F115, "") -> All | G117: 197288.0545 | H117: 683214.5004 | I117: 683214.5004 | J117: 683214.5004 | L117: =IF($B117>0,Achievement_to_date_ongoing!$K115*Achievement_to_date_ongoing!M115,"") -> 0 | M117: =IF($B117>0,Achievement_to_date_ongoing!$K115*Achievement_to_date_ongoing!N115,"") -> 0 | N117: =IF($B117>0,Achievement_to_date_ongoing!$K115*Achievement_to_date_ongoing!O115,"") -> 683214.5004 | O117: =IF($B117>0,Achievement_to_date_ongoing!$K115*Achievement_to_date_ongoing!P115,"") -> 683214.5004
B118: =Achievement_to_date_ongoing!B116 -> ROBG-427 | C118: =IF($B118>0, Achievement_to_date_ongoing!C116, "") -> 3 | D118: =IF($B118>0, Achievement_to_date_ongoing!D116, "") -> All | E118: =IF($B118>0, Achievement_to_date_ongoing!E116, "") -> 3F1 | F118: =IF($B118>0, Achievement_to_date_ongoing!F116, "") -> All | G118: 34292.54816 | H118: 245097.4964 | I118: 848780.0436 | J118: 848780.0436 | L118: =IF($B118>0,Achievement_to_date_ongoing!$K116*Achievement_to_date_ongoing!M116,"") -> 0 | M118: =IF($B118>0,Achievement_to_date_ongoing!$K116*Achievement_to_date_ongoing!N116,"") -> 0 | N118: =IF($B118>0,Achievement_to_date_ongoing!$K116*Achievement_to_date_ongoing!O116,"") -> 0 | O118: =IF($B118>0,Achievement_to_date_ongoing!$K116*Achievement_to_date_ongoing!P116,"") -> 848780.0436
B119: =Achievement_to_date_ongoing!B117 -> ROBG-332 | C119: =IF($B119>0, Achievement_to_date_ongoing!C117, "") -> 3 | D119: =IF($B119>0, Achievement_to_date_ongoing!D117, "") -> All | E119: =IF($B119>0, Achievement_to_date_ongoing!E117, "") -> 3F1 | F119: =IF($B119>0, Achievement_to_date_ongoing!F117, "") -> All | G119: 852776.3237 | H119: 852776.3237 | I119: 852776.3237 | J119: 852776.3237 | L119: =IF($B119>0,Achievement_to_date_ongoing!$K117*Achievement_to_date_ongoing!M117,"") -> 0 | M119: =IF($B119>0,Achievement_to_date_ongoing!$K117*Achievement_to_date_ongoing!N117,"") -> 852776.3237 | N119: =IF($B119>0,Achievement_to_date_ongoing!$K117*Achievement_to_date_ongoing!O117,"") -> 852776.3237 | O119: =IF($B119>0,Achievement_to_date_ongoing!$K117*Achievement_to_date_ongoing!P117,"") -> 852776.3237
B120: =Achievement_to_date_ongoing!B118 -> ROBG-481 | C120: =IF($B120>0, Achievement_to_date_ongoing!C118, "") -> 3 | D120: =IF($B120>0, Achievement_to_date_ongoing!D118, "") -> All | E120: =IF($B120>0, Achievement_to_date_ongoing!E118, "") -> 5b.2 | F120: =IF($B120>0, Achievement_to_date_ongoing!F118, "") -> All | G120: 0 | H120: 7.639128005 | I120: 7.639128005 | J120: 7.639128005 | L120: =IF($B120>0,Achievement_to_date_ongoing!$K118*Achievement_to_date_ongoing!M118,"") -> 0 | M120: =IF($B120>0,Achievement_to_date_ongoing!$K118*Achievement_to_date_ongoing!N118,"") -> 7.639128005 | N120: =IF($B120>0,Achievement_to_date_ongoing!$K118*Achievement_to_date_ongoing!O118,"") -> 7.639128005 | O120: =IF($B120>0,Achievement_to_date_ongoing!$K118*Achievement_to_date_ongoing!P118,"") -> 7.639128005
B121: =Achievement_to_date_ongoing!B119 -> ROBG-416 | C121: =IF($B121>0, Achievement_to_date_ongoing!C119, "") -> 3 | D121: =IF($B121>0, Achievement_to_date_ongoing!D119, "") -> All | E121: =IF($B121>0, Achievement_to_date_ongoing!E119, "") -> 5b.2 | F121: =IF($B121>0, Achievement_to_date_ongoing!F119, "") -> All | G121: 0 | H121: 0.8487920005 | I121: 0.8487920005 | J121: 0.8487920005 | L121: =IF($B121>0,Achievement_to_date_ongoing!$K119*Achievement_to_date_ongoing!M119,"") -> 0 | M121: =IF($B121>0,Achievement_to_date_ongoing!$K119*Achievement_to_date_ongoing!N119,"") -> 0.8487920005 | N121: =IF($B121>0,Achievement_to_date_ongoing!$K119*Achievement_to_date_ongoing!O119,"") -> 0.8487920005 | O121: =IF($B121>0,Achievement_to_date_ongoing!$K119*Achievement_to_date_ongoing!P119,"") -> 0.8487920005
B122: =Achievement_to_date_ongoing!B120 -> ROBG-137 | C122: =IF($B122>0, Achievement_to_date_ongoing!C120, "") -> 3 | D122: =IF($B122>0, Achievement_to_date_ongoing!D120, "") -> All | E122: =IF($B122>0, Achievement_to_date_ongoing!E120, "") -> 5b.2 | F122: =IF($B122>0, Achievement_to_date_ongoing!F120, "") -> All | G122: 0 | H122: 0 | I122: 0.8487920005 | J122: 0.8487920005 | L122: =IF($B122>0,Achievement_to_date_ongoing!$K120*Achievement_to_date_ongoing!M120,"") -> 0 | M122: =IF($B122>0,Achievement_to_date_ongoing!$K120*Achievement_to_date_ongoing!N120,"") -> 0 | N122: =IF($B122>0,Achievement_to_date_ongoing!$K120*Achievement_to_date_ongoing!O120,"") -> 0.8487920005 | O122: =IF($B122>0,Achievement_to_date_ongoing!$K120*Achievement_to_date_ongoing!P120,"") -> 0.8487920005
B123: =Achievement_to_date_ongoing!B121 -> ROBG-135 | C123: =IF($B123>0, Achievement_to_date_ongoing!C121, "") -> 3 | D123: =IF($B123>0, Achievement_to_date_ongoing!D121, "") -> All | E123: =IF($B123>0, Achievement_to_date_ongoing!E121, "") -> 5b.2 | F123: =IF($B123>0, Achievement_to_date_ongoing!F121, "") -> All | G123: 0 | H123: 0 | I123: 0.8487920005 | J123: 0.8487920005 | L123: =IF($B123>0,Achievement_to_date_ongoing!$K121*Achievement_to_date_ongoing!M121,"") -> 0 | M123: =IF($B123>0,Achievement_to_date_ongoing!$K121*Achievement_to_date_ongoing!N121,"") -> 0 | N123: =IF($B123>0,Achievement_to_date_ongoing!$K121*Achievement_to_date_ongoing!O121,"") -> 0.8487920005 | O123: =IF($B123>0,Achievement_to_date_ongoing!$K121*Achievement_to_date_ongoing!P121,"") -> 0.8487920005
B124: =Achievement_to_date_ongoing!B122 -> ROBG-417 | C124: =IF($B124>0, Achievement_to_date_ongoing!C122, "") -> 3 | D124: =IF($B124>0, Achievement_to_date_ongoing!D122, "") -> All | E124: =IF($B124>0, Achievement_to_date_ongoing!E122, "") -> 5b.2 | F124: =IF($B124>0, Achievement_to_date_ongoing!F122, "") -> All | G124: 0 | H124: 0.8487920005 | I124: 0.8487920005 | J124: 0.8487920005 | L124: =IF($B124>0,Achievement_to_date_ongoing!$K122*Achievement_to_date_ongoing!M122,"") -> 0 | M124: =IF($B124>0,Achievement_to_date_ongoing!$K122*Achievement_to_date_ongoing!N122,"") -> 0.8487920005 | N124: =IF($B124>0,Achievement_to_date_ongoing!$K122*Achievement_to_date_ongoing!O122,"") -> 0.8487920005 | O124: =IF($B124>0,Achievement_to_date_ongoing!$K122*Achievement_to_date_ongoing!P122,"") -> 0.8487920005
B125: =Achievement_to_date_ongoing!B123 -> ROBG-244 | C125: =IF($B125>0, Achievement_to_date_ongoing!C123, "") -> 3 | D125: =IF($B125>0, Achievement_to_date_ongoing!D123, "") -> All | E125: =IF($B125>0, Achievement_to_date_ongoing!E123, "") -> 5b.2 | F125: =IF($B125>0, Achievement_to_date_ongoing!F123, "") -> All | G125: 0 | H125: 4.480620155 | I125: 4.480620155 | J125: 4.480620155 | L125: =IF($B125>0,Achievement_to_date_ongoing!$K123*Achievement_to_date_ongoing!M123,"") -> 0 | M125: =IF($B125>0,Achievement_to_date_ongoing!$K123*Achievement_to_date_ongoing!N123,"") -> 4.480620155 | N125: =IF($B125>0,Achievement_to_date_ongoing!$K123*Achievement_to_date_ongoing!O123,"") -> 4.480620155 | O125: =IF($B125>0,Achievement_to_date_ongoing!$K123*Achievement_to_date_ongoing!P123,"") -> 4.480620155
B126: =Achievement_to_date_ongoing!B124 -> ROBG-351 | C126: =IF($B126>0, Achievement_to_date_ongoing!C124, "") -> 3 | D126: =IF($B126>0, Achievement_to_date_ongoing!D124, "") -> All | E126: =IF($B126>0, Achievement_to_date_ongoing!E124, "") -> 5b.2 | F126: =IF($B126>0, Achievement_to_date_ongoing!F124, "") -> All | G126: 0 | H126: 3.386584289 | I126: 3.386584289 | J126: 3.386584289 | L126: =IF($B126>0,Achievement_to_date_ongoing!$K124*Achievement_to_date_ongoing!M124,"") -> 0 | M126: =IF($B126>0,Achievement_to_date_ongoing!$K124*Achievement_to_date_ongoing!N124,"") -> 3.386584289 | N126: =IF($B126>0,Achievement_to_date_ongoing!$K124*Achievement_to_date_ongoing!O124,"") -> 3.386584289 | O126: =IF($B126>0,Achievement_to_date_ongoing!$K124*Achievement_to_date_ongoing!P124,"") -> 3.386584289
B127: =Achievement_to_date_ongoing!B125 -> ROBG-409 | C127: =IF($B127>0, Achievement_to_date_ongoing!C125, "") -> 3 | D127: =IF($B127>0, Achievement_to_date_ongoing!D125, "") -> All | E127: =IF($B127>0, Achievement_to_date_ongoing!E125, "") -> 5b.2 | F127: =IF($B127>0, Achievement_to_date_ongoing!F125, "") -> All | G127: 0 | H127: 0 | I127: 0 | J127: 3.395168002 | L127: =IF($B127>0,Achievement_to_date_ongoing!$K125*Achievement_to_date_ongoing!M125,"") -> 0 | M127: =IF($B127>0,Achievement_to_date_ongoing!$K125*Achievement_to_date_ongoing!N125,"") -> 0 | N127: =IF($B127>0,Achievement_to_date_ongoing!$K125*Achievement_to_date_ongoing!O125,"") -> 0 | O127: =IF($B127>0,Achievement_to_date_ongoing!$K125*Achievement_to_date_ongoing!P125,"") -> 3.395168002
B128: =Achievement_to_date_ongoing!B126 -> ROBG-195 | C128: =IF($B128>0, Achievement_to_date_ongoing!C126, "") -> 3 | D128: =IF($B128>0, Achievement_to_date_ongoing!D126, "") -> All | E128: =IF($B128>0, Achievement_to_date_ongoing!E126, "") -> 5b.2 | F128: =IF($B128>0, Achievement_to_date_ongoing!F126, "") -> All | G128: 0 | H128: 0 | I128: 0 | J128: 0.8487920005 | L128: =IF($B128>0,Achievement_to_date_ongoing!$K126*Achievement_to_date_ongoing!M126,"") -> 0 | M128: =IF($B128>0,Achievement_to_date_ongoing!$K126*Achievement_to_date_ongoing!N126,"") -> 0 | N128: =IF($B128>0,Achievement_to_date_ongoing!$K126*Achievement_to_date_ongoing!O126,"") -> 0 | O128: =IF($B128>0,Achievement_to_date_ongoing!$K126*Achievement_to_date_ongoing!P126,"") -> 0.8487920005
B129: =Achievement_to_date_ongoing!B127 -> ROBG-415 | C129: =IF($B129>0, Achievement_to_date_ongoing!C127, "") -> 3 | D129: =IF($B129>0, Achievement_to_date_ongoing!D127, "") -> All | E129: =IF($B129>0, Achievement_to_date_ongoing!E127, "") -> 5b.2 | F129: =IF($B129>0, Achievement_to_date_ongoing!F127, "") -> All | G129: 0 | H129: 0 | I129: 9.336712006 | J129: 9.336712006 | L129: =IF($B129>0,Achievement_to_date_ongoing!$K127*Achievement_to_date_ongoing!M127,"") -> 0 | M129: =IF($B129>0,Achievement_to_date_ongoing!$K127*Achievement_to_date_ongoing!N127,"") -> 0 | N129: =IF($B129>0,Achievement_to_date_ongoing!$K127*Achievement_to_date_ongoing!O127,"") -> 9.336712006 | O129: =IF($B129>0,Achievement_to_date_ongoing!$K127*Achievement_to_date_ongoing!P127,"") -> 9.336712006
B130: =Achievement_to_date_ongoing!B128 -> ROBG-427 | C130: =IF($B130>0, Achievement_to_date_ongoing!C128, "") -> 3 | D130: =IF($B130>0, Achievement_to_date_ongoing!D128, "") -> All | E130: =IF($B130>0, Achievement_to_date_ongoing!E128, "") -> 5b.2 | F130: =IF($B130>0, Achievement_to_date_ongoing!F128, "") -> All | G130: 0 | H130: 0 | I130: 0 | J130: 3.395168002 | L130: =IF($B130>0,Achievement_to_date_ongoing!$K128*Achievement_to_date_ongoing!M128,"") -> 0 | M130: =IF($B130>0,Achievement_to_date_ongoing!$K128*Achievement_to_date_ongoing!N128,"") -> 0 | N130: =IF($B130>0,Achievement_to_date_ongoing!$K128*Achievement_to_date_ongoing!O128,"") -> 0 | O130: =IF($B130>0,Achievement_to_date_ongoing!$K128*Achievement_to_date_ongoing!P128,"") -> 3.395168002
B131: =Achievement_to_date_ongoing!B129 -> ROBG-332 | C131: =IF($B131>0, Achievement_to_date_ongoing!C129, "") -> 3 | D131: =IF($B131>0, Achievement_to_date_ongoing!D129, "") -> All | E131: =IF($B131>0, Achievement_to_date_ongoing!E129, "") -> 5b.2 | F131: =IF($B131>0, Achievement_to_date_ongoing!F129, "") -> All | G131: 0 | H131: 4.243960003 | I131: 4.243960003 | J131: 4.243960003 | L131: =IF($B131>0,Achievement_to_date_ongoing!$K129*Achievement_to_date_ongoing!M129,"") -> 0 | M131: =IF($B131>0,Achievement_to_date_ongoing!$K129*Achievement_to_date_ongoing!N129,"") -> 4.243960003 | N131: =IF($B131>0,Achievement_to_date_ongoing!$K129*Achievement_to_date_ongoing!O129,"") -> 4.243960003 | O131: =IF($B131>0,Achievement_to_date_ongoing!$K129*Achievement_to_date_ongoing!P129,"") -> 4.243960003
B132: =Achievement_to_date_ongoing!B130 -> ROBG-175 | C132: =IF($B132>0, Achievement_to_date_ongoing!C130, "") -> 4 | D132: =IF($B132>0, Achievement_to_date_ongoing!D130, "") -> All | E132: =IF($B132>0, Achievement_to_date_ongoing!E130, "") -> 8e.1 | F132: =IF($B132>0, Achievement_to_date_ongoing!F130, "") -> All | G132: 0 | H132: 0 | I132: 30.15490534 | J132: 30.15490534 | L132: =IF($B132>0,Achievement_to_date_ongoing!$K130*Achievement_to_date_ongoing!M130,"") -> 0 | M132: =IF($B132>0,Achievement_to_date_ongoing!$K130*Achievement_to_date_ongoing!N130,"") -> 0 | N132: =IF($B132>0,Achievement_to_date_ongoing!$K130*Achievement_to_date_ongoing!O130,"") -> 30.15490534 | O132: =IF($B132>0,Achievement_to_date_ongoing!$K130*Achievement_to_date_ongoing!P130,"") -> 30.15490534
B133: =Achievement_to_date_ongoing!B131 -> ROBG-175 | C133: =IF($B133>0, Achievement_to_date_ongoing!C131, "") -> 4 | D133: =IF($B133>0, Achievement_to_date_ongoing!D131, "") -> All | E133: =IF($B133>0, Achievement_to_date_ongoing!E131, "") -> 4F1 | F133: =IF($B133>0, Achievement_to_date_ongoing!F131, "") -> All | G133: 502166.799 | H133: 502166.799 | I133: 502166.799 | J133: 502166.799 | L133: =IF($B133>0,Achievement_to_date_ongoing!$K131*Achievement_to_date_ongoing!M131,"") -> 0 | M133: =IF($B133>0,Achievement_to_date_ongoing!$K131*Achievement_to_date_ongoing!N131,"") -> 0 | N133: =IF($B133>0,Achievement_to_date_ongoing!$K131*Achievement_to_date_ongoing!O131,"") -> 502166.799 | O133: =IF($B133>0,Achievement_to_date_ongoing!$K131*Achievement_to_date_ongoing!P131,"") -> 502166.799
B134: =Achievement_to_date_ongoing!B132 -> ROBG-278 | C134: =IF($B134>0, Achievement_to_date_ongoing!C132, "") -> 5 | D134: =IF($B134>0, Achievement_to_date_ongoing!D132, "") -> All | E134: =IF($B134>0, Achievement_to_date_ongoing!E132, "") -> 11b.1 | F134: =IF($B134>0, Achievement_to_date_ongoing!F132, "") -> All | G134: 0 | H134: 1.045924225 | I134: 1.045924225 | J134: 1.045924225 | L134: =IF($B134>0,Achievement_to_date_ongoing!$K132*Achievement_to_date_ongoing!M132,"") -> 0 | M134: =IF($B134>0,Achievement_to_date_ongoing!$K132*Achievement_to_date_ongoing!N132,"") -> 1.045924225 | N134: =IF($B134>0,Achievement_to_date_ongoing!$K132*Achievement_to_date_ongoing!O132,"") -> 1.045924225 | O134: =IF($B134>0,Achievement_to_date_ongoing!$K132*Achievement_to_date_ongoing!P132,"") -> 1.045924225
B135: =Achievement_to_date_ongoing!B133 -> ROBG-259 | C135: =IF($B135>0, Achievement_to_date_ongoing!C133, "") -> 5 | D135: =IF($B135>0, Achievement_to_date_ongoing!D133, "") -> All | E135: =IF($B135>0, Achievement_to_date_ongoing!E133, "") -> 11b.1 | F135: =IF($B135>0, Achievement_to_date_ongoing!F133, "") -> All | G135: 0 | H135: 0 | I135: 8.487920005 | J135: 8.487920005 | L135: =IF($B135>0,Achievement_to_date_ongoing!$K133*Achievement_to_date_ongoing!M133,"") -> 0 | M135: =IF($B135>0,Achievement_to_date_ongoing!$K133*Achievement_to_date_ongoing!N133,"") -> 0 | N135: =IF($B135>0,Achievement_to_date_ongoing!$K133*Achievement_to_date_ongoing!O133,"") -> 8.487920005 | O135: =IF($B135>0,Achievement_to_date_ongoing!$K133*Achievement_to_date_ongoing!P133,"") -> 8.487920005
B136: =Achievement_to_date_ongoing!B134 -> ROBG-139 | C136: =IF($B136>0, Achievement_to_date_ongoing!C134, "") -> 5 | D136: =IF($B136>0, Achievement_to_date_ongoing!D134, "") -> All | E136: =IF($B136>0, Achievement_to_date_ongoing!E134, "") -> 11b.1 | F136: =IF($B136>0, Achievement_to_date_ongoing!F134, "") -> All | G136: 0 | H136: 0 | I136: 5.057142857 | J136: 5.057142857 | L136: =IF($B136>0,Achievement_to_date_ongoing!$K134*Achievement_to_date_ongoing!M134,"") -> 0 | M136: =IF($B136>0,Achievement_to_date_ongoing!$K134*Achievement_to_date_ongoing!N134,"") -> 0 | N136: =IF($B136>0,Achievement_to_date_ongoing!$K134*Achievement_to_date_ongoing!O134,"") -> 5.057142857 | O136: =IF($B136>0,Achievement_to_date_ongoing!$K134*Achievement_to_date_ongoing!P134,"") -> 5.057142857
B137: =Achievement_to_date_ongoing!B135 -> ROBG-256 | C137: =IF($B137>0, Achievement_to_date_ongoing!C135, "") -> 5 | D137: =IF($B137>0, Achievement_to_date_ongoing!D135, "") -> All | E137: =IF($B137>0, Achievement_to_date_ongoing!E135, "") -> 11b.1 | F137: =IF($B137>0, Achievement_to_date_ongoing!F135, "") -> All | G137: 0 | H137: 0 | I137: 0.8487920005 | J137: 0.8487920005 | L137: =IF($B137>0,Achievement_to_date_ongoing!$K135*Achievement_to_date_ongoing!M135,"") -> 0 | M137: =IF($B137>0,Achievement_to_date_ongoing!$K135*Achievement_to_date_ongoing!N135,"") -> 0 | N137: =IF($B137>0,Achievement_to_date_ongoing!$K135*Achievement_to_date_ongoing!O135,"") -> 0.8487920005 | O137: =IF($B137>0,Achievement_to_date_ongoing!$K135*Achievement_to_date_ongoing!P135,"") -> 0.8487920005
B138: =Achievement_to_date_ongoing!B136 -> ROBG-278 | C138: =IF($B138>0, Achievement_to_date_ongoing!C136, "") -> 5 | D138: =IF($B138>0, Achievement_to_date_ongoing!D136, "") -> All | E138: =IF($B138>0, Achievement_to_date_ongoing!E136, "") -> 5F1 | F138: =IF($B138>0, Achievement_to_date_ongoing!F136, "") -> All | G138: 633478.5549 | H138: 864163.6386 | I138: 864163.6386 | J138: 864163.6386 | L138: =IF($B138>0,Achievement_to_date_ongoing!$K136*Achievement_to_date_ongoing!M136,"") -> 0 | M138: =IF($B138>0,Achievement_to_date_ongoing!$K136*Achievement_to_date_ongoing!N136,"") -> 864163.6386 | N138: =IF($B138>0,Achievement_to_date_ongoing!$K136*Achievement_to_date_ongoing!O136,"") -> 864163.6386 | O138: =IF($B138>0,Achievement_to_date_ongoing!$K136*Achievement_to_date_ongoing!P136,"") -> 864163.6386
B139: =Achievement_to_date_ongoing!B137 -> ROBG-259 | C139: =IF($B139>0, Achievement_to_date_ongoing!C137, "") -> 5 | D139: =IF($B139>0, Achievement_to_date_ongoing!D137, "") -> All | E139: =IF($B139>0, Achievement_to_date_ongoing!E137, "") -> 5F1 | F139: =IF($B139>0, Achievement_to_date_ongoing!F137, "") -> All | G139: 849290.0372 | H139: 1158564.19 | I139: 1158564.19 | J139: 1158564.19 | L139: =IF($B139>0,Achievement_to_date_ongoing!$K137*Achievement_to_date_ongoing!M137,"") -> 0 | M139: =IF($B139>0,Achievement_to_date_ongoing!$K137*Achievement_to_date_ongoing!N137,"") -> 0 | N139: =IF($B139>0,Achievement_to_date_ongoing!$K137*Achievement_to_date_ongoing!O137,"") -> 1158564.19 | O139: =IF($B139>0,Achievement_to_date_ongoing!$K137*Achievement_to_date_ongoing!P137,"") -> 1158564.19
B140: =Achievement_to_date_ongoing!B138 -> ROBG-139 | C140: =IF($B140>0, Achievement_to_date_ongoing!C138, "") -> 5 | D140: =IF($B140>0, Achievement_to_date_ongoing!D138, "") -> All | E140: =IF($B140>0, Achievement_to_date_ongoing!E138, "") -> 5F1 | F140: =IF($B140>0, Achievement_to_date_ongoing!F138, "") -> All | G140: 1189823.499 | H140: 1189823.499 | I140: 1189823.499 | J140: 1189823.499 | L140: =IF($B140>0,Achievement_to_date_ongoing!$K138*Achievement_to_date_ongoing!M138,"") -> 0 | M140: =IF($B140>0,Achievement_to_date_ongoing!$K138*Achievement_to_date_ongoing!N138,"") -> 0 | N140: =IF($B140>0,Achievement_to_date_ongoing!$K138*Achievement_to_date_ongoing!O138,"") -> 1189823.499 | O140: =IF($B140>0,Achievement_to_date_ongoing!$K138*Achievement_to_date_ongoing!P138,"") -> 1189823.499
B141: =Achievement_to_date_ongoing!B139 -> ROBG-256 | C141: =IF($B141>0, Achievement_to_date_ongoing!C139, "") -> 5 | D141: =IF($B141>0, Achievement_to_date_ongoing!D139, "") -> All | E141: =IF($B141>0, Achievement_to_date_ongoing!E139, "") -> 5F1 | F141: =IF($B141>0, Achievement_to_date_ongoing!F139, "") -> All | G141: 41710.98638 | H141: 474991.3325 | I141: 647962.3264 | J141: 647962.3264 | L141: =IF($B141>0,Achievement_to_date_ongoing!$K139*Achievement_to_date_ongoing!M139,"") -> 0 | M141: =IF($B141>0,Achievement_to_date_ongoing!$K139*Achievement_to_date_ongoing!N139,"") -> 0 | N141: =IF($B141>0,Achievement_to_date_ongoing!$K139*Achievement_to_date_ongoing!O139,"") -> 647962.3264 | O141: =IF($B141>0,Achievement_to_date_ongoing!$K139*Achievement_to_date_ongoing!P139,"") -> 647962.3264
B142: =Achievement_to_date_ongoing!#REF! ->  | C142: =IF($B142>0, Achievement_to_date_ongoing!#REF!, "") ->  | D142: =IF($B142>0, Achievement_to_date_ongoing!#REF!, "") ->  | E142: =IF($B142>0, Achievement_to_date_ongoing!#REF!, "") ->  | F142: =IF($B142>0, Achievement_to_date_ongoing!#REF!, "") ->  | L142: =IF($B142>0,Achievement_to_date_ongoing!#REF!*Achievement_to_date_ongoing!#REF!,"") ->  | M142: =IF($B142>0,Achievement_to_date_ongoing!#REF!*Achievement_to_date_ongoing!#REF!,"") ->  | N142: =IF($B142>0,Achievement_to_date_ongoing!#REF!*Achievement_to_date_ongoing!#REF!,"") ->  | O142: =IF($B142>0,Achievement_to_date_ongoing!#REF!*Achievement_to_date_ongoing!#REF!,"") -> 
B143: =Achievement_to_date_ongoing!#REF! ->  | C143: =IF($B143>0, Achievement_to_date_ongoing!#REF!, "") ->  | D143: =IF($B143>0, Achievement_to_date_ongoing!#REF!, "") ->  | E143: =IF($B143>0, Achievement_to_date_ongoing!#REF!, "") ->  | F143: =IF($B143>0, Achievement_to_date_ongoing!#REF!, "") ->  | L143: =IF($B143>0,Achievement_to_date_ongoing!#REF!*Achievement_to_date_ongoing!#REF!,"") ->  | M143: =IF($B143>0,Achievement_to_date_ongoing!#REF!*Achievement_to_date_ongoing!#REF!,"") ->  | N143: =IF($B143>0,Achievement_to_date_ongoing!#REF!*Achievement_to_date_ongoing!#REF!,"") ->  | O143: =IF($B143>0,Achievement_to_date_ongoing!#REF!*Achievement_to_date_ongoing!#REF!,"") -> 
B144: =Achievement_to_date_ongoing!#REF! ->  | C144: =IF($B144>0, Achievement_to_date_ongoing!#REF!, "") ->  | D144: =IF($B144>0, Achievement_to_date_ongoing!#REF!, "") ->  | E144: =IF($B144>0, Achievement_to_date_ongoing!#REF!, "") ->  | F144: =IF($B144>0, Achievement_to_date_ongoing!#REF!, "") ->  | L144: =IF($B144>0,Achievement_to_date_ongoing!#REF!*Achievement_to_date_ongoing!#REF!,"") ->  | M144: =IF($B144>0,Achievement_to_date_ongoing!#REF!*Achievement_to_date_ongoing!#REF!,"") ->  | N144: =IF($B144>0,Achievement_to_date_ongoing!#REF!*Achievement_to_date_ongoing!#REF!,"") ->  | O144: =IF($B144>0,Achievement_to_date_ongoing!#REF!*Achievement_to_date_ongoing!#REF!,"") -> 
B145: =Achievement_to_date_ongoing!#REF! ->  | C145: =IF($B145>0, Achievement_to_date_ongoing!#REF!, "") ->  | D145: =IF($B145>0, Achievement_to_date_ongoing!#REF!, "") ->  | E145: =IF($B145>0, Achievement_to_date_ongoing!#REF!, "") ->  | F145: =IF($B145>0, Achievement_to_date_ongoing!#REF!, "") ->  | L145: =IF($B145>0,Achievement_to_date_ongoing!#REF!*Achievement_to_date_ongoing!#REF!,"") ->  | M145: =IF($B145>0,Achievement_to_date_ongoing!#REF!*Achievement_to_date_ongoing!#REF!,"") ->  | N145: =IF($B145>0,Achievement_to_date_ongoing!#REF!*Achievement_to_date_ongoing!#REF!,"") ->  | O145: =IF($B145>0,Achievement_to_date_ongoing!#REF!*Achievement_to_date_ongoing!#REF!,"") -> 
B146: =Achievement_to_date_ongoing!#REF! ->  | C146: =IF($B146>0, Achievement_to_date_ongoing!#REF!, "") ->  | D146: =IF($B146>0, Achievement_to_date_ongoing!#REF!, "") ->  | E146: =IF($B146>0, Achievement_to_date_ongoing!#REF!, "") ->  | F146: =IF($B146>0, Achievement_to_date_ongoing!#REF!, "") ->  | L146: =IF($B146>0,Achievement_to_date_ongoing!#REF!*Achievement_to_date_ongoing!#REF!,"") ->  | M146: =IF($B146>0,Achievement_to_date_ongoing!#REF!*Achievement_to_date_ongoing!#REF!,"") ->  | N146: =IF($B146>0,Achievement_to_date_ongoing!#REF!*Achievement_to_date_ongoing!#REF!,"") ->  | O146: =IF($B146>0,Achievement_to_date_ongoing!#REF!*Achievement_to_date_ongoing!#REF!,"") -> 
B147: =Achievement_to_date_ongoing!#REF! ->  | C147: =IF($B147>0, Achievement_to_date_ongoing!#REF!, "") ->  | D147: =IF($B147>0, Achievement_to_date_ongoing!#REF!, "") ->  | E147: =IF($B147>0, Achievement_to_date_ongoing!#REF!, "") ->  | F147: =IF($B147>0, Achievement_to_date_ongoing!#REF!, "") ->  | L147: =IF($B147>0,Achievement_to_date_ongoing!#REF!*Achievement_to_date_ongoing!#REF!,"") ->  | M147: =IF($B147>0,Achievement_to_date_ongoing!#REF!*Achievement_to_date_ongoing!#REF!,"") ->  | N147: =IF($B147>0,Achievement_to_date_ongoing!#REF!*Achievement_to_date_ongoing!#REF!,"") ->  | O147: =IF($B147>0,Achievement_to_date_ongoing!#REF!*Achievement_to_date_ongoing!#REF!,"") -> 
B148: =Achievement_to_date_ongoing!#REF! ->  | C148: =IF($B148>0, Achievement_to_date_ongoing!#REF!, "") ->  | D148: =IF($B148>0, Achievement_to_date_ongoing!#REF!, "") ->  | E148: =IF($B148>0, Achievement_to_date_ongoing!#REF!, "") ->  | F148: =IF($B148>0, Achievement_to_date_ongoing!#REF!, "") ->  | L148: =IF($B148>0,Achievement_to_date_ongoing!#REF!*Achievement_to_date_ongoing!#REF!,"") ->  | M148: =IF($B148>0,Achievement_to_date_ongoing!#REF!*Achievement_to_date_ongoing!#REF!,"") ->  | N148: =IF($B148>0,Achievement_to_date_ongoing!#REF!*Achievement_to_date_ongoing!#REF!,"") ->  | O148: =IF($B148>0,Achievement_to_date_ongoing!#REF!*Achievement_to_date_ongoing!#REF!,"") -> 
B149: =Achievement_to_date_ongoing!#REF! ->  | C149: =IF($B149>0, Achievement_to_date_ongoing!#REF!, "") ->  | D149: =IF($B149>0, Achievement_to_date_ongoing!#REF!, "") ->  | E149: =IF($B149>0, Achievement_to_date_ongoing!#REF!, "") ->  | F149: =IF($B149>0, Achievement_to_date_ongoing!#REF!, "") ->  | L149: =IF($B149>0,Achievement_to_date_ongoing!#REF!*Achievement_to_date_ongoing!#REF!,"") ->  | M149: =IF($B149>0,Achievement_to_date_ongoing!#REF!*Achievement_to_date_ongoing!#REF!,"") ->  | N149: =IF($B149>0,Achievement_to_date_ongoing!#REF!*Achievement_to_date_ongoing!#REF!,"") ->  | O149: =IF($B149>0,Achievement_to_date_ongoing!#REF!*Achievement_to_date_ongoing!#REF!,"") -> 
B150: =Achievement_to_date_ongoing!#REF! ->  | C150: =IF($B150>0, Achievement_to_date_ongoing!#REF!, "") ->  | D150: =IF($B150>0, Achievement_to_date_ongoing!#REF!, "") ->  | E150: =IF($B150>0, Achievement_to_date_ongoing!#REF!, "") ->  | F150: =IF($B150>0, Achievement_to_date_ongoing!#REF!, "") ->  | L150: =IF($B150>0,Achievement_to_date_ongoing!#REF!*Achievement_to_date_ongoing!#REF!,"") ->  | M150: =IF($B150>0,Achievement_to_date_ongoing!#REF!*Achievement_to_date_ongoing!#REF!,"") ->  | N150: =IF($B150>0,Achievement_to_date_ongoing!#REF!*Achievement_to_date_ongoing!#REF!,"") ->  | O150: =IF($B150>0,Achievement_to_date_ongoing!#REF!*Achievement_to_date_ongoing!#REF!,"") -> 
B151: =Achievement_to_date_ongoing!#REF! ->  | C151: =IF($B151>0, Achievement_to_date_ongoing!#REF!, "") ->  | D151: =IF($B151>0, Achievement_to_date_ongoing!#REF!, "") ->  | E151: =IF($B151>0, Achievement_to_date_ongoing!#REF!, "") ->  | F151: =IF($B151>0, Achievement_to_date_ongoing!#REF!, "") ->  | L151: =IF($B151>0,Achievement_to_date_ongoing!#REF!*Achievement_to_date_ongoing!#REF!,"") ->  | M151: =IF($B151>0,Achievement_to_date_ongoing!#REF!*Achievement_to_date_ongoing!#REF!,"") ->  | N151: =IF($B151>0,Achievement_to_date_ongoing!#REF!*Achievement_to_date_ongoing!#REF!,"") ->  | O151: =IF($B151>0,Achievement_to_date_ongoing!#REF!*Achievement_to_date_ongoing!#REF!,"") -> 
B152: =Achievement_to_date_ongoing!#REF! ->  | C152: =IF($B152>0, Achievement_to_date_ongoing!#REF!, "") ->  | D152: =IF($B152>0, Achievement_to_date_ongoing!#REF!, "") ->  | E152: =IF($B152>0, Achievement_to_date_ongoing!#REF!, "") ->  | F152: =IF($B152>0, Achievement_to_date_ongoing!#REF!, "") ->  | L152: =IF($B152>0,Achievement_to_date_ongoing!#REF!*Achievement_to_date_ongoing!#REF!,"") ->  | M152: =IF($B152>0,Achievement_to_date_ongoing!#REF!*Achievement_to_date_ongoing!#REF!,"") ->  | N152: =IF($B152>0,Achievement_to_date_ongoing!#REF!*Achievement_to_date_ongoing!#REF!,"") ->  | O152: =IF($B152>0,Achievement_to_date_ongoing!#REF!*Achievement_to_date_ongoing!#REF!,"") -> 
B153: =Achievement_to_date_ongoing!#REF! ->  | C153: =IF($B153>0, Achievement_to_date_ongoing!#REF!, "") ->  | D153: =IF($B153>0, Achievement_to_date_ongoing!#REF!, "") ->  | E153: =IF($B153>0, Achievement_to_date_ongoing!#REF!, "") ->  | F153: =IF($B153>0, Achievement_to_date_ongoing!#REF!, "") ->  | L153: =IF($B153>0,Achievement_to_date_ongoing!#REF!*Achievement_to_date_ongoing!#REF!,"") ->  | M153: =IF($B153>0,Achievement_to_date_ongoing!#REF!*Achievement_to_date_ongoing!#REF!,"") ->  | N153: =IF($B153>0,Achievement_to_date_ongoing!#REF!*Achievement_to_date_ongoing!#REF!,"") ->  | O153: =IF($B153>0,Achievement_to_date_ongoing!#REF!*Achievement_to_date_ongoing!#REF!,"") -> 
B154: =Achievement_to_date_ongoing!#REF! ->  | C154: =IF($B154>0, Achievement_to_date_ongoing!#REF!, "") ->  | D154: =IF($B154>0, Achievement_to_date_ongoing!#REF!, "") ->  | E154: =IF($B154>0, Achievement_to_date_ongoing!#REF!, "") ->  | F154: =IF($B154>0, Achievement_to_date_ongoing!#REF!, "") ->  | L154: =IF($B154>0,Achievement_to_date_ongoing!#REF!*Achievement_to_date_ongoing!#REF!,"") ->  | M154: =IF($B154>0,Achievement_to_date_ongoing!#REF!*Achievement_to_date_ongoing!#REF!,"") ->  | N154: =IF($B154>0,Achievement_to_date_ongoing!#REF!*Achievement_to_date_ongoing!#REF!,"") ->  | O154: =IF($B154>0,Achievement_to_date_ongoing!#REF!*Achievement_to_date_ongoing!#REF!,"") -> 
B155: =Achievement_to_date_ongoing!#REF! ->  | C155: =IF($B155>0, Achievement_to_date_ongoing!#REF!, "") ->  | D155: =IF($B155>0, Achievement_to_date_ongoing!#REF!, "") ->  | E155: =IF($B155>0, Achievement_to_date_ongoing!#REF!, "") ->  | F155: =IF($B155>0, Achievement_to_date_ongoing!#REF!, "") ->  | L155: =IF($B155>0,Achievement_to_date_ongoing!#REF!*Achievement_to_date_ongoing!#REF!,"") ->  | M155: =IF($B155>0,Achievement_to_date_ongoing!#REF!*Achievement_to_date_ongoing!#REF!,"") ->  | N155: =IF($B155>0,Achievement_to_date_ongoing!#REF!*Achievement_to_date_ongoing!#REF!,"") ->  | O155: =IF($B155>0,Achievement_to_date_ongoing!#REF!*Achievement_to_date_ongoing!#REF!,"") -> 
B156: =Achievement_to_date_ongoing!B140 -> 0 | C156: =IF($B156>0, Achievement_to_date_ongoing!C140, "") ->  | D156: =IF($B156>0, Achievement_to_date_ongoing!D140, "") ->  | E156: =IF($B156>0, Achievement_to_date_ongoing!E140, "") ->  | F156: =IF($B156>0, Achievement_to_date_ongoing!F140, "") ->  | L156: =IF($B156>0,Achievement_to_date_ongoing!$K140*Achievement_to_date_ongoing!M140,"") ->  | M156: =IF($B156>0,Achievement_to_date_ongoing!$K140*Achievement_to_date_ongoing!N140,"") ->  | N156: =IF($B156>0,Achievement_to_date_ongoing!$K140*Achievement_to_date_ongoing!O140,"") ->  | O156: =IF($B156>0,Achievement_to_date_ongoing!$K140*Achievement_to_date_ongoing!P140,"") -> 
B157: =Achievement_to_date_ongoing!B141 -> 0 | C157: =IF($B157>0, Achievement_to_date_ongoing!C141, "") ->  | D157: =IF($B157>0, Achievement_to_date_ongoing!D141, "") ->  | E157: =IF($B157>0, Achievement_to_date_ongoing!E141, "") ->  | F157: =IF($B157>0, Achievement_to_date_ongoing!F141, "") ->  | L157: =IF($B157>0,Achievement_to_date_ongoing!$K141*Achievement_to_date_ongoing!M141,"") ->  | M157: =IF($B157>0,Achievement_to_date_ongoing!$K141*Achievement_to_date_ongoing!N141,"") ->  | N157: =IF($B157>0,Achievement_to_date_ongoing!$K141*Achievement_to_date_ongoing!O141,"") ->  | O157: =IF($B157>0,Achievement_to_date_ongoing!$K141*Achievement_to_date_ongoing!P141,"") -> 
B158: =Achievement_to_date_ongoing!B142 -> 0 | C158: =IF($B158>0, Achievement_to_date_ongoing!C142, "") ->  | D158: =IF($B158>0, Achievement_to_date_ongoing!D142, "") ->  | E158: =IF($B158>0, Achievement_to_date_ongoing!E142, "") ->  | F158: =IF($B158>0, Achievement_to_date_ongoing!F142, "") ->  | L158: =IF($B158>0,Achievement_to_date_ongoing!$K142*Achievement_to_date_ongoing!M142,"") ->  | M158: =IF($B158>0,Achievement_to_date_ongoing!$K142*Achievement_to_date_ongoing!N142,"") ->  | N158: =IF($B158>0,Achievement_to_date_ongoing!$K142*Achievement_to_date_ongoing!O142,"") ->  | O158: =IF($B158>0,Achievement_to_date_ongoing!$K142*Achievement_to_date_ongoing!P142,"") -> 
B159: =Achievement_to_date_ongoing!B143 -> 0 | C159: =IF($B159>0, Achievement_to_date_ongoing!C143, "") ->  | D159: =IF($B159>0, Achievement_to_date_ongoing!D143, "") ->  | E159: =IF($B159>0, Achievement_to_date_ongoing!E143, "") ->  | F159: =IF($B159>0, Achievement_to_date_ongoing!F143, "") ->  | L159: =IF($B159>0,Achievement_to_date_ongoing!$K143*Achievement_to_date_ongoing!M143,"") ->  | M159: =IF($B159>0,Achievement_to_date_ongoing!$K143*Achievement_to_date_ongoing!N143,"") ->  | N159: =IF($B159>0,Achievement_to_date_ongoing!$K143*Achievement_to_date_ongoing!O143,"") ->  | O159: =IF($B159>0,Achievement_to_date_ongoing!$K143*Achievement_to_date_ongoing!P143,"") -> 
B160: =Achievement_to_date_ongoing!B144 -> 0 | C160: =IF($B160>0, Achievement_to_date_ongoing!C144, "") ->  | D160: =IF($B160>0, Achievement_to_date_ongoing!D144, "") ->  | E160: =IF($B160>0, Achievement_to_date_ongoing!E144, "") ->  | F160: =IF($B160>0, Achievement_to_date_ongoing!F144, "") ->  | L160: =IF($B160>0,Achievement_to_date_ongoing!$K144*Achievement_to_date_ongoing!M144,"") ->  | M160: =IF($B160>0,Achievement_to_date_ongoing!$K144*Achievement_to_date_ongoing!N144,"") ->  | N160: =IF($B160>0,Achievement_to_date_ongoing!$K144*Achievement_to_date_ongoing!O144,"") ->  | O160: =IF($B160>0,Achievement_to_date_ongoing!$K144*Achievement_to_date_ongoing!P144,"") -> 
B161: =Achievement_to_date_ongoing!B145 -> 0 | C161: =IF($B161>0, Achievement_to_date_ongoing!C145, "") ->  | D161: =IF($B161>0, Achievement_to_date_ongoing!D145, "") ->  | E161: =IF($B161>0, Achievement_to_date_ongoing!E145, "") ->  | F161: =IF($B161>0, Achievement_to_date_ongoing!F145, "") ->  | L161: =IF($B161>0,Achievement_to_date_ongoing!$K145*Achievement_to_date_ongoing!M145,"") ->  | M161: =IF($B161>0,Achievement_to_date_ongoing!$K145*Achievement_to_date_ongoing!N145,"") ->  | N161: =IF($B161>0,Achievement_to_date_ongoing!$K145*Achievement_to_date_ongoing!O145,"") ->  | O161: =IF($B161>0,Achievement_to_date_ongoing!$K145*Achievement_to_date_ongoing!P145,"") -> 
B162: =Achievement_to_date_ongoing!B146 -> 0 | C162: =IF($B162>0, Achievement_to_date_ongoing!C146, "") ->  | D162: =IF($B162>0, Achievement_to_date_ongoing!D146, "") ->  | E162: =IF($B162>0, Achievement_to_date_ongoing!E146, "") ->  | F162: =IF($B162>0, Achievement_to_date_ongoing!F146, "") ->  | L162: =IF($B162>0,Achievement_to_date_ongoing!$K146*Achievement_to_date_ongoing!M146,"") ->  | M162: =IF($B162>0,Achievement_to_date_ongoing!$K146*Achievement_to_date_ongoing!N146,"") ->  | N162: =IF($B162>0,Achievement_to_date_ongoing!$K146*Achievement_to_date_ongoing!O146,"") ->  | O162: =IF($B162>0,Achievement_to_date_ongoing!$K146*Achievement_to_date_ongoing!P146,"") -> 
B163: =Achievement_to_date_ongoing!B147 -> 0 | C163: =IF($B163>0, Achievement_to_date_ongoing!C147, "") ->  | D163: =IF($B163>0, Achievement_to_date_ongoing!D147, "") ->  | E163: =IF($B163>0, Achievement_to_date_ongoing!E147, "") ->  | F163: =IF($B163>0, Achievement_to_date_ongoing!F147, "") ->  | L163: =IF($B163>0,Achievement_to_date_ongoing!$K147*Achievement_to_date_ongoing!M147,"") ->  | M163: =IF($B163>0,Achievement_to_date_ongoing!$K147*Achievement_to_date_ongoing!N147,"") ->  | N163: =IF($B163>0,Achievement_to_date_ongoing!$K147*Achievement_to_date_ongoing!O147,"") ->  | O163: =IF($B163>0,Achievement_to_date_ongoing!$K147*Achievement_to_date_ongoing!P147,"") -> 
B164: =Achievement_to_date_ongoing!B148 -> 0 | C164: =IF($B164>0, Achievement_to_date_ongoing!C148, "") ->  | D164: =IF($B164>0, Achievement_to_date_ongoing!D148, "") ->  | E164: =IF($B164>0, Achievement_to_date_ongoing!E148, "") ->  | F164: =IF($B164>0, Achievement_to_date_ongoing!F148, "") ->  | L164: =IF($B164>0,Achievement_to_date_ongoing!$K148*Achievement_to_date_ongoing!M148,"") ->  | M164: =IF($B164>0,Achievement_to_date_ongoing!$K148*Achievement_to_date_ongoing!N148,"") ->  | N164: =IF($B164>0,Achievement_to_date_ongoing!$K148*Achievement_to_date_ongoing!O148,"") ->  | O164: =IF($B164>0,Achievement_to_date_ongoing!$K148*Achievement_to_date_ongoing!P148,"") -> 
B165: =Achievement_to_date_ongoing!B149 -> 0 | C165: =IF($B165>0, Achievement_to_date_ongoing!C149, "") ->  | D165: =IF($B165>0, Achievement_to_date_ongoing!D149, "") ->  | E165: =IF($B165>0, Achievement_to_date_ongoing!E149, "") ->  | F165: =IF($B165>0, Achievement_to_date_ongoing!F149, "") ->  | L165: =IF($B165>0,Achievement_to_date_ongoing!$K149*Achievement_to_date_ongoing!M149,"") ->  | M165: =IF($B165>0,Achievement_to_date_ongoing!$K149*Achievement_to_date_ongoing!N149,"") ->  | N165: =IF($B165>0,Achievement_to_date_ongoing!$K149*Achievement_to_date_ongoing!O149,"") ->  | O165: =IF($B165>0,Achievement_to_date_ongoing!$K149*Achievement_to_date_ongoing!P149,"") -> 
B166: =Achievement_to_date_ongoing!B150 -> 0 | C166: =IF($B166>0, Achievement_to_date_ongoing!C150, "") ->  | D166: =IF($B166>0, Achievement_to_date_ongoing!D150, "") ->  | E166: =IF($B166>0, Achievement_to_date_ongoing!E150, "") ->  | F166: =IF($B166>0, Achievement_to_date_ongoing!F150, "") ->  | L166: =IF($B166>0,Achievement_to_date_ongoing!$K150*Achievement_to_date_ongoing!M150,"") ->  | M166: =IF($B166>0,Achievement_to_date_ongoing!$K150*Achievement_to_date_ongoing!N150,"") ->  | N166: =IF($B166>0,Achievement_to_date_ongoing!$K150*Achievement_to_date_ongoing!O150,"") ->  | O166: =IF($B166>0,Achievement_to_date_ongoing!$K150*Achievement_to_date_ongoing!P150,"") -> 
B167: =Achievement_to_date_ongoing!B151 -> 0 | C167: =IF($B167>0, Achievement_to_date_ongoing!C151, "") ->  | D167: =IF($B167>0, Achievement_to_date_ongoing!D151, "") ->  | E167: =IF($B167>0, Achievement_to_date_ongoing!E151, "") ->  | F167: =IF($B167>0, Achievement_to_date_ongoing!F151, "") ->  | L167: =IF($B167>0,Achievement_to_date_ongoing!$K151*Achievement_to_date_ongoing!M151,"") ->  | M167: =IF($B167>0,Achievement_to_date_ongoing!$K151*Achievement_to_date_ongoing!N151,"") ->  | N167: =IF($B167>0,Achievement_to_date_ongoing!$K151*Achievement_to_date_ongoing!O151,"") ->  | O167: =IF($B167>0,Achievement_to_date_ongoing!$K151*Achievement_to_date_ongoing!P151,"") -> 
B168: =Achievement_to_date_ongoing!B152 -> 0 | C168: =IF($B168>0, Achievement_to_date_ongoing!C152, "") ->  | D168: =IF($B168>0, Achievement_to_date_ongoing!D152, "") ->  | E168: =IF($B168>0, Achievement_to_date_ongoing!E152, "") ->  | F168: =IF($B168>0, Achievement_to_date_ongoing!F152, "") ->  | L168: =IF($B168>0,Achievement_to_date_ongoing!$K152*Achievement_to_date_ongoing!M152,"") ->  | M168: =IF($B168>0,Achievement_to_date_ongoing!$K152*Achievement_to_date_ongoing!N152,"") ->  | N168: =IF($B168>0,Achievement_to_date_ongoing!$K152*Achievement_to_date_ongoing!O152,"") ->  | O168: =IF($B168>0,Achievement_to_date_ongoing!$K152*Achievement_to_date_ongoing!P152,"") -> 
B169: =Achievement_to_date_ongoing!B153 -> 0 | C169: =IF($B169>0, Achievement_to_date_ongoing!C153, "") ->  | D169: =IF($B169>0, Achievement_to_date_ongoing!D153, "") ->  | E169: =IF($B169>0, Achievement_to_date_ongoing!E153, "") ->  | F169: =IF($B169>0, Achievement_to_date_ongoing!F153, "") ->  | L169: =IF($B169>0,Achievement_to_date_ongoing!$K153*Achievement_to_date_ongoing!M153,"") ->  | M169: =IF($B169>0,Achievement_to_date_ongoing!$K153*Achievement_to_date_ongoing!N153,"") ->  | N169: =IF($B169>0,Achievement_to_date_ongoing!$K153*Achievement_to_date_ongoing!O153,"") ->  | O169: =IF($B169>0,Achievement_to_date_ongoing!$K153*Achievement_to_date_ongoing!P153,"") -> 
B170: =Achievement_to_date_ongoing!B154 -> 0 | C170: =IF($B170>0, Achievement_to_date_ongoing!C154, "") ->  | D170: =IF($B170>0, Achievement_to_date_ongoing!D154, "") ->  | E170: =IF($B170>0, Achievement_to_date_ongoing!E154, "") ->  | F170: =IF($B170>0, Achievement_to_date_ongoing!F154, "") ->  | L170: =IF($B170>0,Achievement_to_date_ongoing!$K154*Achievement_to_date_ongoing!M154,"") ->  | M170: =IF($B170>0,Achievement_to_date_ongoing!$K154*Achievement_to_date_ongoing!N154,"") ->  | N170: =IF($B170>0,Achievement_to_date_ongoing!$K154*Achievement_to_date_ongoing!O154,"") ->  | O170: =IF($B170>0,Achievement_to_date_ongoing!$K154*Achievement_to_date_ongoing!P154,"") -> 
B171: =Achievement_to_date_ongoing!B155 -> 0 | C171: =IF($B171>0, Achievement_to_date_ongoing!C155, "") ->  | D171: =IF($B171>0, Achievement_to_date_ongoing!D155, "") ->  | E171: =IF($B171>0, Achievement_to_date_ongoing!E155, "") ->  | F171: =IF($B171>0, Achievement_to_date_ongoing!F155, "") ->  | L171: =IF($B171>0,Achievement_to_date_ongoing!$K155*Achievement_to_date_ongoing!M155,"") ->  | M171: =IF($B171>0,Achievement_to_date_ongoing!$K155*Achievement_to_date_ongoing!N155,"") ->  | N171: =IF($B171>0,Achievement_to_date_ongoing!$K155*Achievement_to_date_ongoing!O155,"") ->  | O171: =IF($B171>0,Achievement_to_date_ongoing!$K155*Achievement_to_date_ongoing!P155,"") -> 
B172: =Achievement_to_date_ongoing!B156 -> 0 | C172: =IF($B172>0, Achievement_to_date_ongoing!C156, "") ->  | D172: =IF($B172>0, Achievement_to_date_ongoing!D156, "") ->  | E172: =IF($B172>0, Achievement_to_date_ongoing!E156, "") ->  | F172: =IF($B172>0, Achievement_to_date_ongoing!F156, "") ->  | L172: =IF($B172>0,Achievement_to_date_ongoing!$K156*Achievement_to_date_ongoing!M156,"") ->  | M172: =IF($B172>0,Achievement_to_date_ongoing!$K156*Achievement_to_date_ongoing!N156,"") ->  | N172: =IF($B172>0,Achievement_to_date_ongoing!$K156*Achievement_to_date_ongoing!O156,"") ->  | O172: =IF($B172>0,Achievement_to_date_ongoing!$K156*Achievement_to_date_ongoing!P156,"") -> 
B173: =Achievement_to_date_ongoing!B157 -> 0 | C173: =IF($B173>0, Achievement_to_date_ongoing!C157, "") ->  | D173: =IF($B173>0, Achievement_to_date_ongoing!D157, "") ->  | E173: =IF($B173>0, Achievement_to_date_ongoing!E157, "") ->  | F173: =IF($B173>0, Achievement_to_date_ongoing!F157, "") ->  | L173: =IF($B173>0,Achievement_to_date_ongoing!$K157*Achievement_to_date_ongoing!M157,"") ->  | M173: =IF($B173>0,Achievement_to_date_ongoing!$K157*Achievement_to_date_ongoing!N157,"") ->  | N173: =IF($B173>0,Achievement_to_date_ongoing!$K157*Achievement_to_date_ongoing!O157,"") ->  | O173: =IF($B173>0,Achievement_to_date_ongoing!$K157*Achievement_to_date_ongoing!P157,"") -> 
B174: =Achievement_to_date_ongoing!B158 -> 0 | C174: =IF($B174>0, Achievement_to_date_ongoing!C158, "") ->  | D174: =IF($B174>0, Achievement_to_date_ongoing!D158, "") ->  | E174: =IF($B174>0, Achievement_to_date_ongoing!E158, "") ->  | F174: =IF($B174>0, Achievement_to_date_ongoing!F158, "") ->  | L174: =IF($B174>0,Achievement_to_date_ongoing!$K158*Achievement_to_date_ongoing!M158,"") ->  | M174: =IF($B174>0,Achievement_to_date_ongoing!$K158*Achievement_to_date_ongoing!N158,"") ->  | N174: =IF($B174>0,Achievement_to_date_ongoing!$K158*Achievement_to_date_ongoing!O158,"") ->  | O174: =IF($B174>0,Achievement_to_date_ongoing!$K158*Achievement_to_date_ongoing!P158,"") -> 
B175: =Achievement_to_date_ongoing!B159 -> 0 | C175: =IF($B175>0, Achievement_to_date_ongoing!C159, "") ->  | D175: =IF($B175>0, Achievement_to_date_ongoing!D159, "") ->  | E175: =IF($B175>0, Achievement_to_date_ongoing!E159, "") ->  | F175: =IF($B175>0, Achievement_to_date_ongoing!F159, "") ->  | L175: =IF($B175>0,Achievement_to_date_ongoing!$K159*Achievement_to_date_ongoing!M159,"") ->  | M175: =IF($B175>0,Achievement_to_date_ongoing!$K159*Achievement_to_date_ongoing!N159,"") ->  | N175: =IF($B175>0,Achievement_to_date_ongoing!$K159*Achievement_to_date_ongoing!O159,"") ->  | O175: =IF($B175>0,Achievement_to_date_ongoing!$K159*Achievement_to_date_ongoing!P159,"") -> 
B176: =Achievement_to_date_ongoing!B160 -> 0 | C176: =IF($B176>0, Achievement_to_date_ongoing!C160, "") ->  | D176: =IF($B176>0, Achievement_to_date_ongoing!D160, "") ->  | E176: =IF($B176>0, Achievement_to_date_ongoing!E160, "") ->  | F176: =IF($B176>0, Achievement_to_date_ongoing!F160, "") ->  | L176: =IF($B176>0,Achievement_to_date_ongoing!$K160*Achievement_to_date_ongoing!M160,"") ->  | M176: =IF($B176>0,Achievement_to_date_ongoing!$K160*Achievement_to_date_ongoing!N160,"") ->  | N176: =IF($B176>0,Achievement_to_date_ongoing!$K160*Achievement_to_date_ongoing!O160,"") ->  | O176: =IF($B176>0,Achievement_to_date_ongoing!$K160*Achievement_to_date_ongoing!P160,"") -> 
B177: =Achievement_to_date_ongoing!B161 -> 0 | C177: =IF($B177>0, Achievement_to_date_ongoing!C161, "") ->  | D177: =IF($B177>0, Achievement_to_date_ongoing!D161, "") ->  | E177: =IF($B177>0, Achievement_to_date_ongoing!E161, "") ->  | F177: =IF($B177>0, Achievement_to_date_ongoing!F161, "") ->  | L177: =IF($B177>0,Achievement_to_date_ongoing!$K161*Achievement_to_date_ongoing!M161,"") ->  | M177: =IF($B177>0,Achievement_to_date_ongoing!$K161*Achievement_to_date_ongoing!N161,"") ->  | N177: =IF($B177>0,Achievement_to_date_ongoing!$K161*Achievement_to_date_ongoing!O161,"") ->  | O177: =IF($B177>0,Achievement_to_date_ongoing!$K161*Achievement_to_date_ongoing!P161,"") -> 
B178: =Achievement_to_date_ongoing!B162 -> 0 | C178: =IF($B178>0, Achievement_to_date_ongoing!C162, "") ->  | D178: =IF($B178>0, Achievement_to_date_ongoing!D162, "") ->  | E178: =IF($B178>0, Achievement_to_date_ongoing!E162, "") ->  | F178: =IF($B178>0, Achievement_to_date_ongoing!F162, "") ->  | L178: =IF($B178>0,Achievement_to_date_ongoing!$K162*Achievement_to_date_ongoing!M162,"") ->  | M178: =IF($B178>0,Achievement_to_date_ongoing!$K162*Achievement_to_date_ongoing!N162,"") ->  | N178: =IF($B178>0,Achievement_to_date_ongoing!$K162*Achievement_to_date_ongoing!O162,"") ->  | O178: =IF($B178>0,Achievement_to_date_ongoing!$K162*Achievement_to_date_ongoing!P162,"") -> 
B179: =Achievement_to_date_ongoing!B163 -> 0 | C179: =IF($B179>0, Achievement_to_date_ongoing!C163, "") ->  | D179: =IF($B179>0, Achievement_to_date_ongoing!D163, "") ->  | E179: =IF($B179>0, Achievement_to_date_ongoing!E163, "") ->  | F179: =IF($B179>0, Achievement_to_date_ongoing!F163, "") ->  | L179: =IF($B179>0,Achievement_to_date_ongoing!$K163*Achievement_to_date_ongoing!M163,"") ->  | M179: =IF($B179>0,Achievement_to_date_ongoing!$K163*Achievement_to_date_ongoing!N163,"") ->  | N179: =IF($B179>0,Achievement_to_date_ongoing!$K163*Achievement_to_date_ongoing!O163,"") ->  | O179: =IF($B179>0,Achievement_to_date_ongoing!$K163*Achievement_to_date_ongoing!P163,"") -> 
B180: =Achievement_to_date_ongoing!B164 -> 0 | C180: =IF($B180>0, Achievement_to_date_ongoing!C164, "") ->  | D180: =IF($B180>0, Achievement_to_date_ongoing!D164, "") ->  | E180: =IF($B180>0, Achievement_to_date_ongoing!E164, "") ->  | F180: =IF($B180>0, Achievement_to_date_ongoing!F164, "") ->  | L180: =IF($B180>0,Achievement_to_date_ongoing!$K164*Achievement_to_date_ongoing!M164,"") ->  | M180: =IF($B180>0,Achievement_to_date_ongoing!$K164*Achievement_to_date_ongoing!N164,"") ->  | N180: =IF($B180>0,Achievement_to_date_ongoing!$K164*Achievement_to_date_ongoing!O164,"") ->  | O180: =IF($B180>0,Achievement_to_date_ongoing!$K164*Achievement_to_date_ongoing!P164,"") -> 
B181: =Achievement_to_date_ongoing!B165 -> 0 | C181: =IF($B181>0, Achievement_to_date_ongoing!C165, "") ->  | D181: =IF($B181>0, Achievement_to_date_ongoing!D165, "") ->  | E181: =IF($B181>0, Achievement_to_date_ongoing!E165, "") ->  | F181: =IF($B181>0, Achievement_to_date_ongoing!F165, "") ->  | L181: =IF($B181>0,Achievement_to_date_ongoing!$K165*Achievement_to_date_ongoing!M165,"") ->  | M181: =IF($B181>0,Achievement_to_date_ongoing!$K165*Achievement_to_date_ongoing!N165,"") ->  | N181: =IF($B181>0,Achievement_to_date_ongoing!$K165*Achievement_to_date_ongoing!O165,"") ->  | O181: =IF($B181>0,Achievement_to_date_ongoing!$K165*Achievement_to_date_ongoing!P165,"") -> 
B182: =Achievement_to_date_ongoing!B166 -> 0 | C182: =IF($B182>0, Achievement_to_date_ongoing!C166, "") ->  | D182: =IF($B182>0, Achievement_to_date_ongoing!D166, "") ->  | E182: =IF($B182>0, Achievement_to_date_ongoing!E166, "") ->  | F182: =IF($B182>0, Achievement_to_date_ongoing!F166, "") ->  | L182: =IF($B182>0,Achievement_to_date_ongoing!$K166*Achievement_to_date_ongoing!M166,"") ->  | M182: =IF($B182>0,Achievement_to_date_ongoing!$K166*Achievement_to_date_ongoing!N166,"") ->  | N182: =IF($B182>0,Achievement_to_date_ongoing!$K166*Achievement_to_date_ongoing!O166,"") ->  | O182: =IF($B182>0,Achievement_to_date_ongoing!$K166*Achievement_to_date_ongoing!P166,"") -> 
B183: =Achievement_to_date_ongoing!B167 -> 0 | C183: =IF($B183>0, Achievement_to_date_ongoing!C167, "") ->  | D183: =IF($B183>0, Achievement_to_date_ongoing!D167, "") ->  | E183: =IF($B183>0, Achievement_to_date_ongoing!E167, "") ->  | F183: =IF($B183>0, Achievement_to_date_ongoing!F167, "") ->  | L183: =IF($B183>0,Achievement_to_date_ongoing!$K167*Achievement_to_date_ongoing!M167,"") ->  | M183: =IF($B183>0,Achievement_to_date_ongoing!$K167*Achievement_to_date_ongoing!N167,"") ->  | N183: =IF($B183>0,Achievement_to_date_ongoing!$K167*Achievement_to_date_ongoing!O167,"") ->  | O183: =IF($B183>0,Achievement_to_date_ongoing!$K167*Achievement_to_date_ongoing!P167,"") -> 
B184: =Achievement_to_date_ongoing!B168 -> 0 | C184: =IF($B184>0, Achievement_to_date_ongoing!C168, "") ->  | D184: =IF($B184>0, Achievement_to_date_ongoing!D168, "") ->  | E184: =IF($B184>0, Achievement_to_date_ongoing!E168, "") ->  | F184: =IF($B184>0, Achievement_to_date_ongoing!F168, "") ->  | L184: =IF($B184>0,Achievement_to_date_ongoing!$K168*Achievement_to_date_ongoing!M168,"") ->  | M184: =IF($B184>0,Achievement_to_date_ongoing!$K168*Achievement_to_date_ongoing!N168,"") ->  | N184: =IF($B184>0,Achievement_to_date_ongoing!$K168*Achievement_to_date_ongoing!O168,"") ->  | O184: =IF($B184>0,Achievement_to_date_ongoing!$K168*Achievement_to_date_ongoing!P168,"") -> 
B185: =Achievement_to_date_ongoing!B169 -> 0 | C185: =IF($B185>0, Achievement_to_date_ongoing!C169, "") ->  | D185: =IF($B185>0, Achievement_to_date_ongoing!D169, "") ->  | E185: =IF($B185>0, Achievement_to_date_ongoing!E169, "") ->  | F185: =IF($B185>0, Achievement_to_date_ongoing!F169, "") ->  | L185: =IF($B185>0,Achievement_to_date_ongoing!$K169*Achievement_to_date_ongoing!M169,"") ->  | M185: =IF($B185>0,Achievement_to_date_ongoing!$K169*Achievement_to_date_ongoing!N169,"") ->  | N185: =IF($B185>0,Achievement_to_date_ongoing!$K169*Achievement_to_date_ongoing!O169,"") ->  | O185: =IF($B185>0,Achievement_to_date_ongoing!$K169*Achievement_to_date_ongoing!P169,"") -> 
B186: =Achievement_to_date_ongoing!B170 -> 0 | C186: =IF($B186>0, Achievement_to_date_ongoing!C170, "") ->  | D186: =IF($B186>0, Achievement_to_date_ongoing!D170, "") ->  | E186: =IF($B186>0, Achievement_to_date_ongoing!E170, "") ->  | F186: =IF($B186>0, Achievement_to_date_ongoing!F170, "") ->  | L186: =IF($B186>0,Achievement_to_date_ongoing!$K170*Achievement_to_date_ongoing!M170,"") ->  | M186: =IF($B186>0,Achievement_to_date_ongoing!$K170*Achievement_to_date_ongoing!N170,"") ->  | N186: =IF($B186>0,Achievement_to_date_ongoing!$K170*Achievement_to_date_ongoing!O170,"") ->  | O186: =IF($B186>0,Achievement_to_date_ongoing!$K170*Achievement_to_date_ongoing!P170,"") -> 
B187: =Achievement_to_date_ongoing!B171 -> 0 | C187: =IF($B187>0, Achievement_to_date_ongoing!C171, "") ->  | D187: =IF($B187>0, Achievement_to_date_ongoing!D171, "") ->  | E187: =IF($B187>0, Achievement_to_date_ongoing!E171, "") ->  | F187: =IF($B187>0, Achievement_to_date_ongoing!F171, "") ->  | L187: =IF($B187>0,Achievement_to_date_ongoing!$K171*Achievement_to_date_ongoing!M171,"") ->  | M187: =IF($B187>0,Achievement_to_date_ongoing!$K171*Achievement_to_date_ongoing!N171,"") ->  | N187: =IF($B187>0,Achievement_to_date_ongoing!$K171*Achievement_to_date_ongoing!O171,"") ->  | O187: =IF($B187>0,Achievement_to_date_ongoing!$K171*Achievement_to_date_ongoing!P171,"") -> 
B188: =Achievement_to_date_ongoing!B172 -> 0 | C188: =IF($B188>0, Achievement_to_date_ongoing!C172, "") ->  | D188: =IF($B188>0, Achievement_to_date_ongoing!D172, "") ->  | E188: =IF($B188>0, Achievement_to_date_ongoing!E172, "") ->  | F188: =IF($B188>0, Achievement_to_date_ongoing!F172, "") ->  | L188: =IF($B188>0,Achievement_to_date_ongoing!$K172*Achievement_to_date_ongoing!M172,"") ->  | M188: =IF($B188>0,Achievement_to_date_ongoing!$K172*Achievement_to_date_ongoing!N172,"") ->  | N188: =IF($B188>0,Achievement_to_date_ongoing!$K172*Achievement_to_date_ongoing!O172,"") ->  | O188: =IF($B188>0,Achievement_to_date_ongoing!$K172*Achievement_to_date_ongoing!P172,"") -> 
B189: =Achievement_to_date_ongoing!B173 -> 0 | C189: =IF($B189>0, Achievement_to_date_ongoing!C173, "") ->  | D189: =IF($B189>0, Achievement_to_date_ongoing!D173, "") ->  | E189: =IF($B189>0, Achievement_to_date_ongoing!E173, "") ->  | F189: =IF($B189>0, Achievement_to_date_ongoing!F173, "") ->  | L189: =IF($B189>0,Achievement_to_date_ongoing!$K173*Achievement_to_date_ongoing!M173,"") ->  | M189: =IF($B189>0,Achievement_to_date_ongoing!$K173*Achievement_to_date_ongoing!N173,"") ->  | N189: =IF($B189>0,Achievement_to_date_ongoing!$K173*Achievement_to_date_ongoing!O173,"") ->  | O189: =IF($B189>0,Achievement_to_date_ongoing!$K173*Achievement_to_date_ongoing!P173,"") -> 
B190: =Achievement_to_date_ongoing!B174 -> 0 | C190: =IF($B190>0, Achievement_to_date_ongoing!C174, "") ->  | D190: =IF($B190>0, Achievement_to_date_ongoing!D174, "") ->  | E190: =IF($B190>0, Achievement_to_date_ongoing!E174, "") ->  | F190: =IF($B190>0, Achievement_to_date_ongoing!F174, "") ->  | L190: =IF($B190>0,Achievement_to_date_ongoing!$K174*Achievement_to_date_ongoing!M174,"") ->  | M190: =IF($B190>0,Achievement_to_date_ongoing!$K174*Achievement_to_date_ongoing!N174,"") ->  | N190: =IF($B190>0,Achievement_to_date_ongoing!$K174*Achievement_to_date_ongoing!O174,"") ->  | O190: =IF($B190>0,Achievement_to_date_ongoing!$K174*Achievement_to_date_ongoing!P174,"") -> 
B191: =Achievement_to_date_ongoing!B175 -> 0 | C191: =IF($B191>0, Achievement_to_date_ongoing!C175, "") ->  | D191: =IF($B191>0, Achievement_to_date_ongoing!D175, "") ->  | E191: =IF($B191>0, Achievement_to_date_ongoing!E175, "") ->  | F191: =IF($B191>0, Achievement_to_date_ongoing!F175, "") ->  | L191: =IF($B191>0,Achievement_to_date_ongoing!$K175*Achievement_to_date_ongoing!M175,"") ->  | M191: =IF($B191>0,Achievement_to_date_ongoing!$K175*Achievement_to_date_ongoing!N175,"") ->  | N191: =IF($B191>0,Achievement_to_date_ongoing!$K175*Achievement_to_date_ongoing!O175,"") ->  | O191: =IF($B191>0,Achievement_to_date_ongoing!$K175*Achievement_to_date_ongoing!P175,"") -> 
B192: =Achievement_to_date_ongoing!B176 -> 0 | C192: =IF($B192>0, Achievement_to_date_ongoing!C176, "") ->  | D192: =IF($B192>0, Achievement_to_date_ongoing!D176, "") ->  | E192: =IF($B192>0, Achievement_to_date_ongoing!E176, "") ->  | F192: =IF($B192>0, Achievement_to_date_ongoing!F176, "") ->  | L192: =IF($B192>0,Achievement_to_date_ongoing!$K176*Achievement_to_date_ongoing!M176,"") ->  | M192: =IF($B192>0,Achievement_to_date_ongoing!$K176*Achievement_to_date_ongoing!N176,"") ->  | N192: =IF($B192>0,Achievement_to_date_ongoing!$K176*Achievement_to_date_ongoing!O176,"") ->  | O192: =IF($B192>0,Achievement_to_date_ongoing!$K176*Achievement_to_date_ongoing!P176,"") -> 
B193: =Achievement_to_date_ongoing!B177 -> 0 | C193: =IF($B193>0, Achievement_to_date_ongoing!C177, "") ->  | D193: =IF($B193>0, Achievement_to_date_ongoing!D177, "") ->  | E193: =IF($B193>0, Achievement_to_date_ongoing!E177, "") ->  | F193: =IF($B193>0, Achievement_to_date_ongoing!F177, "") ->  | L193: =IF($B193>0,Achievement_to_date_ongoing!$K177*Achievement_to_date_ongoing!M177,"") ->  | M193: =IF($B193>0,Achievement_to_date_ongoing!$K177*Achievement_to_date_ongoing!N177,"") ->  | N193: =IF($B193>0,Achievement_to_date_ongoing!$K177*Achievement_to_date_ongoing!O177,"") ->  | O193: =IF($B193>0,Achievement_to_date_ongoing!$K177*Achievement_to_date_ongoing!P177,"") -> 
B194: =Achievement_to_date_ongoing!B178 -> 0 | C194: =IF($B194>0, Achievement_to_date_ongoing!C178, "") ->  | D194: =IF($B194>0, Achievement_to_date_ongoing!D178, "") ->  | E194: =IF($B194>0, Achievement_to_date_ongoing!E178, "") ->  | F194: =IF($B194>0, Achievement_to_date_ongoing!F178, "") ->  | L194: =IF($B194>0,Achievement_to_date_ongoing!$K178*Achievement_to_date_ongoing!M178,"") ->  | M194: =IF($B194>0,Achievement_to_date_ongoing!$K178*Achievement_to_date_ongoing!N178,"") ->  | N194: =IF($B194>0,Achievement_to_date_ongoing!$K178*Achievement_to_date_ongoing!O178,"") ->  | O194: =IF($B194>0,Achievement_to_date_ongoing!$K178*Achievement_to_date_ongoing!P178,"") -> 
B195: =Achievement_to_date_ongoing!B179 -> 0 | C195: =IF($B195>0, Achievement_to_date_ongoing!C179, "") ->  | D195: =IF($B195>0, Achievement_to_date_ongoing!D179, "") ->  | E195: =IF($B195>0, Achievement_to_date_ongoing!E179, "") ->  | F195: =IF($B195>0, Achievement_to_date_ongoing!F179, "") ->  | L195: =IF($B195>0,Achievement_to_date_ongoing!$K179*Achievement_to_date_ongoing!M179,"") ->  | M195: =IF($B195>0,Achievement_to_date_ongoing!$K179*Achievement_to_date_ongoing!N179,"") ->  | N195: =IF($B195>0,Achievement_to_date_ongoing!$K179*Achievement_to_date_ongoing!O179,"") ->  | O195: =IF($B195>0,Achievement_to_date_ongoing!$K179*Achievement_to_date_ongoing!P179,"") -> 
B196: =Achievement_to_date_ongoing!B180 -> 0 | C196: =IF($B196>0, Achievement_to_date_ongoing!C180, "") ->  | D196: =IF($B196>0, Achievement_to_date_ongoing!D180, "") ->  | E196: =IF($B196>0, Achievement_to_date_ongoing!E180, "") ->  | F196: =IF($B196>0, Achievement_to_date_ongoing!F180, "") ->  | L196: =IF($B196>0,Achievement_to_date_ongoing!$K180*Achievement_to_date_ongoing!M180,"") ->  | M196: =IF($B196>0,Achievement_to_date_ongoing!$K180*Achievement_to_date_ongoing!N180,"") ->  | N196: =IF($B196>0,Achievement_to_date_ongoing!$K180*Achievement_to_date_ongoing!O180,"") ->  | O196: =IF($B196>0,Achievement_to_date_ongoing!$K180*Achievement_to_date_ongoing!P180,"") -> 
B197: =Achievement_to_date_ongoing!B181 -> 0 | C197: =IF($B197>0, Achievement_to_date_ongoing!C181, "") ->  | D197: =IF($B197>0, Achievement_to_date_ongoing!D181, "") ->  | E197: =IF($B197>0, Achievement_to_date_ongoing!E181, "") ->  | F197: =IF($B197>0, Achievement_to_date_ongoing!F181, "") ->  | L197: =IF($B197>0,Achievement_to_date_ongoing!$K181*Achievement_to_date_ongoing!M181,"") ->  | M197: =IF($B197>0,Achievement_to_date_ongoing!$K181*Achievement_to_date_ongoing!N181,"") ->  | N197: =IF($B197>0,Achievement_to_date_ongoing!$K181*Achievement_to_date_ongoing!O181,"") ->  | O197: =IF($B197>0,Achievement_to_date_ongoing!$K181*Achievement_to_date_ongoing!P181,"") -> 
B198: =Achievement_to_date_ongoing!B182 -> 0 | C198: =IF($B198>0, Achievement_to_date_ongoing!C182, "") ->  | D198: =IF($B198>0, Achievement_to_date_ongoing!D182, "") ->  | E198: =IF($B198>0, Achievement_to_date_ongoing!E182, "") ->  | F198: =IF($B198>0, Achievement_to_date_ongoing!F182, "") ->  | L198: =IF($B198>0,Achievement_to_date_ongoing!$K182*Achievement_to_date_ongoing!M182,"") ->  | M198: =IF($B198>0,Achievement_to_date_ongoing!$K182*Achievement_to_date_ongoing!N182,"") ->  | N198: =IF($B198>0,Achievement_to_date_ongoing!$K182*Achievement_to_date_ongoing!O182,"") ->  | O198: =IF($B198>0,Achievement_to_date_ongoing!$K182*Achievement_to_date_ongoing!P182,"") -> 
B199: =Achievement_to_date_ongoing!B183 -> 0 | C199: =IF($B199>0, Achievement_to_date_ongoing!C183, "") ->  | D199: =IF($B199>0, Achievement_to_date_ongoing!D183, "") ->  | E199: =IF($B199>0, Achievement_to_date_ongoing!E183, "") ->  | F199: =IF($B199>0, Achievement_to_date_ongoing!F183, "") ->  | L199: =IF($B199>0,Achievement_to_date_ongoing!$K183*Achievement_to_date_ongoing!M183,"") ->  | M199: =IF($B199>0,Achievement_to_date_ongoing!$K183*Achievement_to_date_ongoing!N183,"") ->  | N199: =IF($B199>0,Achievement_to_date_ongoing!$K183*Achievement_to_date_ongoing!O183,"") ->  | O199: =IF($B199>0,Achievement_to_date_ongoing!$K183*Achievement_to_date_ongoing!P183,"") -> 
B200: =Achievement_to_date_ongoing!B184 -> 0 | C200: =IF($B200>0, Achievement_to_date_ongoing!C184, "") ->  | D200: =IF($B200>0, Achievement_to_date_ongoing!D184, "") ->  | E200: =IF($B200>0, Achievement_to_date_ongoing!E184, "") ->  | F200: =IF($B200>0, Achievement_to_date_ongoing!F184, "") ->  | L200: =IF($B200>0,Achievement_to_date_ongoing!$K184*Achievement_to_date_ongoing!M184,"") ->  | M200: =IF($B200>0,Achievement_to_date_ongoing!$K184*Achievement_to_date_ongoing!N184,"") ->  | N200: =IF($B200>0,Achievement_to_date_ongoing!$K184*Achievement_to_date_ongoing!O184,"") ->  | O200: =IF($B200>0,Achievement_to_date_ongoing!$K184*Achievement_to_date_ongoing!P184,"") -> 
B201: =Achievement_to_date_ongoing!B185 -> 0 | C201: =IF($B201>0, Achievement_to_date_ongoing!C185, "") ->  | D201: =IF($B201>0, Achievement_to_date_ongoing!D185, "") ->  | E201: =IF($B201>0, Achievement_to_date_ongoing!E185, "") ->  | F201: =IF($B201>0, Achievement_to_date_ongoing!F185, "") ->  | L201: =IF($B201>0,Achievement_to_date_ongoing!$K185*Achievement_to_date_ongoing!M185,"") ->  | M201: =IF($B201>0,Achievement_to_date_ongoing!$K185*Achievement_to_date_ongoing!N185,"") ->  | N201: =IF($B201>0,Achievement_to_date_ongoing!$K185*Achievement_to_date_ongoing!O185,"") ->  | O201: =IF($B201>0,Achievement_to_date_ongoing!$K185*Achievement_to_date_ongoing!P185,"") -> 
B202: =Achievement_to_date_ongoing!B186 -> 0 | C202: =IF($B202>0, Achievement_to_date_ongoing!C186, "") ->  | D202: =IF($B202>0, Achievement_to_date_ongoing!D186, "") ->  | E202: =IF($B202>0, Achievement_to_date_ongoing!E186, "") ->  | F202: =IF($B202>0, Achievement_to_date_ongoing!F186, "") ->  | L202: =IF($B202>0,Achievement_to_date_ongoing!$K186*Achievement_to_date_ongoing!M186,"") ->  | M202: =IF($B202>0,Achievement_to_date_ongoing!$K186*Achievement_to_date_ongoing!N186,"") ->  | N202: =IF($B202>0,Achievement_to_date_ongoing!$K186*Achievement_to_date_ongoing!O186,"") ->  | O202: =IF($B202>0,Achievement_to_date_ongoing!$K186*Achievement_to_date_ongoing!P186,"") -> 
... 344 more rows

Sheet Project_characteristics
A1: PA1
E2: New Budget | F2: Remaining budget | G2: Add/Substract | H2: Comments
B3: Estimated budget | C3: =E3 -> 5586119.724 | E3: =F3+G3 -> 5586119.724 | F3: 5586119.724 | G3: 0
B4: Remaining projects | C4: =IF(C3/D18<0, 0, C3/D18) -> 1.025629364 | P4: Project count CDF | W4: Financial disbursement curve | AE4: Non-cumulative new projects (Jan) | AJ4: Disbursement matrix | AQ4: Completion matrix | AW4: Time elapsed
B5: CDF | C5: 2014 | D5: 2015 | E5: 2016 | F5: 2017 | G5: 2018 | H5: 2019 | I5: 2020 | J5: 2021 | K5: Current value | L5: 2022 | M5: 2023
B6: Data | C6: 0 | D6: 0 | E6: 0 | F6: 2 | G6: 7 | H6: 15 | I6: 20 | J6: 21 | K6: 21 | AJ6: 2020* | AK6: 2021 | AL6: 2022 | AM6: 2023 | AQ6: 2020* | AR6: 2021 | AS6: 2022 | AT6: 2023 | AW6: 2020* | AX6: 2021 | AY6: 2022 | AZ6: 2023
B7: Statistical forecast | L7: =K6+($C4*0.25) -> 21.25640734 | M7: =L7+($C4*0.75) -> 22.02562936 | AE7: 2020* | AF7: =(J6-I6)*AW7 -> 0.5 | AI7: 2020* | AJ7: =AW7*C13/100 -> 0.01203929759 | AK7: 0 | AL7: 0 | AM7: 0 | AP7: 2020* | AQ7: =IF($C$18/365 > AW7, 0, 1) -> 0 | AR7: 0 | AS7: 0 | AT7: 0 | AV7: 2020* | AW7: 0.5 | AX7: 0 | AY7: 0 | AZ7: 0
B8: Forecast | L8: =ROUND(L7,0) -> 21 | M8: =ROUND(M7,0) -> 22 | AE8: 2021 | AF8: =K6-I6 -> 1 | AI8: 2021 | AJ8: =D13/100 -> 0.1025644395 | AK8: =C13/100 -> 0.02407859518 | AL8: 0 | AM8: 0 | AP8: 2021 | AQ8: 0 | AR8: 0 | AS8: 0 | AT8: 0 | AV8: 2021 | AW8: =1+AW7 -> 1.5 | AX8: =AW7 -> 0.5 | AY8: 0 | AZ8: 0
AE9: 2022 | AF9: =L8-K6 -> 0 | AI9: 2022 | AJ9: =E13/100 -> 0.4368803151 | AK9: =AJ8 -> 0.1025644395 | AL9: =AK8 -> 0.02407859518 | AM9: 0 | AP9: 2022 | AQ9: 0 | AR9: 0 | AS9: 0 | AT9: 0 | AV9: 2022 | AW9: =+AW8+1 -> 2.5 | AX9: =AW8 -> 1.5 | AY9: =AX8 -> 0.5 | AZ9: 0
AE10: 2023 | AF10: =M8-L8 -> 1 | AI10: 2023 | AJ10: =F13/100 -> 1 | AK10: =AJ9 -> 0.4368803151 | AL10: =AK9 -> 0.1025644395 | AM10: =AL9 -> 0.02407859518 | AP10: 2023 | AQ10: 0 | AR10: 0 | AS10: 0 | AT10: 0 | AV10: 2023 | AW10: =+AW9+1 -> 3.5 | AX10: =AW9 -> 2.5 | AY10: =AX9 -> 1.5 | AZ10: =AY9 -> 0.5
B11: Disbursement curve | C11: t+0 | D11: t+1 | E11: t+2 | F11: t+3 | G11: t+4 | H11: t+5 | I11: t+6
B12: Data | C12: 2.407859518 | D12: 10.25644395 | E12: 43.68803151 | F12: 100 | G12: 100 | H12: 100 | I12: 100
B13: Forecast | C13: =C12 -> 2.407859518 | D13: =D12 -> 10.25644395 | E13: 43.68803151 | F13: 100 | G13: 100 | H13: 100 | I13: 100
B16: Indicators | C16: Project length | D16: Project budget | E16: CO14 | F16: 1F1
B17: Average characteristics | C17: 1309 | D17: 5446528.658 | E17: 1.7675 | F17: 2910092.735
B18: Forecast | C18: =C17 -> 1309 | D18: =D17 -> 5446528.658 | E18: =E17 -> 1.7675 | F18: 2910092.735
A21: PA2
E22: New Budget | F22: Remaining budget | G22: Add/Substract | H22: Comments
B23: Estimated budget | C23: =E23 -> 2502732.1 | E23: =F23+G23 -> 2502732.1 | F23: 2502732.1 | G23: 0
B24: Remaining projects | C24: =IF(C23/D38<0, 0, C23/D38) -> 3.389869809 | P24: Project count CDF | W24: Financial disbursement curve | AE24: Non-cumulative new projects (Jan) | AJ24: Disbursement matrix | AQ24: Completion matrix | AW24: Time elapsed
B25: CDF | C25: 2014 | D25: =+C25+1 -> 2015 | E25: =+D25+1 -> 2016 | F25: =+E25+1 -> 2017 | G25: =+F25+1 -> 2018 | H25: =+G25+1 -> 2019 | I25: =+H25+1 -> 2020 | J25: 2021 | K25: Current value | L25: 2022 | M25: 2023
B26: Data | C26: 0 | D26: 0 | E26: 0 | F26: 16 | G26: 21 | H26: 67 | I26: 69 | J26: 69 | K26: 69 | AJ26: 2020* | AK26: 2021 | AL26: 2022 | AM26: 2023 | AQ26: 2020* | AR26: 2021 | AS26: 2022 | AT26: 2023 | AW26: 2020* | AX26: 2021 | AY26: 2022 | AZ26: 2023
B27: Statistical forecast | L27: =K26+($C24*0.25) -> 69.84746745 | M27: =L27+($C24*0.75) -> 72.38986981 | AE27: 2020* | AF27: =(J26-I26)*AW27 -> 0 | AI27: 2020* | AJ27: =AW27*C33/100 -> 0.02484757341 | AK27: 0 | AL27: 0 | AM27: 0 | AP27: 2020* | AQ27: =IF($C$38/365 > AW27, 0, 1) -> 0 | AR27: 0 | AS27: 0 | AT27: 0 | AV27: 2020* | AW27: 0.5 | AX27: 0 | AY27: 0 | AZ27: 0
B28: Forecast | L28: =ROUND(L27,0) -> 70 | M28: =ROUND(M27,0) -> 72 | AE28: 2021 | AF28: =K26-I26 -> 0 | AI28: 2021 | AJ28: =D33/100 -> 0.4600868514 | AK28: =C33/100 -> 0.04969514683 | AL28: 0 | AM28: 0 | AP28: 2021 | AQ28: 0 | AR28: 0 | AS28: 0 | AT28: 0 | AV28: 2021 | AW28: =1+AW27 -> 1.5 | AX28: =AW27 -> 0.5 | AY28: 0 | AZ28: 0
AE29: 2022 | AF29: =L28-K26 -> 1 | AI29: 2022 | AJ29: =E33/100 -> 1 | AK29: =AJ28 -> 0.4600868514 | AL29: =AK28 -> 0.04969514683 | AM29: 0 | AP29: 2022 | AQ29: 1 | AR29: 0 | AS29: 0 | AT29: 0 | AV29: 2022 | AW29: =+AW28+1 -> 2.5 | AX29: =AW28 -> 1.5 | AY29: =AX28 -> 0.5 | AZ29: 0
AE30: 2023 | AF30: =M28-L28 -> 2 | AI30: 2023 | AJ30: =F33/100 -> 1 | AK30: =AJ29 -> 1 | AL30: =AK29 -> 0.4600868514 | AM30: =AL29 -> 0.04969514683 | AP30: 2023 | AQ30: 1 | AR30: 1 | AS30: 0 | AT30: 0 | AV30: 2023 | AW30: =+AW29+1 -> 3.5 | AX30: =AW29 -> 2.5 | AY30: =AX29 -> 1.5 | AZ30: =AY29 -> 0.5
B31: Disbursement curve | C31: t+0 | D31: t+1 | E31: t+2 | F31: t+3 | G31: t+4 | H31: t+5 | I31: t+6
B32: Data | C32: 4.969514683 | D32: 46.00868514 | E32: 100 | F32: 100 | G32: 100 | H32: 100 | I32: 100
B33: Forecast | C33: =C32 -> 4.969514683 | D33: =D32 -> 46.00868514 | E33: 100 | F33: 100 | G33: 100 | H33: 100 | I33: 100
B36: Indicators | C36: Project length | D36: Project budget | E36: CO09 | F36: 6c.1 | G36: 2F1
B37: Average characteristics | C37: 861 | D37: 738297.41 | E37: 616.7954545 | F37: 2.431818182 | G37: 467987.1364
B38: Forecast | C38: =C37 -> 861 | D38: =D37 -> 738297.41 | E38: =E37 -> 616.7954545 | F38: =F37 -> 2.431818182 | G38: =G37 -> 467987.1364
A41: PA3
E42: New Budget | F42: Remaining budget | G42: Add/Substract | H42: Comments
B43: Estimated budget | C43: =E43 -> 1682489.636 | E43: =F43+G43 -> 1682489.636 | F43: 1682489.636 | G43: 0
B44: Remaining projects | C44: =IF(C43/D58<0, 0, C43/D58) -> 1.224013681 | P44: Project count CDF | W44: Financial disbursement curve | AE44: Non-cumulative new projects (Jan) | AJ44: Disbursement matrix | AQ44: Completion matrix | AW44: Time elapsed
B45: CDF | C45: 2014 | D45: =+C45+1 -> 2015 | E45: =+D45+1 -> 2016 | F45: =+E45+1 -> 2017 | G45: =+F45+1 -> 2018 | H45: =+G45+1 -> 2019 | I45: =+H45+1 -> 2020 | J45: =+I45+1 -> 2021 | K45: Current value | L45: 2022 | M45: 2023
B46: Data | C46: 0 | D46: 0 | E46: 0 | F46: 7 | G46: 12 | H46: 23 | I46: 26 | J46: 28 | K46: 28 | AJ46: 2020* | AK46: 2021 | AL46: 2022 | AM46: 2023 | AQ46: 2020* | AR46: 2021 | AS46: 2022 | AT46: 2023 | AW46: 2020* | AX46: 2021 | AY46: 2022 | AZ46: 2023
B47: Statistical forecast | L47: =K46+($C44*0.25) -> 28.30600342 | M47: =L47+($C44*0.75) -> 29.22401368 | AE47: 2020* | AF47: =(J46-I46)*AW47 -> 1 | AI47: 2020* | AJ47: =AW47*C53/100 -> 0.01821461144 | AK47: 0 | AL47: 0 | AM47: 0 | AP47: 2020* | AQ47: =IF($C$58/365 > AW47, 0, 1) -> 0 | AR47: 0 | AS47: 0 | AT47: 0 | AV47: 2020* | AW47: 0.5 | AX47: 0 | AY47: 0 | AZ47: 0
B48: Forecast | L48: =ROUND(L47,0) -> 28 | M48: =ROUND(M47,0) -> 29 | AE48: 2021 | AF48: =K46-I46 -> 2 | AI48: 2021 | AJ48: =D53/100 -> 0.2347655318 | AK48: =C53/100 -> 0.03642922288 | AL48: 0 | AM48: 0 | AP48: 2021 | AQ48: 0 | AR48: 0 | AS48: 0 | AT48: 0 | AV48: 2021 | AW48: =1+AW47 -> 1.5 | AX48: =AW47 -> 0.5 | AY48: 0 | AZ48: 0
AE49: 2022 | AF49: =L48-K46 -> 0 | AI49: 2022 | AJ49: =E53/100 -> 1 | AK49: =AJ48 -> 0.2347655318 | AL49: =AK48 -> 0.03642922288 | AM49: 0 | AP49: 2022 | AQ49: 0 | AR49: 0 | AS49: 0 | AT49: 0 | AV49: 2022 | AW49: =+AW48+1 -> 2.5 | AX49: =AW48 -> 1.5 | AY49: =AX48 -> 0.5 | AZ49: 0
AE50: 2023 | AF50: =M48-L48 -> 1 | AI50: 2023 | AJ50: =F53/100 -> 1 | AK50: =AJ49 -> 1 | AL50: =AK49 -> 0.2347655318 | AM50: =AL49 -> 0.03642922288 | AP50: 2023 | AQ50: 1 | AR50: 0 | AS50: 0 | AT50: 0 | AV50: 2023 | AW50: =+AW49+1 -> 3.5 | AX50: =AW49 -> 2.5 | AY50: =AX49 -> 1.5 | AZ50: =AY49 -> 0.5
B51: Disbursement curve | C51: t+0 | D51: t+1 | E51: t+2 | F51: t+3 | G51: t+4 | H51: t+5 | I51: t+6
B52: Data | C52: 3.642922288 | D52: 23.47655318 | E52: 100 | F52: 100 | G52: 100 | H52: 100 | I52: 100
B53: Forecast | C53: =C52 -> 3.642922288 | D53: =D52 -> 23.47655318 | E53: 100 | F53: 100 | G53: 100 | H53: 100 | I53: 100
B56: Indicators | C56: Project length | D56: Project budget | E56: 3F1 | F56: 5b.2
B57: Average characteristics | C57: 1007 | D57: 1374567.672 | E57: 1394516.607 | F57: 1
B58: Forecast | C58: =C57 -> 1007 | D58: =D57 -> 1374567.672 | E58: =E57 -> 1394516.607 | F58: =F57 -> 1
A61: PA4
E62: New Budget | F62: Remaining budget | G62: Add/Substract | H62: Comments
B63: Estimated budget | C63: =E63 -> 127607.581 | E63: =F63+G63 -> 127607.581 | F63: 127607.581 | G63: 0
B64: Remaining projects | C64: =IF(C63/D78<0, 0, C63/D78) -> 0.2951257516 | P64: Project count CDF | W64: Financial disbursement curve | AE64: Non-cumulative new projects (Jan) | AJ64: Disbursement matrix | AQ64: Completion matrix | AW64: Time elapsed
B65: CDF | C65: 2014 | D65: 2015 | E65: 2016 | F65: 2017 | G65: 2018 | H65: 2019 | I65: 2020 | J65: 2021 | K65: Current value | L65: 2022 | M65: 2023
B66: Data | C66: 0 | D66: 0 | E66: 0 | F66: 0 | G66: 31 | H66: 32 | I66: 32 | J66: 32 | K66: 32 | AJ66: 2020* | AK66: 2021 | AL66: 2022 | AM66: 2023 | AQ66: 2020* | AR66: 2021 | AS66: 2022 | AT66: 2023 | AW66: 2020* | AX66: 2021 | AY66: 2022 | AZ66: 2023
B67: Statistical forecast | L67: =K66+($C64*0.25) -> 32.07378144 | M67: =L67+($C64*0.75) -> 32.29512575 | AE67: 2020* | AF67: =(J66-I66)*AW67 -> 0 | AI67: 2020* | AJ67: =AW67*C73/100 -> 0.04169245172 | AK67: 0 | AL67: 0 | AM67: 0 | AP67: 2020* | AQ67: =IF($C$78/365 > AW67, 0, 1) -> 0 | AR67: 0 | AS67: 0 | AT67: 0 | AV67: 2020* | AW67: 0.5 | AX67: 0 | AY67: 0 | AZ67: 0
B68: Forecast | L68: =ROUND(L67,0) -> 32 | M68: =ROUND(M67,0) -> 32 | AE68: 2021 | AF68: =K66-I66 -> 0 | AI68: 2021 | AJ68: =D73/100 -> 1 | AK68: =C73/100 -> 0.08338490343 | AL68: 0 | AM68: 0 | AP68: 2021 | AQ68: 0 | AR68: 0 | AS68: 0 | AT68: 0 | AV68: 2021 | AW68: =1+AW67 -> 1.5 | AX68: =AW67 -> 0.5 | AY68: 0 | AZ68: 0
AE69: 2022 | AF69: =L68-K66 -> 0 | AI69: 2022 | AJ69: =E73/100 -> 1 | AK69: =AJ68 -> 1 | AL69: =AK68 -> 0.08338490343 | AM69: 0 | AP69: 2022 | AQ69: 1 | AR69: 0 | AS69: 0 | AT69: 0 | AV69: 2022 | AW69: =+AW68+1 -> 2.5 | AX69: =AW68 -> 1.5 | AY69: =AX68 -> 0.5 | AZ69: 0
AE70: 2023 | AF70: =M68-L68 -> 0 | AI70: 2023 | AJ70: =F73/100 -> 1 | AK70: =AJ69 -> 1 | AL70: =AK69 -> 1 | AM70: =AL69 -> 0.08338490343 | AP70: 2023 | AQ70: 1 | AR70: 1 | AS70: 0 | AT70: 0 | AV70: 2023 | AW70: =+AW69+1 -> 3.5 | AX70: =AW69 -> 2.5 | AY70: =AX69 -> 1.5 | AZ70: =AY69 -> 0.5
B71: Disbursement curve | C71: t+0 | D71: t+1 | E71: t+2 | F71: t+3 | G71: t+4 | H71: t+5 | I71: t+6
B72: Data | C72: 8.338490343 | D72: 100 | E72: 100 | F72: 100 | G72: 100 | H72: 100 | I72: 100
B73: Forecast | C73: =C72 -> 8.338490343 | D73: =D72 -> 100 | E73: 100 | F73: 100 | G73: 100 | H73: 100 | I73: 100
B76: Indicators | C76: Project length | D76: Project budget | E76: 8e.1 | F76: 4F1
B77: Average characteristics | C77: 703 | D77: 432383.7559 | E77: 10.83870968 | F77: 425081.3103
B78: Forecast | C78: =C77 -> 703 | D78: =D77 -> 432383.7559 | E78: =E77 -> 10.83870968 | F78: =F77 -> 425081.3103
A81: PA5
E82: New Budget | F82: Remaining budget | G82: Add/Substract | H82: Comments
B83: Estimated budget | C83: =E83 -> 104493.9261 | E83: =F83+G83 -> 104493.9261 | F83: 104493.9261 | G83: 0
B84: Remaining projects | C84: =IF(C83/D98<0, 0, C83/D98) -> 0.1538279827 | P84: Project count CDF | W84: Financial disbursement curve | AE84: Non-cumulative new projects (Jan) | AJ84: Disbursement matrix | AQ84: Completion matrix
B85: CDF | C85: 2014 | D85: 2015 | E85: 2016 | F85: 2017 | G85: 2018 | H85: 2019 | I85: 2020 | J85: 2021 | K85: Current value | L85: 2022 | M85: 2023
B86: Data | C86: 0 | D86: 0 | E86: 0 | F86: 0 | G86: 16 | H86: 16 | I86: 18 | J86: 19 | K86: 19 | AJ86: 2020* | AK86: 2021 | AL86: 2022 | AM86: 2023 | AQ86: 2020* | AR86: 2021 | AS86: 2022 | AT86: 2023
B87: Statistical forecast | L87: =K86+($C84*0.25) -> 19.038457 | M87: =L87+($C84*0.75) -> 19.15382798 | AE87: 2020* | AF87: =(J86-I86)*AW87 -> 0.5 | AI87: 2020* | AJ87: =AW87*C93/100 -> 0.02755742746 | AK87: 0 | AL87: 0 | AM87: 0 | AP87: 2020* | AQ87: =IF($C$98/365 > AW87, 0, 1) -> 0 | AR87: 0 | AS87: 0 | AT87: 0 | AW87: 0.5 | AX87: 0 | AY87: 0 | AZ87: 0
B88: Forecast | L88: =ROUND(L87,0) -> 19 | M88: =ROUND(M87,0) -> 19 | AE88: 2021 | AF88: =K86-I86 -> 1 | AI88: 2021 | AJ88: =D93/100 -> 0.5102635102 | AK88: =C93/100 -> 0.05511485491 | AL88: 0 | AM88: 0 | AP88: 2021 | AQ88: 0 | AR88: 0 | AS88: 0 | AT88: 0 | AW88: =1+AW87 -> 1.5 | AX88: =AW87 -> 0.5 | AY88: 0 | AZ88: 0
AE89: 2022 | AF89: =L88-K86 -> 0 | AI89: 2022 | AJ89: =E93/100 -> 1 | AK89: =AJ88 -> 0.5102635102 | AL89: =AK88 -> 0.05511485491 | AM89: 0 | AP89: 2022 | AQ89: 1 | AR89: 0 | AS89: 0 | AT89: 0 | AW89: =+AW88+1 -> 2.5 | AX89: =AW88 -> 1.5 | AY89: =AX88 -> 0.5 | AZ89: 0
AE90: 2023 | AF90: =M88-L88 -> 0 | AI90: 2023 | AJ90: =F93/100 -> 1 | AK90: =AJ89 -> 1 | AL90: =AK89 -> 0.5102635102 | AM90: =AL89 -> 0.05511485491 | AP90: 2023 | AQ90: 1 | AR90: 1 | AS90: 0 | AT90: 0 | AW90: =+AW89+1 -> 3.5 | AX90: =AW89 -> 2.5 | AY90: =AX89 -> 1.5 | AZ90: =AY89 -> 0.5
B91: Disbursement curve | C91: t+0 | D91: t+1 | E91: t+2 | F91: t+3 | G91: t+4 | H91: t+5 | I91: t+6
B92: Data | C92: 5.511485491 | D92: 51.02635102 | E92: 100 | F92: 100 | G92: 100 | H92: 100 | I92: 100
B93: Forecast | C93: =C92 -> 5.511485491 | D93: =D92 -> 51.02635102 | E93: 100 | F93: 100 | G93: 100 | H93: 100 | I93: 100
B96: Indicators | C96: Project length | D96: Project budget | E96: 11b.1 | F96: 5F1
B97: Average characteristics | C97: 837 | D97: 679290.7521 | E97: 7.466666667 | F97: 575677.3613
B98: Forecast | C98: =C97 -> 837 | D98: =D97 -> 679290.7521 | E98: =E97 -> 7.466666667 | F98: =F97 -> 575677.3613

Sheet Achievement_forecasts_future
G2: User calibrations | L2: Statistical projections
B3: PA | C3: PI | D3: Indicator | E3: Region | F3: Type | G3: 2020 | H3: 2021 | I3: 2022 | J3: 2023 | L3: 2020 | M3: 2021 | N3: 2022 | O3: 2023
B4: 1 | C4: All | D4: CO14 | E4: All | F4: Physical | G4: 0 | H4: 0 | I4: 0 | J4: 0 | L4: =TRANSPOSE(MMULT(Project_characteristics!AQ7:AT10,Project_characteristics!AF7:AF10)*Project_characteristics!E18) -> 0 | M4: 0 | N4: 0 | O4: 0
B5: 1 | C5: All | D5: 1F1 | E5: All | F5: Financial | G5: 0 | H5: 0 | I5: 0 | J5: 0 | L5: =TRANSPOSE(MMULT(Project_characteristics!AJ7:AM10,Project_characteristics!AF7:AF10)*Project_characteristics!F18) -> 17517.73622 | M5: 219306.96 | N5: 934153.1457 | O5: 2796479.543
B6: 2 | C6: All | D6: CO09 | E6: All | F6: Physical | G6: 0 | H6: 0 | I6: 0 | J6: 0 | L6: =TRANSPOSE(MMULT(Project_characteristics!AQ27:AT30,Project_characteristics!AF27:AF30)*Project_characteristics!E38:F38) -> 0 | M6: 0 | N6: 0 | O6: 0
B7: 2 | C7: All | D7: 6c.1 | E7: All | F7: Physical | G7: 0 | H7: 0 | I7: 0 | J7: 0 | L7: 0 | M7: 0 | N7: 0 | O7: 0
B8: 2 | C8: All | D8: 2F1 | E8: All | F8: Financial | G8: 0 | H8: 0 | I8: 0 | J8: 0 | L8: =TRANSPOSE(MMULT(Project_characteristics!AJ27:AM30,Project_characteristics!AF27:AF30)*Project_characteristics!G38) -> 0 | M8: 0 | N8: 23256.68945 | O8: 261828.107
B9: 3 | C9: All | D9: 3F1 | E9: All | F9: Financial | G9: 0 | H9: 0 | I9: 0 | J9: 0 | L9: =TRANSPOSE(MMULT(Project_characteristics!AJ47:AM50,Project_characteristics!AF47:AF50)*Project_characteristics!E58) -> 25400.57815 | M9: 428986.7454 | N9: 2049285.473 | O9: 4234350.978
B10: 3 | C10: All | D10: 5b.2 | E10: All | F10: Physical | G10: 0 | H10: 0 | I10: 0 | J10: 1 | L10: =TRANSPOSE(MMULT(Project_characteristics!AQ47:AT50,Project_characteristics!AF47:AF50)*Project_characteristics!F58) -> 0 | M10: 0 | N10: 0 | O10: 1
B11: 4 | C11: All | D11: 8e.1 | E11: All | F11: Physical | G11: 0 | H11: 0 | I11: 0 | J11: 0 | L11: =TRANSPOSE(MMULT(Project_characteristics!AQ67:AT70,Project_characteristics!AF67:AF70)*Project_characteristics!E78) -> 0 | M11: 0 | N11: 0 | O11: 0
B12: 4 | C12: All | D12: 4F1 | E12: All | F12: Financial | G12: 0 | H12: 0 | I12: 0 | J12: 0 | L12: =TRANSPOSE(MMULT(Project_characteristics!AJ67:AM70,Project_characteristics!AF67:AF70)*Project_characteristics!F78) -> 0 | M12: 0 | N12: 0 | O12: 0
B13: 5 | C13: All | D13: 11b.1 | E13: All | F13: Physical | G13: 0 | H13: 0 | I13: 3.733333333 | J13: 11.2 | L13: =TRANSPOSE(MMULT(Project_characteristics!AQ87:AT90,Project_characteristics!AF87:AF90)*Project_characteristics!E98) -> 0 | M13: 0 | N13: 3.733333333 | O13: 11.2
B14: 5 | C14: All | D14: 5F1 | E14: All | F14: Financial | G14: 0 | H14: 0 | I14: 0 | J14: 0 | L14: =TRANSPOSE(MMULT(Project_characteristics!AJ87:AM90,Project_characteristics!AF87:AF90)*Project_characteristics!F98) -> 7932.093562 | M14: 178601.9498 | N14: 581585.8318 | O14: 863516.042
